Workbook

Sheet Veri Girişi
AD1: Listeye Geri Dön | CS1: Listeye Geri Dön | EA1: Listeye Geri Dön | JO1: GERÇEKLİK BELİRSİZLİĞİ
A4: DOĞRUSALLIK KALİBRASYON EĞRİSİ VERİLERİ | AC4: TEKRARLANABİLİRLİK-GERÇEKLİK VERİLERİ | BK4: TEKRARLANABİLİRLİK-GERÇEKLİK VERİLERİ | CS4: TEKRARÜRETİLEBİLİRLİK-GERÇEKLİK VERİLERİ | EA4: TEKRARÜRETİLEBİLİRLİK-GERÇEKLİK VERİLERİ | FI4: GERÇEKLİK KONTROLLERİ -TEKRAREDİLEBİLİRLİK | GW4: GERÇEKLİK KONTROLLERİ -TEKRAREDİLEBİLİRLİK | JO4: Bias^2=(R-1)^2 | OL4: TEKRARÜRETİLEBİLİRLİK-BELİRSİZLİĞİ | QP4: TEKRARÜRETİLEBİLİRLİK-BELİRSİZLİĞİ | SS4: RSDWR, pool
AC5: 1.KONSANTRASYONLAR | BK5: 2.KONSANTRASYONLAR | CS5: 1.KONSANTRASYONLAR | EA5: 2.KONSANTRASYONLAR | FI5: 1.KONSANTRASYONLAR | GW5: 2.KONSANTRASYONLAR | JO5: T.E. 1.KONSANTRASYONLAR | KV5: T.E. 2.KONSANTRASYONLAR | LZ5: T.Ü. 1.KONSANTRASYONLAR | ND5: T.Ü. 2.KONSANTRASYONLAR | OJ5: ubias= RMSbias | OL5: 1.KONSANTRASYONLAR | QP5: 2.KONSANTRASYONLAR
AC6: Analistler | BK6: Analistler | CS6: Analistler | EA6: Analistler | FI6: Analistler | GW6: Analistler | JO6: Analistler | OH6: tekrar sayısı (n) | OI6: Top(Bias^2=(R-1)^2) | OO6: Zaman ortalamaları | OV6: Analistler | PZ6: Genel ortalama | QA6: % Geri Kazanım (genel) | QB6: Ortalamanın varyansı (Sd2) | QC6: Farkların Karelerinin Toplamı | QE6: Tekrarlanabilirlik varyansı (Srep2) | QF6: Günler arası varyans (SL2) | QG6: Tekrarüretilebilirlik varyansı (SwR2) | QH6: Tekrarüretilebilirlik standart sapması (SwR) | QI6: RSDwR | QJ6: % RSDwR | QK6: n(genel) | QL6: Gerçeklik Kontrolü | QM6: Tekrarüretilebilirlik Kontrolü | QN6: (RSD2)*(n-1) | QP6: Analistler | SD6: Genel ortalama | SE6: % Geri Kazanım (genel) | SF6: Ortalamanın varyansı (Sd2) | SG6: Farkların Karelerinin Toplamı | SI6: Tekrarlanabilirlik varyansı (Srep2) | SJ6: Günler arası varyans (SL2) | SK6: Tekrarüretilebilirlik varyansı (SwR2) | SL6: Tekrarüretilebilirlik standart sapması (SwR) | SM6: RSDwR | SN6: % RSDwR | SO6: n(genel) | SP6: Gerçeklik Kontrolü | SQ6: Tekrarüretilebilirlik Kontrolü | SR6: (RSD2)*(n-1)
OL7: Zaman dilimi | OT7: Analist Sayısı n | OU7: Zaman Dilimi k | OV7: Zaman Ort-Tekrar farkları | PA7: Zaman Ort-Tekrar farkları | PF7: Zaman Ort-Tekrar farkları | PK7: Zaman Ort-Tekrar farkları | PP7: Zaman Ort-Tekrar farkları | PU7: Zaman Ort-Tekrar farkları | QD7: k*(n-1) | QP7: Zaman dilimi | QS7: Zaman ortalamaları | QX7: Analist Sayısı n | QY7: Zaman Dilimi k | QZ7: Zaman Ort-Tekrar farkları | RE7: Zaman Ort-Tekrar farkları | RJ7: Zaman Ort-Tekrar farkları | RO7: Zaman Ort-Tekrar farkları | RT7: Zaman Ort-Tekrar farkları | RY7: Zaman Ort-Tekrar farkları | SH7: k*(n-1)
D8: LEVEL-1 | G8: LEVEL-2 | J8: LEVEL-3 | M8: LEVEL-4 | P8: LEVEL-5 | S8: LEVEL-6 | V8: LEVEL-7 | Y8: LEVEL-8 | AD8: Tekrar (n) | AF8: 1 | AK8: 2 | AP8: 3 | AU8: 4 | AZ8: 5 | BE8: 6 | BK8: Tekrar (n) | BN8: 1 | BS8: 2 | BX8: 3 | CC8: 4 | CH8: 5 | CM8: 6 | CS8: Zaman dilimi | CV8: 1 | DA8: 2 | DF8: 3 | DK8: 4 | DP8: 5 | DU8: 6 | EA8: Zaman dilimi | ED8: 1 | EI8: 2 | EN8: 3 | ES8: 4 | EX8: 5 | FC8: 6 | FL8: 1 | FR8: 2 | FX8: 3 | GD8: 4 | GJ8: 5 | GP8: 6 | GZ8: 1 | HF8: 2 | HL8: 3 | HR8: 4 | HX8: 5 | ID8: 6 | JP8: Tekrar (n) | JR8: 1 | JW8: 2 | KB8: 3 | KG8: 4 | KL8: 5 | KQ8: 6 | KV8: 1 | LA8: 2 | LF8: 3 | LK8: 4 | LP8: 5 | LU8: 6 | LZ8: 1 | ME8: 2 | MJ8: 3 | MO8: 4 | MT8: 5 | MY8: 6 | ND8: 1 | NI8: 2 | NN8: 3 | NS8: 4 | NX8: 5 | OC8: 6 | OV8: 1 | PA8: 2 | PF8: 3 | PK8: 4 | PP8: 5 | PU8: 6 | QZ8: 1 | RE8: 2 | RJ8: 3 | RO8: 4 | RT8: 5 | RY8: 6
A9: Xi (kons) | D9: 2 | E9: 2 | G9: 5 | H9: 5 | J9: 10 | K9: 10 | M9: 25 | N9: 25 | P9: 50 | Q9: 50 | S9: 100 | T9: 100 | AF9: Tekrar_1 | AG9: Tekrar_2 | AH9: Tekrar_3 | AI9: Tekrar_4 | AJ9: Tekrar_5 | AK9: Tekrar_1 | AL9: Tekrar_2 | AM9: Tekrar_3 | AN9: Tekrar_4 | AO9: Tekrar_5 | AP9: Tekrar_1 | AQ9: Tekrar_2 | AR9: Tekrar_3 | AS9: Tekrar_4 | AT9: Tekrar_5 | AU9: Tekrar_1 | AV9: Tekrar_2 | AW9: Tekrar_3 | AX9: Tekrar_4 | AY9: Tekrar_5 | AZ9: Tekrar_1 | BA9: Tekrar_2 | BB9: Tekrar_3 | BC9: Tekrar_4 | BD9: Tekrar_5 | BE9: Tekrar_1 | BF9: Tekrar_2 | BG9: Tekrar_3 | BH9: Tekrar_4 | BI9: Tekrar_5 | BN9: Tekrar_1 | BO9: Tekrar_2 | BP9: Tekrar_3 | BQ9: Tekrar_4 | BR9: Tekrar_5 | BS9: Tekrar_1 | BT9: Tekrar_2 | BU9: Tekrar_3 | BV9: Tekrar_4 | BW9: Tekrar_5 | BX9: Tekrar_1 | BY9: Tekrar_2 | BZ9: Tekrar_3 | CA9: Tekrar_4 | CB9: Tekrar_5 | CC9: Tekrar_1 | CD9: Tekrar_2 | CE9: Tekrar_3 | CF9: Tekrar_4 | CG9: Tekrar_5 | CH9: Tekrar_1 | CI9: Tekrar_2 | CJ9: Tekrar_3 | CK9: Tekrar_4 | CL9: Tekrar_5 | CM9: Tekrar_1 | CN9: Tekrar_2 | CO9: Tekrar_3 | CP9: Tekrar_4 | CQ9: Tekrar_5 | CV9: 1.zaman | CW9: 2.zaman | CX9: 3.zaman | CY9: 4.zaman | CZ9: 5.zaman | DA9: 1.zaman | DB9: 2.zaman | DC9: 3.zaman | DD9: 4.zaman | DE9: 5.zaman | DF9: 1.zaman | DG9: 2.zaman | DH9: 3.zaman | DI9: 4.zaman | DJ9: 5.zaman | DK9: 1.zaman | DL9: 2.zaman | DM9: 3.zaman | DN9: 4.zaman | DO9: 5.zaman | DP9: 1.zaman | DQ9: 2.zaman | DR9: 3.zaman | DS9: 4.zaman | DT9: 5.zaman | DU9: 1.zaman | DV9: 2.zaman | DW9: 3.zaman | DX9: 4.zaman | DY9: 5.zaman | ED9: 1.zaman | EE9: 2.zaman | EF9: 3.zaman | EG9: 4.zaman | EH9: 5.zaman | EI9: 1.zaman | EJ9: 2.zaman | EK9: 3.zaman | EL9: 4.zaman | EM9: 5.zaman | EN9: 1.zaman | EO9: 2.zaman | EP9: 3.zaman | EQ9: 4.zaman | ER9: 5.zaman | ES9: 1.zaman | ET9: 2.zaman | EU9: 3.zaman | EV9: 4.zaman | EW9: 5.zaman | EX9: 1.zaman | EY9: 2.zaman | EZ9: 3.zaman | FA9: 4.zaman | FB9: 5.zaman | FC9: 1.zaman | FD9: 2.zaman | FE9: 3.zaman | FF9: 4.zaman | FG9: 5.zaman | JR9: Tekrar_1 | JS9: Tekrar_2 | JT9: Tekrar_3 | JU9: Tekrar_4 | JV9: Tekrar_5 | JW9: Tekrar_1 | JX9: Tekrar_2 | JY9: Tekrar_3 | JZ9: Tekrar_4 | KA9: Tekrar_5 | KB9: Tekrar_1 | KC9: Tekrar_2 | KD9: Tekrar_3 | KE9: Tekrar_4 | KF9: Tekrar_5 | KG9: Tekrar_1 | KH9: Tekrar_2 | KI9: Tekrar_3 | KJ9: Tekrar_4 | KK9: Tekrar_5 | KL9: Tekrar_1 | KM9: Tekrar_2 | KN9: Tekrar_3 | KO9: Tekrar_4 | KP9: Tekrar_5 | KQ9: Tekrar_1 | KR9: Tekrar_2 | KS9: Tekrar_3 | KT9: Tekrar_4 | KU9: Tekrar_5 | KV9: Tekrar_1 | KW9: Tekrar_2 | KX9: Tekrar_3 | KY9: Tekrar_4 | KZ9: Tekrar_5 | LA9: Tekrar_1 | LB9: Tekrar_2 | LC9: Tekrar_3 | LD9: Tekrar_4 | LE9: Tekrar_5 | LF9: Tekrar_1 | LG9: Tekrar_2 | LH9: Tekrar_3 | LI9: Tekrar_4 | LJ9: Tekrar_5 | LK9: Tekrar_1 | LL9: Tekrar_2 | LM9: Tekrar_3 | LN9: Tekrar_4 | LO9: Tekrar_5 | LP9: Tekrar_1 | LQ9: Tekrar_2 | LR9: Tekrar_3 | LS9: Tekrar_4 | LT9: Tekrar_5 | LU9: Tekrar_1 | LV9: Tekrar_2 | LW9: Tekrar_3 | LX9: Tekrar_4 | LY9: Tekrar_5 | LZ9: 1.zaman | MA9: 2.zaman | MB9: 3.zaman | MC9: 4.zaman | MD9: 5.zaman | ME9: 1.zaman | MF9: 2.zaman | MG9: 3.zaman | MH9: 4.zaman | MI9: 5.zaman | MJ9: 1.zaman | MK9: 2.zaman | ML9: 3.zaman | MM9: 4.zaman | MN9: 5.zaman | MO9: 1.zaman | MP9: 2.zaman | MQ9: 3.zaman | MR9: 4.zaman | MS9: 5.zaman | MT9: 1.zaman | MU9: 2.zaman | MV9: 3.zaman | MW9: 4.zaman | MX9: 5.zaman | MY9: 1.zaman | MZ9: 2.zaman | NA9: 3.zaman | NB9: 4.zaman | NC9: 5.zaman | ND9: 1.zaman | NE9: 2.zaman | NF9: 3.zaman | NG9: 4.zaman | NH9: 5.zaman | NI9: 1.zaman | NJ9: 2.zaman | NK9: 3.zaman | NL9: 4.zaman | NM9: 5.zaman | NN9: 1.zaman | NO9: 2.zaman | NP9: 3.zaman | NQ9: 4.zaman | NR9: 5.zaman | NS9: 1.zaman | NT9: 2.zaman | NU9: 3.zaman | NV9: 4.zaman | NW9: 5.zaman | NX9: 1.zaman | NY9: 2.zaman | NZ9: 3.zaman | OA9: 4.zaman | OB9: 5.zaman | OC9: 1.zaman | OD9: 2.zaman | OE9: 3.zaman | OF9: 4.zaman | OG9: 5.zaman | OO9: 1.zaman | OP9: 2.zaman | OQ9: 3.zaman | OR9: 4.zaman | OS9: 5.zaman | OV9: 1.zaman | OW9: 2.zaman | OX9: 3.zaman | OY9: 4.zaman | OZ9: 5.zaman | PA9: 1.zaman | PB9: 2.zaman | PC9: 3.zaman | PD9: 4.zaman | PE9: 5.zaman | PF9: 1.zaman | PG9: 2.zaman | PH9: 3.zaman | PI9: 4.zaman | PJ9: 5.zaman | PK9: 1.zaman | PL9: 2.zaman | PM9: 3.zaman | PN9: 4.zaman | PO9: 5.zaman | PP9: 1.zaman | PQ9: 2.zaman | PR9: 3.zaman | PS9: 4.zaman | PT9: 5.zaman | PU9: 1.zaman | PV9: 2.zaman | PW9: 3.zaman | PX9: 4.zaman | PY9: 5.zaman | QS9: 1.zaman | QT9: 2.zaman | QU9: 3.zaman | QV9: 4.zaman | QW9: 5.zaman | QZ9: 1.zaman | RA9: 2.zaman | RB9: 3.zaman | RC9: 4.zaman | RD9: 5.zaman | RE9: 1.zaman | RF9: 2.zaman | RG9: 3.zaman | RH9: 4.zaman | RI9: 5.zaman | RJ9: 1.zaman | RK9: 2.zaman | RL9: 3.zaman | RM9: 4.zaman | RN9: 5.zaman | RO9: 1.zaman | RP9: 2.zaman | RQ9: 3.zaman | RR9: 4.zaman | RS9: 5.zaman | RT9: 1.zaman | RU9: 2.zaman | RV9: 3.zaman | RW9: 4.zaman | RX9: 5.zaman | RY9: 1.zaman | RZ9: 2.zaman | SA9: 3.zaman | SB9: 4.zaman | SC9: 5.zaman
A10: SIRA NO | B10: PESTISIT ADI | C10: ENSTRUMAN | D10: Yi (Alan) | G10: Yi (Alan) | J10: Yi (Alan) | M10: Yi (Alan) | P10: Yi (Alan) | S10: Yi (Alan) | V10: Yi (Alan) | Y10: Yi (Alan) | AC10: SIRA NO | AD10: PESTISIT ADI | AE10: 1.KONSANTRASYON | BK10: SIRA NO | BL10: PESTISIT ADI | BM10: 2.KONSANTRASYON | CS10: SIRA NO | CT10: PESTISIT ADI | CU10: 1.KONSANTRASYON | EA10: SIRA NO | EB10: PESTISIT ADI | EC10: 2.KONSANTRASYON | FI10: SIRA NO | FJ10: PESTISIT ADI | FK10: KONSANTRASYON | FL10: ort | FM10: std sapma | FN10: % R (ort) | FO10: % RSD | FP10: Gerçeklik kontrolü %70-120 | FQ10: Tekrarlanabilirlik kontrolü %R<20 | FR10: ort | FS10: std sapma | FT10: % R (ort) | FU10: % RSD | FV10: Gerçeklik kontrolü %70-121 | FW10: Tekrarlanabilirlik kontrolü %R<21 | FX10: ort | FY10: std sapma | FZ10: % R (ort) | GA10: % RSD | GB10: Gerçeklik kontrolü %70-122 | GC10: Tekrarlanabilirlik kontrolü %R<22 | GD10: ort | GE10: std sapma | GF10: % R (ort) | GG10: % RSD | GH10: Gerçeklik kontrolü %70-123 | GI10: Tekrarlanabilirlik kontrolü %R<23 | GJ10: ort | GK10: std sapma | GL10: % R (ort) | GM10: % RSD | GN10: Gerçeklik kontrolü %70-124 | GO10: Tekrarlanabilirlik kontrolü %R<24 | GP10: ort | GQ10: std sapma | GR10: % R (ort) | GS10: % RSD | GT10: Gerçeklik kontrolü %70-125 | GU10: Tekrarlanabilirlik kontrolü %R<25 | GW10: SIRA NO | GX10: PESTISIT ADI | GY10: KONSANTRASYON | GZ10: ort | HA10: std sapma | HB10: % R (ort) | HC10: % RSD | HD10: Gerçeklik kontrolü %70-120 | HE10: Tekrarlanabilirlik kontrolü %R<20 | HF10: ort | HG10: std sapma | HH10: % R (ort) | HI10: % RSD | HJ10: Gerçeklik kontrolü %70-121 | HK10: Tekrarlanabilirlik kontrolü %R<21 | HL10: ort | HM10: std sapma | HN10: % R (ort) | HO10: % RSD | HP10: Gerçeklik kontrolü %70-122 | HQ10: Tekrarlanabilirlik kontrolü %R<22 | HR10: ort | HS10: std sapma | HT10: % R (ort) | HU10: % RSD | HV10: Gerçeklik kontrolü %70-123 | HW10: Tekrarlanabilirlik kontrolü %R<23 | HX10: ort | HY10: std sapma | HZ10: % R (ort) | IA10: % RSD | IB10: Gerçeklik kontrolü %70-124 | IC10: Tekrarlanabilirlik kontrolü %R<24 | ID10: ort | IE10: std sapma | IF10: % R (ort) | IG10: % RSD | IH10: Gerçeklik kontrolü %70-125 | II10: Tekrarlanabilirlik kontrolü %R<25 | JO10: SIRA NO | JP10: PESTISIT ADI | JQ10: 1.KONSANTRASYON | OL10: SIRA NO | OM10: PESTISIT ADI | ON10: 1.KONSANTRASYON | QP10: SIRA NO | QQ10: PESTISIT ADI | QR10: 1.KONSANTRASYON
A11: 1 | B11: Metominostrobin (Z+E) | C11: GC-MS/MS | D11: 2503533 | E11: 2526720 | G11: 6663466 | H11: 6508013 | J11: 12247315 | K11: 13026660 | M11: 35001290 | N11: 40096320 | P11: 70382689 | Q11: 66205531 | S11: 151275733 | T11: 148274308 | AC11: 1 | AD11: Metominostrobin (Z+E) | AE11: 10 | AF11: 9.336 | AG11: 10.911 | AH11: 11.694 | AI11: 8.14 | AJ11: 9.29 | AK11: 10.616 | AL11: 10.719 | AM11: 8.019 | AN11: 11.782 | AO11: 11.269 | AP11: 9.366 | AQ11: 11.773 | AR11: 10.019 | AS11: 9.939 | AT11: 11.671 | BK11: 1 | BL11: Metominostrobin (Z+E) | BM11: 50 | BN11: 40.408 | BO11: 41.044 | BP11: 40.46 | BQ11: 46.241 | BR11: 42.825 | BS11: 38.007 | BT11: 42.197 | BU11: 46.504 | BV11: 41.07 | BW11: 45.327 | BX11: 49.39 | BY11: 49.69 | BZ11: 48.85 | CA11: 47.56 | CB11: 42.53 | CS11: 1 | CT11: Metominostrobin (Z+E) | CU11: 10 | CV11: 10.127 | CW11: 7.718 | CX11: 11.974 | CY11: 10.944 | CZ11: 10.76 | DA11: 8.822 | DB11: 9.999 | DC11: 8.514 | DD11: 9.496 | DE11: 11.536 | DF11: 11.73 | DG11: 10.874 | DH11: 7.557 | DI11: 10.404 | DJ11: 11.368 | EA11: 1 | EB11: Metominostrobin (Z+E) | EC11: 50 | ED11: 43.631 | EE11: 37.458 | EF11: 45.485 | EG11: 42.167 | EH11: 46.653 | EI11: 45.851 | EJ11: 41.133 | EK11: 40.729 | EL11: 38.932 | EM11: 41.022 | EN11: 51.449 | EO11: 45.392 | EP11: 52.818 | EQ11: 51.658 | ER11: 42.874 | FI11: 1 | FJ11: Metominostrobin (Z+E) | FK11: =AE11 -> 10 | FL11: =IFERROR(AVERAGE(AF11:AJ11),"--------") -> 9.8742 | FM11: =IFERROR(_xlfn.STDEV.S(AF11:AJ11),"--------") -> 1.416423736 | FN11: =IFERROR(FL11/$FK11*100,"--------") -> 98.742 | FO11: =IFERROR(FM11/FL11*100,"--------") -> 14.34469361 | FP11: =IF(FN11<70,"uygun değil",IF(FN11>120,"uygun değil","uygun")) -> uygun | FQ11: =IF(FO11<0,"uygun değil",IF(FO11<20,"uygun","uygun değil")) -> uygun | FR11: =IFERROR(AVERAGE(AK11:AO11),"--------") -> 10.481 | FS11: =IFERROR(_xlfn.STDEV.S(AK11:AO11),"--------") -> 1.453431973 | FT11: =IFERROR(FR11/$FK11*100,"--------") -> 104.81 | FU11: =IFERROR(FS11/FR11*100,"--------") -> 13.86730248 | FV11: =IF(FT11<70,"uygun değil",IF(FT11>120,"uygun değil","uygun")) -> uygun | FW11: =IF(FU11<0,"uygun değil",IF(FU11<20,"uygun","uygun değil")) -> uygun | FX11: =IFERROR(AVERAGE(AP11:AT11),"--------") -> 10.5536 | FY11: =IFERROR(_xlfn.STDEV.S(AP11:AT11),"--------") -> 1.096522138 | FZ11: =IFERROR(FX11/$FK11*100,"--------") -> 105.536 | GA11: =IFERROR(FY11/FX11*100,"--------") -> 10.39002936 | GB11: =IF(FZ11<70,"uygun değil",IF(FZ11>120,"uygun değil","uygun")) -> uygun | GC11: =IF(GA11<0,"uygun değil",IF(GA11<20,"uygun","uygun değil")) -> uygun | GD11: =IFERROR(AVERAGE(AU11:AY11),"--------") -> -------- | GE11: =IFERROR(_xlfn.STDEV.S(AU11:AY11),"--------") -> -------- | GF11: =IFERROR(GD11/$FK11*100,"--------") -> -------- | GG11: =IFERROR(GE11/GD11*100,"--------") -> -------- | GH11: =IF(GF11<70,"uygun değil",IF(GF11>120,"uygun değil","uygun")) -> uygun değil | GI11: =IF(GG11<0,"uygun değil",IF(GG11<20,"uygun","uygun değil")) -> uygun değil | GJ11: =IFERROR(AVERAGE(AZ11:BD11),"--------") -> -------- | GK11: =IFERROR(_xlfn.STDEV.S(AZ11:BD11),"--------") -> -------- | GL11: =IFERROR(GJ11/$FK11*100,"--------") -> -------- | GM11: =IFERROR(GK11/GJ11*100,"--------") -> -------- | GN11: =IF(GL11<70,"uygun değil",IF(GL11>120,"uygun değil","uygun")) -> uygun değil | GO11: =IF(GM11<0,"uygun değil",IF(GM11<20,"uygun","uygun değil")) -> uygun değil | GP11: =IFERROR(AVERAGE(BE11:BI11),"--------") -> -------- | GQ11: =IFERROR(_xlfn.STDEV.S(BE11:BI11),"--------") -> -------- | GR11: =IFERROR(GP11/$FK11*100,"--------") -> -------- | GS11: =IFERROR(GQ11/GP11*100,"--------") -> -------- | GT11: =IF(GR11<70,"uygun değil",IF(GR11>120,"uygun değil","uygun")) -> uygun değil | GU11: =IF(GS11<0,"uygun değil",IF(GS11<20,"uygun","uygun değil")) -> uygun değil | GW11: 1 | GX11: Metominostrobin (Z+E) | GY11: =BM11 -> 50 | GZ11: =IFERROR(AVERAGE(BN11:BR11),"--------") -> 42.1956 | HA11: =IFERROR(_xlfn.STDEV.S(BN11:BR11),"--------") -> 2.464518675 | HB11: =IFERROR(GZ11/$GY11*100,"--------") -> 84.3912 | HC11: =IFERROR(HA11/GZ11*100,"--------") -> 5.84070063 | HD11: =IF(HB11<70,"uygun değil",IF(HB11>120,"uygun değil","uygun")) -> uygun | HE11: =IF(HC11<0,"uygun değil",IF(HC11<20,"uygun","uygun değil")) -> uygun | HF11: =IFERROR(AVERAGE(BS11:BW11),"--------") -> 42.621 | HG11: =IFERROR(_xlfn.STDEV.S(BS11:BW11),"--------") -> 3.401268072 | HH11: =IFERROR(HF11/$GY11*100,"--------") -> 85.242 | HI11: =IFERROR(HG11/HF11*100,"--------") -> 7.98026342 | HJ11: =IF(HH11<70,"uygun değil",IF(HH11>120,"uygun değil","uygun")) -> uygun | HK11: =IF(HI11<0,"uygun değil",IF(HI11<20,"uygun","uygun değil")) -> uygun | HL11: =IFERROR(AVERAGE(BX11:CB11),"--------") -> 47.604 | HM11: =IFERROR(_xlfn.STDEV.S(BX11:CB11),"--------") -> 2.951318349 | HN11: =IFERROR(HL11/$GY11*100,"--------") -> 95.208 | HO11: =IFERROR(HM11/HL11*100,"--------") -> 6.199727648 | HP11: =IF(HN11<70,"uygun değil",IF(HN11>120,"uygun değil","uygun")) -> uygun | HQ11: =IF(HO11<0,"uygun değil",IF(HO11<20,"uygun","uygun değil")) -> uygun | HR11: =IFERROR(AVERAGE(CC11:CG11),"--------") -> -------- | HS11: =IFERROR(_xlfn.STDEV.S(CC11:CG11),"--------") -> -------- | HT11: =IFERROR(HR11/$GY11*100,"--------") -> -------- | HU11: =IFERROR(HS11/HR11*100,"--------") -> -------- | HV11: =IF(HT11<70,"uygun değil",IF(HT11>120,"uygun değil","uygun")) -> uygun değil | HW11: =IF(HU11<0,"uygun değil",IF(HU11<20,"uygun","uygun değil")) -> uygun değil | HX11: =IFERROR(AVERAGE(CH11:CL11),"--------") -> -------- | HY11: =IFERROR(_xlfn.STDEV.S(CH11:CL11),"--------") -> -------- | HZ11: =IFERROR(HX11/$GY11*100,"--------") -> -------- | IA11: =IFERROR(HY11/HX11*100,"--------") -> -------- | IB11: =IF(HZ11<70,"uygun değil",IF(HZ11>120,"uygun değil","uygun")) -> uygun değil | IC11: =IF(IA11<0,"uygun değil",IF(IA11<20,"uygun","uygun değil")) -> uygun değil | ID11: =IFERROR(AVERAGE(CM11:CQ11),"--------") -> -------- | IE11: =IFERROR(_xlfn.STDEV.S(CM11:CQ11),"--------") -> -------- | IF11: =IFERROR(ID11/$GY11*100,"--------") -> -------- | IG11: =IFERROR(IE11/ID11*100,"--------") -> -------- | IH11: =IF(IF11<70,"uygun değil",IF(IF11>120,"uygun değil","uygun")) -> uygun değil | II11: =IF(IG11<0,"uygun değil",IF(IG11<20,"uygun","uygun değil")) -> uygun değil | JO11: 1 | JP11: Metominostrobin (Z+E) | JQ11: =$AE11 -> 10 | JR11: =IF((((AF11/($AE11))-1)^2)=1,"",(((AF11/($AE11))-1)^2)) -> 0.00440896 | JS11: =IF((((AG11/($AE11))-1)^2)=1,"",(((AG11/($AE11))-1)^2)) -> 0.00829921 | JT11: =IF((((AH11/($AE11))-1)^2)=1,"",(((AH11/($AE11))-1)^2)) -> 0.02869636 | JU11: =IF((((AI11/($AE11))-1)^2)=1,"",(((AI11/($AE11))-1)^2)) -> 0.034596 | JV11: =IF((((AJ11/($AE11))-1)^2)=1,"",(((AJ11/($AE11))-1)^2)) -> 0.005041 | JW11: =IF((((AK11/($AE11))-1)^2)=1,"",(((AK11/($AE11))-1)^2)) -> 0.00379456 | JX11: =IF((((AL11/($AE11))-1)^2)=1,"",(((AL11/($AE11))-1)^2)) -> 0.00516961 | JY11: =IF((((AM11/($AE11))-1)^2)=1,"",(((AM11/($AE11))-1)^2)) -> 0.03924361 | JZ11: =IF((((AN11/($AE11))-1)^2)=1,"",(((AN11/($AE11))-1)^2)) -> 0.03175524 | KA11: =IF((((AO11/($AE11))-1)^2)=1,"",(((AO11/($AE11))-1)^2)) -> 0.01610361 | KB11: =IF((((AP11/($AE11))-1)^2)=1,"",(((AP11/($AE11))-1)^2)) -> 0.00401956 | KC11: =IF((((AQ11/($AE11))-1)^2)=1,"",(((AQ11/($AE11))-1)^2)) -> 0.03143529 | KD11: =IF((((AR11/($AE11))-1)^2)=1,"",(((AR11/($AE11))-1)^2)) -> 3.61e-06 | KE11: =IF((((AS11/($AE11))-1)^2)=1,"",(((AS11/($AE11))-1)^2)) -> 3.721e-05 | KF11: =IF((((AT11/($AE11))-1)^2)=1,"",(((AT11/($AE11))-1)^2)) -> 0.02792241 | KG11: =IF((((AU11/($AE11))-1)^2)=1,"",(((AU11/($AE11))-1)^2)) ->  | KH11: =IF((((AV11/($AE11))-1)^2)=1,"",(((AV11/($AE11))-1)^2)) ->  | KI11: =IF((((AW11/($AE11))-1)^2)=1,"",(((AW11/($AE11))-1)^2)) ->  | KJ11: =IF((((AX11/($AE11))-1)^2)=1,"",(((AX11/($AE11))-1)^2)) ->  | KK11: =IF((((AY11/($AE11))-1)^2)=1,"",(((AY11/($AE11))-1)^2)) ->  | KL11: =IF((((AZ11/($AE11))-1)^2)=1,"",(((AZ11/($AE11))-1)^2)) ->  | KM11: =IF((((BA11/($AE11))-1)^2)=1,"",(((BA11/($AE11))-1)^2)) ->  | KN11: =IF((((BB11/($AE11))-1)^2)=1,"",(((BB11/($AE11))-1)^2)) ->  | KO11: =IF((((BC11/($AE11))-1)^2)=1,"",(((BC11/($AE11))-1)^2)) ->  | KP11: =IF((((BD11/($AE11))-1)^2)=1,"",(((BD11/($AE11))-1)^2)) ->  | KQ11: =IF((((BE11/($AE11))-1)^2)=1,"",(((BE11/($AE11))-1)^2)) ->  | KR11: =IF((((BF11/($AE11))-1)^2)=1,"",(((BF11/($AE11))-1)^2)) ->  | KS11: =IF((((BG11/($AE11))-1)^2)=1,"",(((BG11/($AE11))-1)^2)) ->  | KT11: =IF((((BH11/($AE11))-1)^2)=1,"",(((BH11/($AE11))-1)^2)) ->  | KU11: =IF((((BI11/($AE11))-1)^2)=1,"",(((BI11/($AE11))-1)^2)) ->  | KV11: =IF((((BN11/$BM11)-1)^2)=1,"",(((BN11/$BM11)-1)^2)) -> 0.0368025856 | KW11: =IF((((BO11/$BM11)-1)^2)=1,"",(((BO11/$BM11)-1)^2)) -> 0.0320839744 | KX11: =IF((((BP11/$BM11)-1)^2)=1,"",(((BP11/$BM11)-1)^2)) -> 0.03640464 | KY11: =IF((((BQ11/$BM11)-1)^2)=1,"",(((BQ11/$BM11)-1)^2)) -> 0.0056520324 | KZ11: =IF((((BR11/$BM11)-1)^2)=1,"",(((BR11/$BM11)-1)^2)) -> 0.02059225 | LA11: =IF((((BS11/$BM11)-1)^2)=1,"",(((BS11/$BM11)-1)^2)) -> 0.0575328196 | LB11: =IF((((BT11/$BM11)-1)^2)=1,"",(((BT11/$BM11)-1)^2)) -> 0.0243547236 | LC11: =IF((((BU11/$BM11)-1)^2)=1,"",(((BU11/$BM11)-1)^2)) -> 0.0048888064 | LD11: =IF((((BV11/$BM11)-1)^2)=1,"",(((BV11/$BM11)-1)^2)) -> 0.03189796 | LE11: =IF((((BW11/$BM11)-1)^2)=1,"",(((BW11/$BM11)-1)^2)) -> 0.0087347716 | LF11: =IF((((BX11/$BM11)-1)^2)=1,"",(((BX11/$BM11)-1)^2)) -> 0.00014884 | LG11: =IF((((BY11/$BM11)-1)^2)=1,"",(((BY11/$BM11)-1)^2)) -> 3.844e-05 | LH11: =IF((((BZ11/$BM11)-1)^2)=1,"",(((BZ11/$BM11)-1)^2)) -> 0.000529 | LI11: =IF((((CA11/$BM11)-1)^2)=1,"",(((CA11/$BM11)-1)^2)) -> 0.00238144 | LJ11: =IF((((CB11/$BM11)-1)^2)=1,"",(((CB11/$BM11)-1)^2)) -> 0.02232036 | LK11: =IF((((CC11/$BM11)-1)^2)=1,"",(((CC11/$BM11)-1)^2)) ->  | LL11: =IF((((CD11/$BM11)-1)^2)=1,"",(((CD11/$BM11)-1)^2)) ->  | LM11: =IF((((CE11/$BM11)-1)^2)=1,"",(((CE11/$BM11)-1)^2)) ->  | LN11: =IF((((CF11/$BM11)-1)^2)=1,"",(((CF11/$BM11)-1)^2)) ->  | LO11: =IF((((CG11/$BM11)-1)^2)=1,"",(((CG11/$BM11)-1)^2)) ->  | LP11: =IF((((CH11/$BM11)-1)^2)=1,"",(((CH11/$BM11)-1)^2)) ->  | LQ11: =IF((((CI11/$BM11)-1)^2)=1,"",(((CI11/$BM11)-1)^2)) ->  | LR11: =IF((((CJ11/$BM11)-1)^2)=1,"",(((CJ11/$BM11)-1)^2)) ->  | LS11: =IF((((CK11/$BM11)-1)^2)=1,"",(((CK11/$BM11)-1)^2)) ->  | LT11: =IF((((CL11/$BM11)-1)^2)=1,"",(((CL11/$BM11)-1)^2)) ->  | LU11: =IF((((CM11/$BM11)-1)^2)=1,"",(((CM11/$BM11)-1)^2)) ->  | LV11: =IF((((CN11/$BM11)-1)^2)=1,"",(((CN11/$BM11)-1)^2)) ->  | LW11: =IF((((CO11/$BM11)-1)^2)=1,"",(((CO11/$BM11)-1)^2)) ->  | LX11: =IF((((CP11/$BM11)-1)^2)=1,"",(((CP11/$BM11)-1)^2)) ->  | LY11: =IF((((CQ11/$BM11)-1)^2)=1,"",(((CQ11/$BM11)-1)^2)) ->  | LZ11: =IF((((CV11/$CU11)-1)^2)=1,"",(((CV11/$CU11)-1)^2)) -> 0.00016129 | MA11: =IF((((CW11/$CU11)-1)^2)=1,"",(((CW11/$CU11)-1)^2)) -> 0.05207524 | MB11: =IF((((CX11/$CU11)-1)^2)=1,"",(((CX11/$CU11)-1)^2)) -> 0.03896676 | MC11: =IF((((CY11/$CU11)-1)^2)=1,"",(((CY11/$CU11)-1)^2)) -> 0.00891136 | MD11: =IF((((CZ11/$CU11)-1)^2)=1,"",(((CZ11/$CU11)-1)^2)) -> 0.005776 | ME11: =IF((((DA11/$CU11)-1)^2)=1,"",(((DA11/$CU11)-1)^2)) -> 0.01387684 | MF11: =IF((((DB11/$CU11)-1)^2)=1,"",(((DB11/$CU11)-1)^2)) -> 1e-08 | MG11: =IF((((DC11/$CU11)-1)^2)=1,"",(((DC11/$CU11)-1)^2)) -> 0.02208196 | MH11: =IF((((DD11/$CU11)-1)^2)=1,"",(((DD11/$CU11)-1)^2)) -> 0.00254016 | MI11: =IF((((DE11/$CU11)-1)^2)=1,"",(((DE11/$CU11)-1)^2)) -> 0.02359296 | MJ11: =IF((((DF11/$CU11)-1)^2)=1,"",(((DF11/$CU11)-1)^2)) -> 0.029929 | MK11: =IF((((DG11/$CU11)-1)^2)=1,"",(((DG11/$CU11)-1)^2)) -> 0.00763876 | ML11: =IF((((DH11/$CU11)-1)^2)=1,"",(((DH11/$CU11)-1)^2)) -> 0.05968249 | MM11: =IF((((DI11/$CU11)-1)^2)=1,"",(((DI11/$CU11)-1)^2)) -> 0.00163216 | MN11: =IF((((DJ11/$CU11)-1)^2)=1,"",(((DJ11/$CU11)-1)^2)) -> 0.01871424 | MO11: =IF((((DK11/$CU11)-1)^2)=1,"",(((DK11/$CU11)-1)^2)) ->  | MP11: =IF((((DL11/$CU11)-1)^2)=1,"",(((DL11/$CU11)-1)^2)) ->  | MQ11: =IF((((DM11/$CU11)-1)^2)=1,"",(((DM11/$CU11)-1)^2)) ->  | MR11: =IF((((DN11/$CU11)-1)^2)=1,"",(((DN11/$CU11)-1)^2)) ->  | MS11: =IF((((DO11/$CU11)-1)^2)=1,"",(((DO11/$CU11)-1)^2)) ->  | MT11: =IF((((DP11/$CU11)-1)^2)=1,"",(((DP11/$CU11)-1)^2)) ->  | MU11: =IF((((DQ11/$CU11)-1)^2)=1,"",(((DQ11/$CU11)-1)^2)) ->  | MV11: =IF((((DR11/$CU11)-1)^2)=1,"",(((DR11/$CU11)-1)^2)) ->  | MW11: =IF((((DS11/$CU11)-1)^2)=1,"",(((DS11/$CU11)-1)^2)) ->  | MX11: =IF((((DT11/$CU11)-1)^2)=1,"",(((DT11/$CU11)-1)^2)) ->  | MY11: =IF((((DU11/$CU11)-1)^2)=1,"",(((DU11/$CU11)-1)^2)) ->  | MZ11: =IF((((DV11/$CU11)-1)^2)=1,"",(((DV11/$CU11)-1)^2)) ->  | NA11: =IF((((DW11/$CU11)-1)^2)=1,"",(((DW11/$CU11)-1)^2)) ->  | NB11: =IF((((DX11/$CU11)-1)^2)=1,"",(((DX11/$CU11)-1)^2)) ->  | NC11: =IF((((DY11/$CU11)-1)^2)=1,"",(((DY11/$CU11)-1)^2)) ->  | ND11: =IF((((ED11/$EC11)-1)^2)=1,"",((ED11/$EC11)-1)^2) -> 0.0162256644 | NE11: =IF((((EE11/$EC11)-1)^2)=1,"",((EE11/$EC11)-1)^2) -> 0.0629207056 | NF11: =IF((((EF11/$EC11)-1)^2)=1,"",((EF11/$EC11)-1)^2) -> 0.00815409 | NG11: =IF((((EG11/$EC11)-1)^2)=1,"",((EG11/$EC11)-1)^2) -> 0.0245423556 | NH11: =IF((((EH11/$EC11)-1)^2)=1,"",((EH11/$EC11)-1)^2) -> 0.0044809636 | NI11: =IF((((EI11/$EC11)-1)^2)=1,"",((EI11/$EC11)-1)^2) -> 0.0068856804 | NJ11: =IF((((EJ11/$EC11)-1)^2)=1,"",((EJ11/$EC11)-1)^2) -> 0.0314494756 | NK11: =IF((((EK11/$EC11)-1)^2)=1,"",((EK11/$EC11)-1)^2) -> 0.0343805764 | NL11: =IF((((EL11/$EC11)-1)^2)=1,"",((EL11/$EC11)-1)^2) -> 0.0490002496 | NM11: =IF((((EM11/$EC11)-1)^2)=1,"",((EM11/$EC11)-1)^2) -> 0.0322417936 | NN11: =IF((((EN11/$EC11)-1)^2)=1,"",((EN11/$EC11)-1)^2) -> 0.0008398404 | NO11: =IF((((EO11/$EC11)-1)^2)=1,"",((EO11/$EC11)-1)^2) -> 0.0084934656 | NP11: =IF((((EP11/$EC11)-1)^2)=1,"",((EP11/$EC11)-1)^2) -> 0.0031764496 | NQ11: =IF((((EQ11/$EC11)-1)^2)=1,"",((EQ11/$EC11)-1)^2) -> 0.0010995856 | NR11: =IF((((ER11/$EC11)-1)^2)=1,"",((ER11/$EC11)-1)^2) -> 0.0203119504 | NS11: =IF((((ES11/$EC11)-1)^2)=1,"",((ES11/$EC11)-1)^2) ->  | NT11: =IF((((ET11/$EC11)-1)^2)=1,"",((ET11/$EC11)-1)^2) ->  | NU11: =IF((((EU11/$EC11)-1)^2)=1,"",((EU11/$EC11)-1)^2) ->  | NV11: =IF((((EV11/$EC11)-1)^2)=1,"",((EV11/$EC11)-1)^2) ->  | NW11: =IF((((EW11/$EC11)-1)^2)=1,"",((EW11/$EC11)-1)^2) ->  | NX11: =IF((((EX11/$EC11)-1)^2)=1,"",((EX11/$EC11)-1)^2) ->  | NY11: =IF((((EY11/$EC11)-1)^2)=1,"",((EY11/$EC11)-1)^2) ->  | NZ11: =IF((((EZ11/$EC11)-1)^2)=1,"",((EZ11/$EC11)-1)^2) ->  | OA11: =IF((((FA11/$EC11)-1)^2)=1,"",((FA11/$EC11)-1)^2) ->  | OB11: =IF((((FB11/$EC11)-1)^2)=1,"",((FB11/$EC11)-1)^2) ->  | OC11: =IF((((FC11/$EC11)-1)^2)=1,"",((FC11/$EC11)-1)^2) ->  | OD11: =IF((((FD11/$EC11)-1)^2)=1,"",((FD11/$EC11)-1)^2) ->  | OE11: =IF((((FE11/$EC11)-1)^2)=1,"",((FE11/$EC11)-1)^2) ->  | OF11: =IF((((FF11/$EC11)-1)^2)=1,"",((FF11/$EC11)-1)^2) ->  | OG11: =IF((((FG11/$EC11)-1)^2)=1,"",((FG11/$EC11)-1)^2) ->  | OH11: =COUNT(JR11:OG11) -> 60 | OI11: =SUM(JR11:OG11) -> 1.11467096 | OJ11: =SQRT(OI11/OH11) -> 0.1363005845 | OL11: 1 | OM11: Metominostrobin (Z+E) | ON11: =CU11 -> 10 | OO11: =AVERAGE(CV11,DA11,DF11,DK11,DP11,DU11) -> 10.22633333 | OP11: =AVERAGE(CW11,DB11,DG11,DL11,DQ11,DV11) -> 9.530333333 | OQ11: =AVERAGE(CX11,DC11,DH11,DM11,DR11,DW11) -> 9.348333333 | OR11: =AVERAGE(CY11,DD11,DI11,DN11,DS11,DX11) -> 10.28133333 | OS11: =AVERAGE(CZ11,DE11,DJ11,DO11,DT11,DY11) -> 11.22133333 | OT11: =COUNT(CV11,DA11,DF11,DK11,DP11,DU11) -> 3 | OU11: 5 | OV11: =IF(CV11=0,"",(CV11-OO11)) -> -0.09933333333 | OW11: =IF(CW11=0,"",(CW11-OP11)) -> -1.812333333 | OX11: =IF(CX11=0,"",(CX11-OQ11)) -> 2.625666667 | OY11: =IF(CY11=0,"",(CY11-OR11)) -> 0.6626666667 | OZ11: =IF(CZ11=0,"",(CZ11-OS11)) -> -0.4613333333 | PA11: =IF(DA11=0,"",DA11-OO11) -> -1.404333333 | PB11: =IF(DB11=0,"",DB11-OP11) -> 0.4686666667 | PC11: =IF(DC11=0,"",DC11-OQ11) -> -0.8343333333 | PD11: =IF(DD11=0,"",DD11-OR11) -> -0.7853333333 | PE11: =IF(DE11=0,"",DE11-OS11) -> 0.3146666667 | PF11: =IF(DF11=0,"",DF11-OO11) -> 1.503666667 | PG11: =IF(DG11=0,"",DG11-OP11) -> 1.343666667 | PH11: =IF(DH11=0,"",DH11-OQ11) -> -1.791333333 | PI11: =IF(DI11=0,"",DI11-OR11) -> 0.1226666667 | PJ11: =IF(DJ11=0,"",DJ11-OS11) -> 0.1466666667 | PK11: =IF(DK11=0,"",DK11-OO11) ->  | PL11: =IF(DL11=0,"",DL11-OP11) ->  | PM11: =IF(DM11=0,"",DM11-OQ11) ->  | PN11: =IF(DN11=0,"",DN11-OR11) ->  | PO11: =IF(DO11=0,"",DO11-OS11) ->  | PP11: =IF(DP11=0,"",DP11-OO11) ->  | PQ11: =IF(DQ11=0,"",DQ11-OP11) ->  | PR11: =IF(DR11=0,"",DR11-OQ11) ->  | PS11: =IF(DS11=0,"",DS11-OR11) ->  | PT11: =IF(DT11=0,"",DT11-OS11) ->  | PU11: =IF(DU11=0,"",DU11-OO11) ->  | PV11: =IF(DV11=0,"",DV11-OP11) ->  | PW11: =IF(DW11=0,"",DW11-OQ11) ->  | PX11: =IF(DX11=0,"",DX11-OR11) ->  | PY11: =IF(DY11=0,"",DY11-OS11) ->  | PZ11: =AVERAGE(OO11:OS11) -> 10.12153333 | QA11: =(PZ11/ON11*100) -> 101.2153333 | QB11: =(SUMSQ((PZ11-OO11),(PZ11-OP11),(PZ11-OQ11),(PZ11-OR11),(PZ11-OS11)))*(1/(OU11-1))*OT11 -> 1.6450761 | QC11: =SUMSQ(OV11:PY11) -> 21.75606333 | QD11: =OU11*(OT11-1) -> 10 | QE11: =QC11/QD11 -> 2.175606333 | QF11: =IF(((QB11-QE11)/OT11)<0,0,((QB11-QE11)/OT11)) -> 0 | QG11: =QE11+IF(QF11>=0,QF11,0) -> 2.175606333 | QH11: =SQRT(QG11) -> 1.474993672 | QI11: =QH11/PZ11 -> 0.1457282828 | QJ11: =QI11*100 -> 14.57282828 | QK11: =COUNT(CV11:DY11) -> 15 | QL11: =IF(QA11<70,"UYGUN DEĞİL",IF(QA11>120,"UYGUN DEĞİL","UYGUN ")) -> UYGUN | QM11: =IF(QJ11<20,"UYGUN ","UYGUN DEĞİL") -> UYGUN | QN11: =(QI11^2)*(QK11-1) -> 0.2973142538 | QP11: 1 | QQ11: Metominostrobin (Z+E) | QR11: =EC11 -> 50 | QS11: =(SUM(ED11,EI11,EN11,ES11,EX11,FC11))/(COUNT(ED11,EI11,EN11,ES11,EX11,FC11)) -> 46.977 | QT11: =(SUM(EE11,EJ11,EO11,ET11,EY11,FD11))/(COUNT(EE11,EJ11,EO11,ET11,EY11,FD11)) -> 41.32766667 | QU11: =(SUM(EF11,EK11,EP11,EU11,EZ11,FE11))/(COUNT(EF11,EK11,EP11,EU11,EZ11,FE11)) -> 46.344 | QV11: =(SUM(EG11,EL11,EQ11,EV11,FA11,FF11))/(COUNT(EG11,EL11,EQ11,EV11,FA11,FF11)) -> 44.25233333 | QW11: =(SUM(EH11,EM11,ER11,EW11,FB11,FG11))/(COUNT(EH11,EM11,ER11,EW11,FB11,FG11)) -> 43.51633333 | QX11: =COUNT(ED11,EI11,EN11,ES11,EX11,FC11) -> 3 | QY11: 5 | QZ11: =IF(ED11=0,"",(ED11-QS11)) -> -3.346 | RA11: =IF(EE11=0,"",(EE11-QT11)) -> -3.869666667 | RB11: =IF(EF11=0,"",(EF11-QU11)) -> -0.859 | RC11: =IF(EG11=0,"",(EG11-QV11)) -> -2.085333333 | RD11: =IF(EH11=0,"",(EH11-QW11)) -> 3.136666667 | RE11: =IF(EI11=0,"",EI11-QS11) -> -1.126 | RF11: =IF(EJ11=0,"",EJ11-QT11) -> -0.1946666667 | RG11: =IF(EK11=0,"",EK11-QU11) -> -5.615 | RH11: =IF(EL11=0,"",EL11-QV11) -> -5.320333333 | RI11: =IF(EM11=0,"",EM11-QW11) -> -2.494333333 | RJ11: =IF(EN11=0,"",EN11-QS11) -> 4.472 | RK11: =IF(EO11=0,"",EO11-QT11) -> 4.064333333 | RL11: =IF(EP11=0,"",EP11-QU11) -> 6.474 | RM11: =IF(EQ11=0,"",EQ11-QV11) -> 7.405666667 | RN11: =IF(ER11=0,"",ER11-QW11) -> -0.6423333333 | RO11: =IF(ES11=0,"",ES11-QS11) ->  | RP11: =IF(ET11=0,"",ET11-QT11) ->  | RQ11: =IF(EU11=0,"",EU11-QU11) ->  | RR11: =IF(EV11=0,"",EV11-QV11) ->  | RS11: =IF(EW11=0,"",EW11-QW11) ->  | RT11: =IF(EX11=0,"",EX11-QS11) ->  | RU11: =IF(EY11=0,"",EY11-QT11) ->  | RV11: =IF(EZ11=0,"",EZ11-QU11) ->  | RW11: =IF(FA11=0,"",FA11-QV11) ->  | RX11: =IF(FB11=0,"",FB11-QW11) ->  | RY11: =IF(FC11=0,"",FC11-QS11) ->  | RZ11: =IF(FD11=0,"",FD11-QT11) ->  | SA11: =IF(FE11=0,"",FE11-QU11) ->  | SB11: =IF(FF11=0,"",FF11-QV11) ->  | SC11: =IF(FG11=0,"",FG11-QW11) ->  | SD11: =AVERAGE(QS11:QW11) -> 44.48346667 | SE11: =(SD11/QR11*100) -> 88.96693333 | SF11: =(SUMSQ((SD11-QS11),(SD11-QT11),(SD11-QU11),(SD11-QV11),(SD11-QW11)))*(1/(QY11-1))*QX11 -> 15.47035193 | SG11: =SUMSQ(QZ11:SC11) -> 242.143608 | SH11: =QY11*(QX11-1) -> 10 | SI11: =SG11/SH11 -> 24.2143608 | SJ11: =IF(((SF11-SI11)/QX11)<0,0,((SF11-SI11)/QX11)) -> 0 | SK11: =SI11+IF(SJ11>=0,SJ11,0) -> 24.2143608 | SL11: =SQRT(SK11) -> 4.920808958 | SM11: =SL11/SD11 -> 0.1106210762 | SN11: =SM11*100 -> 11.06210762 | SO11: =COUNT(ED11:FG11) -> 15 | SP11: =IF(SE11<70,"UYGUN DEĞİL",IF(SE11>120,"UYGUN DEĞİL","UYGUN ")) -> UYGUN | SQ11: =IF(SN11<20,"UYGUN ","UYGUN DEĞİL") -> UYGUN | SR11: =(SM11^2)*(SO11-1) -> 0.1713183151 | SS11: =IFERROR(SQRT((QN11+SR11)/((QK11-1)+(SO11-1))),"--------") -> 0.1293710843
A12: 2 | B12: 2,4'-DDD | C12: GC-MS/MS | D12: 401782 | E12: 416928 | G12: 1075769 | H12: 1059058 | J12: 2385173 | K12: 2376102 | M12: 5889154 | N12: 6554453 | P12: 12542077 | Q12: 13212077 | S12: 30302013 | T12: 30264516 | AC12: 2 | AD12: 2,4'-DDD | AE12: =$AE$11 -> 10 | AF12: 9.697 | AG12: 11.256 | AH12: 11.613 | AI12: 8.788 | AJ12: 9.866 | AK12: 10.595 | AL12: 11.911 | AM12: 8.909 | AN12: 10.659 | AO12: 10.993 | AP12: 10.824 | AQ12: 11.449 | AR12: 10.309 | AS12: 9.222 | AT12: 8.092 | BK12: 2 | BL12: 2,4'-DDD | BM12: =$BM$11 -> 50 | BN12: 45.338 | BO12: 45.336 | BP12: 38.436 | BQ12: 49.848 | BR12: 45.447 | BS12: 42.626 | BT12: 45.073 | BU12: 51.499 | BV12: 46.043 | BW12: 50.069 | BX12: 48.582 | BY12: 46.474 | BZ12: 50.513 | CA12: 43.239 | CB12: 39.369 | CS12: 2 | CT12: 2,4'-DDD | CU12: =$CU$11 -> 10 | CV12: 10.771 | CW12: 9.304 | CX12: 11.639 | CY12: 11.208 | CZ12: 11.331 | DA12: 10.309 | DB12: 11.574 | DC12: 9.577 | DD12: 9.84 | DE12: 11.312 | DF12: 8.856 | DG12: 7.4 | DH12: 8.094 | DI12: 7.975 | DJ12: 7.781 | EA12: 2 | EB12: 2,4'-DDD | EC12: =$EC$11 -> 50 | ED12: 48.382 | EE12: 42.968 | EF12: 49.419 | EG12: 43.963 | EH12: 46.061 | EI12: 44.408 | EJ12: 44.39 | EK12: 48.923 | EL12: 44.18 | EM12: 48.987 | EN12: 48.53 | EO12: 46.977 | EP12: 55.408 | EQ12: 55.506 | ER12: 43.169 | FI12: 2 | FJ12: 2,4'-DDD | FK12: =$FK$11 -> 10 | FL12: 10.244 | FM12: 1.168367879 | FN12: =IFERROR(FL12/$FK$11*100,"--------") -> 102.44 | FO12: 11.40538734 | FP12: uygun | FQ12: uygun | FR12: 10.6134 | FS12: 1.088032536 | FT12: 106.134 | FU12: 10.25149845 | FV12: uygun | FW12: uygun | FX12: 9.9792 | FY12: 1.333945539 | FZ12: 99.792 | GA12: 13.36725929 | GB12: uygun | GC12: uygun | GD12: -------- | GE12: -------- | GF12: -------- | GG12: -------- | GH12: uygun değil | GI12: uygun değil | GJ12: -------- | GK12: -------- | GL12: -------- | GM12: -------- | GN12: uygun değil | GO12: uygun değil | GP12: -------- | GQ12: -------- | GR12: -------- | GS12: -------- | GT12: uygun değil | GU12: uygun değil | GW12: 2 | GX12: 2,4'-DDD | GY12: =$GY$11 -> 50 | GZ12: 44.881 | HA12: 4.091006722 | HB12: 89.762 | HC12: 9.11523077 | HD12: uygun | HE12: uygun | HF12: 47.062 | HG12: 3.653819782 | HH12: 94.124 | HI12: 7.763842978 | HJ12: uygun | HK12: uygun | HL12: 45.6354 | HM12: 4.421175896 | HN12: 91.2708 | HO12: 9.688040196 | HP12: uygun | HQ12: uygun | HR12: -------- | HS12: -------- | HT12: -------- | HU12: -------- | HV12: uygun değil | HW12: uygun değil | HX12: -------- | HY12: -------- | HZ12: -------- | IA12: -------- | IB12: uygun değil | IC12: uygun değil | ID12: -------- | IE12: -------- | IF12: -------- | IG12: -------- | IH12: uygun değil | II12: uygun değil | JO12: 2 | JP12: 2,4'-DDD | JQ12: 10 | JR12: 0.00091809 | JS12: 0.01577536 | JT12: 0.02601769 | JU12: 0.01468944 | JV12: 0.00017956 | JW12: 0.00354025 | JX12: 0.03651921 | JY12: 0.01190281 | JZ12: 0.00434281 | KA12: 0.00986049 | KB12: 0.00678976 | KC12: 0.02099601 | KD12: 0.00095481 | KE12: 0.00605284 | KF12: 0.03640464 | KV12: 0.0086936976 | KW12: 0.0087011584 | KX12: 0.0534904384 | KY12: 9.2416e-06 | KZ12: 0.0082919236 | LA12: 0.0217503504 | LB12: 0.0097101316 | LC12: 0.0008988004 | LD12: 0.0062631396 | LE12: 1.9044e-06 | LF12: 0.0008042896 | LG12: 0.0049730704 | LH12: 0.0001052676 | LI12: 0.0182844484 | LJ12: 0.0452072644 | LZ12: 0.00594441 | MA12: 0.00484416 | MB12: 0.02686321 | MC12: 0.01459264 | MD12: 0.01771561 | ME12: 0.00095481 | MF12: 0.02477476 | MG12: 0.00178929 | MH12: 0.000256 | MI12: 0.01721344 | MJ12: 0.01308736 | MK12: 0.0676 | ML12: 0.03632836 | MM12: 0.04100625 | MN12: 0.04923961 | ND12: 0.0010471696 | NE12: 0.0197796096 | NF12: 0.0001350244 | NG12: 0.0145781476 | NH12: 0.0062062884 | NI12: 0.0125081856 | NJ12: 0.01258884 | NK12: 0.0004639716 | NL12: 0.01354896 | NM12: 0.0004104676 | NN12: 0.00086436 | NO12: 0.0036554116 | NP12: 0.0116985856 | NQ12: 0.0121264144 | NR12: 0.0186650244 | OH12: 60 | OI12: 0.8326152668 | OJ12: 0.1178003443 | OL12: 2 | OM12: 2,4'-DDD | ON12: 10 | OO12: 9.978666667 | OP12: 9.426 | OQ12: 9.77 | OR12: 9.674333333 | OS12: 10.14133333 | OT12: 3 | OU12: 5 | OV12: 0.7923333333 | OW12: -0.122 | OX12: 1.869 | OY12: 1.533666667 | OZ12: 1.189666667 | PA12: 0.3303333333 | PB12: 2.148 | PC12: -0.193 | PD12: 0.1656666667 | PE12: 1.170666667 | PF12: -1.122666667 | PG12: -2.026 | PH12: -1.676 | PI12: -1.699333333 | PJ12: -2.360333333 | PZ12: 9.798066667 | QA12: 97.98066667 | QB12: 0.2287347333 | QC12: 30.694396 | QD12: 10 | QE12: 3.0694396 | QF12: 0 | QG12: 3.0694396 | QH12: 1.751981621 | QI12: 0.17880891 | QJ12: 15.242 | QK12: 15 | QL12: UYGUN | QM12: UYGUN | QN12: 0.4476167682 | QP12: 2 | QQ12: 2,4'-DDD | QR12: 50 | QS12: 47.10666667 | QT12: 44.77833333 | QU12: 51.25 | QV12: 47.883 | QW12: 46.07233333 | QX12: 3 | QY12: 5 | QZ12: 1.275333333 | RA12: -1.810333333 | RB12: -1.831 | RC12: -3.92 | RD12: -0.01133333333 | RE12: -2.698666667 | RF12: -0.3883333333 | RG12: -2.327 | RH12: -3.703 | RI12: 2.914666667 | RJ12: 1.423333333 | RK12: 2.198666667 | RL12: 4.158 | RM12: 7.623 | RN12: -2.903333333 | SD12: 47.41806667 | SE12: 94.83613333 | SF12: 17.83202723 | SG12: 149.367346 | SH12: 10 | SI12: 14.9367346 | SJ12: 0.9650975444 | SK12: 15.90183214 | SL12: 3.987710138 | SM12: 0.08409685207 | SN12: 8.409685207 | SO12: 15 | SP12: UYGUN | SQ12: UYGUN | SR12: 0.0990119274 | SS12: 0.1397227734
A13: 3 | B13: 2,4'-DDE | C13: GC-MS/MS | D13: 713665 | E13: 570918 | G13: 1935421 | H13: 1856538 | J13: 2859118 | K13: 3201820 | M13: 8392633 | N13: 9592161 | P13: 18882184 | Q13: 16594308 | S13: 39559419 | T13: 31084676 | AC13: 3 | AD13: 2,4'-DDE | AE13: 10 | AF13: 9.486 | AG13: 11.364 | AH13: 11.028 | AI13: 8.719 | AJ13: 9.643 | AK13: 10.513 | AL13: 11.545 | AM13: 8.768 | AN13: 11.855 | AO13: 11.546 | AP13: 11.688 | AQ13: 11.17 | AR13: 10.157 | AS13: 8.764 | AT13: 7.689 | BK13: 3 | BL13: 2,4'-DDE | BM13: 50 | BN13: 46.392 | BO13: 46.647 | BP13: 39.418 | BQ13: 51.361 | BR13: 46.087 | BS13: 41.674 | BT13: 45.315 | BU13: 50.948 | BV13: 43.775 | BW13: 49.603 | BX13: 50.522 | BY13: 48.394 | BZ13: 51.935 | CA13: 45.57 | CB13: 41.515 | CS13: 3 | CT13: 2,4'-DDE | CU13: 10 | CV13: 10.334 | CW13: 8.716 | CX13: 11.197 | CY13: 10.936 | CZ13: 11.242 | DA13: 9.8 | DB13: 11.087 | DC13: 9.244 | DD13: 9.654 | DE13: 10.976 | DF13: 9.994 | DG13: 7.449 | DH13: 7.578 | DI13: 8.434 | DJ13: 7.052 | EA13: 3 | EB13: 2,4'-DDE | EC13: 50 | ED13: 49.211 | EE13: 43.648 | EF13: 49.827 | EG13: 41.977 | EH13: 45.418 | EI13: 43.737 | EJ13: 41.775 | EK13: 50.41 | EL13: 43.51 | EM13: 50.285 | EN13: 48.792 | EO13: 47.003 | EP13: 54.685 | EQ13: 54.981 | ER13: 35.976 | FI13: 3 | FJ13: 2,4'-DDE | FK13: 10 | FL13: 10.048 | FM13: 1.111121731 | FN13: 100.48 | FO13: 11.05813824 | FP13: uygun | FQ13: uygun | FR13: 10.8454 | FS13: 1.267443608 | FT13: 108.454 | FU13: 11.68646254 | FV13: uygun | FW13: uygun | FX13: 9.8936 | FY13: 1.662430841 | FZ13: 98.936 | GA13: 16.80309332 | GB13: uygun | GC13: uygun | GD13: -------- | GE13: -------- | GF13: -------- | GG13: -------- | GH13: uygun değil | GI13: uygun değil | GJ13: -------- | GK13: -------- | GL13: -------- | GM13: -------- | GN13: uygun değil | GO13: uygun değil | GP13: -------- | GQ13: -------- | GR13: -------- | GS13: -------- | GT13: uygun değil | GU13: uygun değil | GW13: 3 | GX13: 2,4'-DDE | GY13: 50 | GZ13: 45.981 | HA13: 4.261486888 | HB13: 91.962 | HC13: 9.267929989 | HD13: uygun | HE13: uygun | HF13: 46.263 | HG13: 3.913201822 | HH13: 92.526 | HI13: 8.45859936 | HJ13: uygun | HK13: uygun | HL13: 47.5872 | HM13: 4.156562606 | HN13: 95.1744 | HO13: 8.734623189 | HP13: uygun | HQ13: uygun | HR13: -------- | HS13: -------- | HT13: -------- | HU13: -------- | HV13: uygun değil | HW13: uygun değil | HX13: -------- | HY13: -------- | HZ13: -------- | IA13: -------- | IB13: uygun değil | IC13: uygun değil | ID13: -------- | IE13: -------- | IF13: -------- | IG13: -------- | IH13: uygun değil | II13: uygun değil | JO13: 3 | JP13: 2,4'-DDE | JQ13: 10 | JR13: 0.00264196 | JS13: 0.01860496 | JT13: 0.01056784 | JU13: 0.01640961 | JV13: 0.00127449 | JW13: 0.00263169 | JX13: 0.02387025 | JY13: 0.01517824 | JZ13: 0.03441025 | KA13: 0.02390116 | KB13: 0.02849344 | KC13: 0.013689 | KD13: 0.00024649 | KE13: 0.01527696 | KF13: 0.05340721 | KV13: 0.0052070656 | KW13: 0.0044970436 | KX13: 0.0447914896 | KY13: 0.0007409284 | KZ13: 0.0061246276 | LA13: 0.0277289104 | LB13: 0.00877969 | LC13: 0.0003594816 | LD13: 0.01550025 | LE13: 6.30436e-05 | LF13: 0.0001089936 | LG13: 0.0010316944 | LH13: 0.00149769 | LI13: 0.00784996 | LJ13: 0.02879809 | LZ13: 0.00111556 | MA13: 0.01648656 | MB13: 0.01432809 | MC13: 0.00876096 | MD13: 0.01542564 | ME13: 0.0004 | MF13: 0.01181569 | MG13: 0.00571536 | MH13: 0.00119716 | MI13: 0.00952576 | MJ13: 3.6e-07 | MK13: 0.06507601 | ML13: 0.05866084 | MM13: 0.02452356 | MN13: 0.08690704 | ND13: 0.0002490084 | NE13: 0.0161391616 | NF13: 1.19716e-05 | NG13: 0.0257474116 | NH13: 0.0083978896 | NI13: 0.0156900676 | NJ13: 0.02706025 | NK13: 6.724e-05 | NL13: 0.01684804 | NM13: 3.249e-05 | NN13: 0.0005837056 | NO13: 0.0035928036 | NP13: 0.00877969 | NQ13: 0.0099241444 | NR13: 0.0786690304 | OH13: 60 | OI13: 0.9454140028 | OJ13: 0.1255264914 | OL13: 3 | OM13: 2,4'-DDE | ON13: 10 | OO13: 10.04266667 | OP13: 9.084 | OQ13: 9.339666667 | OR13: 9.674666667 | OS13: 9.756666667 | OT13: 3 | OU13: 5 | OV13: 0.2913333333 | OW13: -0.368 | OX13: 1.857333333 | OY13: 1.261333333 | OZ13: 1.485333333 | PA13: -0.2426666667 | PB13: 2.003 | PC13: -0.09566666667 | PD13: -0.02066666667 | PE13: 1.219333333 | PF13: -0.04866666667 | PG13: -1.635 | PH13: -1.761666667 | PI13: -1.240666667 | PJ13: -2.704666667 | PZ13: 9.579533333 | QA13: 95.79533333 | QB13: 0.4185062667 | QC13: 27.66795067 | QD13: 10 | QE13: 2.766795067 | QF13: 0 | QG13: 2.766795067 | QH13: 1.66336859 | QI13: 0.1736377475 | QJ13: 13.422 | QK13: 15 | QL13: UYGUN | QM13: UYGUN | QN13: 0.422100943 | QP13: 3 | QQ13: 2,4'-DDE | QR13: 50 | QS13: 47.24666667 | QT13: 44.142 | QU13: 51.64066667 | QV13: 46.82266667 | QW13: 43.893 | QX13: 3 | QY13: 5 | QZ13: 1.964333333 | RA13: -0.494 | RB13: -1.813666667 | RC13: -4.845666667 | RD13: 1.525 | RE13: -3.509666667 | RF13: -2.367 | RG13: -1.230666667 | RH13: -3.312666667 | RI13: 6.392 | RJ13: 1.545333333 | RK13: 2.861 | RL13: 3.044333333 | RM13: 8.158333333 | RN13: -7.917 | SD13: 46.749 | SE13: 93.498 | SF13: 29.351015 | SG13: 253.543186 | SH13: 10 | SI13: 25.3543186 | SJ13: 1.332232133 | SK13: 26.68655073 | SL13: 5.165902703 | SM13: 0.1105029563 | SN13: 11.05029563 | SO13: 15 | SP13: UYGUN | SQ13: UYGUN | SR13: 0.1709526468 | SS13: 0.1455351688
A14: 4 | B14: 2,4'-DDT | C14: GC-MS/MS | D14: 8074420 | E14: 9823990 | G14: 21117792 | H14: 27498643 | J14: 45936821 | K14: 48441290 | M14: 126681718 | N14: 135598148 | P14: 262761897 | Q14: 256976579 | S14: 526082908 | T14: 524653712 | AC14: 4 | AD14: 2,4'-DDT | AE14: 10 | AF14: 9.06 | AG14: 11.454 | AH14: 11.286 | AI14: 7.774 | AJ14: 9.042 | AK14: 9.78 | AL14: 10.419 | AM14: 7.464 | AN14: 10.571 | AO14: 10.553 | AP14: 10.312 | AQ14: 11.683 | AR14: 10.441 | AS14: 9.89 | AT14: 8.642 | BK14: 4 | BL14: 2,4'-DDT | BM14: 50 | BN14: 40.121 | BO14: 39.869 | BP14: 44.125 | BQ14: 41.408 | BR14: 38.457 | BS14: 41.569 | BT14: 56.467 | BU14: 42.04 | BV14: 45.329 | BW14: 48.544 | BX14: 49.138 | BY14: 44.494 | BZ14: 50.524 | CA14: 41.538 | CB14: 39.085 | CS14: 4 | CT14: 2,4'-DDT | CU14: 10 | CV14: 8.129 | CW14: 7.12 | CX14: 7.127 | CY14: 7.633 | CZ14: 7.059 | DA14: 7.829 | DB14: 9.12 | DC14: 9.028 | DD14: 8.354 | DE14: 7.375 | DF14: 9.665 | DG14: 8.067 | DH14: 7.888 | DI14: 8.805 | DJ14: 7.635 | EA14: 4 | EB14: 2,4'-DDT | EC14: 50 | ED14: 49.14 | EE14: 42.642 | EF14: 58.808 | EG14: 41.337 | EH14: 42.414 | EI14: 48.723 | EJ14: 53.933 | EK14: 36.801 | EL14: 41.253 | EM14: 45.632 | EN14: 36.542 | EO14: 37.389 | EP14: 41.124 | EQ14: 39.308 | ER14: 41.46 | FI14: 4 | FJ14: 2,4'-DDT | FK14: 10 | FL14: 9.7232 | FM14: 1.592267314 | FN14: 97.232 | FO14: 16.37595971 | FP14: uygun | FQ14: uygun | FR14: 9.7574 | FS14: 1.322198283 | FT14: 97.574 | FU14: 13.55072338 | FV14: uygun | FW14: uygun | FX14: 10.1936 | FY14: 1.094665839 | FZ14: 101.936 | GA14: 10.73875608 | GB14: uygun | GC14: uygun | GD14: -------- | GE14: -------- | GF14: -------- | GG14: -------- | GH14: uygun değil | GI14: uygun değil | GJ14: -------- | GK14: -------- | GL14: -------- | GM14: -------- | GN14: uygun değil | GO14: uygun değil | GP14: -------- | GQ14: -------- | GR14: -------- | GS14: -------- | GT14: uygun değil | GU14: uygun değil | GW14: 4 | GX14: 2,4'-DDT | GY14: 50 | GZ14: 40.796 | HA14: 2.135571352 | HB14: 81.592 | HC14: 5.234756722 | HD14: uygun | HE14: uygun | HF14: 46.7898 | HG14: 6.09665291 | HH14: 93.5796 | HI14: 13.02987598 | HJ14: uygun | HK14: uygun | HL14: 44.9558 | HM14: 4.869716542 | HN14: 89.9116 | HO14: 10.83223197 | HP14: uygun | HQ14: uygun | HR14: -------- | HS14: -------- | HT14: -------- | HU14: -------- | HV14: uygun değil | HW14: uygun değil | HX14: -------- | HY14: -------- | HZ14: -------- | IA14: -------- | IB14: uygun değil | IC14: uygun değil | ID14: -------- | IE14: -------- | IF14: -------- | IG14: -------- | IH14: uygun değil | II14: uygun değil | JO14: 4 | JP14: 2,4'-DDT | JQ14: 10 | JR14: 0.008836 | JS14: 0.02114116 | JT14: 0.01653796 | JU14: 0.04955076 | JV14: 0.00917764 | JW14: 0.000484 | JX14: 0.00175561 | JY14: 0.06431296 | JZ14: 0.00326041 | KA14: 0.00305809 | KB14: 0.00097344 | KC14: 0.02832489 | KD14: 0.00194481 | KE14: 0.000121 | KF14: 0.01844164 | KV14: 0.0390378564 | KW14: 0.0410548644 | KX14: 0.01380625 | KY14: 0.0295289856 | KZ14: 0.0532963396 | LA14: 0.0284327044 | LB14: 0.0167288356 | LC14: 0.02534464 | LD14: 0.0087272964 | LE14: 0.0008479744 | LF14: 0.0002972176 | LG14: 0.0121264144 | LH14: 0.0001098304 | LI14: 0.0286421776 | LJ14: 0.04765489 | LZ14: 0.03500641 | MA14: 0.082944 | MB14: 0.08254129 | MC14: 0.05602689 | MD14: 0.08649481 | ME14: 0.04713241 | MF14: 0.007744 | MG14: 0.00944784 | MH14: 0.02709316 | MI14: 0.06890625 | MJ14: 0.00112225 | MK14: 0.03736489 | ML14: 0.04460544 | MM14: 0.01428025 | MN14: 0.05593225 | ND14: 0.00029584 | NE14: 0.0216560656 | NF14: 0.0310323456 | NG14: 0.0300190276 | NH14: 0.0230189584 | NI14: 0.0006522916 | NJ14: 0.0061873956 | NK14: 0.0696854404 | NL14: 0.0306040036 | NM14: 0.0076317696 | NN14: 0.0724471056 | NO14: 0.0636149284 | NP14: 0.0315133504 | NQ14: 0.0457275456 | NR14: 0.02917264 | OH14: 60 | OI14: 1.693457495 | OJ14: 0.1680008678 | OL14: 4 | OM14: 2,4'-DDT | ON14: 10 | OO14: 8.541 | OP14: 8.102333333 | OQ14: 8.014333333 | OR14: 8.264 | OS14: 7.356333333 | OT14: 3 | OU14: 5 | OV14: -0.412 | OW14: -0.9823333333 | OX14: -0.8873333333 | OY14: -0.631 | OZ14: -0.2973333333 | PA14: -0.712 | PB14: 1.017666667 | PC14: 1.013666667 | PD14: 0.09 | PE14: 0.01866666667 | PF14: 1.124 | PG14: -0.03533333333 | PH14: -0.1263333333 | PI14: 0.541 | PJ14: 0.2786666667 | PZ14: 8.0556 | QA14: 80.556 | QB14: 0.5789284 | QC14: 6.63813 | QD14: 10 | QE14: 0.663813 | QF14: 0 | QG14: 0.663813 | QH14: 0.8147472001 | QI14: 0.1011404737 | QJ14: =QI14*100 -> 10.11404737 | QK14: 15 | QL14: UYGUN | QM14: UYGUN | QN14: 0.1432115359 | QP14: 4 | QQ14: 2,4'-DDT | QR14: 50 | QS14: 44.80166667 | QT14: 44.65466667 | QU14: 45.57766667 | QV14: 40.63266667 | QW14: 43.16866667 | QX14: 3 | QY14: 5 | QZ14: 4.338333333 | RA14: -2.012666667 | RB14: 13.23033333 | RC14: 0.7043333333 | RD14: -0.7546666667 | RE14: 3.921333333 | RF14: 9.278333333 | RG14: -8.776666667 | RH14: 0.6203333333 | RI14: 2.463333333 | RJ14: -8.259666667 | RK14: -7.265666667 | RL14: -4.453666667 | RM14: -1.324666667 | RN14: -1.708666667 | SD14: 43.76706667 | SE14: 87.53413333 | SF14: 11.4892869 | SG14: 529.4477533 | SH14: 10 | SI14: 52.94477533 | SJ14: 0 | SK14: 52.94477533 | SL14: 7.276316055 | SM14: 0.1662509418 | SN14: 16.62509418 | SO14: 15 | SP14: UYGUN | SQ14: UYGUN | SR14: 0.3869512593 | SS14: 0.137602273
A15: 5 | B15: 2,6-Dichlorobenzamine | C15: GC-MS/MS | D15: 1007358 | E15: 1099832 | G15: 2406865 | H15: 2708401 | J15: 4360713 | K15: 4691026 | M15: 13362372 | N15: 13878988 | P15: 24646713 | Q15: 25470901 | S15: 50129704 | T15: 49492044 | AC15: 5 | AD15: 2,6-Dichlorobenzamine | AE15: 10 | AF15: 8.732 | AG15: 10.545 | AH15: 11.725 | AI15: 8.209 | AJ15: 9.16 | AK15: 10.188 | AL15: 10.488 | AM15: 7.634 | AN15: 10.704 | AO15: 11.333 | AP15: 9.829 | AQ15: 10.529 | AR15: 8.648 | AS15: 7.655 | AT15: 7.836 | BK15: 5 | BL15: 2,6-Dichlorobenzamine | BM15: 50 | BN15: 41.844 | BO15: 43.294 | BP15: 35.12 | BQ15: 49.547 | BR15: 44.397 | BS15: 41.005 | BT15: 45.145 | BU15: 51.475 | BV15: 44.231 | BW15: 51.082 | BX15: 46.043 | BY15: 42.412 | BZ15: 44.529 | CA15: 41.306 | CB15: 38.978 | CS15: 5 | CT15: 2,6-Dichlorobenzamine | CU15: 10 | CV15: 10.197 | CW15: 8.347 | CX15: 11.177 | CY15: 11.517 | CZ15: 11.291 | DA15: 8.801 | DB15: 9.725 | DC15: 8.425 | DD15: 9.545 | DE15: 11.547 | DF15: 8.232 | DG15: 7.159 | DH15: 7.535 | DI15: 7.671 | DJ15: 7.853 | EA15: 5 | EB15: 2,6-Dichlorobenzamine | EC15: 50 | ED15: 44.777 | EE15: 38.181 | EF15: 43.442 | EG15: 43.887 | EH15: 51.438 | EI15: 51.154 | EJ15: 41.804 | EK15: 42.635 | EL15: 39.985 | EM15: 43.613 | EN15: 39.851 | EO15: 42.834 | EP15: 51.777 | EQ15: 47.857 | ER15: 55.4 | FI15: 5 | FJ15: 2,6-Dichlorobenzamine | FK15: 10 | FL15: 9.6742 | FM15: 1.437274052 | FN15: 96.742 | FO15: 14.85677422 | FP15: uygun | FQ15: uygun | FR15: 10.0694 | FS15: 1.424769034 | FT15: 100.694 | FU15: 14.14949286 | FV15: uygun | FW15: uygun | FX15: 8.8994 | FY15: 1.251229915 | FZ15: 88.994 | GA15: 14.05971093 | GB15: uygun | GC15: uygun | GD15: -------- | GE15: -------- | GF15: -------- | GG15: -------- | GH15: uygun değil | GI15: uygun değil | GJ15: -------- | GK15: -------- | GL15: -------- | GM15: -------- | GN15: uygun değil | GO15: uygun değil | GP15: -------- | GQ15: -------- | GR15: -------- | GS15: -------- | GT15: uygun değil | GU15: uygun değil | GW15: 5 | GX15: 2,6-Dichlorobenzamine | GY15: 50 | GZ15: 42.8404 | HA15: 5.201072707 | HB15: 85.6808 | HC15: 12.14057924 | HD15: uygun | HE15: uygun | HF15: 46.5876 | HG15: 4.552098176 | HH15: 93.1752 | HI15: 9.771051043 | HJ15: uygun | HK15: uygun | HL15: 42.6536 | HM15: 2.756337661 | HN15: 85.3072 | HO15: 6.462145424 | HP15: uygun | HQ15: uygun | HR15: -------- | HS15: -------- | HT15: -------- | HU15: -------- | HV15: uygun değil | HW15: uygun değil | HX15: -------- | HY15: -------- | HZ15: -------- | IA15: -------- | IB15: uygun değil | IC15: uygun değil | ID15: -------- | IE15: -------- | IF15: -------- | IG15: -------- | IH15: uygun değil | II15: uygun değil | JO15: 5 | JP15: 2,6-Dichlorobenzamine | JQ15: 10 | JR15: 0.01607824 | JS15: 0.00297025 | JT15: 0.02975625 | JU15: 0.03207681 | JV15: 0.007056 | JW15: 0.00035344 | JX15: 0.00238144 | JY15: 0.05597956 | JZ15: 0.00495616 | KA15: 0.01776889 | KB15: 0.00029241 | KC15: 0.00279841 | KD15: 0.01827904 | KE15: 0.05499025 | KF15: 0.04682896 | KV15: 0.0266081344 | KW15: 0.0179881744 | KX15: 0.08856576 | KY15: 8.20836e-05 | KZ15: 0.0125574436 | LA15: 0.03236401 | LB15: 0.00942841 | LC15: 0.00087025 | LD15: 0.0133125444 | LE15: 0.0004682896 | LF15: 0.0062631396 | LG15: 0.0230310976 | LH15: 0.0119727364 | LI15: 0.0302342544 | LJ15: 0.0485937936 | LZ15: 0.00038809 | MA15: 0.02732409 | MB15: 0.01385329 | MC15: 0.02301289 | MD15: 0.01666681 | ME15: 0.01437601 | MF15: 0.00075625 | MG15: 0.02480625 | MH15: 0.00207025 | MI15: 0.02393209 | MJ15: 0.03125824 | MK15: 0.08071281 | ML15: 0.06076225 | MM15: 0.05424241 | MN15: 0.04609609 | ND15: 0.0109118916 | NE15: 0.0558755044 | NF15: 0.0172029456 | NG15: 0.0149475076 | NH15: 0.0008271376 | NI15: 0.0005326864 | NJ15: 0.0268697664 | NK15: 0.02169729 | NL15: 0.04012009 | NM15: 0.0163175076 | NN15: 0.0412008804 | NO15: 0.0205406224 | NP15: 0.0012630916 | NQ15: 0.0018369796 | NR15: 0.011664 | OH15: 60 | OI15: 1.316971953 | OJ15: 0.1481537463 | OL15: 5 | OM15: 2,6-Dichlorobenzamine | ON15: 10 | OO15: 9.076666667 | OP15: 8.410333333 | OQ15: 9.045666667 | OR15: 9.577666667 | OS15: 10.23033333 | OT15: 3 | OU15: 5 | OV15: 1.120333333 | OW15: -0.06333333333 | OX15: 2.131333333 | OY15: 1.939333333 | OZ15: 1.060666667 | PA15: -0.2756666667 | PB15: 1.314666667 | PC15: -0.6206666667 | PD15: -0.03266666667 | PE15: 1.316666667 | PF15: -0.8446666667 | PG15: -1.251333333 | PH15: -1.510666667 | PI15: -1.906666667 | PJ15: -2.377333333 | PZ15: 9.268133333 | QA15: 92.68133333 | QB15: 1.3827086 | QC15: 28.46051533 | QD15: 10 | QE15: 2.846051533 | QF15: 0 | QG15: 2.846051533 | QH15: 1.687024461 | QI15: 0.1820241898 | QJ15: 10.243 | QK15: 15 | QL15: UYGUN | QM15: UYGUN | QN15: 0.4638592797 | QP15: 5 | QQ15: 2,6-Dichlorobenzamine | QR15: 50 | QS15: 45.26066667 | QT15: 40.93966667 | QU15: 45.95133333 | QV15: 43.90966667 | QW15: 50.15033333 | QX15: 3 | QY15: 5 | QZ15: -0.4836666667 | RA15: -2.758666667 | RB15: -2.509333333 | RC15: -0.02266666667 | RD15: 1.287666667 | RE15: 5.893333333 | RF15: 0.8643333333 | RG15: -3.316333333 | RH15: -3.924666667 | RI15: -6.537333333 | RJ15: -5.409666667 | RK15: 1.894333333 | RL15: 5.825666667 | RM15: 3.947333333 | RN15: 5.249666667 | SD15: 45.24233333 | SE15: 90.48466667 | SF15: 33.6603165 | SG15: 230.3476053 | SH15: 10 | SI15: 23.03476053 | SJ15: 3.541851989 | SK15: 26.57661252 | SL15: 5.155250966 | SM15: 0.1139475042 | SN15: 11.39475042 | SO15: 15 | SP15: UYGUN | SQ15: UYGUN | SR15: 0.1817764719 | SS15: 0.1518499908
A16: 6 | B16: 2,6-Dimethylaniline | C16: GC-MS/MS | D16: 182398 | E16: 180744 | G16: 487485 | H16: 559496 | J16: 1004077 | K16: 1120788 | M16: 3079491 | N16: 3078023 | P16: 6061621 | Q16: 5825467 | S16: 10567838 | T16: 10638681 | AC16: 6 | AD16: 2,6-Dimethylaniline | AE16: 10 | AF16: 9.766 | AG16: 11.579 | AH16: 11.404 | AI16: 10.664 | AJ16: 10.861 | AK16: 10.922 | AL16: 11.137 | AM16: 9.859 | AN16: 9.838 | AO16: 9.704 | AP16: 11.362 | AQ16: 10.525 | AR16: 11.183 | AS16: 11.82 | AT16: 11.15 | BK16: 6 | BL16: 2,6-Dimethylaniline | BM16: 50 | BN16: 40.164 | BO16: 47.553 | BP16: 40.11 | BQ16: 41.006 | BR16: 46.788 | BS16: 42.128 | BT16: 42.084 | BU16: 48.674 | BV16: 43.363 | BW16: 44.811 | BX16: 57.041 | BY16: 54.349 | BZ16: 54.797 | CA16: 53.856 | CB16: 35.446 | CS16: 6 | CT16: 2,6-Dimethylaniline | CU16: 10 | CV16: 11.818 | CW16: 11.315 | CX16: 11.068 | CY16: 11.173 | CZ16: 10.821 | DA16: 11.195 | DB16: 11.691 | DC16: 11.219 | DD16: 10.746 | DE16: 10.646 | DF16: 11.51 | DG16: 11.752 | DH16: 7.57 | DI16: 10.688 | DJ16: 11.773 | EA16: 6 | EB16: 2,6-Dimethylaniline | EC16: 50 | ED16: 43.32 | EE16: 48.834 | EF16: 44.721 | EG16: 45.067 | EH16: 35.346 | EI16: 42.315 | EJ16: 37.936 | EK16: 39.118 | EL16: 51.321 | EM16: 50.492 | EN16: 57.943 | EO16: 52.618 | EP16: 51.948 | EQ16: 59.394 | ER16: 50.139 | FI16: 6 | FJ16: 2,6-Dimethylaniline | FK16: 10 | FL16: 10.8548 | FM16: 0.7155443382 | FN16: 108.548 | FO16: 6.591962434 | FP16: uygun | FQ16: uygun | FR16: 10.292 | FS16: 0.6801238858 | FT16: 102.92 | FU16: 6.608277165 | FV16: uygun | FW16: uygun | FX16: 11.208 | FY16: 0.4660305784 | FZ16: 112.08 | GA16: 4.158017295 | GB16: uygun | GC16: uygun | GD16: -------- | GE16: -------- | GF16: -------- | GG16: -------- | GH16: uygun değil | GI16: uygun değil | GJ16: -------- | GK16: -------- | GL16: -------- | GM16: -------- | GN16: uygun değil | GO16: uygun değil | GP16: -------- | GQ16: -------- | GR16: -------- | GS16: -------- | GT16: uygun değil | GU16: uygun değil | GW16: 6 | GX16: 2,6-Dimethylaniline | GY16: 50 | GZ16: 43.1242 | HA16: 3.720640294 | HB16: 86.2484 | HC16: 8.627731748 | HD16: uygun | HE16: uygun | HF16: 44.212 | HG16: 2.732237453 | HH16: 88.424 | HI16: 6.179854911 | HJ16: uygun | HK16: uygun | HL16: 51.0978 | HM16: 8.834060771 | HN16: 102.1956 | HO16: 17.28853448 | HP16: uygun | HQ16: uygun | HR16: -------- | HS16: -------- | HT16: -------- | HU16: -------- | HV16: uygun değil | HW16: uygun değil | HX16: -------- | HY16: -------- | HZ16: -------- | IA16: -------- | IB16: uygun değil | IC16: uygun değil | ID16: -------- | IE16: -------- | IF16: -------- | IG16: -------- | IH16: uygun değil | II16: uygun değil | JO16: 6 | JP16: 2,6-Dimethylaniline | JQ16: 10 | JR16: 0.00054756 | JS16: 0.02493241 | JT16: 0.01971216 | JU16: 0.00440896 | JV16: 0.00741321 | JW16: 0.00850084 | JX16: 0.01292769 | JY16: 0.00019881 | JZ16: 0.00026244 | KA16: 0.00087616 | KB16: 0.01855044 | KC16: 0.00275625 | KD16: 0.01399489 | KE16: 0.033124 | KF16: 0.013225 | KV16: 0.0386987584 | KW16: 0.0023951236 | KX16: 0.03912484 | KY16: 0.0323568144 | KZ16: 0.0041267776 | LA16: 0.0247873536 | LB16: 0.0250652224 | LC16: 0.0007033104 | LD16: 0.0176199076 | LE16: 0.0107702884 | LF16: 0.0198302724 | LG16: 0.0075655204 | LH16: 0.0092044836 | LI16: 0.0059474944 | LJ16: 0.0847275664 | LZ16: 0.03305124 | MA16: 0.01729225 | MB16: 0.01140624 | MC16: 0.01375929 | MD16: 0.00674041 | ME16: 0.01428025 | MF16: 0.02859481 | MG16: 0.01485961 | MH16: 0.00556516 | MI16: 0.00417316 | MJ16: 0.022801 | MK16: 0.03069504 | ML16: 0.059049 | MM16: 0.00473344 | MN16: 0.03143529 | ND16: 0.01784896 | NE16: 0.0005438224 | NF16: 0.0111471364 | NG16: 0.0097337956 | NH16: 0.0858958864 | NI16: 0.02362369 | NJ16: 0.0582160384 | NK16: 0.0473671696 | NL16: 0.0006980164 | NM16: 9.68256e-05 | NN16: 0.0252364996 | NO16: 0.0027415696 | NP16: 0.0015178816 | NQ16: 0.0352988944 | NR16: 7.7284e-06 | OH16: 60 | OI16: 1.102764658 | OJ16: 0.1355706862 | OL16: 6 | OM16: 2,6-Dimethylaniline | ON16: 10 | OO16: 11.50766667 | OP16: 11.586 | OQ16: 9.952333333 | OR16: 10.869 | OS16: 11.08 | OT16: 3 | OU16: 5 | OV16: 0.3103333333 | OW16: -0.271 | OX16: 1.115666667 | OY16: 0.304 | OZ16: -0.259 | PA16: -0.3126666667 | PB16: 0.105 | PC16: 1.266666667 | PD16: -0.123 | PE16: -0.434 | PF16: 0.002333333333 | PG16: 0.166 | PH16: -2.382333333 | PI16: -0.181 | PJ16: 0.693 | PZ16: 10.999 | QA16: 109.99 | QB16: 1.291712167 | QC16: 9.706755333 | QD16: 10 | QE16: 0.9706755333 | QF16: 0.1070122111 | QG16: 1.077687744 | QH16: 1.038117404 | QI16: 0.09438288972 | QJ16: 2.5242 | QK16: 15 | QL16: UYGUN | QM16: UYGUN | QN16: 0.1247138182 | QP16: 6 | QQ16: 2,6-Dimethylaniline | QR16: 50 | QS16: 47.85933333 | QT16: 46.46266667 | QU16: 45.26233333 | QV16: 51.92733333 | QW16: 45.32566667 | QX16: 3 | QY16: 5 | QZ16: -4.539333333 | RA16: 2.371333333 | RB16: -0.5413333333 | RC16: -6.860333333 | RD16: -9.979666667 | RE16: -5.544333333 | RF16: -8.526666667 | RG16: -6.144333333 | RH16: -0.6063333333 | RI16: 5.166333333 | RJ16: 10.08366667 | RK16: 6.155333333 | RL16: 6.685666667 | RM16: 7.466666667 | RN16: 4.813333333 | SD16: 47.36746667 | SE16: 94.73493333 | SF16: 22.8401351 | SG16: 604.6207693 | SH16: 10 | SI16: 60.46207693 | SJ16: 0 | SK16: 60.46207693 | SL16: 7.775736424 | SM16: 0.1641577431 | SN16: 16.41577431 | SO16: 15 | SP16: UYGUN | SQ16: UYGUN | SR16: 0.3772687046 | SS16: 0.1338952846
A17: 7 | B17: 4,4'-DDD | C17: GC-MS/MS | D17: 2045824 | E17: 2222870 | G17: 5120712 | H17: 6088233 | J17: 9127193 | K17: 11107035 | M17: 29743558 | N17: 29564882 | P17: 53952754 | Q17: 52846218 | S17: 108363614 | T17: 115861940 | AC17: 7 | AD17: 4,4'-DDD | AE17: 10 | AF17: 8.911 | AG17: 11.083 | AH17: 11.46 | AI17: 7.838 | AJ17: 9.412 | AK17: 9.939 | AL17: 11.224 | AM17: 7.885 | AN17: 11.75 | AO17: 11.88 | AP17: 11.242 | AQ17: 11.9 | AR17: 9.765 | AS17: 8.591 | AT17: 7.872 | BK17: 7 | BL17: 4,4'-DDD | BM17: 50 | BN17: 44.292 | BO17: 44.967 | BP17: 35.664 | BQ17: 50.065 | BR17: 45.736 | BS17: 41.994 | BT17: 45.475 | BU17: 51.876 | BV17: 44.206 | BW17: 50.779 | BX17: 43.573 | BY17: 40.84 | BZ17: 43.696 | CA17: 38.777 | CB17: 36.266 | CS17: 7 | CT17: 4,4'-DDD | CU17: 10 | CV17: 10.026 | CW17: 8.088 | CX17: 11.52 | CY17: 10.715 | CZ17: 10.592 | DA17: 8.875 | DB17: 10.579 | DC17: 8.663 | DD17: 9.26 | DE17: 10.65 | DF17: 10.124 | DG17: 11.736 | DH17: 9.348 | DI17: 10.656 | DJ17: 10.888 | EA17: 7 | EB17: 4,4'-DDD | EC17: 50 | ED17: 46.284 | EE17: 40.085 | EF17: 47.742 | EG17: 43.056 | EH17: 46.899 | EI17: 45.739 | EJ17: 43.111 | EK17: 44.463 | EL17: 40.29 | EM17: 45.12 | EN17: 47.364 | EO17: 43.088 | EP17: 48.416 | EQ17: 47.659 | ER17: 35.599 | FI17: 7 | FJ17: 4,4'-DDD | FK17: 10 | FL17: 9.7408 | FM17: 1.514469775 | FN17: 97.408 | FO17: 15.54769398 | FP17: uygun | FQ17: uygun | FR17: 10.5356 | FS17: 1.668658533 | FT17: 105.356 | FU17: 15.8382867 | FV17: uygun | FW17: uygun | FX17: 9.874 | FY17: 1.706024179 | FZ17: 98.74 | GA17: 17.27794388 | GB17: uygun | GC17: uygun | GD17: -------- | GE17: -------- | GF17: -------- | GG17: -------- | GH17: uygun değil | GI17: uygun değil | GJ17: -------- | GK17: -------- | GL17: -------- | GM17: -------- | GN17: uygun değil | GO17: uygun değil | GP17: -------- | GQ17: -------- | GR17: -------- | GS17: -------- | GT17: uygun değil | GU17: uygun değil | GW17: 7 | GX17: 4,4'-DDD | GY17: 50 | GZ17: 44.1448 | HA17: 5.248864992 | HB17: 88.2896 | HC17: 11.89010935 | HD17: uygun | HE17: uygun | HF17: 46.866 | HG17: 4.276638107 | HH17: 93.732 | HI17: 9.125246676 | HJ17: uygun | HK17: uygun | HL17: 40.6304 | HM17: 3.18527115 | HN17: 81.2608 | HO17: 7.839625379 | HP17: uygun | HQ17: uygun | HR17: -------- | HS17: -------- | HT17: -------- | HU17: -------- | HV17: uygun değil | HW17: uygun değil | HX17: -------- | HY17: -------- | HZ17: -------- | IA17: -------- | IB17: uygun değil | IC17: uygun değil | ID17: -------- | IE17: -------- | IF17: -------- | IG17: -------- | IH17: uygun değil | II17: uygun değil | JO17: 7 | JP17: 4,4'-DDD | JQ17: 10 | JR17: 0.01185921 | JS17: 0.01172889 | JT17: 0.021316 | JU17: 0.04674244 | JV17: 0.00345744 | JW17: 3.721e-05 | JX17: 0.01498176 | JY17: 0.04473225 | JZ17: 0.030625 | KA17: 0.035344 | KB17: 0.01542564 | KC17: 0.0361 | KD17: 0.00055225 | KE17: 0.01985281 | KF17: 0.04528384 | KV17: 0.0130325056 | KW17: 0.0101324356 | KX17: 0.0822083584 | KY17: 1.69e-06 | KZ17: 0.0072726784 | LA17: 0.0256384144 | LB17: 0.00819025 | LC17: 0.0014077504 | LD17: 0.0134281744 | LE17: 0.0002427364 | LF17: 0.0165225316 | LG17: 0.03356224 | LH17: 0.0158961664 | LI17: 0.0503822916 | LJ17: 0.0754491024 | LZ17: 6.76e-06 | MA17: 0.03655744 | MB17: 0.023104 | MC17: 0.00511225 | MD17: 0.00350464 | ME17: 0.01265625 | MF17: 0.00335241 | MG17: 0.01787569 | MH17: 0.005476 | MI17: 0.004225 | MJ17: 0.00015376 | MK17: 0.03013696 | ML17: 0.00425104 | MM17: 0.00430336 | MN17: 0.00788544 | ND17: 0.0055234624 | NE17: 0.03932289 | NF17: 0.0020394256 | NG17: 0.0192876544 | NH17: 0.0038464804 | NI17: 0.0072624484 | NJ17: 0.0189833284 | NK17: 0.0122633476 | NL17: 0.03771364 | NM17: 0.00952576 | NN17: 0.0027793984 | NO17: 0.0191102976 | NP17: 0.0010036224 | NQ17: 0.0021921124 | NR17: 0.0829555204 | OH17: 60 | OI17: 1.113816454 | OJ17: 0.1362483305 | OL17: 7 | OM17: 4,4'-DDD | ON17: 10 | OO17: 9.675 | OP17: 10.13433333 | OQ17: 9.843666667 | OR17: 10.21033333 | OS17: 10.71 | OT17: 3 | OU17: 5 | OV17: 0.351 | OW17: -2.046333333 | OX17: 1.676333333 | OY17: 0.5046666667 | OZ17: -0.118 | PA17: -0.8 | PB17: 0.4446666667 | PC17: -1.180666667 | PD17: -0.9503333333 | PE17: -0.06 | PF17: 0.449 | PG17: 1.601666667 | PH17: -0.4956666667 | PI17: 0.4456666667 | PJ17: 0.178 | PZ17: 10.11466667 | QA17: 101.1466667 | QB17: 0.4730313333 | QC17: 13.770748 | QD17: 10 | QE17: 1.3770748 | QF17: 0 | QG17: 1.3770748 | QH17: 1.173488304 | QI17: 0.1160184851 | QJ17: 10 | QK17: 15 | QL17: UYGUN | QM17: UYGUN | QN17: 0.1884440445 | QP17: 7 | QQ17: 4,4'-DDD | QR17: 50 | QS17: 46.46233333 | QT17: 42.09466667 | QU17: 46.87366667 | QV17: 43.66833333 | QW17: 42.53933333 | QX17: 3 | QY17: 5 | QZ17: -0.1783333333 | RA17: -2.009666667 | RB17: 0.8683333333 | RC17: -0.6123333333 | RD17: 4.359666667 | RE17: -0.7233333333 | RF17: 1.016333333 | RG17: -2.410666667 | RH17: -3.378333333 | RI17: 2.580666667 | RJ17: 0.9016666667 | RK17: 0.9933333333 | RL17: 1.542333333 | RM17: 3.990666667 | RN17: -6.940333333 | SD17: 44.32766667 | SE17: 88.65533333 | SF17: 14.7435475 | SG17: 117.9187993 | SH17: 10 | SI17: 11.79187993 | SJ17: 0.9838891889 | SK17: 12.77576912 | SL17: 3.574320792 | SM17: 0.08063408387 | SN17: 12.42 | SO17: 15 | SP17: UYGUN | SQ17: UYGUN | SR17: 0.09102597674 | SS17: 0.0999053161
A18: 8 | B18: 4,4'-DDE | C18: GC-MS/MS | D18: 5665976 | E18: 5446276 | G18: 10735766 | H18: 11914708 | J18: 21724788 | K18: 21890062 | M18: 50383042 | N18: 47955118 | P18: 96321052 | Q18: 92600526 | S18: 185350743 | T18: 175080139 | AC18: 8 | AD18: 4,4'-DDE | AE18: 10 | AF18: 9.006 | AG18: 11.872 | AH18: 11.893 | AI18: 8.698 | AJ18: 9.635 | AK18: 10.785 | AL18: 11.911 | AM18: 8.864 | AN18: 11.507 | AO18: 11.381 | AP18: 10.635 | AQ18: 10.396 | AR18: 8.543 | AS18: 7.248 | AT18: 10.022 | BK18: 8 | BL18: 4,4'-DDE | BM18: 50 | BN18: 46.178 | BO18: 47.053 | BP18: 36.686 | BQ18: 48.387 | BR18: 46.166 | BS18: 41.425 | BT18: 46.455 | BU18: 49.91 | BV18: 44.832 | BW18: 46.693 | BX18: 49.465 | BY18: 46.14 | BZ18: 47.952 | CA18: 45.027 | CB18: 40.013 | CS18: 8 | CT18: 4,4'-DDE | CU18: 10 | CV18: 11.035 | CW18: 8.741 | CX18: 11.536 | CY18: 10.481 | CZ18: 11.17 | DA18: 10.114 | DB18: 11.204 | DC18: 9.358 | DD18: 9.11 | DE18: 11.202 | DF18: 7.994 | DG18: 9.053 | DH18: 8.578 | DI18: 10.713 | DJ18: 10.258 | EA18: 8 | EB18: 4,4'-DDE | EC18: 50 | ED18: 50.987 | EE18: 43.508 | EF18: 50.977 | EG18: 45.043 | EH18: 47.993 | EI18: 42.808 | EJ18: 43.308 | EK18: 49.64 | EL18: 43.509 | EM18: 46.915 | EN18: 46.517 | EO18: 45.991 | EP18: 54.454 | EQ18: 52.935 | ER18: 42.923 | FI18: 8 | FJ18: 4,4'-DDE | FK18: 10 | FL18: 10.2208 | FM18: 1.554070043 | FN18: 102.208 | FO18: 15.2049746 | FP18: uygun | FQ18: uygun | FR18: 10.8896 | FS18: 1.202072294 | FT18: 108.896 | FU18: 11.03871854 | FV18: uygun | FW18: uygun | FX18: 9.3688 | FY18: 1.437429198 | FZ18: 93.688 | GA18: 15.34272477 | GB18: uygun | GC18: uygun | GD18: -------- | GE18: -------- | GF18: -------- | GG18: -------- | GH18: uygun değil | GI18: uygun değil | GJ18: -------- | GK18: -------- | GL18: -------- | GM18: -------- | GN18: uygun değil | GO18: uygun değil | GP18: -------- | GQ18: -------- | GR18: -------- | GS18: -------- | GT18: uygun değil | GU18: uygun değil | GW18: 8 | GX18: 4,4'-DDE | GY18: 50 | GZ18: 44.894 | HA18: 4.677077987 | HB18: 89.788 | HC18: 10.41804693 | HD18: uygun | HE18: uygun | HF18: 45.863 | HG18: 3.089351793 | HH18: 91.726 | HI18: 6.736043854 | HJ18: uygun | HK18: uygun | HL18: 45.7194 | HM18: 3.613632009 | HN18: 91.4388 | HO18: 7.903935768 | HP18: uygun | HQ18: uygun | HR18: -------- | HS18: -------- | HT18: -------- | HU18: -------- | HV18: uygun değil | HW18: uygun değil | HX18: -------- | HY18: -------- | HZ18: -------- | IA18: -------- | IB18: uygun değil | IC18: uygun değil | ID18: -------- | IE18: -------- | IF18: -------- | IG18: -------- | IH18: uygun değil | II18: uygun değil | JO18: 8 | JP18: 4,4'-DDE | JQ18: 10 | JR18: 0.00988036 | JS18: 0.03504384 | JT18: 0.03583449 | JU18: 0.01695204 | JV18: 0.00133225 | JW18: 0.00616225 | JX18: 0.03651921 | JY18: 0.01290496 | JZ18: 0.02271049 | KA18: 0.01907161 | KB18: 0.00403225 | KC18: 0.00156816 | KD18: 0.02122849 | KE18: 0.07573504 | KF18: 4.84e-06 | KV18: 0.0058430736 | KW18: 0.0034739236 | KX18: 0.0709050384 | KY18: 0.0010407076 | KZ18: 0.0058798224 | LA18: 0.02941225 | LB18: 0.00502681 | LC18: 3.24e-06 | LD18: 0.0106832896 | LE18: 0.0043744996 | LF18: 0.00011449 | LG18: 0.00595984 | LH18: 0.0016777216 | LI18: 0.0098922916 | LJ18: 0.0398960676 | LZ18: 0.01071225 | MA18: 0.01585081 | MB18: 0.02359296 | MC18: 0.00231361 | MD18: 0.013689 | ME18: 0.00012996 | MF18: 0.01449616 | MG18: 0.00412164 | MH18: 0.007921 | MI18: 0.01444804 | MJ18: 0.04024036 | MK18: 0.00896809 | ML18: 0.02022084 | MM18: 0.00508369 | MN18: 0.00066564 | ND18: 0.0003896676 | NE18: 0.0168584256 | NF18: 0.0003818116 | NG18: 0.0098287396 | NH18: 0.0016112196 | NI18: 0.0206899456 | NJ18: 0.0179131456 | NK18: 5.184e-05 | NL18: 0.0168532324 | NM18: 0.00380689 | NN18: 0.0048525156 | NO18: 0.0064288324 | NP18: 0.0079352464 | NQ18: 0.00344569 | NR18: 0.0200335716 | OH18: 60 | OI18: 0.8066981692 | OJ18: 0.1159524449 | OL18: 8 | OM18: 4,4'-DDE | ON18: 10 | OO18: 9.714333333 | OP18: 9.666 | OQ18: 9.824 | OR18: 10.10133333 | OS18: 10.87666667 | OT18: 3 | OU18: 5 | OV18: 1.320666667 | OW18: -0.925 | OX18: 1.712 | OY18: 0.3796666667 | OZ18: 0.2933333333 | PA18: 0.3996666667 | PB18: 1.538 | PC18: -0.466 | PD18: -0.9913333333 | PE18: 0.3253333333 | PF18: -1.720333333 | PG18: -0.613 | PH18: -1.246 | PI18: 0.6116666667 | PJ18: -0.6186666667 | PZ18: 10.03646667 | QA18: 100.3646667 | QB18: 0.7472259333 | QC18: 15.236554 | QD18: 10 | QE18: 1.5236554 | QF18: 0 | QG18: 1.5236554 | QH18: 1.234364371 | QI18: 0.1229879411 | QJ18: =QI18*100 -> 12.29879411 | QK18: 15 | QL18: UYGUN | QM18: UYGUN | QN18: 0.211764471 | QP18: 8 | QQ18: 4,4'-DDE | QR18: 50 | QS18: 46.77066667 | QT18: 44.269 | QU18: 51.69033333 | QV18: 47.16233333 | QW18: 45.94366667 | QX18: 3 | QY18: 5 | QZ18: 4.216333333 | RA18: -0.761 | RB18: -0.7133333333 | RC18: -2.119333333 | RD18: 2.049333333 | RE18: -3.962666667 | RF18: -0.961 | RG18: -2.050333333 | RH18: -3.653333333 | RI18: 0.9713333333 | RJ18: -0.2536666667 | RK18: 1.722 | RL18: 2.763666667 | RM18: 5.772666667 | RN18: -3.020666667 | SD18: 47.1672 | SE18: 94.3344 | SF18: 22.88444593 | SG18: 115.7928127 | SH18: 10 | SI18: 11.57928127 | SJ18: 3.768388222 | SK18: 15.34766949 | SL18: 3.917610176 | SM18: 0.08305793381 | SN18: =SM18*100 -> 8.305793381 | SO18: 15 | SP18: UYGUN | SQ18: UYGUN | SR18: 0.09658068517 | SS18: 0.1049396351
A19: 9 | B19: 4,4'-DDT | C19: GC-MS/MS | D19: 759639 | E19: 844838 | G19: 2437606 | H19: 3070132 | J19: 4907503 | K19: 5012023 | M19: 14158775 | N19: 15952621 | P19: 30772875 | Q19: 30264055 | S19: 60966039 | T19: 59047118 | AC19: 9 | AD19: 4,4'-DDT | AE19: 10 | AF19: 11.43 | AG19: 11.914 | AH19: 11.909 | AI19: 10.111 | AJ19: 11.069 | AK19: 11.382 | AL19: 11.721 | AM19: 9.665 | AN19: 11.743 | AO19: 11.423 | AP19: 11.424 | AQ19: 11.631 | AR19: 11.283 | AS19: 10.697 | AT19: 9.705 | BK19: 9 | BL19: 4,4'-DDT | BM19: 50 | BN19: 35.094 | BO19: 36.05 | BP19: 43.75 | BQ19: 43.32 | BR19: 35 | BS19: 35.17 | BT19: 40 | BU19: 37.46 | BV19: 38.1 | BW19: 35.4 | BX19: 47.864 | BY19: 41.98 | BZ19: 48.173 | CA19: 39.932 | CB19: 37.746 | CS19: 9 | CT19: 4,4'-DDT | CU19: 10 | CV19: 9.018 | CW19: 7.817 | CX19: 9.182 | CY19: 9.327 | CZ19: 9.342 | DA19: 8.331 | DB19: 8.782 | DC19: 8.223 | DD19: 8.726 | DE19: 9.506 | DF19: 10.887 | DG19: 9.588 | DH19: 9.25 | DI19: 10.206 | DJ19: 8.95 | EA19: 9 | EB19: 4,4'-DDT | EC19: 50 | ED19: 44.54 | EE19: 44.14 | EF19: 36.9 | EG19: 36.62 | EH19: 41.7 | EI19: 41.73 | EJ19: 35.68 | EK19: 42.87 | EL19: 44.65 | EM19: 43.03 | EN19: 50.219 | EO19: 49.675 | EP19: 55.759 | EQ19: 54.633 | ER19: 54.04 | FI19: 9 | FJ19: 4,4'-DDT | FK19: 10 | FL19: 11.2866 | FM19: 0.7468201256 | FN19: 112.866 | FO19: 6.616874219 | FP19: uygun | FQ19: uygun | FR19: 11.1868 | FS19: 0.8666742179 | FT19: 111.868 | FU19: 7.747293399 | FV19: uygun | FW19: uygun | FX19: 10.948 | FY19: 0.7767464194 | FZ19: 109.48 | GA19: 7.094870473 | GB19: uygun | GC19: uygun | GD19: -------- | GE19: -------- | GF19: -------- | GG19: -------- | GH19: uygun değil | GI19: uygun değil | GJ19: -------- | GK19: -------- | GL19: -------- | GM19: -------- | GN19: uygun değil | GO19: uygun değil | GP19: -------- | GQ19: -------- | GR19: -------- | GS19: -------- | GT19: uygun değil | GU19: uygun değil | GW19: 9 | GX19: 4,4'-DDT | GY19: 50 | GZ19: 38.6428 | HA19: 4.487378879 | HB19: 77.2856 | HC19: 11.61245789 | HD19: uygun | HE19: uygun | HF19: 37.226 | HG19: 2.004689502 | HH19: 74.452 | HI19: 5.385186435 | HJ19: uygun | HK19: uygun | HL19: 43.139 | HM19: 4.700514865 | HN19: 86.278 | HO19: 10.8962073 | HP19: uygun | HQ19: uygun | HR19: -------- | HS19: -------- | HT19: -------- | HU19: -------- | HV19: uygun değil | HW19: uygun değil | HX19: -------- | HY19: -------- | HZ19: -------- | IA19: -------- | IB19: uygun değil | IC19: uygun değil | ID19: -------- | IE19: -------- | IF19: -------- | IG19: -------- | IH19: uygun değil | II19: uygun değil | JO19: 9 | JP19: 4,4'-DDT | JQ19: 10 | JR19: 0.020449 | JS19: 0.03663396 | JT19: 0.03644281 | JU19: 0.00012321 | JV19: 0.01142761 | JW19: 0.01909924 | JX19: 0.02961841 | JY19: 0.00112225 | JZ19: 0.03038049 | KA19: 0.02024929 | KB19: 0.02027776 | KC19: 0.02660161 | KD19: 0.01646089 | KE19: 0.00485809 | KF19: 0.00087025 | KV19: 0.0888755344 | KW19: 0.077841 | KX19: 0.015625 | KY19: 0.01784896 | KZ19: 0.09 | LA19: 0.08797156 | LB19: 0.04 | LC19: 0.06290064 | LD19: 0.056644 | LE19: 0.085264 | LF19: 0.0018249984 | LG19: 0.02572816 | LH19: 0.0013351716 | LI19: 0.0405458496 | LJ19: 0.0600642064 | LZ19: 0.00964324 | MA19: 0.04765489 | MB19: 0.00669124 | MC19: 0.00452929 | MD19: 0.00432964 | ME19: 0.02785561 | MF19: 0.01483524 | MG19: 0.03157729 | MH19: 0.01623076 | MI19: 0.00244036 | MJ19: 0.00786769 | MK19: 0.00169744 | ML19: 0.005625 | MM19: 0.00042436 | MN19: 0.011025 | ND19: 0.01192464 | NE19: 0.01373584 | NF19: 0.068644 | NG19: 0.07160976 | NH19: 0.027556 | NI19: 0.02735716 | NJ19: 0.08202496 | NK19: 0.02033476 | NL19: 0.011449 | NM19: 0.01943236 | NN19: 1.91844e-05 | NO19: 4.225e-05 | NP19: 0.0132664324 | NQ19: 0.0085858756 | NR19: 0.00652864 | OH19: 60 | OI19: 1.602021863 | OJ19: 0.1634024614 | OL19: 9 | OM19: 4,4'-DDT | ON19: 10 | OO19: 9.412 | OP19: 8.729 | OQ19: 8.885 | OR19: 9.419666667 | OS19: 9.266 | OT19: 3 | OU19: 5 | OV19: -0.394 | OW19: -0.912 | OX19: 0.297 | OY19: -0.09266666667 | OZ19: 0.076 | PA19: -1.081 | PB19: 0.053 | PC19: -0.662 | PD19: -0.6936666667 | PE19: 0.24 | PF19: 1.475 | PG19: 0.859 | PH19: 0.365 | PI19: 0.7863333333 | PJ19: -0.316 | PZ19: 9.142333333 | QA19: 91.42333333 | QB19: 0.3014941667 | QC19: 7.002846667 | QD19: 10 | QE19: 0.7002846667 | QF19: 0 | QG19: 0.7002846667 | QH19: 0.8368301301 | QI19: 0.09153353959 | QJ19: 9.153353959 | QK19: 15 | QL19: UYGUN | QM19: UYGUN | QN19: 0.1172974442 | QP19: 9 | QQ19: 4,4'-DDT | QR19: 50 | QS19: 45.49633333 | QT19: 43.165 | QU19: 45.17633333 | QV19: 45.301 | QW19: 46.25666667 | QX19: 3 | QY19: 5 | QZ19: -0.9563333333 | RA19: 0.975 | RB19: -8.276333333 | RC19: -8.681 | RD19: -4.556666667 | RE19: -3.766333333 | RF19: -7.485 | RG19: -2.306333333 | RH19: -0.651 | RI19: -3.226666667 | RJ19: 4.722666667 | RK19: 6.51 | RL19: 10.58266667 | RM19: 9.332 | RN19: 7.783333333 | SD19: 45.07906667 | SE19: 90.15813333 | SF19: 3.962414733 | SG19: 577.193724 | SH19: 10 | SI19: 57.7193724 | SJ19: 0 | SK19: 57.7193724 | SL19: 7.597326661 | SM19: 0.168533362 | SN19: =SM19*100 -> 16.8533362 | SO19: 15 | SP19: UYGUN | SQ19: UYGUN | SR19: 0.3976489175 | SS19: 0.1356132054
A20: 10 | B20: 4,4-Dichlorobenzophenone | C20: GC-MS/MS | D20: 931075 | E20: 961828 | G20: 1967782 | H20: 2082009 | J20: 3065307 | K20: 3782577 | M20: 9671409 | N20: 9450436 | P20: 17482781 | Q20: 18216366 | S20: 37799247 | T20: 36065613 | AC20: 10 | AD20: 4,4-Dichlorobenzophenone | AE20: 10 | AF20: 9.422 | AG20: 10.655 | AH20: 11.687 | AI20: 8.13 | AJ20: 9.442 | AK20: 11.225 | AL20: 11.204 | AM20: 8.077 | AN20: 10.898 | AO20: 11.896 | AP20: 11.169 | AQ20: 11.176 | AR20: 9.331 | AS20: 8.362 | AT20: 7.393 | BK20: 10 | BL20: 4,4-Dichlorobenzophenone | BM20: 50 | BN20: 41.25 | BO20: 41.861 | BP20: 35 | BQ20: 45.351 | BR20: 41.75 | BS20: 39.648 | BT20: 41.315 | BU20: 47.903 | BV20: 40.588 | BW20: 47.301 | BX20: 41.847 | BY20: 38.865 | BZ20: 38.902 | CA20: 37.209 | CB20: 35.425 | CS20: 10 | CT20: 4,4-Dichlorobenzophenone | CU20: 10 | CV20: 10.811 | CW20: 8.616 | CX20: 11.248 | CY20: 11.862 | CZ20: 11.915 | DA20: 10.057 | DB20: 11.014 | DC20: 8.972 | DD20: 10.338 | DE20: 11.354 | DF20: 10.775 | DG20: 9.56 | DH20: 9.603 | DI20: 8.528 | DJ20: 10.047 | EA20: 10 | EB20: 4,4-Dichlorobenzophenone | EC20: 50 | ED20: 42.917 | EE20: 38.424 | EF20: 44.176 | EG20: 42.605 | EH20: 49.11 | EI20: 47.385 | EJ20: 40.754 | EK20: 43.732 | EL20: 39.185 | EM20: 45.226 | EN20: 36.538 | EO20: 45.001 | EP20: 49.091 | EQ20: 47.875 | ER20: 37.03 | FI20: 10 | FJ20: 4,4-Dichlorobenzophenone | FK20: 10 | FL20: 9.8672 | FM20: 1.353621328 | FN20: 98.672 | FO20: 13.71839355 | FP20: uygun | FQ20: uygun | FR20: 10.66 | FS20: 1.489243936 | FT20: 106.6 | FU20: 13.97039339 | FV20: uygun | FW20: uygun | FX20: 9.4862 | FY20: 1.684980623 | FZ20: 94.862 | GA20: 17.76244042 | GB20: uygun | GC20: uygun | GD20: -------- | GE20: -------- | GF20: -------- | GG20: -------- | GH20: uygun değil | GI20: uygun değil | GJ20: -------- | GK20: -------- | GL20: -------- | GM20: -------- | GN20: uygun değil | GO20: uygun değil | GP20: -------- | GQ20: -------- | GR20: -------- | GS20: -------- | GT20: uygun değil | GU20: uygun değil | GW20: 10 | GX20: 4,4-Dichlorobenzophenone | GY20: 50 | GZ20: 41.0424 | HA20: 3.75128422 | HB20: 82.0848 | HC20: 9.140021588 | HD20: uygun | HE20: uygun | HF20: 43.351 | HG20: 3.931121914 | HH20: 86.702 | HI20: 9.068122797 | HJ20: uygun | HK20: uygun | HL20: 38.4496 | HM20: 2.377332707 | HN20: 76.8992 | HO20: 6.182984237 | HP20: uygun | HQ20: uygun | HR20: -------- | HS20: -------- | HT20: -------- | HU20: -------- | HV20: uygun değil | HW20: uygun değil | HX20: -------- | HY20: -------- | HZ20: -------- | IA20: -------- | IB20: uygun değil | IC20: uygun değil | ID20: -------- | IE20: -------- | IF20: -------- | IG20: -------- | IH20: uygun değil | II20: uygun değil | JO20: 10 | JP20: 4,4-Dichlorobenzophenone | JQ20: 10 | JR20: 0.00334084 | JS20: 0.00429025 | JT20: 0.02845969 | JU20: 0.034969 | JV20: 0.00311364 | JW20: 0.01500625 | JX20: 0.01449616 | JY20: 0.03697929 | JZ20: 0.00806404 | KA20: 0.03594816 | KB20: 0.01366561 | KC20: 0.01382976 | KD20: 0.00447561 | KE20: 0.02683044 | KF20: 0.06796449 | KV20: 0.030625 | KW20: 0.0264973284 | KX20: 0.09 | KY20: 0.0086452804 | KZ20: 0.027225 | LA20: 0.0428655616 | LB20: 0.03017169 | LC20: 0.0017589636 | LD20: 0.0354342976 | LE20: 0.0029138404 | LF20: 0.0265885636 | LG20: 0.04959529 | LH20: 0.0492662416 | LI20: 0.0654438724 | LJ20: 0.08497225 | LZ20: 0.00657721 | MA20: 0.01915456 | MB20: 0.01557504 | MC20: 0.03467044 | MD20: 0.03667225 | ME20: 3.249e-05 | MF20: 0.01028196 | MG20: 0.01056784 | MH20: 0.00114244 | MI20: 0.01833316 | MJ20: 0.00600625 | MK20: 0.001936 | ML20: 0.00157609 | MM20: 0.02166784 | MN20: 2.209e-05 | ND20: 0.0200675556 | NE20: 0.0536015104 | NF20: 0.0135675904 | NG20: 0.02187441 | NH20: 0.00031684 | NI20: 0.00273529 | NJ20: 0.0341954064 | NK20: 0.0157151296 | NL20: 0.04678569 | NM20: 0.0091164304 | NN20: 0.0724901776 | NO20: 0.0099960004 | NP20: 0.0003305124 | NQ20: 0.00180625 | NR20: 0.06728836 | OH20: 60 | OI20: 1.437539223 | OJ20: 0.1547869085 | OL20: 10 | OM20: 4,4-Dichlorobenzophenone | ON20: 10 | OO20: 10.54766667 | OP20: 9.73 | OQ20: 9.941 | OR20: 10.24266667 | OS20: 11.10533333 | OT20: 3 | OU20: 5 | OV20: 0.2633333333 | OW20: -1.114 | OX20: 1.307 | OY20: 1.619333333 | OZ20: 0.8096666667 | PA20: -0.4906666667 | PB20: 1.284 | PC20: -0.969 | PD20: 0.09533333333 | PE20: 0.2486666667 | PF20: 0.2273333333 | PG20: -0.17 | PH20: -0.338 | PI20: -1.714666667 | PJ20: -1.058333333 | PZ20: 10.31333333 | QA20: 103.1333333 | QB20: 0.8745598333 | QC20: 13.45066 | QD20: 10 | QE20: 1.345066 | QF20: 0 | QG20: 1.345066 | QH20: 1.159769805 | QI20: 0.1124534394 | QJ20: 11.24534394 | QK20: 15 | QL20: UYGUN | QM20: UYGUN | QN20: 0.1770408644 | QP20: 10 | QQ20: 4,4-Dichlorobenzophenone | QR20: 50 | QS20: 42.28 | QT20: 41.393 | QU20: 45.66633333 | QV20: 43.22166667 | QW20: 43.78866667 | QX20: 3 | QY20: 5 | QZ20: 0.637 | RA20: -2.969 | RB20: -1.490333333 | RC20: -0.6166666667 | RD20: 5.321333333 | RE20: 5.105 | RF20: -0.639 | RG20: -1.934333333 | RH20: -4.036666667 | RI20: 1.437333333 | RJ20: -5.742 | RK20: 3.608 | RL20: 3.424666667 | RM20: 4.653333333 | RN20: -6.758666667 | SD20: 43.26993333 | SE20: 86.53986667 | SF20: 7.887745233 | SG20: 213.759942 | SH20: 10 | SI20: 21.3759942 | SJ20: 0 | SK20: 21.3759942 | SL20: 4.623418021 | SM20: 0.1068505927 | SN20: =SM20*100 -> 10.68505927 | SO20: 15 | SP20: UYGUN | SQ20: UYGUN | SR20: 0.1598386881 | SS20: 0.109687796
A21: 11 | B21: Acetochlor | C21: GC-MS/MS | D21: 9171510 | E21: 9823990 | G21: 21117792 | H21: 26983324 | J21: 46536882 | K21: 48441290 | M21: 126681718 | N21: 135516450 | P21: 262761897 | Q21: 239526837 | S21: 528960411 | T21: 524540391 | AC21: 11 | AD21: Acetochlor | AE21: 10 | AF21: 9.435 | AG21: 11.214 | AH21: 11.251 | AI21: 9.013 | AJ21: 9.332 | AK21: 10.375 | AL21: 11.712 | AM21: 9.101 | AN21: 11.223 | AO21: 10.957 | AP21: 11.51 | AQ21: 9.722 | AR21: 10.476 | AS21: 9.27 | AT21: 8.559 | BK21: 11 | BL21: Acetochlor | BM21: 50 | BN21: 47.748 | BO21: 47.642 | BP21: 40.627 | BQ21: 53.786 | BR21: 43.916 | BS21: 42.199 | BT21: 46.215 | BU21: 52.296 | BV21: 43.051 | BW21: 49.076 | BX21: 46.95 | BY21: 44.849 | BZ21: 50.451 | CA21: 44.299 | CB21: 35.613 | CS21: 11 | CT21: Acetochlor | CU21: 10 | CV21: 10.583 | CW21: 8.261 | CX21: 10.832 | CY21: 10.895 | CZ21: 10.854 | DA21: 9.74 | DB21: 11.438 | DC21: 9.085 | DD21: 9.814 | DE21: 11.2 | DF21: 8.704 | DG21: 8.588 | DH21: 7.334 | DI21: 8.877 | DJ21: 7.29 | EA21: 11 | EB21: Acetochlor | EC21: 50 | ED21: 51.577 | EE21: 43.34 | EF21: 51.386 | EG21: 41.491 | EH21: 42.687 | EI21: 42.87 | EJ21: 38.866 | EK21: 50.506 | EL21: 43.956 | EM21: 51.485 | EN21: 44.025 | EO21: 42.963 | EP21: 48.098 | EQ21: 45.771 | ER21: 54.8 | FI21: 11 | FJ21: Acetochlor | FK21: 10 | FL21: 10.049 | FM21: 1.091605469 | FN21: 100.49 | FO21: 10.86282684 | FP21: uygun | FQ21: uygun | FR21: 10.6736 | FS21: 1.002828899 | FT21: 106.736 | FU21: 9.395413906 | FV21: uygun | FW21: uygun | FX21: 9.9074 | FY21: 1.134732039 | FZ21: 99.074 | GA21: 11.45337868 | GB21: uygun | GC21: uygun | GD21: -------- | GE21: -------- | GF21: -------- | GG21: -------- | GH21: uygun değil | GI21: uygun değil | GJ21: -------- | GK21: -------- | GL21: -------- | GM21: -------- | GN21: uygun değil | GO21: uygun değil | GP21: -------- | GQ21: -------- | GR21: -------- | GS21: -------- | GT21: uygun değil | GU21: uygun değil | GW21: 11 | GX21: Acetochlor | GY21: 50 | GZ21: 46.7438 | HA21: 4.91984392 | HB21: 93.4876 | HC21: 10.52512616 | HD21: uygun | HE21: uygun | HF21: 46.5674 | HG21: 4.203632512 | HH21: 93.1348 | HI21: 9.026985643 | HJ21: uygun | HK21: uygun | HL21: 44.4324 | HM21: 5.489422174 | HN21: 88.8648 | HO21: 12.35454797 | HP21: uygun | HQ21: uygun | HR21: -------- | HS21: -------- | HT21: -------- | HU21: -------- | HV21: uygun değil | HW21: uygun değil | HX21: -------- | HY21: -------- | HZ21: -------- | IA21: -------- | IB21: uygun değil | IC21: uygun değil | ID21: -------- | IE21: -------- | IF21: -------- | IG21: -------- | IH21: uygun değil | II21: uygun değil | JO21: 11 | JP21: Acetochlor | JQ21: 10 | JR21: 0.00319225 | JS21: 0.01473796 | JT21: 0.01565001 | JU21: 0.00974169 | JV21: 0.00446224 | JW21: 0.00140625 | JX21: 0.02930944 | JY21: 0.00808201 | JZ21: 0.01495729 | KA21: 0.00915849 | KB21: 0.022801 | KC21: 0.00077284 | KD21: 0.00226576 | KE21: 0.005329 | KF21: 0.02076481 | KV21: 0.0020286016 | KW21: 0.0022240656 | KX21: 0.0351412516 | KY21: 0.0057335184 | KZ21: 0.0148060224 | LA21: 0.0243422404 | LB21: 0.00573049 | LC21: 0.0021086464 | LD21: 0.0193154404 | LE21: 0.0003415104 | LF21: 0.003721 | LG21: 0.0106131204 | LH21: 8.13604e-05 | LI21: 0.0130005604 | LJ21: 0.0827943076 | LZ21: 0.00339889 | MA21: 0.03024121 | MB21: 0.00692224 | MC21: 0.00801025 | MD21: 0.00729316 | ME21: 0.000676 | MF21: 0.02067844 | MG21: 0.00837225 | MH21: 0.00034596 | MI21: 0.0144 | MJ21: 0.01679616 | MK21: 0.01993744 | ML21: 0.07107556 | MM21: 0.01261129 | MN21: 0.073441 | ND21: 0.0009947716 | NE21: 0.01774224 | NF21: 0.0007683984 | NG21: 0.0289612324 | NH21: 0.0213919876 | NI21: 0.02033476 | NJ21: 0.0495863824 | NK21: 0.0001024144 | NL21: 0.0146119744 | NM21: 0.00088209 | NN21: 0.01428025 | NO21: 0.0198077476 | NP21: 0.0014470416 | NQ21: 0.0071537764 | NR21: 0.009216 | OH21: 60 | OI21: 0.8860940928 | OJ21: 0.1215246266 | OL21: 11 | OM21: Acetochlor | ON21: 10 | OO21: 9.675666667 | OP21: 9.429 | OQ21: 9.083666667 | OR21: 9.862 | OS21: 9.781333333 | OT21: 3 | OU21: 5 | OV21: 0.9073333333 | OW21: -1.168 | OX21: 1.748333333 | OY21: 1.033 | OZ21: 1.072666667 | PA21: 0.06433333333 | PB21: 2.009 | PC21: 0.001333333333 | PD21: -0.048 | PE21: 1.418666667 | PF21: -0.9716666667 | PG21: -0.841 | PH21: -1.749666667 | PI21: -0.985 | PJ21: -2.491333333 | PZ21: 9.566333333 | QA21: 95.66333333 | QB21: 0.2980688333 | QC21: 25.406708 | QD21: 10 | QE21: 2.5406708 | QF21: 0 | QG21: 2.5406708 | QH21: 1.59394818 | QI21: 0.1666205979 | QJ21: 16.66205979 | QK21: 15 | QL21: UYGUN | QM21: UYGUN | QN21: 0.3886739311 | QP21: 11 | QQ21: Acetochlor | QR21: 50 | QS21: 46.15733333 | QT21: 41.723 | QU21: 49.99666667 | QV21: 43.73933333 | QW21: 49.65733333 | QX21: 3 | QY21: 5 | QZ21: 5.419666667 | RA21: 1.617 | RB21: 1.389333333 | RC21: -2.248333333 | RD21: -6.970333333 | RE21: -3.287333333 | RF21: -2.857 | RG21: 0.5093333333 | RH21: 0.2166666667 | RI21: 1.827666667 | RJ21: -2.132333333 | RK21: 1.24 | RL21: -1.898666667 | RM21: 2.031666667 | RN21: 5.142666667 | SD21: 46.25473333 | SE21: 92.50946667 | SF21: 39.33981207 | SG21: 150.4380827 | SH21: 10 | SI21: 15.04380827 | SJ21: 8.098667933 | SK21: 23.1424762 | SL21: 4.810662761 | SM21: 0.104003686 | SN21: =SM21*100 -> 10.4003686 | SO21: 15 | SP21: UYGUN | SQ21: UYGUN | SR21: 0.1514347338 | SS21: 0.1388869871
A22: 12 | B22: Aclonifen | C22: GC-MS/MS | D22: 3109720 | E22: 3454718 | G22: 6978433 | H22: 9105857 | J22: 13406067 | K22: 15094827 | M22: 41424731 | N22: 44662017 | P22: 75409361 | Q22: 75641409 | S22: 157621066 | T22: 157127182 | AC22: 12 | AD22: Aclonifen | AE22: 10 | AF22: 10.932 | AG22: 11.648 | AH22: 11.88 | AI22: 10.203 | AJ22: 11.467 | AK22: 10.91 | AL22: 11.492 | AM22: 10.615 | AN22: 11.366 | AO22: 11.658 | AP22: 11.602 | AQ22: 10.874 | AR22: 10.363 | AS22: 10.427 | AT22: 8.843 | BK22: 12 | BL22: Aclonifen | BM22: 50 | BN22: 41.16 | BO22: 41.45 | BP22: 35.35 | BQ22: 35.932 | BR22: 43.8 | BS22: 38.25 | BT22: 39.76 | BU22: 42.5 | BV22: 41.83 | BW22: 42.47 | BX22: 44.479 | BY22: 40.193 | BZ22: 45.699 | CA22: 39.497 | CB22: 38.272 | CS22: 12 | CT22: Aclonifen | CU22: 10 | CV22: 11.501 | CW22: 9.561 | CX22: 11.976 | CY22: 11.355 | CZ22: 11.8 | DA22: 10.039 | DB22: 10.98 | DC22: 9.765 | DD22: 10.819 | DE22: 11.522 | DF22: 9.054 | DG22: 8.785 | DH22: 7.503 | DI22: 9.286 | DJ22: 7.275 | EA22: 12 | EB22: Aclonifen | EC22: 50 | ED22: 38.5 | EE22: 44.16 | EF22: 35.95 | EG22: 37.93 | EH22: 42.53 | EI22: 43.45 | EJ22: 35.51 | EK22: 40.26 | EL22: 40.07 | EM22: 41.68 | EN22: 49.834 | EO22: 47.944 | EP22: 56.725 | EQ22: 56.883 | ER22: 37.526 | FI22: 12 | FJ22: Aclonifen | FK22: 10 | FL22: 11.226 | FM22: 0.6702324224 | FN22: 112.26 | FO22: 5.970358297 | FP22: uygun | FQ22: uygun | FR22: 11.2082 | FS22: 0.4326005086 | FT22: 112.082 | FU22: 3.859678704 | FV22: uygun | FW22: uygun | FX22: 10.4218 | FY22: 1.011613909 | FZ22: 104.218 | GA22: 9.706710055 | GB22: uygun | GC22: uygun | GD22: -------- | GE22: -------- | GF22: -------- | GG22: -------- | GH22: uygun değil | GI22: uygun değil | GJ22: -------- | GK22: -------- | GL22: -------- | GM22: -------- | GN22: uygun değil | GO22: uygun değil | GP22: -------- | GQ22: -------- | GR22: -------- | GS22: -------- | GT22: uygun değil | GU22: uygun değil | GW22: 12 | GX22: Aclonifen | GY22: 50 | GZ22: 39.5384 | HA22: 3.707891962 | HB22: 79.0768 | HC22: 9.377951464 | HD22: uygun | HE22: uygun | HF22: 40.962 | HG22: 1.883658674 | HH22: 81.924 | HI22: 4.598551521 | HJ22: uygun | HK22: uygun | HL22: 41.628 | HM22: 3.262068516 | HN22: 83.256 | HO22: 7.836236465 | HP22: uygun | HQ22: uygun | HR22: -------- | HS22: -------- | HT22: -------- | HU22: -------- | HV22: uygun değil | HW22: uygun değil | HX22: -------- | HY22: -------- | HZ22: -------- | IA22: -------- | IB22: uygun değil | IC22: uygun değil | ID22: -------- | IE22: -------- | IF22: -------- | IG22: -------- | IH22: uygun değil | II22: uygun değil | JO22: 12 | JP22: Aclonifen | JQ22: 10 | JR22: 0.00868624 | JS22: 0.02715904 | JT22: 0.035344 | JU22: 0.00041209 | JV22: 0.02152089 | JW22: 0.008281 | JX22: 0.02226064 | JY22: 0.00378225 | JZ22: 0.01865956 | KA22: 0.02748964 | KB22: 0.02566404 | KC22: 0.00763876 | KD22: 0.00131769 | KE22: 0.00182329 | KF22: 0.01338649 | KV22: 0.03125824 | KW22: 0.029241 | KX22: 0.085849 | KY22: 0.0791634496 | KZ22: 0.015376 | LA22: 0.055225 | LB22: 0.04194304 | LC22: 0.0225 | LD22: 0.02669956 | LE22: 0.02268036 | LF22: 0.0121925764 | LG22: 0.0384708996 | LH22: 0.0073994404 | LI22: 0.0441252036 | LJ22: 0.0550183936 | LZ22: 0.02253001 | MA22: 0.00192721 | MB22: 0.03904576 | MC22: 0.01836025 | MD22: 0.0324 | ME22: 1.521e-05 | MF22: 0.009604 | MG22: 0.00055225 | MH22: 0.00670761 | MI22: 0.02316484 | MJ22: 0.00894916 | MK22: 0.01476225 | ML22: 0.06235009 | MM22: 0.00509796 | MN22: 0.07425625 | ND22: 0.0529 | NE22: 0.01364224 | NF22: 0.078961 | NG22: 0.05827396 | NH22: 0.02232036 | NI22: 0.017161 | NJ22: 0.08398404 | NK22: 0.03794704 | NL22: 0.03944196 | NM22: 0.02768896 | NN22: 1.10224e-05 | NO22: 0.0016908544 | NP22: 0.01809025 | NQ22: 0.0189502756 | NR22: 0.0622402704 | OH22: 60 | OI22: 1.643593866 | OJ22: 0.1655090061 | OL22: 12 | OM22: Aclonifen | ON22: 10 | OO22: 10.198 | OP22: 9.775333333 | OQ22: 9.748 | OR22: 10.48666667 | OS22: 10.199 | OT22: 3 | OU22: 5 | OV22: 1.303 | OW22: -0.2143333333 | OX22: 2.228 | OY22: 0.8683333333 | OZ22: 1.601 | PA22: -0.159 | PB22: 1.204666667 | PC22: 0.017 | PD22: 0.3323333333 | PE22: 1.323 | PF22: -1.144 | PG22: -0.9903333333 | PH22: -2.245 | PI22: -1.200666667 | PJ22: -2.924 | PZ22: 10.0814 | QA22: 100.814 | QB22: 0.2973740667 | QC22: 30.68339933 | QD22: 10 | QE22: 3.068339933 | QF22: 0 | QG22: 3.068339933 | QH22: 1.751667758 | QI22: 0.173752431 | QJ22: 17.3752431 | QK22: 15 | QL22: UYGUN | QM22: UYGUN | QN22: 0.4226587018 | QP22: 12 | QQ22: Aclonifen | QR22: 50 | QS22: 43.928 | QT22: 42.538 | QU22: 44.31166667 | QV22: 44.961 | QW22: 40.57866667 | QX22: 3 | QY22: 5 | QZ22: -5.428 | RA22: 1.622 | RB22: -8.361666667 | RC22: -7.031 | RD22: 1.951333333 | RE22: -0.478 | RF22: -7.028 | RG22: -4.051666667 | RH22: -4.891 | RI22: 1.101333333 | RJ22: 5.906 | RK22: 5.406 | RL22: 12.41333333 | RM22: 11.922 | RN22: -3.052666667 | SD22: 43.26346667 | SE22: 86.52693333 | SF22: 9.1173001 | SG22: 616.0756613 | SH22: 10 | SI22: 61.60756613 | SJ22: 0 | SK22: 61.60756613 | SL22: 7.849048741 | SM22: 0.181424406 | SN22: 13.24 | SO22: 15 | SP22: UYGUN | SQ22: UYGUN | SR22: 0.4608074112 | SS22: 0.1776298432
A23: 13 | B23: Alachlor | C23: GC-MS/MS | D23: 2081344 | E23: 2123268 | G23: 4328517 | H23: 5409411 | J23: 9185487 | K23: 9859923 | M23: 29552234 | N23: 30323835 | P23: 52496098 | Q23: 53627423 | S23: 116049020 | T23: 116955188 | AC23: 13 | AD23: Alachlor | AE23: 10 | AF23: 8.719 | AG23: 10.613 | AH23: 11.056 | AI23: 8.837 | AJ23: 9.422 | AK23: 9.465 | AL23: 10.802 | AM23: 8.161 | AN23: 11.373 | AO23: 11.88 | AP23: 11.96 | AQ23: 10.417 | AR23: 10.685 | AS23: 9.224 | AT23: 8.468 | BK23: 13 | BL23: Alachlor | BM23: 50 | BN23: 48.216 | BO23: 49.96 | BP23: 42.882 | BQ23: 53.956 | BR23: 44.71 | BS23: 43.265 | BT23: 45.783 | BU23: 53.73 | BV23: 41.949 | BW23: 51.45 | BX23: 48.753 | BY23: 44.6 | BZ23: 48.19 | CA23: 43.94 | CB23: 39.431 | CS23: 13 | CT23: Alachlor | CU23: 10 | CV23: 10.15 | CW23: 7.943 | CX23: 11.503 | CY23: 10.221 | CZ23: 10.816 | DA23: 9.274 | DB23: 10.128 | DC23: 8.979 | DD23: 8.58 | DE23: 10.255 | DF23: 11.809 | DG23: 11.401 | DH23: 10.807 | DI23: 11.93 | DJ23: 11.286 | EA23: 13 | EB23: Alachlor | EC23: 50 | ED23: 51.485 | EE23: 43.992 | EF23: 52.188 | EG23: 41.283 | EH23: 42.924 | EI23: 43.175 | EJ23: 37.948 | EK23: 53.341 | EL23: 45.456 | EM23: 51.054 | EN23: 37.294 | EO23: 39.878 | EP23: 42.642 | EQ23: 38.708 | ER23: 39.88 | FI23: 13 | FJ23: Alachlor | FK23: 10 | FL23: 9.7294 | FM23: 1.055035213 | FN23: 97.294 | FO23: 10.84378495 | FP23: uygun | FQ23: uygun | FR23: 10.3362 | FS23: 1.513747568 | FT23: 103.362 | FU23: 14.64510718 | FV23: uygun | FW23: uygun | FX23: 10.1508 | FY23: 1.352794404 | FZ23: 101.508 | GA23: 13.32697328 | GB23: uygun | GC23: uygun | GD23: -------- | GE23: -------- | GF23: -------- | GG23: -------- | GH23: uygun değil | GI23: uygun değil | GJ23: -------- | GK23: -------- | GL23: -------- | GM23: -------- | GN23: uygun değil | GO23: uygun değil | GP23: -------- | GQ23: -------- | GR23: -------- | GS23: -------- | GT23: uygun değil | GU23: uygun değil | GW23: 13 | GX23: Alachlor | GY23: 50 | GZ23: 47.9448 | HA23: 4.36935295 | HB23: 95.8896 | HC23: 9.113298939 | HD23: uygun | HE23: uygun | HF23: 47.2354 | HG23: 5.14203873 | HH23: 94.4708 | HI23: 10.88598536 | HJ23: uygun | HK23: uygun | HL23: 44.9828 | HM23: 3.760219103 | HN23: 89.9656 | HO23: 8.359237537 | HP23: uygun | HQ23: uygun | HR23: -------- | HS23: -------- | HT23: -------- | HU23: -------- | HV23: uygun değil | HW23: uygun değil | HX23: -------- | HY23: -------- | HZ23: -------- | IA23: -------- | IB23: uygun değil | IC23: uygun değil | ID23: -------- | IE23: -------- | IF23: -------- | IG23: -------- | IH23: uygun değil | II23: uygun değil | JO23: 13 | JP23: Alachlor | JQ23: 10 | JR23: 0.01640961 | JS23: 0.00375769 | JT23: 0.01115136 | JU23: 0.01352569 | JV23: 0.00334084 | JW23: 0.00286225 | JX23: 0.00643204 | JY23: 0.03381921 | JZ23: 0.01885129 | KA23: 0.035344 | KB23: 0.038416 | KC23: 0.00173889 | KD23: 0.00469225 | KE23: 0.00602176 | KF23: 0.02347024 | KV23: 0.0012730624 | KW23: 6.4e-07 | KX23: 0.0202663696 | KY23: 0.0062599744 | KZ23: 0.01119364 | LA23: 0.01814409 | LB23: 0.0071132356 | LC23: 0.00556516 | LD23: 0.0259274404 | LE23: 0.000841 | LF23: 0.0006220036 | LG23: 0.011664 | LH23: 0.00131044 | LI23: 0.01468944 | LJ23: 0.0446815044 | LZ23: 0.000225 | MA23: 0.04231249 | MB23: 0.02259009 | MC23: 0.00048841 | MD23: 0.00665856 | ME23: 0.00527076 | MF23: 0.00016384 | MG23: 0.01042441 | MH23: 0.020164 | MI23: 0.00065025 | MJ23: 0.03272481 | MK23: 0.01962801 | ML23: 0.00651249 | MM23: 0.037249 | MN23: 0.01653796 | ND23: 0.00088209 | NE23: 0.0144384256 | NF23: 0.0019149376 | NG23: 0.0303944356 | NH23: 0.0200279104 | NI23: 0.01863225 | NJ23: 0.0581002816 | NK23: 0.0044649124 | NL23: 0.0082591744 | NM23: 0.0004443664 | NN23: 0.0645769744 | NO23: 0.0409819536 | NP23: 0.0216560656 | NQ23: 0.0510037056 | NR23: 0.04096576 | OH23: 60 | OI23: 0.9877284436 | OJ23: 0.1283048741 | OL23: 13 | OM23: Alachlor | ON23: 10 | OO23: 10.411 | OP23: 9.824 | OQ23: 10.42966667 | OR23: 10.24366667 | OS23: 10.78566667 | OT23: 3 | OU23: 5 | OV23: -0.261 | OW23: -1.881 | OX23: 1.073333333 | OY23: -0.02266666667 | OZ23: 0.03033333333 | PA23: -1.137 | PB23: 0.304 | PC23: -1.450666667 | PD23: -1.663666667 | PE23: -0.5306666667 | PF23: 1.398 | PG23: 1.577 | PH23: 0.3773333333 | PI23: 1.686333333 | PJ23: 0.5003333333 | PZ23: 10.3388 | QA23: 103.388 | QB23: 0.3654216 | QC23: 18.97654 | QD23: 10 | QE23: 1.897654 | QF23: 0 | QG23: 1.897654 | QH23: 1.377553629 | QI23: 0.1332411526 | QJ23: 13.32411526 | QK23: 15 | QL23: UYGUN | QM23: UYGUN | QN23: 0.2485448665 | QP23: 13 | QQ23: Alachlor | QR23: 50 | QS23: 43.98466667 | QT23: 40.606 | QU23: 49.39033333 | QV23: 41.81566667 | QW23: 44.61933333 | QX23: 3 | QY23: 5 | QZ23: 7.500333333 | RA23: 3.386 | RB23: 2.797666667 | RC23: -0.5326666667 | RD23: -1.695333333 | RE23: -0.8096666667 | RF23: -2.658 | RG23: 3.950666667 | RH23: 3.640333333 | RI23: 6.434666667 | RJ23: -6.690666667 | RK23: -0.728 | RL23: -6.748333333 | RM23: -3.107666667 | RN23: -4.739333333 | SD23: 44.0832 | SE23: 88.1664 | SF23: 34.27157943 | SG23: 279.6439567 | SH23: 10 | SI23: 27.96439567 | SJ23: 2.102394589 | SK23: 30.06679026 | SL23: 5.483319274 | SM23: 0.1243856905 | SN23: =SM23*100 -> 12.43856905 | SO23: 15 | SP23: UYGUN | SQ23: UYGUN | SR23: 0.2166052002 | SS23: 0.1288894968
A24: 14 | B24: Aldrin | C24: GC-MS/MS | D24: 3086230 | E24: 3109966 | G24: 5690759 | H24: 5628365 | J24: 10527923 | K24: 10023621 | M24: 25041780 | N24: 18388452 | P24: 50083560 | Q24: 50095711 | S24: 100167120 | T24: 100191422 | AC24: 14 | AD24: Aldrin | AE24: 2 | AF24: 2.17 | AG24: 1.84 | AH24: 1.72 | AI24: 2.03 | AJ24: 2.25 | AK24: 2.27 | AL24: 2.09 | AM24: 1.99 | AN24: 2.54 | AO24: 2.16 | AP24: 2.14 | AQ24: 2.02 | AR24: 1.97 | AS24: 2.12 | AT24: 2.41 | BK24: 14 | BL24: Aldrin | BM24: 50 | BN24: 37.03 | BO24: 48.509 | BP24: 53.318 | BQ24: 52.398 | BR24: 43.032 | BS24: 54.106 | BT24: 53.11 | BU24: 52.938 | BV24: 53.866 | BW24: 54.321 | BX24: 49.254 | BY24: 48.305 | BZ24: 50.119 | CA24: 51.266 | CB24: 51.29 | CS24: 14 | CT24: Aldrin | CU24: 2 | CV24: 2.098 | CW24: 1.76 | CX24: 2.15 | CY24: 2.06 | CZ24: 2.04 | DA24: 2.17 | DB24: 2.13 | DC24: 2.29 | DD24: 2.16 | DE24: 2.11 | DF24: 2.13 | DG24: 1.95 | DH24: 2.29 | DI24: 2.11 | DJ24: 2.08 | EA24: 14 | EB24: Aldrin | EC24: 50 | ED24: 49.292 | EE24: 50.58 | EF24: 44.862 | EG24: 40.812 | EH24: 53.143 | EI24: 53.429 | EJ24: 42.152 | EK24: 53.716 | EL24: 54.216 | EM24: 52.344 | EN24: 51.36 | EO24: 46.37 | EP24: 49.29 | EQ24: 47.51 | ER24: 52.34 | FI24: 14 | FJ24: Aldrin | FK24: 10 | FL24: =IFERROR(AVERAGE(AF24:AJ24),"--------") -> 2.002 | FM24: =IFERROR(_xlfn.STDEV.S(AF24:AJ24),"--------") -> 0.2215174937 | FN24: 98.88 | FO24: =IFERROR(FM24/FL24*100,"--------") -> 11.06480987 | FP24: =IF(FN24<70,"uygun değil",IF(FN24>120,"uygun değil","uygun")) -> uygun | FQ24: =IF(FO24<0,"uygun değil",IF(FO24<20,"uygun","uygun değil")) -> uygun | FR24: =IFERROR(AVERAGE(AK24:AO24),"--------") -> 2.21 | FS24: =IFERROR(_xlfn.STDEV.S(AK24:AO24),"--------") -> 0.2108316864 | FT24: 102.2 | FU24: =IFERROR(FS24/FR24*100,"--------") -> 9.539895313 | FV24: =IF(FT24<70,"uygun değil",IF(FT24>120,"uygun değil","uygun")) -> uygun | FW24: uygun | FX24: =IFERROR(AVERAGE(AP24:AT24),"--------") -> 2.132 | FY24: =IFERROR(_xlfn.STDEV.S(AP24:AT24),"--------") -> 0.1704992669 | FZ24: 100 | GA24: =IFERROR(FY24/FX24*100,"--------") -> 7.997151354 | GB24: =IF(FZ24<70,"uygun değil",IF(FZ24>120,"uygun değil","uygun")) -> uygun | GC24: =IF(GA24<0,"uygun değil",IF(GA24<20,"uygun","uygun değil")) -> uygun | OO24: 2.132666667 | OP24: 1.946666667 | OQ24: 2.243333333 | OR24: 2.11 | OS24: 2.076666667 | OT24: 3 | OV24: -0.03466666667 | OW24: -0.1866666667 | OX24: -0.09333333333 | OY24: -0.05 | OZ24: -0.03666666667 | PA24: 0.03733333333 | PB24: 0.1833333333 | PC24: 0.04666666667 | PD24: 0.05 | PE24: 0.03333333333 | PF24: -0.002666666667 | PG24: 0.003333333333 | PH24: 0.04666666667 | PI24: 0 | PJ24: 0.003333333333 | PZ24: 2.101866667 | QC24: 0.09160266667 | QK24: 15 | QS24: 51.36033333 | QT24: 46.36733333 | QU24: 49.28933333 | QV24: 47.51266667 | QW24: 52.609 | QX24: 3 | QZ24: -2.068333333 | RA24: 4.212666667 | RB24: -4.427333333 | RC24: -6.700666667 | RD24: 0.534 | RE24: 2.068666667 | RF24: -4.215333333 | RG24: 4.426666667 | RH24: 6.703333333 | RI24: -0.265 | RJ24: -0.0003333333333 | RK24: 0.002666666667 | RL24: 0.0006666666667 | RM24: -0.002666666667 | RN24: -0.269 | SD24: 49.42773333 | SG24: 173.5310067 | SO24: 15
A25: 15 | B25: Amitraz | C25: GC-MS/MS | D25: 1080493 | E25: 1052418 | G25: 2145685 | H25: 2276333 | J25: 3695998 | K25: 3811834 | M25: 9757752 | N25: 10538478 | P25: 18914714 | Q25: 17808383 | S25: 37500345 | T25: 31100660 | AC25: 15 | AD25: Amitraz | AE25: 10 | AF25: 11.85 | AG25: 11.54 | AH25: 11.62 | AI25: 10.07 | AJ25: 11.5 | AK25: 11.31 | AL25: 11.99 | AM25: 10.6 | AN25: 11.42 | AO25: 11.83 | AP25: 10.771 | AQ25: 11.008 | AR25: 9.347 | AS25: 8.741 | AT25: 8.253 | BK25: 15 | BL25: Amitraz | BM25: 50 | BN25: 39.25 | BO25: 41.63 | BP25: 43.6 | BQ25: 48.9 | BR25: 45.47 | BS25: 41.45 | BT25: 44.54 | BU25: 47.15 | BV25: 43.51 | BW25: 48.49 | BX25: 49.039 | BY25: 42.492 | BZ25: 48.805 | CA25: 44.79 | CB25: 43.862 | CS25: 15 | CT25: Amitraz | CU25: 10 | CV25: 11.23 | CW25: 10.68 | CX25: 11.86 | CY25: 11.89 | CZ25: 11.68 | DA25: 11.69 | DB25: 11.87 | DC25: 11.23 | DD25: 11.54 | DE25: 11.62 | DF25: 11.529 | DG25: 10.368 | DH25: 8.991 | DI25: 10.651 | DJ25: 8.656 | EA25: 15 | EB25: Amitraz | EC25: 50 | ED25: 41.33 | EE25: 37.35 | EF25: 42.89 | EG25: 40.47 | EH25: 40.94 | EI25: 40.06 | EJ25: 40.45 | EK25: 36.73 | EL25: 36.44 | EM25: 37.62 | EN25: 48.127 | EO25: 46.03 | EP25: 56.362 | EQ25: 55.421 | ER25: 37.731 | FI25: 15 | FJ25: Amitraz | FK25: 10 | FL25: 11.316 | FM25: 0.709598478 | FN25: 113.16 | FO25: 6.270753606 | FP25: uygun | FQ25: uygun | FR25: 11.43 | FS25: 0.5424481542 | FT25: 114.3 | FU25: 4.745828121 | FV25: uygun | FW25: uygun | FX25: 9.624 | FY25: 1.22138487 | FZ25: 96.24 | GA25: 12.69103148 | GB25: uygun | GC25: uygun | GD25: -------- | GE25: -------- | GF25: -------- | GG25: -------- | GH25: uygun değil | GI25: uygun değil | GJ25: -------- | GK25: -------- | GL25: -------- | GM25: -------- | GN25: uygun değil | GO25: uygun değil | GP25: -------- | GQ25: -------- | GR25: -------- | GS25: -------- | GT25: uygun değil | GU25: uygun değil | GW25: 15 | GX25: Amitraz | GY25: 50 | GZ25: 43.77 | HA25: 3.682587406 | HB25: 87.54 | HC25: 8.413496472 | HD25: uygun | HE25: uygun | HF25: 45.028 | HG25: 2.821031726 | HH25: 90.056 | HI25: 6.265061131 | HJ25: uygun | HK25: uygun | HL25: 45.7976 | HM25: 2.968161266 | HN25: 91.5952 | HO25: 6.481041072 | HP25: uygun | HQ25: uygun | HR25: -------- | HS25: -------- | HT25: -------- | HU25: -------- | HV25: uygun değil | HW25: uygun değil | HX25: -------- | HY25: -------- | HZ25: -------- | IA25: -------- | IB25: uygun değil | IC25: uygun değil | ID25: -------- | IE25: -------- | IF25: -------- | IG25: -------- | IH25: uygun değil | II25: uygun değil | JO25: 15 | JP25: Amitraz | JQ25: 10 | JR25: 0.034225 | JS25: 0.023716 | JT25: 0.026244 | JU25: 4.9e-05 | JV25: 0.0225 | JW25: 0.017161 | JX25: 0.039601 | JY25: 0.0036 | JZ25: 0.020164 | KA25: 0.033489 | KB25: 0.00594441 | KC25: 0.01016064 | KD25: 0.00426409 | KE25: 0.01585081 | KF25: 0.03052009 | KV25: 0.046225 | KW25: 0.02802276 | KX25: 0.016384 | KY25: 0.000484 | KZ25: 0.00820836 | LA25: 0.029241 | LB25: 0.01192464 | LC25: 0.003249 | LD25: 0.01684804 | LE25: 0.00091204 | LF25: 0.0003694084 | LG25: 0.0225480256 | LH25: 0.00057121 | LI25: 0.01085764 | LJ25: 0.0150700176 | LZ25: 0.015129 | MA25: 0.004624 | MB25: 0.034596 | MC25: 0.035721 | MD25: 0.028224 | ME25: 0.028561 | MF25: 0.034969 | MG25: 0.015129 | MH25: 0.023716 | MI25: 0.026244 | MJ25: 0.02337841 | MK25: 0.00135424 | ML25: 0.01018081 | MM25: 0.00423801 | MN25: 0.01806336 | ND25: 0.03006756 | NE25: 0.064009 | NF25: 0.02022084 | NG25: 0.03632836 | NH25: 0.03283344 | NI25: 0.03952144 | NJ25: 0.036481 | NK25: 0.07043716 | NL25: 0.07354944 | NM25: 0.06130576 | NN25: 0.0014032516 | NO25: 0.00630436 | NP25: 0.0161900176 | NQ25: 0.0117548964 | NR25: 0.0602113444 | OH25: 60 | OI25: 1.363149882 | OJ25: 0.1507287786 | OL25: 15 | OM25: Amitraz | ON25: 10 | OO25: 11.483 | OP25: 10.97266667 | OQ25: 10.69366667 | OR25: 11.36033333 | OS25: 10.652 | OT25: 3 | OU25: 5 | OV25: -0.253 | OW25: -0.2926666667 | OX25: 1.166333333 | OY25: 0.5296666667 | OZ25: 1.028 | PA25: 0.207 | PB25: 0.8973333333 | PC25: 0.5363333333 | PD25: 0.1796666667 | PE25: 0.968 | PF25: 0.046 | PG25: -0.6046666667 | PH25: -1.702666667 | PI25: -0.7093333333 | PJ25: -1.996 | PZ25: 11.03233333 | QA25: 110.3233333 | QB25: 0.4301948333 | QC25: 12.706322 | QD25: 10 | QE25: 1.2706322 | QF25: 0 | QG25: 1.2706322 | QH25: 1.127223225 | QI25: 0.1021745075 | QJ25: 10.21745075 | QK25: 15 | QL25: UYGUN | QM25: UYGUN | QN25: 0.1461548199 | QP25: 15 | QQ25: Amitraz | QR25: 50 | QS25: 43.17233333 | QT25: 41.27666667 | QU25: 45.32733333 | QV25: 44.11033333 | QW25: 38.76366667 | QX25: 3 | QY25: 5 | QZ25: -1.842333333 | RA25: -3.926666667 | RB25: -2.437333333 | RC25: -3.640333333 | RD25: 2.176333333 | RE25: -3.112333333 | RF25: -0.8266666667 | RG25: -8.597333333 | RH25: -7.670333333 | RI25: -1.143666667 | RJ25: 4.954666667 | RK25: 4.753333333 | RL25: 11.03466667 | RM25: 11.31066667 | RN25: -1.032666667 | SD25: 42.53006667 | SE25: 85.06013333 | SF25: 19.8684229 | SG25: 485.0724233 | SH25: 10 | SI25: 48.50724233 | SJ25: 0 | SK25: 48.50724233 | SL25: 6.964714088 | SM25: 0.1637597736 | SN25: =SM25*100 -> 16.37597736 | SO25: 15 | SP25: UYGUN | SQ25: UYGUN | SR25: 0.3754416883 | SS25: 0.1364860679
A26: 16 | B26: Atrazine | C26: GC-MS/MS | D26: 794359 | E26: 769373 | G26: 1553398 | H26: 2013002 | J26: 3034735 | K26: 3457816 | M26: 9542318 | N26: 9301869 | P26: 19123837 | Q26: 17588147 | S26: 38597978 | T26: 34073120 | AC26: 16 | AD26: Atrazine | AE26: 10 | AF26: 9.548 | AG26: 11.113 | AH26: 11.894 | AI26: 8.581 | AJ26: 9.842 | AK26: 9.895 | AL26: 10.966 | AM26: 9.358 | AN26: 11.636 | AO26: 11.414 | AP26: 11.337 | AQ26: 10.653 | AR26: 10.627 | AS26: 9.55 | AT26: 8.533 | BK26: 16 | BL26: Atrazine | BM26: 50 | BN26: 44.345 | BO26: 46.989 | BP26: 38.586 | BQ26: 48.855 | BR26: 43.603 | BS26: 39.776 | BT26: 43.567 | BU26: 51.131 | BV26: 39.248 | BW26: 47.631 | BX26: 43.66 | BY26: 42.572 | BZ26: 46.421 | CA26: 41.394 | CB26: 36.31 | CS26: 16 | CT26: Atrazine | CU26: 10 | CV26: 10.224 | CW26: 8.403 | CX26: 11.752 | CY26: 10.903 | CZ26: 10.821 | DA26: 9.444 | DB26: 11.318 | DC26: 9.385 | DD26: 9.384 | DE26: 10.874 | DF26: 11.58 | DG26: 11.51 | DH26: 10.52 | DI26: 10.56 | DJ26: 9.35 | EA26: 16 | EB26: Atrazine | EC26: 50 | ED26: 45.834 | EE26: 40.268 | EF26: 45.9 | EG26: 40.095 | EH26: 44.283 | EI26: 43.045 | EJ26: 36.677 | EK26: 46.465 | EL26: 40.74 | EM26: 46.094 | EN26: 55.102 | EO26: 51.277 | EP26: 57.341 | EQ26: 58.659 | ER26: 43.948 | FI26: 16 | FJ26: Atrazine | FK26: 10 | FL26: 10.1956 | FM26: 1.31125295 | FN26: 101.956 | FO26: 12.86096895 | FP26: uygun | FQ26: uygun | FR26: 10.6538 | FS26: 0.9867832589 | FT26: 106.538 | FU26: 9.26226566 | FV26: uygun | FW26: uygun | FX26: 10.14 | FY26: 1.10268944 | FZ26: 101.4 | GA26: 10.8746493 | GB26: uygun | GC26: uygun | GD26: -------- | GE26: -------- | GF26: -------- | GG26: -------- | GH26: uygun değil | GI26: uygun değil | GJ26: -------- | GK26: -------- | GL26: -------- | GM26: -------- | GN26: uygun değil | GO26: uygun değil | GP26: -------- | GQ26: -------- | GR26: -------- | GS26: -------- | GT26: uygun değil | GU26: uygun değil | GW26: 16 | GX26: Atrazine | GY26: 50 | GZ26: 44.4756 | HA26: 3.903914676 | HB26: 88.9512 | HC26: 8.777654886 | HD26: uygun | HE26: uygun | HF26: 44.2706 | HG26: 5.105888003 | HH26: 88.5412 | HI26: 11.53336075 | HJ26: uygun | HK26: uygun | HL26: 42.0714 | HM26: 3.719740287 | HN26: 84.1428 | HO26: 8.841493952 | HP26: uygun | HQ26: uygun | HR26: -------- | HS26: -------- | HT26: -------- | HU26: -------- | HV26: uygun değil | HW26: uygun değil | HX26: -------- | HY26: -------- | HZ26: -------- | IA26: -------- | IB26: uygun değil | IC26: uygun değil | ID26: -------- | IE26: -------- | IF26: -------- | IG26: -------- | IH26: uygun değil | II26: uygun değil | JO26: 16 | JP26: Atrazine | JQ26: 10 | JR26: 0.00204304 | JS26: 0.01238769 | JT26: 0.03587236 | JU26: 0.02013561 | JV26: 0.00024964 | JW26: 0.00011025 | JX26: 0.00933156 | JY26: 0.00412164 | JZ26: 0.02676496 | KA26: 0.01999396 | KB26: 0.01787569 | KC26: 0.00426409 | KD26: 0.00393129 | KE26: 0.002025 | KF26: 0.02152089 | KV26: 0.01279161 | KW26: 0.0036264484 | KX26: 0.0521117584 | KY26: 0.00052441 | KZ26: 0.0163686436 | LA26: 0.0418120704 | LB26: 0.0165533956 | LC26: 0.0005116644 | LD26: 0.0462422016 | LE26: 0.0022448644 | LF26: 0.01607824 | LG26: 0.0220700736 | LH26: 0.0051236964 | LI26: 0.0296252944 | LJ26: 0.07496644 | LZ26: 0.00050176 | MA26: 0.02550409 | MB26: 0.03069504 | MC26: 0.00815409 | MD26: 0.00674041 | ME26: 0.00309136 | MF26: 0.01737124 | MG26: 0.00378225 | MH26: 0.00379456 | MI26: 0.00763876 | MJ26: 0.024964 | MK26: 0.022801 | ML26: 0.002704 | MM26: 0.003136 | MN26: 0.004225 | ND26: 0.0069422224 | NE26: 0.0378847296 | NF26: 0.006724 | NG26: 0.03924361 | NH26: 0.0130736356 | NI26: 0.01934881 | NJ26: 0.0710009316 | NK26: 0.00499849 | NL26: 0.03429904 | NM26: 0.0061027344 | NN26: 0.0104121616 | NO26: 0.0006522916 | NP26: 0.0215561124 | NQ26: 0.0299913124 | NR26: 0.0146506816 | OH26: 60 | OI26: 1.003262804 | OJ26: 0.1293098865 | OL26: 16 | OM26: Atrazine | ON26: 10 | OO26: 10.416 | OP26: 10.41033333 | OQ26: 10.55233333 | OR26: 10.28233333 | OS26: 10.34833333 | OT26: 3 | OU26: 5 | OV26: -0.192 | OW26: -2.007333333 | OX26: 1.199666667 | OY26: 0.6206666667 | OZ26: 0.4726666667 | PA26: -0.972 | PB26: 0.9076666667 | PC26: -1.167333333 | PD26: -0.8983333333 | PE26: 0.5256666667 | PF26: 1.164 | PG26: 1.099666667 | PH26: -0.03233333333 | PI26: 0.2776666667 | PJ26: -0.9983333333 | PZ26: 10.40186667 | QA26: 104.0186667 | QB26: 0.03004926667 | QC26: 13.96770667 | QD26: 10 | QE26: 1.396770667 | QF26: 0 | QG26: 1.396770667 | QH26: 1.181850526 | QI26: 0.1136190805 | QJ26: 11.36190805 | QK26: 15 | QL26: UYGUN | QM26: UYGUN | QN26: 0.1807301364 | QP26: 16 | QQ26: Atrazine | QR26: 50 | QS26: 47.99366667 | QT26: 42.74066667 | QU26: 49.902 | QV26: 46.498 | QW26: 44.775 | QX26: 3 | QY26: 5 | QZ26: -2.159666667 | RA26: -2.472666667 | RB26: -4.002 | RC26: -6.403 | RD26: -0.492 | RE26: -4.948666667 | RF26: -6.063666667 | RG26: -3.437 | RH26: -5.758 | RI26: 1.319 | RJ26: 7.108333333 | RK26: 8.536333333 | RL26: 7.439 | RM26: 12.161 | RN26: -0.827 | SD26: 46.38186667 | SE26: 92.76373333 | SF26: 23.1323121 | SG26: 503.3093273 | SH26: 10 | SI26: 50.33093273 | SJ26: 0 | SK26: 50.33093273 | SL26: 7.094429698 | SM26: 0.152956968 | SN26: 14 | SO26: 15 | SP26: UYGUN | SQ26: UYGUN | SR26: 0.327541677 | SS26: 0.1347314543
A27: 17 | B27: Benfluralin | C27: GC-MS/MS | D27: 6880763 | E27: 6811236 | G27: 15772752 | H27: 15504586 | J27: 30189636 | K27: 30769193 | M27: 74399362 | N27: 78134709 | P27: 127636557 | Q27: 117984325 | S27: 216707997 | T27: 217256503 | AC27: 17 | AD27: Benfluralin | AE27: 10 | AF27: 10.376 | AG27: 11.686 | AH27: 11.593 | AI27: 10.579 | AJ27: 10.619 | AK27: 11.241 | AL27: 11.814 | AM27: 10.255 | AN27: 11.658 | AO27: 11.522 | AP27: 11.874 | AQ27: 9.923 | AR27: 11.095 | AS27: 10.362 | AT27: 9.734 | BK27: 17 | BL27: Benfluralin | BM27: 50 | BN27: 43.512 | BO27: 42.158 | BP27: 40.031 | BQ27: 43.342 | BR27: 38.399 | BS27: 41.32 | BT27: 42.299 | BU27: 44.777 | BV27: 35.378 | BW27: 44.282 | BX27: 42.19 | BY27: 41.093 | BZ27: 43.665 | CA27: 42.788 | CB27: 37.999 | CS27: 17 | CT27: Benfluralin | CU27: 10 | CV27: 11.328 | CW27: 10.021 | CX27: 11.44 | CY27: 11.501 | CZ27: 11.805 | DA27: 10.87 | DB27: 11.875 | DC27: 10.762 | DD27: 10.512 | DE27: 11.223 | DF27: 11.817 | DG27: 9.695 | DH27: 10.348 | DI27: 11.029 | DJ27: 10.732 | EA27: 17 | EB27: Benfluralin | EC27: 50 | ED27: 44.808 | EE27: 38.136 | EF27: 44.491 | EG27: 39.438 | EH27: 37.134 | EI27: 40.511 | EJ27: 37.378 | EK27: 44.491 | EL27: 40.585 | EM27: 43.994 | EN27: 38.407 | EO27: 41.159 | EP27: 48.425 | EQ27: 43.878 | ER27: 57.04 | FI27: 17 | FJ27: Benfluralin | FK27: 10 | FL27: 10.9706 | FM27: 0.6184054495 | FN27: 109.706 | FO27: 5.636933709 | FP27: uygun | FQ27: uygun | FR27: 11.298 | FS27: 0.6199052347 | FT27: 112.98 | FU27: 5.486858158 | FV27: uygun | FW27: uygun | FX27: 10.5976 | FY27: 0.8850142937 | FZ27: 105.976 | GA27: 8.351082261 | GB27: uygun | GC27: uygun | GD27: -------- | GE27: -------- | GF27: -------- | GG27: -------- | GH27: uygun değil | GI27: uygun değil | GJ27: -------- | GK27: -------- | GL27: -------- | GM27: -------- | GN27: uygun değil | GO27: uygun değil | GP27: -------- | GQ27: -------- | GR27: -------- | GS27: -------- | GT27: uygun değil | GU27: uygun değil | GW27: 17 | GX27: Benfluralin | GY27: 50 | GZ27: 41.4884 | HA27: 2.21627848 | HB27: 82.9768 | HC27: 5.341923236 | HD27: uygun | HE27: uygun | HF27: 41.6112 | HG27: 3.760522264 | HH27: 83.2224 | HI27: 9.037283867 | HJ27: uygun | HK27: uygun | HL27: 41.547 | HM27: 2.19282204 | HN27: 83.094 | HO27: 5.277931115 | HP27: uygun | HQ27: uygun | HR27: -------- | HS27: -------- | HT27: -------- | HU27: -------- | HV27: uygun değil | HW27: uygun değil | HX27: -------- | HY27: -------- | HZ27: -------- | IA27: -------- | IB27: uygun değil | IC27: uygun değil | ID27: -------- | IE27: -------- | IF27: -------- | IG27: -------- | IH27: uygun değil | II27: uygun değil | JO27: 17 | JP27: Benfluralin | JQ27: 10 | JR27: 0.00141376 | JS27: 0.02842596 | JT27: 0.02537649 | JU27: 0.00335241 | JV27: 0.00383161 | JW27: 0.01540081 | JX27: 0.03290596 | JY27: 0.00065025 | JZ27: 0.02748964 | KA27: 0.02316484 | KB27: 0.03511876 | KC27: 5.929e-05 | KD27: 0.01199025 | KE27: 0.00131044 | KF27: 0.00070756 | KV27: 0.0168376576 | KW27: 0.0245987856 | KX27: 0.0397523844 | KY27: 0.0177315856 | KZ27: 0.0538332804 | LA27: 0.03013696 | LB27: 0.0237221604 | LC27: 0.0109118916 | LD27: 0.0855211536 | LE27: 0.0130782096 | LF27: 0.02439844 | LG27: 0.0317338596 | LH27: 0.01605289 | LI27: 0.0208051776 | LJ27: 0.0576096004 | LZ27: 0.01763584 | MA27: 4.41e-06 | MB27: 0.020736 | MC27: 0.02253001 | MD27: 0.03258025 | ME27: 0.007569 | MF27: 0.03515625 | MG27: 0.00580644 | MH27: 0.00262144 | MI27: 0.01495729 | MJ27: 0.03301489 | MK27: 0.00093025 | ML27: 0.00121104 | MM27: 0.01058841 | MN27: 0.00535824 | ND27: 0.0107827456 | NE27: 0.0563017984 | NF27: 0.0121396324 | NG27: 0.0446223376 | NH27: 0.0662135824 | NI27: 0.0360164484 | NJ27: 0.0637259536 | NK27: 0.0121396324 | NL27: 0.03545689 | NM27: 0.0144288144 | NN27: 0.0537590596 | NO27: 0.0312653124 | NP27: 0.00099225 | NQ27: 0.0149915536 | NR27: 0.01982464 | OH27: 60 | OI27: 1.361282477 | OJ27: 0.1506255001 | OL27: 17 | OM27: Benfluralin | ON27: 10 | OO27: 11.33833333 | OP27: 10.53033333 | OQ27: 10.85 | OR27: 11.014 | OS27: 11.25333333 | OT27: 3 | OU27: 5 | OV27: -0.01033333333 | OW27: -0.5093333333 | OX27: 0.59 | OY27: 0.487 | OZ27: 0.5516666667 | PA27: -0.4683333333 | PB27: 1.344666667 | PC27: -0.088 | PD27: -0.502 | PE27: -0.03033333333 | PF27: 0.4786666667 | PG27: -0.8353333333 | PH27: -0.502 | PI27: 0.015 | PJ27: -0.5213333333 | PZ27: 10.9972 | QA27: 109.972 | QB27: 0.3164181 | QC27: 4.888186 | QD27: 10 | QE27: 0.4888186 | QF27: 0 | QG27: 0.4888186 | QH27: 0.6991556336 | QI27: 0.06357578598 | QJ27: 6.357578598 | QK27: 15 | QL27: UYGUN | QM27: UYGUN | QN27: 0.05658632789 | QP27: 17 | QQ27: Benfluralin | QR27: 50 | QS27: 41.242 | QT27: 38.891 | QU27: 45.80233333 | QV27: 41.30033333 | QW27: 46.056 | QX27: 3 | QY27: 5 | QZ27: 3.566 | RA27: -0.755 | RB27: -1.311333333 | RC27: -1.862333333 | RD27: -8.922 | RE27: -0.731 | RF27: -1.513 | RG27: -1.311333333 | RH27: -0.7153333333 | RI27: -2.062 | RJ27: -2.835 | RK27: 2.268 | RL27: 2.622666667 | RM27: 2.577666667 | RN27: 10.984 | SD27: 42.65833333 | SE27: 85.31666667 | SF27: 29.6038795 | SG27: 254.7350673 | SH27: 10 | SI27: 25.47350673 | SJ27: 1.376790922 | SK27: 26.85029766 | SL27: 5.181727285 | SM27: 0.1214704579 | SN27: 11.24 | SO27: 15 | SP27: UYGUN | SQ27: UYGUN | SR27: 0.2065710101 | SS27: 0.09694573924
A28: 18 | B28: Benfuresate | C28: GC-MS/MS | D28: 2071061 | E28: 2110690 | G28: 5049073 | H28: 6270304 | J28: 9679588 | K28: 10042096 | M28: 26604301 | N28: 28705170 | P28: 54789127 | Q28: 53318119 | S28: 104990849 | T28: 107767482 | AC28: 18 | AD28: Benfuresate | AE28: 10 | AF28: 8.994 | AG28: 10.584 | AH28: 10.828 | AI28: 8.715 | AJ28: 10.133 | AK28: 9.294 | AL28: 11.805 | AM28: 8.117 | AN28: 11.581 | AO28: 11 | AP28: 10.798 | AQ28: 10.958 | AR28: 10.699 | AS28: 9.602 | AT28: 9.161 | BK28: 18 | BL28: Benfuresate | BM28: 50 | BN28: 45.575 | BO28: 48.432 | BP28: 41.871 | BQ28: 55.085 | BR28: 44.218 | BS28: 42.597 | BT28: 42.417 | BU28: 51.247 | BV28: 43.712 | BW28: 49.192 | BX28: 48.235 | BY28: 45.265 | BZ28: 46.194 | CA28: 42.894 | CB28: 36.593 | CS28: 18 | CT28: Benfuresate | CU28: 10 | CV28: 9.346 | CW28: 8.347 | CX28: 11.512 | CY28: 9.576 | CZ28: 10.657 | DA28: 8.231 | DB28: 10.415 | DC28: 9.36 | DD28: 9.901 | DE28: 10.932 | DF28: 11.132 | DG28: 11.122 | DH28: 9.717 | DI28: 10.226 | DJ28: 9.282 | EA28: 18 | EB28: Benfuresate | EC28: 50 | ED28: 49.363 | EE28: 42.759 | EF28: 49.809 | EG28: 41.964 | EH28: 45.699 | EI28: 42.469 | EJ28: 41.297 | EK28: 52.377 | EL28: 41.042 | EM28: 49.982 | EN28: 48.59 | EO28: 46.636 | EP28: 52.989 | EQ28: 50.027 | ER28: 36.59 | FI28: 18 | FJ28: Benfuresate | FK28: 10 | FL28: 9.8508 | FM28: 0.9481939148 | FN28: 98.508 | FO28: 9.625552389 | FP28: uygun | FQ28: uygun | FR28: 10.3594 | FS28: 1.593413725 | FT28: 103.594 | FU28: 15.38133217 | FV28: uygun | FW28: uygun | FX28: 10.2436 | FY28: 0.8075873327 | FZ28: 102.436 | GA28: 7.88382339 | GB28: uygun | GC28: uygun | GD28: -------- | GE28: -------- | GF28: -------- | GG28: -------- | GH28: uygun değil | GI28: uygun değil | GJ28: -------- | GK28: -------- | GL28: -------- | GM28: -------- | GN28: uygun değil | GO28: uygun değil | GP28: -------- | GQ28: -------- | GR28: -------- | GS28: -------- | GT28: uygun değil | GU28: uygun değil | GW28: 18 | GX28: Benfuresate | GY28: 50 | GZ28: 47.0362 | HA28: 5.086454728 | HB28: 94.0724 | HC28: 10.81391509 | HD28: uygun | HE28: uygun | HF28: 45.833 | HG28: 4.099807008 | HH28: 91.666 | HI28: 8.945098527 | HJ28: uygun | HK28: uygun | HL28: 43.8362 | HM28: 4.480564105 | HN28: 87.6724 | HO28: 10.2211508 | HP28: uygun | HQ28: uygun | HR28: -------- | HS28: -------- | HT28: -------- | HU28: -------- | HV28: uygun değil | HW28: uygun değil | HX28: -------- | HY28: -------- | HZ28: -------- | IA28: -------- | IB28: uygun değil | IC28: uygun değil | ID28: -------- | IE28: -------- | IF28: -------- | IG28: -------- | IH28: uygun değil | II28: uygun değil | JO28: 18 | JP28: Benfuresate | JQ28: 10 | JR28: 0.01012036 | JS28: 0.00341056 | JT28: 0.00685584 | JU28: 0.01651225 | JV28: 0.00017689 | JW28: 0.00498436 | JX28: 0.03258025 | JY28: 0.03545689 | JZ28: 0.02499561 | KA28: 0.01 | KB28: 0.00636804 | KC28: 0.00917764 | KD28: 0.00488601 | KE28: 0.00158404 | KF28: 0.00703921 | KV28: 0.00783225 | KW28: 0.0009834496 | KX28: 0.0264322564 | KY28: 0.01034289 | KZ28: 0.0133726096 | LA28: 0.0219217636 | LB28: 0.0230007556 | LC28: 0.0006220036 | LD28: 0.0158155776 | LE28: 0.0002611456 | LF28: 0.00124609 | LG28: 0.00896809 | LH28: 0.0057942544 | LI28: 0.0201980944 | LJ28: 0.0718990596 | LZ28: 0.00427716 | MA28: 0.02732409 | MB28: 0.02286144 | MC28: 0.00179776 | MD28: 0.00431649 | ME28: 0.03129361 | MF28: 0.00172225 | MG28: 0.004096 | MH28: 9.801e-05 | MI28: 0.00868624 | MJ28: 0.01281424 | MK28: 0.01258884 | ML28: 0.00080089 | MM28: 0.00051076 | MN28: 0.00515524 | ND28: 0.0001623076 | NE28: 0.0209728324 | NF28: 1.45924e-05 | NG28: 0.0258309184 | NH28: 0.0073994404 | NI28: 0.0226863844 | NJ28: 0.0302968836 | NK28: 0.0022600516 | NL28: 0.0320983056 | NM28: 1.296e-07 | NN28: 0.00079524 | NO28: 0.0045265984 | NP28: 0.0035736484 | NQ28: 2.916e-07 | NR28: 0.07193124 | OH28: 60 | OI28: 0.7637301244 | OJ28: 0.1128221406 | OL28: 18 | OM28: Benfuresate | ON28: 10 | OO28: 9.569666667 | OP28: 9.961333333 | OQ28: 10.19633333 | OR28: 9.901 | OS28: 10.29033333 | OT28: 3 | OU28: 5 | OV28: -0.2236666667 | OW28: -1.614333333 | OX28: 1.315666667 | OY28: -0.325 | OZ28: 0.3666666667 | PA28: -1.338666667 | PB28: 0.4536666667 | PC28: -0.8363333333 | PD28: -1.776356839e-15 | PE28: 0.6416666667 | PF28: 1.562333333 | PG28: 1.160666667 | PH28: -0.4793333333 | PI28: 0.325 | PJ28: -1.008333333 | PZ28: 9.983733333 | QA28: 99.83733333 | QB28: 0.2385000667 | QC28: 12.87633267 | QD28: 10 | QE28: 1.287633267 | QF28: 0 | QG28: 1.287633267 | QH28: 1.134739295 | QI28: 0.1136588145 | QJ28: 11.36588145 | QK28: 15 | QL28: UYGUN | QM28: UYGUN | QN28: 0.1808565655 | QP28: 18 | QQ28: Benfuresate | QR28: 50 | QS28: 46.80733333 | QT28: 43.564 | QU28: 51.725 | QV28: 44.34433333 | QW28: 44.09033333 | QX28: 3 | QY28: 5 | QZ28: 2.555666667 | RA28: -0.805 | RB28: -1.916 | RC28: -2.380333333 | RD28: 1.608666667 | RE28: -4.338333333 | RF28: -2.267 | RG28: 0.652 | RH28: -3.302333333 | RI28: 5.891666667 | RJ28: 1.782666667 | RK28: 3.072 | RL28: 1.264 | RM28: 5.682666667 | RN28: -7.500333333 | SD28: 46.1062 | SE28: 92.2124 | SF28: 34.2698811 | SG28: 191.86746 | SH28: 10 | SI28: 19.186746 | SJ28: 5.0277117 | SK28: 24.2144577 | SL28: 4.920818804 | SM28: 0.1067279195 | SN28: 11 | SO28: 15 | SP28: UYGUN | SQ28: UYGUN | SR28: 0.1594718833 | SS28: 0.1102478456
A29: 19 | B29: Bentazone-Methyl | C29: GC-MS/MS | D29: 1429452 | E29: 1894598 | G29: 3704228 | H29: 3912813 | J29: 8244598 | K29: 7919661 | M29: 24866699 | N29: 28329613 | P29: 46852343 | Q29: 49119078 | S29: 111276039 | T29: 111549621 | AC29: 19 | AD29: Bentazone-Methyl | AE29: 10 | AF29: 9.32 | AG29: 11.483 | AH29: 11.706 | AI29: 8.651 | AJ29: 9.507 | AK29: 10.661 | AL29: 11.808 | AM29: 8.774 | AN29: 11.642 | AO29: 11.657 | AP29: 11.472 | AQ29: 10.693 | AR29: 10.202 | AS29: 9.001 | AT29: 8.125 | BK29: 19 | BL29: Bentazone-methyl | BM29: 50 | BN29: 45.792 | BO29: 47.436 | BP29: 40.397 | BQ29: 51.465 | BR29: 42.476 | BS29: 41.929 | BT29: 44.496 | BU29: 51.222 | BV29: 41.71 | BW29: 49.14 | BX29: 48.679 | BY29: 46.319 | BZ29: 47.601 | CA29: 45.006 | CB29: 38.84 | CS29: 19 | CT29: Bentazone-Methyl | CU29: 10 | CV29: 10.25 | CW29: 8.994 | CX29: 11.156 | CY29: 11.683 | CZ29: 11.103 | DA29: 10.571 | DB29: 10.888 | DC29: 9.217 | DD29: 9.725 | DE29: 11.282 | DF29: 11.533 | DG29: 11.423 | DH29: 9.352 | DI29: 11.185 | DJ29: 10.412 | EA29: 19 | EB29: Bentazone-Methyl | EC29: 50 | ED29: 47.646 | EE29: 40.441 | EF29: 47.846 | EG29: 40.455 | EH29: 43.561 | EI29: 42.201 | EJ29: 38.149 | EK29: 48.427 | EL29: 41.666 | EM29: 49.835 | EN29: 48.459 | EO29: 45.529 | EP29: 51.154 | EQ29: 51.882 | ER29: 37.099 | FI29: 19 | FJ29: Bentazone-Methyl | FK29: 10 | FL29: 10.1334 | FM29: 1.373498926 | FN29: 101.334 | FO29: 13.55417655 | FP29: uygun | FQ29: uygun | FR29: 10.9084 | FS29: 1.277176691 | FT29: 109.084 | FU29: 11.70819452 | FV29: uygun | FW29: uygun | FX29: 9.8986 | FY29: 1.33697917 | FZ29: 98.986 | GA29: 13.50675014 | GB29: uygun | GC29: uygun | GD29: -------- | GE29: -------- | GF29: -------- | GG29: -------- | GH29: uygun değil | GI29: uygun değil | GJ29: -------- | GK29: -------- | GL29: -------- | GM29: -------- | GN29: uygun değil | GO29: uygun değil | GP29: -------- | GQ29: -------- | GR29: -------- | GS29: -------- | GT29: uygun değil | GU29: uygun değil | GW29: 19 | GX29: Bentazone-Methyl | GY29: 50 | GZ29: 45.5132 | HA29: 4.318532702 | HB29: 91.0264 | HC29: 9.488527948 | HD29: uygun | HE29: uygun | HF29: 45.6994 | HG29: 4.298727695 | HH29: 91.3988 | HI29: 9.406529835 | HJ29: uygun | HK29: uygun | HL29: 45.289 | HM29: 3.85901652 | HN29: 90.578 | HO29: 8.52086935 | HP29: uygun | HQ29: uygun | HR29: -------- | HS29: -------- | HT29: -------- | HU29: -------- | HV29: uygun değil | HW29: uygun değil | HX29: -------- | HY29: -------- | HZ29: -------- | IA29: -------- | IB29: uygun değil | IC29: uygun değil | ID29: -------- | IE29: -------- | IF29: -------- | IG29: -------- | IH29: uygun değil | II29: uygun değil | JO29: 19 | JP29: Bentazone-Methyl | JQ29: 10 | JR29: 0.004624 | JS29: 0.02199289 | JT29: 0.02910436 | JU29: 0.01819801 | JV29: 0.00243049 | JW29: 0.00436921 | JX29: 0.03268864 | JY29: 0.01503076 | JZ29: 0.02696164 | KA29: 0.02745649 | KB29: 0.02166784 | KC29: 0.00480249 | KD29: 0.00040804 | KE29: 0.00998001 | KF29: 0.03515625 | KV29: 0.0070829056 | KW29: 0.0026296384 | KX29: 0.0368870436 | KY29: 0.00085849 | KZ29: 0.0226442304 | LA29: 0.0260564164 | LB29: 0.0121176064 | LC29: 0.0005973136 | LD29: 0.02748964 | LE29: 0.00029584 | LF29: 0.0006980164 | LG29: 0.0054199044 | LH29: 0.0023020804 | LI29: 0.0099760144 | LJ29: 0.04981824 | LZ29: 0.000625 | MA29: 0.01012036 | MB29: 0.01336336 | MC29: 0.02832489 | MD29: 0.01216609 | ME29: 0.00326041 | MF29: 0.00788544 | MG29: 0.00613089 | MH29: 0.00075625 | MI29: 0.01643524 | MJ29: 0.02350089 | MK29: 0.02024929 | ML29: 0.00419904 | MM29: 0.01404225 | MN29: 0.00169744 | ND29: 0.0022165264 | NE29: 0.0365497924 | NF29: 0.0018558864 | NG29: 0.03644281 | NH29: 0.0165842884 | NI29: 0.0243297604 | NJ29: 0.0561784804 | NK29: 0.0009897316 | NL29: 0.0277822224 | NM29: 1.089e-05 | NN29: 0.0009498724 | NO29: 0.0079959364 | NP29: 0.0005326864 | NQ29: 0.0014167696 | NR29: 0.0665743204 | OH29: 60 | OI29: 0.9029113136 | OJ29: 0.122672417 | OL29: 19 | OM29: Bentazone-Methyl | ON29: 10 | OO29: 10.78466667 | OP29: 10.435 | OQ29: 9.908333333 | OR29: 10.86433333 | OS29: 10.93233333 | OT29: 3 | OU29: 5 | OV29: -0.5346666667 | OW29: -1.441 | OX29: 1.247666667 | OY29: 0.8186666667 | OZ29: 0.1706666667 | PA29: -0.2136666667 | PB29: 0.453 | PC29: -0.6913333333 | PD29: -1.139333333 | PE29: 0.3496666667 | PF29: 0.7483333333 | PG29: 0.988 | PH29: -0.5563333333 | PI29: 0.3206666667 | PJ29: -0.5203333333 | PZ29: 10.58493333 | QA29: 105.8493333 | QB29: 0.5391840667 | QC29: 8.986742667 | QD29: 10 | QE29: 0.8986742667 | QF29: 0 | QG29: 0.8986742667 | QH29: 0.9479843177 | QI29: 0.08955978161 | QJ29: 8.955978161 | QK29: 15 | QL29: UYGUN | QM29: UYGUN | QN29: 0.1122933628 | QP29: 19 | QQ29: Bentazone-Methyl | QR29: 50 | QS29: 46.102 | QT29: 41.373 | QU29: 49.14233333 | QV29: 44.66766667 | QW29: 43.49833333 | QX29: 3 | QY29: 5 | QZ29: 1.544 | RA29: -0.932 | RB29: -1.296333333 | RC29: -4.212666667 | RD29: 0.06266666667 | RE29: -3.901 | RF29: -3.224 | RG29: -0.7153333333 | RH29: -3.001666667 | RI29: 6.336666667 | RJ29: 2.357 | RK29: 4.156 | RL29: 2.011666667 | RM29: 7.214333333 | RN29: -6.399333333 | SD29: 44.95666667 | SE29: 89.91333333 | SF29: 25.41338833 | SG29: 217.843214 | SH29: 10 | SI29: 21.7843214 | SJ29: 1.209688978 | SK29: 22.99401038 | SL29: 4.795207021 | SM29: 0.1066628684 | SN29: =SM29*100 -> 10.66628684 | SO29: 15 | SP29: UYGUN | SQ29: UYGUN | SR29: 0.159277545 | SS29: 0.09848330311
A30: 20 | B30: BIFENAZATE | C30: GC-MS/MS | D30: 809389 | E30: 808472 | G30: 1561195 | H30: 1828792 | J30: 2827101 | K30: 3037990 | M30: 8238267 | N30: 8968029 | P30: 16589877 | Q30: 15752611 | S30: 30574664 | T30: 31641896 | AC30: 20 | AD30: BIFENAZATE | AE30: 10 | AF30: 9.686 | AG30: 11.433 | AH30: 11.729 | AI30: 8.297 | AJ30: 10.421 | AK30: 11.942 | AL30: 11.85 | AM30: 8.466 | AN30: 11.124 | AO30: 10.66 | AP30: 11.326 | AQ30: 10.485 | AR30: 9.701 | AS30: 9.675 | AT30: 9.093 | BK30: 20 | BL30: Bifenazate | BM30: 50 | BN30: 40.325 | BO30: 40.91 | BP30: 35.55 | BQ30: 45.874 | BR30: 46.422 | BS30: 44.977 | BT30: 45.387 | BU30: 46.09 | BV30: 44.302 | BW30: 46.577 | BX30: 43.822 | BY30: 41.441 | BZ30: 45.374 | CA30: 40.507 | CB30: 38.867 | CS30: 20 | CT30: BIFENAZATE | CU30: 10 | CV30: 10.277 | CW30: 8.549 | CX30: 10.475 | CY30: 11.242 | CZ30: 11.38 | DA30: 9.191 | DB30: 10.183 | DC30: 9.259 | DD30: 11.615 | DE30: 11.932 | DF30: 9.477 | DG30: 9.108 | DH30: 8.803 | DI30: 9.969 | DJ30: 8.338 | EA30: 20 | EB30: BIFENAZATE | EC30: 50 | ED30: 42.061 | EE30: 47.397 | EF30: 45.596 | EG30: 50.047 | EH30: 58.36 | EI30: 59.55 | EJ30: 45.863 | EK30: 40.559 | EL30: 42.554 | EM30: 50.585 | EN30: 48.724 | EO30: 47.515 | EP30: 50.731 | EQ30: 52.796 | ER30: 43.226 | FI30: 20 | FJ30: BIFENAZATE | FK30: 10 | FL30: 10.3132 | FM30: 1.390009424 | FN30: 103.132 | FO30: 13.4779644 | FP30: uygun | FQ30: uygun | FR30: 10.8084 | FS30: 1.412306907 | FT30: 108.084 | FU30: 13.06675278 | FV30: uygun | FW30: uygun | FX30: 10.056 | FY30: 0.8653750632 | FZ30: 100.56 | GA30: 8.605559499 | GB30: uygun | GC30: uygun | GD30: -------- | GE30: -------- | GF30: -------- | GG30: -------- | GH30: uygun değil | GI30: uygun değil | GJ30: -------- | GK30: -------- | GL30: -------- | GM30: -------- | GN30: uygun değil | GO30: uygun değil | GP30: -------- | GQ30: -------- | GR30: -------- | GS30: -------- | GT30: uygun değil | GU30: uygun değil | GW30: 20 | GX30: BIFENAZATE | GY30: 50 | GZ30: 41.8162 | HA30: 4.471836111 | HB30: 83.6324 | HC30: 10.69402794 | HD30: uygun | HE30: uygun | HF30: 45.4666 | HG30: 0.8977685114 | HH30: 90.9332 | HI30: 1.97456707 | HJ30: uygun | HK30: uygun | HL30: 42.0022 | HM30: 2.600997636 | HN30: 84.0044 | HO30: 6.192527143 | HP30: uygun | HQ30: uygun | HR30: -------- | HS30: -------- | HT30: -------- | HU30: -------- | HV30: uygun değil | HW30: uygun değil | HX30: -------- | HY30: -------- | HZ30: -------- | IA30: -------- | IB30: uygun değil | IC30: uygun değil | ID30: -------- | IE30: -------- | IF30: -------- | IG30: -------- | IH30: uygun değil | II30: uygun değil | JO30: 20 | JP30: BIFENAZATE | JQ30: 10 | JR30: 0.00098596 | JS30: 0.02053489 | JT30: 0.02989441 | JU30: 0.02900209 | JV30: 0.00177241 | JW30: 0.03771364 | JX30: 0.034225 | JY30: 0.02353156 | JZ30: 0.01263376 | KA30: 0.004356 | KB30: 0.01758276 | KC30: 0.00235225 | KD30: 0.00089401 | KE30: 0.00105625 | KF30: 0.00822649 | KV30: 0.03744225 | KW30: 0.03305124 | KX30: 0.083521 | KY30: 0.0068095504 | KZ30: 0.0051208336 | LA30: 0.0100922116 | LB30: 0.0085119076 | LC30: 0.00611524 | LD30: 0.0129868816 | LE30: 0.0046867716 | LF30: 0.0152670736 | LG30: 0.0293025924 | LH30: 0.0085599504 | LI30: 0.0360468196 | LJ30: 0.0495774756 | LZ30: 0.00076729 | MA30: 0.02105401 | MB30: 0.00225625 | MC30: 0.01542564 | MD30: 0.019044 | ME30: 0.00654481 | MF30: 0.00033489 | MG30: 0.00549081 | MH30: 0.02608225 | MI30: 0.03732624 | MJ30: 0.00273529 | MK30: 0.00795664 | ML30: 0.01432809 | MM30: 9.61e-06 | MN30: 0.02762244 | ND30: 0.0252110884 | NE30: 0.0027102436 | NF30: 0.0077580864 | NG30: 8.836e-07 | NH30: 0.02795584 | NI30: 0.036481 | NJ30: 0.0068459076 | NK30: 0.0356529924 | NL30: 0.0221771664 | NM30: 0.00013689 | NN30: 0.0006512704 | NO30: 0.00247009 | NP30: 0.0002137444 | NQ30: 0.0031270464 | NR30: 0.0183548304 | OH30: 60 | OI30: 0.948578618 | OJ30: 0.1257364054 | OL30: 20 | OM30: BIFENAZATE | ON30: 10 | OO30: 9.648333333 | OP30: 9.28 | OQ30: 9.512333333 | OR30: 10.942 | OS30: 10.55 | OT30: 3 | OU30: 5 | OV30: 0.6286666667 | OW30: -0.731 | OX30: 0.9626666667 | OY30: 0.3 | OZ30: 0.83 | PA30: -0.4573333333 | PB30: 0.903 | PC30: -0.2533333333 | PD30: 0.673 | PE30: 1.382 | PF30: -0.1713333333 | PG30: -0.172 | PH30: -0.7093333333 | PI30: -0.973 | PJ30: -2.212 | PZ30: 9.986533333 | QA30: 99.86533333 | QB30: 1.5516341 | QC30: 12.48856933 | QD30: 10 | QE30: 1.248856933 | QF30: 0.1009257222 | QG30: 1.349782656 | QH30: 1.16180147 | QI30: 0.1163368139 | QJ30: 11.63368139 | QK30: 15 | QL30: UYGUN | QM30: UYGUN | QN30: 0.1894795598 | QP30: 20 | QQ30: BIFENAZATE | QR30: 50 | QS30: 50.11166667 | QT30: 46.925 | QU30: 45.62866667 | QV30: 48.46566667 | QW30: 50.72366667 | QX30: 3 | QY30: 5 | QZ30: -8.050666667 | RA30: 0.472 | RB30: -0.03266666667 | RC30: 1.581333333 | RD30: 7.636333333 | RE30: 9.438333333 | RF30: -1.062 | RG30: -5.069666667 | RH30: -5.911666667 | RI30: -0.1386666667 | RJ30: -1.387666667 | RK30: 0.59 | RL30: 5.102333333 | RM30: 4.330333333 | RN30: -7.497666667 | SD30: 48.37093333 | SE30: 96.74186667 | SF30: 13.63892307 | SG30: 380.0041347 | SH30: 10 | SI30: 38.00041347 | SJ30: 0 | SK30: 38.00041347 | SL30: 6.164447539 | SM30: 0.1274411535 | SN30: 12.42 | SO30: 15 | SP30: UYGUN | SQ30: UYGUN | SR30: 0.2273774664 | SS30: 0.1220153717
A31: 21 | B31: Bifenthrin | C31: GC-MS/MS | D31: 42938 | E31: 41125 | G31: 120491 | H31: 137185 | J31: 284957 | K31: 303623 | M31: 796280 | N31: 891208 | P31: 1651911 | Q31: 1582972 | S31: 3451352 | T31: 3447910 | AC31: 21 | AD31: Bifenthrin | AE31: 10 | AF31: 8.954 | AG31: 11.508 | AH31: 11.577 | AI31: 8.284 | AJ31: 9.648 | AK31: 10.673 | AL31: 11.703 | AM31: 8.401 | AN31: 11.213 | AO31: 11.516 | AP31: 11.056 | AQ31: 10.641 | AR31: 8.857 | AS31: 7.855 | AT31: 7.898 | BK31: 21 | BL31: Bifenthrin | BM31: 50 | BN31: 42.732 | BO31: 43.404 | BP31: 37.967 | BQ31: 49.203 | BR31: 46.196 | BS31: 41.481 | BT31: 45.096 | BU31: 50.031 | BV31: 44.51 | BW31: 48.701 | BX31: 42.811 | BY31: 40.383 | BZ31: 44.223 | CA31: 38.27 | CB31: 37.813 | CS31: 21 | CT31: Bifenthrin | CU31: 10 | CV31: 10.412 | CW31: 8.178 | CX31: 11.56 | CY31: 11.163 | CZ31: 11.387 | DA31: 9.756 | DB31: 11.347 | DC31: 8.98 | DD31: 9.776 | DE31: 11.44 | DF31: 11.203 | DG31: 9.817 | DH31: 8.849 | DI31: 10.434 | DJ31: 8.796 | EA31: 21 | EB31: Bifenthrin | EC31: 50 | ED31: 48.667 | EE31: 41.504 | EF31: 50.251 | EG31: 46.096 | EH31: 47.537 | EI31: 47.875 | EJ31: 45.774 | EK31: 48.742 | EL31: 42.029 | EM31: 47.037 | EN31: 50.22 | EO31: 47.729 | EP31: 55.787 | EQ31: 57.004 | ER31: 36.533 | FI31: 21 | FJ31: Bifenthrin | FK31: 10 | FL31: 9.9942 | FM31: 1.493611462 | FN31: 99.942 | FO31: 14.9447826 | FP31: uygun | FQ31: uygun | FR31: 10.7012 | FS31: 1.343610509 | FT31: 107.012 | FU31: 12.55569945 | FV31: uygun | FW31: uygun | FX31: 9.2614 | FY31: 1.510318278 | FZ31: 92.614 | GA31: 16.30766707 | GB31: uygun | GC31: uygun | GD31: -------- | GE31: -------- | GF31: -------- | GG31: -------- | GH31: uygun değil | GI31: uygun değil | GJ31: -------- | GK31: -------- | GL31: -------- | GM31: -------- | GN31: uygun değil | GO31: uygun değil | GP31: -------- | GQ31: -------- | GR31: -------- | GS31: -------- | GT31: uygun değil | GU31: uygun değil | GW31: 21 | GX31: Bifenthrin | GY31: 50 | GZ31: 43.9004 | HA31: 4.189395935 | HB31: 87.8008 | HC31: 9.54295618 | HD31: uygun | HE31: uygun | HF31: 45.9638 | HG31: 3.427699185 | HH31: 91.9276 | HI31: 7.457388607 | HJ31: uygun | HK31: uygun | HL31: 40.7 | HM31: 2.793206401 | HN31: 81.4 | HO31: 6.862914991 | HP31: uygun | HQ31: uygun | HR31: -------- | HS31: -------- | HT31: -------- | HU31: -------- | HV31: uygun değil | HW31: uygun değil | HX31: -------- | HY31: -------- | HZ31: -------- | IA31: -------- | IB31: uygun değil | IC31: uygun değil | ID31: -------- | IE31: -------- | IF31: -------- | IG31: -------- | IH31: uygun değil | II31: uygun değil | JO31: 21 | JP31: Bifenthrin | JQ31: 10 | JR31: 0.01094116 | JS31: 0.02274064 | JT31: 0.02486929 | JU31: 0.02944656 | JV31: 0.00123904 | JW31: 0.00452929 | JX31: 0.02900209 | JY31: 0.02556801 | JZ31: 0.01471369 | KA31: 0.02298256 | KB31: 0.01115136 | KC31: 0.00410881 | KD31: 0.01306449 | KE31: 0.04601025 | KF31: 0.04418404 | KV31: 0.0211295296 | KW31: 0.0174028864 | KX31: 0.0579172356 | KY31: 0.0002540836 | KZ31: 0.0057881664 | LA31: 0.0290293444 | LB31: 0.0096196864 | LC31: 3.844e-07 | LD31: 0.01205604 | LE31: 0.0006749604 | LF31: 0.0206726884 | LG31: 0.0369946756 | LH31: 0.0133494916 | LI31: 0.05503716 | LJ31: 0.0594091876 | LZ31: 0.00169744 | MA31: 0.03319684 | MB31: 0.024336 | MC31: 0.01352569 | MD31: 0.01923769 | ME31: 0.00059536 | MF31: 0.01814409 | MG31: 0.010404 | MH31: 0.00050176 | MI31: 0.020736 | MJ31: 0.01447209 | MK31: 0.00033489 | ML31: 0.01324801 | MM31: 0.00188356 | MN31: 0.01449616 | ND31: 0.0007107556 | NE31: 0.0288728064 | NF31: 2.52004e-05 | NG31: 0.0060964864 | NH31: 0.0024265476 | NI31: 0.00180625 | NJ31: 0.0071436304 | NK31: 0.0006330256 | NL31: 0.0254147364 | NM31: 0.0035117476 | NN31: 1.936e-05 | NO31: 0.0020629764 | NP31: 0.0133957476 | NQ31: 0.0196224064 | NR31: 0.0725440356 | OH31: 60 | OI31: 1.014982093 | OJ31: 0.1300629394 | OL31: 21 | OM31: Bifenthrin | ON31: 10 | OO31: 10.457 | OP31: 9.780666667 | OQ31: 9.796333333 | OR31: 10.45766667 | OS31: 10.541 | OT31: 3 | OU31: 5 | OV31: -0.045 | OW31: -1.602666667 | OX31: 1.763666667 | OY31: 0.7053333333 | OZ31: 0.846 | PA31: -0.701 | PB31: 1.566333333 | PC31: -0.8163333333 | PD31: -0.6816666667 | PE31: 0.899 | PF31: 0.746 | PG31: 0.03633333333 | PH31: -0.9473333333 | PI31: -0.02366666667 | PJ31: -1.745 | PZ31: 10.20653333 | QA31: 102.0653333 | QB31: 0.4404719333 | QC31: 16.27923 | QD31: 10 | QE31: 1.627923 | QF31: 0 | QG31: 1.627923 | QH31: 1.275900858 | QI31: 0.1250082488 | QJ31: 12.50082488 | QK31: 15 | QL31: UYGUN | QM31: UYGUN | QN31: 0.2187788717 | QP31: 21 | QQ31: Bifenthrin | QR31: 50 | QS31: 48.92066667 | QT31: 45.00233333 | QU31: 51.59333333 | QV31: 48.37633333 | QW31: 43.70233333 | QX31: 3 | QY31: 5 | QZ31: -0.2536666667 | RA31: -3.498333333 | RB31: -1.342333333 | RC31: -2.280333333 | RD31: 3.834666667 | RE31: -1.045666667 | RF31: 0.7716666667 | RG31: -2.851333333 | RH31: -6.347333333 | RI31: 3.334666667 | RJ31: 1.299333333 | RK31: 2.726666667 | RL31: 4.193666667 | RM31: 8.627666667 | RN31: -7.169333333 | SD31: 47.519 | SE31: 95.038 | SF31: 30.15032817 | SG31: 247.7825533 | SH31: 10 | SI31: 24.77825533 | SJ31: 1.790690944 | SK31: 26.56894628 | SL31: 5.154507375 | SM31: 0.1084725557 | SN31: 12.42 | SO31: 15 | SP31: UYGUN | SQ31: UYGUN | SR31: 0.1647281348 | SS31: 0.1170328108
A32: 22 | B32: Biphenyl | C32: GC-MS/MS | D32: 1223550 | E32: 1214560 | G32: 3071613 | H32: 3233615 | J32: 5319425 | K32: 5376784 | M32: 17679955 | N32: 16712560 | P32: 34922933 | Q32: 31599074 | S32: 73491508 | T32: 54552122 | AC32: 22 | AD32: Biphenyl | AE32: 10 | AF32: 8.335 | AG32: 10.947 | AH32: 11.527 | AI32: 9.883 | AJ32: 9.677 | AK32: 10.747 | AL32: 10.728 | AM32: 8.694 | AN32: 8.574 | AO32: 8.506 | AP32: 10.246 | AQ32: 11.085 | AR32: 7.907 | AS32: 8.491 | AT32: 7.684 | BK32: 22 | BL32: Biphenyl | BM32: 50 | BN32: 49.068 | BO32: 55.869 | BP32: 50.03 | BQ32: 50.944 | BR32: 49.298 | BS32: 47.665 | BT32: 48.823 | BU32: 55.162 | BV32: 43.662 | BW32: 56.365 | BX32: 53.298 | BY32: 50.319 | BZ32: 48.465 | CA32: 55.843 | CB32: 38.608 | CS32: 22 | CT32: Biphenyl | CU32: 10 | CV32: 11.097 | CW32: 10.409 | CX32: 10.406 | CY32: 11.487 | CZ32: 11.98 | DA32: 11.415 | DB32: 10.676 | DC32: 10.492 | DD32: 10.902 | DE32: 10.595 | DF32: 10.303 | DG32: 9.779 | DH32: 8.574 | DI32: 11.154 | DJ32: 7.865 | EA32: 22 | EB32: Biphenyl | EC32: 50 | ED32: 55.538 | EE32: 49.887 | EF32: 57.796 | EG32: 56.318 | EH32: 39.334 | EI32: 49.179 | EJ32: 45.523 | EK32: 54.256 | EL32: 52.561 | EM32: 59.699 | EN32: 35.78 | EO32: 45.259 | EP32: 46.973 | EQ32: 41.209 | ER32: 49.65 | FI32: 22 | FJ32: Biphenyl | FK32: 10 | FL32: 10.0738 | FM32: 1.234053159 | FN32: 100.738 | FO32: 12.25012567 | FP32: uygun | FQ32: uygun | FR32: 9.4498 | FS32: 1.177448598 | FT32: 94.498 | FU32: 12.46003722 | FV32: uygun | FW32: uygun | FX32: 9.0826 | FY32: 1.504261713 | FZ32: 90.826 | GA32: 16.56201652 | GB32: uygun | GC32: uygun | GD32: -------- | GE32: -------- | GF32: -------- | GG32: -------- | GH32: uygun değil | GI32: uygun değil | GJ32: -------- | GK32: -------- | GL32: -------- | GM32: -------- | GN32: uygun değil | GO32: uygun değil | GP32: -------- | GQ32: -------- | GR32: -------- | GS32: -------- | GT32: uygun değil | GU32: uygun değil | GW32: 22 | GX32: Biphenyl | GY32: 50 | GZ32: 51.0418 | HA32: 2.796063697 | HB32: 102.0836 | HC32: 5.477988036 | HD32: uygun | HE32: uygun | HF32: 50.3354 | HG32: 5.329277653 | HH32: 100.6708 | HI32: 10.58753413 | HJ32: uygun | HK32: uygun | HL32: 49.3066 | HM32: 6.611525641 | HN32: 98.6132 | HO32: 13.4090074 | HP32: uygun | HQ32: uygun | HR32: -------- | HS32: -------- | HT32: -------- | HU32: -------- | HV32: uygun değil | HW32: uygun değil | HX32: -------- | HY32: -------- | HZ32: -------- | IA32: -------- | IB32: uygun değil | IC32: uygun değil | ID32: -------- | IE32: -------- | IF32: -------- | IG32: -------- | IH32: uygun değil | II32: uygun değil | JO32: 22 | JP32: Biphenyl | JQ32: 10 | JR32: 0.02772225 | JS32: 0.00896809 | JT32: 0.02331729 | JU32: 0.00013689 | JV32: 0.00104329 | JW32: 0.00558009 | JX32: 0.00529984 | JY32: 0.01705636 | JZ32: 0.02033476 | KA32: 0.02232036 | KB32: 0.00060516 | KC32: 0.01177225 | KD32: 0.04380649 | KE32: 0.02277081 | KF32: 0.05363856 | KV32: 0.0003474496 | KW32: 0.0137780644 | KX32: 3.6e-07 | KY32: 0.0003564544 | KZ32: 0.0001971216 | LA32: 0.00218089 | LB32: 0.0005541316 | LC32: 0.0106584976 | LD32: 0.0160680976 | LE32: 0.01620529 | LF32: 0.0043507216 | LG32: 4.07044e-05 | LH32: 0.00094249 | LI32: 0.0136562596 | LJ32: 0.0519110656 | LZ32: 0.01203409 | MA32: 0.00167281 | MB32: 0.00164836 | MC32: 0.02211169 | MD32: 0.039204 | ME32: 0.02002225 | MF32: 0.00456976 | MG32: 0.00242064 | MH32: 0.00813604 | MI32: 0.00354025 | MJ32: 0.00091809 | MK32: 0.00048841 | ML32: 0.02033476 | MM32: 0.01331716 | MN32: 0.04558225 | ND32: 0.0122677776 | NE32: 5.1076e-06 | NF32: 0.0243110464 | NG32: 0.0159668496 | NH32: 0.0455054224 | NI32: 0.0002696164 | NJ32: 0.0080174116 | NK32: 0.0072454144 | NL32: 0.0026234884 | NM32: 0.0376282404 | NN32: 0.08088336 | NO32: 0.0089908324 | NP32: 0.0036650916 | NQ32: 0.0309126724 | NR32: 4.9e-05 | OH32: 60 | OI32: 0.8699619792 | OJ32: 0.1204133145 | OL32: 22 | OM32: Biphenyl | ON32: 10 | OO32: 10.93833333 | OP32: 10.288 | OQ32: 9.824 | OR32: 11.181 | OS32: 10.14666667 | OT32: 3 | OU32: 5 | OV32: 0.1586666667 | OW32: 0.121 | OX32: 0.582 | OY32: 0.306 | OZ32: 1.833333333 | PA32: 0.4766666667 | PB32: 0.388 | PC32: 0.668 | PD32: -0.279 | PE32: 0.4483333333 | PF32: -0.6353333333 | PG32: -0.509 | PH32: -1.25 | PI32: -0.027 | PJ32: -2.281666667 | PZ32: 10.4756 | QA32: 104.756 | QB32: 0.9597635667 | QC32: 12.36807133 | QD32: 10 | QE32: 1.236807133 | QF32: 0 | QG32: 1.236807133 | QH32: 1.112118309 | QI32: 0.1061627314 | QJ32: 10.61627314 | QK32: 15 | QL32: UYGUN | QM32: UYGUN | QN32: 0.1577873575 | QP32: 22 | QQ32: Biphenyl | QR32: 50 | QS32: 46.83233333 | QT32: 46.88966667 | QU32: 53.00833333 | QV32: 50.02933333 | QW32: 49.561 | QX32: 3 | QY32: 5 | QZ32: 8.705666667 | RA32: 2.997333333 | RB32: 4.787666667 | RC32: 6.288666667 | RD32: -10.227 | RE32: 2.346666667 | RF32: -1.366666667 | RG32: 1.247666667 | RH32: 2.531666667 | RI32: 10.138 | RJ32: -11.05233333 | RK32: -1.630666667 | RL32: -6.035333333 | RM32: -8.820333333 | RN32: 0.089 | SD32: 49.26413333 | SE32: 98.52826667 | SF32: 19.68332827 | SG32: 608.9975187 | SH32: 10 | SI32: 60.89975187 | SJ32: 0 | SK32: 60.89975187 | SL32: 7.803829308 | SM32: 0.1584079284 | SN32: =SM32*100 -> 15.84079284 | SO32: 15 | SP32: UYGUN | SQ32: UYGUN | SR32: 0.3513030051 | SS32: 0.1348399001
A33: 23 | B33: Bromocyclen | C33: GC-MS/MS | D33: 1817885 | E33: 1873240 | G33: 3801607 | H33: 4021690 | J33: 6859245 | K33: 6940666 | M33: 18998002 | N33: 19900859 | P33: 34383214 | Q33: 34612608 | S33: 67481802 | T33: 66764142 | AC33: 23 | AD33: Bromocyclen | AE33: 10 | AF33: 11.008 | AG33: 10.281 | AH33: 11.37 | AI33: 11.442 | AJ33: 9.258 | AK33: 11.086 | AL33: 11.522 | AM33: 11.196 | AN33: 11.165 | AO33: 11.671 | AP33: 10.352 | AQ33: 8.228 | AR33: 10.484 | AS33: 8.777 | AT33: 7.874 | BK33: 23 | BL33: Bromocyclen | BM33: 50 | BN33: 44.826 | BO33: 45.556 | BP33: 35.81 | BQ33: 42.077 | BR33: 39.197 | BS33: 43.706 | BT33: 42.502 | BU33: 40.797 | BV33: 38.314 | BW33: 46.882 | BX33: 45.628 | BY33: 45.543 | BZ33: 45.163 | CA33: 47.496 | CB33: 41.519 | CS33: 23 | CT33: Bromocyclen | CU33: 10 | CV33: 11.003 | CW33: 10.47 | CX33: 11.25 | CY33: 11.333 | CZ33: 11.389 | DA33: 11.019 | DB33: 11.963 | DC33: 10.127 | DD33: 10.299 | DE33: 11.111 | DF33: 11.949 | DG33: 10.388 | DH33: 9.801 | DI33: 10.946 | DJ33: 10.579 | EA33: 23 | EB33: Bromocyclen | EC33: 50 | ED33: 56.163 | EE33: 38.024 | EF33: 48.733 | EG33: 41.092 | EH33: 35.191 | EI33: 35.087 | EJ33: 36.916 | EK33: 50.93 | EL33: 44.027 | EM33: 49.109 | EN33: 41.034 | EO33: 41.857 | EP33: 47.557 | EQ33: 45.823 | ER33: 50.39 | FI33: 23 | FJ33: Bromocyclen | FK33: 10 | FL33: 10.6718 | FM33: 0.9145048934 | FN33: 106.718 | FO33: 8.569359371 | FP33: uygun | FQ33: uygun | FR33: 11.328 | FS33: 0.2538907245 | FT33: 113.28 | FU33: 2.241266989 | FV33: uygun | FW33: uygun | FX33: 9.143 | FY33: 1.208460177 | FZ33: 91.43 | GA33: 13.21732667 | GB33: uygun | GC33: uygun | GD33: -------- | GE33: -------- | GF33: -------- | GG33: -------- | GH33: uygun değil | GI33: uygun değil | GJ33: -------- | GK33: -------- | GL33: -------- | GM33: -------- | GN33: uygun değil | GO33: uygun değil | GP33: -------- | GQ33: -------- | GR33: -------- | GS33: -------- | GT33: uygun değil | GU33: uygun değil | GW33: 23 | GX33: Bromocyclen | GY33: 50 | GZ33: 41.4932 | HA33: 4.047407158 | HB33: 82.9864 | HC33: 9.754386641 | HD33: uygun | HE33: uygun | HF33: 42.4402 | HG33: 3.203954151 | HH33: 84.8804 | HI33: 7.549338011 | HJ33: uygun | HK33: uygun | HL33: 45.0698 | HM33: 2.181674747 | HN33: 90.1396 | HO33: 4.840657706 | HP33: uygun | HQ33: uygun | HR33: -------- | HS33: -------- | HT33: -------- | HU33: -------- | HV33: uygun değil | HW33: uygun değil | HX33: -------- | HY33: -------- | HZ33: -------- | IA33: -------- | IB33: uygun değil | IC33: uygun değil | ID33: -------- | IE33: -------- | IF33: -------- | IG33: -------- | IH33: uygun değil | II33: uygun değil | JO33: 23 | JP33: Bromocyclen | JQ33: 10 | JR33: 0.01016064 | JS33: 0.00078961 | JT33: 0.018769 | JU33: 0.02079364 | JV33: 0.00550564 | JW33: 0.01179396 | JX33: 0.02316484 | JY33: 0.01430416 | JZ33: 0.01357225 | KA33: 0.02792241 | KB33: 0.00123904 | KC33: 0.03139984 | KD33: 0.00234256 | KE33: 0.01495729 | KF33: 0.04519876 | KV33: 0.0107081104 | KW33: 0.0078996544 | KX33: 0.08054244 | KY33: 0.0251095716 | KZ33: 0.0466819236 | LA33: 0.0158457744 | LB33: 0.0224880016 | LC33: 0.0338780836 | LD33: 0.0546250384 | LE33: 0.0038887696 | LF33: 0.0076457536 | LG33: 0.0079459396 | LH33: 0.0093586276 | LI33: 0.0025080064 | LJ33: 0.0287709444 | LZ33: 0.01006009 | MA33: 0.002209 | MB33: 0.015625 | MC33: 0.01776889 | MD33: 0.01929321 | ME33: 0.01038361 | MF33: 0.03853369 | MG33: 0.00016129 | MH33: 0.00089401 | MI33: 0.01234321 | MJ33: 0.03798601 | MK33: 0.00150544 | ML33: 0.00039601 | MM33: 0.00894916 | MN33: 0.00335241 | ND33: 0.0151930276 | NE33: 0.0573698304 | NF33: 0.0006421156 | NG33: 0.0317409856 | NH33: 0.0877225924 | NI33: 0.0889590276 | NJ33: 0.0684764224 | NK33: 0.00034596 | NL33: 0.0142706916 | NM33: 0.0003175524 | NN33: 0.0321556624 | NO33: 0.0265233796 | NP33: 0.0023872996 | NQ33: 0.0069789316 | NR33: 6.084e-05 | OH33: 60 | OI33: 1.212415628 | OJ33: 0.1421510715 | OL33: 23 | OM33: Bromocyclen | ON33: 10 | OO33: 11.32366667 | OP33: 10.94033333 | OQ33: 10.39266667 | OR33: 10.85933333 | OS33: 11.02633333 | OT33: 3 | OU33: 5 | OV33: -0.3206666667 | OW33: -0.4703333333 | OX33: 0.8573333333 | OY33: 0.4736666667 | OZ33: 0.3626666667 | PA33: -0.3046666667 | PB33: 1.022666667 | PC33: -0.2656666667 | PD33: -0.5603333333 | PE33: 0.08466666667 | PF33: 0.6253333333 | PG33: -0.5523333333 | PH33: -0.5916666667 | PI33: 0.08666666667 | PJ33: -0.4473333333 | PZ33: 10.90846667 | QA33: 109.0846667 | QB33: 0.3418221 | QC33: 4.199139333 | QD33: 10 | QE33: 0.4199139333 | QF33: 0 | QG33: 0.4199139333 | QH33: 0.6480076646 | QI33: 0.05940410182 | QJ33: 5.940410182 | QK33: 15 | QL33: UYGUN | QM33: UYGUN | QN33: 0.04940386238 | QP33: 23 | QQ33: Bromocyclen | QR33: 50 | QS33: 44.09466667 | QT33: 38.93233333 | QU33: 49.07333333 | QV33: 43.64733333 | QW33: 44.89666667 | QX33: 3 | QY33: 5 | QZ33: 12.06833333 | RA33: -0.9083333333 | RB33: -0.3403333333 | RC33: -2.555333333 | RD33: -9.705666667 | RE33: -9.007666667 | RF33: -2.016333333 | RG33: 1.856666667 | RH33: 0.3796666667 | RI33: 4.212333333 | RJ33: -3.060666667 | RK33: 2.924666667 | RL33: -1.516333333 | RM33: 2.175666667 | RN33: 5.493333333 | SD33: 44.12886667 | SE33: 88.25773333 | SF33: 39.2057026 | SG33: 408.9848873 | SH33: 10 | SI33: 40.89848873 | SJ33: 0 | SK33: 40.89848873 | SL33: 6.395192627 | SM33: 0.1449208446 | SN33: 14.49208446 | SO33: 15 | SP33: UYGUN | SQ33: UYGUN | SR33: 0.2940287166 | SS33: 0.1107494887
A34: 24 | B34: Bromophos Methyl | C34: GC-MS/MS | D34: 1882789 | E34: 1863636 | G34: 4126915 | H34: 4144497 | J34: 7537815 | K34: 7906687 | M34: 20554749 | N34: 21504886 | P34: 42011014 | Q34: 41359075 | S34: 80703732 | T34: 80497910 | AC34: 24 | AD34: Bromophos Methyl | AE34: 10 | AF34: 9.628 | AG34: 11.617 | AH34: 11.821 | AI34: 8.41 | AJ34: 10.029 | AK34: 10.196 | AL34: 11.552 | AM34: 8.817 | AN34: 11.888 | AO34: 11.372 | AP34: 10.947 | AQ34: 11.065 | AR34: 10.507 | AS34: 8.913 | AT34: 8.03 | BK34: 24 | BL34: Bromophos-ethyl | BM34: 50 | BN34: 46.575 | BO34: 45.592 | BP34: 39.234 | BQ34: 51.294 | BR34: 43.028 | BS34: 39.88 | BT34: 43.649 | BU34: 50.832 | BV34: 41.177 | BW34: 49.333 | BX34: 50.428 | BY34: 47.007 | BZ34: 51.498 | CA34: 44.253 | CB34: 39.805 | CS34: 24 | CT34: Bromophos Methyl | CU34: 10 | CV34: 10.419 | CW34: 7.945 | CX34: 11.697 | CY34: 11.228 | CZ34: 10.835 | DA34: 9.07 | DB34: 10.674 | DC34: 8.835 | DD34: 9.389 | DE34: 11.024 | DF34: 11.638 | DG34: 10.067 | DH34: 10.016 | DI34: 10.342 | DJ34: 10.374 | EA34: 24 | EB34: Bromophos Methyl | EC34: 50 | ED34: 46.103 | EE34: 37.034 | EF34: 44.731 | EG34: 37.79 | EH34: 43.588 | EI34: 42.12 | EJ34: 36.17 | EK34: 43.978 | EL34: 39.09 | EM34: 44.927 | EN34: 54.297 | EO34: 47.818 | EP34: 56.854 | EQ34: 58.883 | ER34: 45.083 | FI34: 24 | FJ34: Bromophos Methyl | FK34: 10 | FL34: 10.301 | FM34: 1.426976699 | FN34: 103.01 | FO34: 13.85279778 | FP34: uygun | FQ34: uygun | FR34: 10.765 | FS34: 1.26168657 | FT34: 107.65 | FU34: 11.72026539 | FV34: uygun | FW34: uygun | FX34: 9.8924 | FY34: 1.35024657 | FZ34: 98.924 | GA34: 13.64933252 | GB34: uygun | GC34: uygun | GD34: -------- | GE34: -------- | GF34: -------- | GG34: -------- | GH34: uygun değil | GI34: uygun değil | GJ34: -------- | GK34: -------- | GL34: -------- | GM34: -------- | GN34: uygun değil | GO34: uygun değil | GP34: -------- | GQ34: -------- | GR34: -------- | GS34: -------- | GT34: uygun değil | GU34: uygun değil | GW34: 24 | GX34: Bromophos Methyl | GY34: 50 | GZ34: 45.1446 | HA34: 4.457480207 | HB34: 90.2892 | HC34: 9.873783814 | HD34: uygun | HE34: uygun | HF34: 44.9742 | HG34: 4.884637008 | HH34: 89.9484 | HI34: 10.86097587 | HJ34: uygun | HK34: uygun | HL34: 46.5982 | HM34: 4.756313036 | HN34: 93.1964 | HO34: 10.2070746 | HP34: uygun | HQ34: uygun | HR34: -------- | HS34: -------- | HT34: -------- | HU34: -------- | HV34: uygun değil | HW34: uygun değil | HX34: -------- | HY34: -------- | HZ34: -------- | IA34: -------- | IB34: uygun değil | IC34: uygun değil | ID34: -------- | IE34: -------- | IF34: -------- | IG34: -------- | IH34: uygun değil | II34: uygun değil | JO34: 24 | JP34: Bromophos Methyl | JQ34: 10 | JR34: 0.00138384 | JS34: 0.02614689 | JT34: 0.03316041 | JU34: 0.025281 | JV34: 8.41e-06 | JW34: 0.00038416 | JX34: 0.02408704 | JY34: 0.01399489 | JZ34: 0.03564544 | KA34: 0.01882384 | KB34: 0.00896809 | KC34: 0.01134225 | KD34: 0.00257049 | KE34: 0.01181569 | KF34: 0.038809 | KV34: 0.00469225 | KW34: 0.0077721856 | KX34: 0.0463627024 | KY34: 0.0006697744 | KZ34: 0.0194435136 | LA34: 0.04096576 | LB34: 0.0161340804 | LC34: 0.0002768896 | LD34: 0.0311381316 | LE34: 0.0001779556 | LF34: 7.32736e-05 | LG34: 0.0035832196 | LH34: 0.0008976016 | LI34: 0.0132112036 | LJ34: 0.04157521 | LZ34: 0.00175561 | MA34: 0.04223025 | MB34: 0.02879809 | MC34: 0.01507984 | MD34: 0.00697225 | ME34: 0.008649 | MF34: 0.00454276 | MG34: 0.01357225 | MH34: 0.00373321 | MI34: 0.01048576 | MJ34: 0.02683044 | MK34: 4.489e-05 | ML34: 2.56e-06 | MM34: 0.00116964 | MN34: 0.00139876 | ND34: 0.0060746436 | NE34: 0.0672468624 | NF34: 0.0111049444 | NG34: 0.05963364 | NH34: 0.0164454976 | NI34: 0.02483776 | NJ34: 0.07650756 | NK34: 0.0145057936 | NL34: 0.04761124 | NM34: 0.0102941316 | NN34: 0.0073856836 | NO34: 0.0019044496 | NP34: 0.0187909264 | NQ34: 0.0315630756 | NR34: 0.0096707556 | OH34: 60 | OI34: 1.048237466 | OJ34: 0.1321764897 | OL34: 24 | OM34: Bromophos Methyl | ON34: 10 | OO34: 10.37566667 | OP34: 9.562 | OQ34: 10.18266667 | OR34: 10.31966667 | OS34: 10.74433333 | OT34: 3 | OU34: 5 | OV34: 0.04333333333 | OW34: -1.617 | OX34: 1.514333333 | OY34: 0.9083333333 | OZ34: 0.09066666667 | PA34: -1.305666667 | PB34: 1.112 | PC34: -1.347666667 | PD34: -0.9306666667 | PE34: 0.2796666667 | PF34: 1.262333333 | PG34: 0.505 | PH34: -0.1666666667 | PI34: 0.02233333333 | PJ34: -0.3703333333 | PZ34: 10.23686667 | QA34: 102.3686667 | QB34: 0.5565197667 | QC34: 13.45886467 | QD34: 10 | QE34: 1.345886467 | QF34: 0 | QG34: 1.345886467 | QH34: 1.16012347 | QI34: 0.1133279848 | QJ34: 11.33279848 | QK34: 15 | QL34: UYGUN | QM34: UYGUN | QN34: 0.1798052501 | QP34: 24 | QQ34: Bromophos Methyl | QR34: 50 | QS34: 47.50666667 | QT34: 40.34066667 | QU34: 48.521 | QV34: 45.25433333 | QW34: 44.53266667 | QX34: 3 | QY34: 5 | QZ34: -1.403666667 | RA34: -3.306666667 | RB34: -3.79 | RC34: -7.464333333 | RD34: -0.9446666667 | RE34: -5.386666667 | RF34: -4.170666667 | RG34: -4.543 | RH34: -6.164333333 | RI34: 0.3943333333 | RJ34: 6.790333333 | RK34: 7.477333333 | RL34: 8.333 | RM34: 13.62866667 | RN34: 0.5503333333 | SD34: 45.23106667 | SE34: 90.46213333 | SF34: 30.30474957 | SG34: 546.5825347 | SH34: 10 | SI34: 54.65825347 | SJ34: 0 | SK34: 54.65825347 | SL34: 7.393122038 | SM34: 0.1634523035 | SN34: 16.34523035 | SO34: 15 | SP34: UYGUN | SQ34: UYGUN | SR34: 0.3740331774 | SS34: 0.1406411883
A35: 25 | B35: Bromophos-Ethyl | C35: GC-MS/MS | D35: 2293786 | E35: 2361038 | G35: 4520651 | H35: 5328274 | J35: 8529223 | K35: 9321229 | M35: 24147042 | N35: 24105658 | P35: 46269138 | Q35: 46525591 | S35: 90568366 | T35: 91116123 | AC35: 25 | AD35: Bromophos-Ethyl | AE35: 10 | AF35: 9.061 | AG35: 11.459 | AH35: 11.882 | AI35: 8.74 | AJ35: 10.171 | AK35: 10.625 | AL35: 11.611 | AM35: 8.716 | AN35: 11.991 | AO35: 11.181 | AP35: 11.511 | AQ35: 11.563 | AR35: 11.28 | AS35: 11.31 | AT35: 11.248 | BK35: 25 | BL35: Bromophos-methyl | BM35: 50 | BN35: 45.661 | BO35: 47.044 | BP35: 38.74 | BQ35: 48.893 | BR35: 44.811 | BS35: 40.757 | BT35: 43.975 | BU35: 49.784 | BV35: 43.214 | BW35: 48.697 | BX35: 52.608 | BY35: 50.201 | BZ35: 54.995 | CA35: 47.876 | CB35: 42.661 | CS35: 25 | CT35: Bromophos-Ethyl | CU35: 10 | CV35: 10.95 | CW35: 9.163 | CX35: 11.647 | CY35: 10.916 | CZ35: 11.077 | DA35: 10.185 | DB35: 11.482 | DC35: 9.581 | DD35: 9.462 | DE35: 11.504 | DF35: 8.038 | DG35: 10.493 | DH35: 11.87 | DI35: 9.689 | DJ35: 8.207 | EA35: 25 | EB35: Bromophos-Ethyl | EC35: 50 | ED35: 46.732 | EE35: 43.376 | EF35: 49.734 | EG35: 42.787 | EH35: 44.446 | EI35: 43.578 | EJ35: 42.823 | EK35: 46.188 | EL35: 42.638 | EM35: 47.898 | EN35: 49.613 | EO35: 46.821 | EP35: 54.454 | EQ35: 42.162 | ER35: 50.94 | FI35: 25 | FJ35: Bromophos-Ethyl | FK35: 10 | FL35: 10.2626 | FM35: 1.398604054 | FN35: 102.626 | FO35: 13.62816493 | FP35: uygun | FQ35: uygun | FR35: 10.8248 | FS35: 1.283741485 | FT35: 108.248 | FU35: 11.85926285 | FV35: uygun | FW35: uygun | FX35: 11.3824 | FY35: 0.1440010417 | FZ35: 113.824 | GA35: 1.2651202 | GB35: uygun | GC35: uygun | GD35: -------- | GE35: -------- | GF35: -------- | GG35: -------- | GH35: uygun değil | GI35: uygun değil | GJ35: -------- | GK35: -------- | GL35: -------- | GM35: -------- | GN35: uygun değil | GO35: uygun değil | GP35: -------- | GQ35: -------- | GR35: -------- | GS35: -------- | GT35: uygun değil | GU35: uygun değil | GW35: 25 | GX35: Bromophos-Ethyl | GY35: 50 | GZ35: 45.0298 | HA35: 3.840220918 | HB35: 90.0596 | HC35: 8.528176714 | HD35: uygun | HE35: uygun | HF35: 45.2854 | HG35: 3.820689375 | HH35: 90.5708 | HI35: 8.436912062 | HJ35: uygun | HK35: uygun | HL35: 49.6682 | HM35: 4.73323174 | HN35: 99.3364 | HO35: 9.529702585 | HP35: uygun | HQ35: uygun | HR35: -------- | HS35: -------- | HT35: -------- | HU35: -------- | HV35: uygun değil | HW35: uygun değil | HX35: -------- | HY35: -------- | HZ35: -------- | IA35: -------- | IB35: uygun değil | IC35: uygun değil | ID35: -------- | IE35: -------- | IF35: -------- | IG35: -------- | IH35: uygun değil | II35: uygun değil | JO35: 25 | JP35: Bromophos-Ethyl | JQ35: 10 | JR35: 0.00881721 | JS35: 0.02128681 | JT35: 0.03541924 | JU35: 0.015876 | JV35: 0.00029241 | JW35: 0.00390625 | JX35: 0.02595321 | JY35: 0.01648656 | JZ35: 0.03964081 | KA35: 0.01394761 | KB35: 0.02283121 | KC35: 0.02442969 | KD35: 0.016384 | KE35: 0.017161 | KF35: 0.01557504 | KV35: 0.0075307684 | KW35: 0.0034951744 | KX35: 0.05071504 | KY35: 0.0004901796 | KZ35: 0.0107702884 | LA35: 0.0341732196 | LB35: 0.01452025 | LC35: 1.86624e-05 | LD35: 0.0184199184 | LE35: 0.0006791236 | LF35: 0.0027206656 | LG35: 1.61604e-05 | LH35: 0.00998001 | LI35: 0.0018045504 | LJ35: 0.0215443684 | LZ35: 0.009025 | MA35: 0.00700569 | MB35: 0.02712609 | MC35: 0.00839056 | MD35: 0.01159929 | ME35: 0.00034225 | MF35: 0.02196324 | MG35: 0.00175561 | MH35: 0.00289444 | MI35: 0.02262016 | MJ35: 0.03849444 | MK35: 0.00243049 | ML35: 0.034969 | MM35: 0.00096721 | MN35: 0.03214849 | ND35: 0.0042719296 | NE35: 0.0175509504 | NF35: 2.83024e-05 | NG35: 0.0208109476 | NH35: 0.0123387664 | NI35: 0.0164968336 | NJ35: 0.0206037316 | NK35: 0.0058125376 | NL35: 0.0216796176 | NM35: 0.0017673616 | NN35: 5.99076e-05 | NO35: 0.0040424164 | NP35: 0.0079352464 | NQ35: 0.0245736976 | NR35: 0.00035344 | OH35: 60 | OI35: 0.834943076 | OJ35: 0.1179649013 | OL35: 25 | OM35: Bromophos-Ethyl | ON35: 10 | OO35: 9.724333333 | OP35: 10.37933333 | OQ35: 11.03266667 | OR35: 10.02233333 | OS35: 10.26266667 | OT35: 3 | OU35: 5 | OV35: 1.225666667 | OW35: -1.216333333 | OX35: 0.6143333333 | OY35: 0.8936666667 | OZ35: 0.8143333333 | PA35: 0.4606666667 | PB35: 1.102666667 | PC35: -1.451666667 | PD35: -0.5603333333 | PE35: 1.241333333 | PF35: -1.686333333 | PG35: 0.1136666667 | PH35: 0.8373333333 | PI35: -0.3333333333 | PJ35: -2.055666667 | PZ35: 10.28426667 | QA35: 102.8426667 | QB35: 0.7138059 | QC35: 18.10585933 | QD35: 10 | QE35: 1.810585933 | QF35: 0 | QG35: 1.810585933 | QH35: 1.345580147 | QI35: 0.1308387065 | QJ35: 13.08387065 | QK35: 15 | QL35: UYGUN | QM35: UYGUN | QN35: 0.2396627395 | QP35: 25 | QQ35: Bromophos-Ethyl | QR35: 50 | QS35: 46.641 | QT35: 44.34 | QU35: 50.12533333 | QV35: 42.529 | QW35: 47.76133333 | QX35: 3 | QY35: 5 | QZ35: 0.091 | RA35: -0.964 | RB35: -0.3913333333 | RC35: 0.258 | RD35: -3.315333333 | RE35: -3.063 | RF35: -1.517 | RG35: -3.937333333 | RH35: 0.109 | RI35: 0.1366666667 | RJ35: 2.972 | RK35: 2.481 | RL35: 4.328666667 | RM35: -0.367 | RN35: 3.178666667 | SD35: 46.27933333 | SE35: 92.55866667 | SF35: 26.2086425 | SG35: 83.32923933 | SH35: 10 | SI35: 8.332923933 | SJ35: 5.958572856 | SK35: 14.29149679 | SL35: 3.780409606 | SM35: 0.08168677752 | SN35: 8.168677752 | SO35: 15 | SP35: UYGUN | SQ35: UYGUN | SR35: 0.09341821471 | SS35: 0.1090676321
A36: 26 | B36: Bromopropylate | C36: GC-MS/MS | D36: 29831 | E36: 30886 | G36: 100828 | H36: 90829 | J36: 184963 | K36: 197728 | M36: 503548 | N36: 509699 | P36: 971266 | Q36: 1020753 | S36: 2024739 | T36: 1994966 | AC36: 26 | AD36: Bromopropylate | AE36: 10 | AF36: 8.557 | AG36: 11.242 | AH36: 11.117 | AI36: 7.624 | AJ36: 9.251 | AK36: 10.264 | AL36: 11.381 | AM36: 7.6 | AN36: 11.013 | AO36: 10.811 | AP36: 11.648 | AQ36: 11.319 | AR36: 9.339 | AS36: 8.707 | AT36: 7.839 | BK36: 26 | BL36: Bromopropylate | BM36: 50 | BN36: 47.136 | BO36: 46.297 | BP36: 35.915 | BQ36: 52.93 | BR36: 50.22 | BS36: 45.095 | BT36: 49.307 | BU36: 54.841 | BV36: 47.992 | BW36: 53.389 | BX36: 44.024 | BY36: 41.726 | BZ36: 45.895 | CA36: 38.436 | CB36: 36.659 | CS36: 26 | CT36: Bromopropylate | CU36: 10 | CV36: 10.124 | CW36: 7.245 | CX36: 11.511 | CY36: 11 | CZ36: 10.829 | DA36: 8.869 | DB36: 10.633 | DC36: 8.059 | DD36: 9.558 | DE36: 11.373 | DF36: 9.949 | DG36: 8.486 | DH36: 8.143 | DI36: 9.75 | DJ36: 7.225 | EA36: 26 | EB36: Bromopropylate | EC36: 50 | ED36: 52.851 | EE36: 44.353 | EF36: 54.615 | EG36: 50.573 | EH36: 53.885 | EI36: 54.61 | EJ36: 49.08 | EK36: 50.79 | EL36: 45.196 | EM36: 49.616 | EN36: 47.822 | EO36: 44.702 | EP36: 56.51 | EQ36: 53.83 | ER36: 53.05 | FI36: 26 | FJ36: Bromopropylate | FK36: 10 | FL36: 9.5582 | FM36: 1.589256336 | FN36: 95.582 | FO36: 16.62715088 | FP36: uygun | FQ36: uygun | FR36: 10.2138 | FS36: 1.515931628 | FT36: 102.138 | FU36: 14.84199444 | FV36: uygun | FW36: uygun | FX36: 9.7704 | FY36: 1.656108028 | FZ36: 97.704 | GA36: 16.95025821 | GB36: uygun | GC36: uygun | GD36: -------- | GE36: -------- | GF36: -------- | GG36: -------- | GH36: uygun değil | GI36: uygun değil | GJ36: -------- | GK36: -------- | GL36: -------- | GM36: -------- | GN36: uygun değil | GO36: uygun değil | GP36: -------- | GQ36: -------- | GR36: -------- | GS36: -------- | GT36: uygun değil | GU36: uygun değil | GW36: 26 | GX36: Bromopropylate | GY36: 50 | GZ36: 46.4996 | HA36: 6.474396288 | HB36: 92.9992 | HC36: 13.92355265 | HD36: uygun | HE36: uygun | HF36: 50.1248 | HG36: 3.981647423 | HH36: 100.2496 | HI36: 7.94346795 | HJ36: uygun | HK36: uygun | HL36: 41.348 | HM36: 3.822483944 | HN36: 82.696 | HO36: 9.24466466 | HP36: uygun | HQ36: uygun | HR36: -------- | HS36: -------- | HT36: -------- | HU36: -------- | HV36: uygun değil | HW36: uygun değil | HX36: -------- | HY36: -------- | HZ36: -------- | IA36: -------- | IB36: uygun değil | IC36: uygun değil | ID36: -------- | IE36: -------- | IF36: -------- | IG36: -------- | IH36: uygun değil | II36: uygun değil | JO36: 26 | JP36: Bromopropylate | JQ36: 10 | JR36: 0.02082249 | JS36: 0.01542564 | JT36: 0.01247689 | JU36: 0.05645376 | JV36: 0.00561001 | JW36: 0.00069696 | JX36: 0.01907161 | JY36: 0.0576 | JZ36: 0.01026169 | KA36: 0.00657721 | KB36: 0.02715904 | KC36: 0.01739761 | KD36: 0.00436921 | KE36: 0.01671849 | KF36: 0.04669921 | KV36: 0.0032809984 | KW36: 0.0054848836 | KX36: 0.07935489 | KY36: 0.00343396 | KZ36: 1.936e-05 | LA36: 0.00962361 | LB36: 0.0001920996 | LC36: 0.0093741124 | LD36: 0.0016128256 | LE36: 0.0045941284 | LF36: 0.0142850304 | LG36: 0.0273836304 | LH36: 0.00674041 | LI36: 0.0534904384 | LJ36: 0.0711929124 | LZ36: 0.00015376 | MA36: 0.07590025 | MB36: 0.02283121 | MC36: 0.01 | MD36: 0.00687241 | ME36: 0.01279161 | MF36: 0.00400689 | MG36: 0.03767481 | MH36: 0.00195364 | MI36: 0.01885129 | MJ36: 2.601e-05 | MK36: 0.02292196 | ML36: 0.03448449 | MM36: 0.000625 | MN36: 0.07700625 | ND36: 0.0032512804 | NE36: 0.0127554436 | NF36: 0.00851929 | NG36: 0.0001313316 | NH36: 0.00603729 | NI36: 0.00850084 | NJ36: 0.00033856 | NK36: 0.00024964 | NL36: 0.0092313664 | NM36: 5.89824e-05 | NN36: 0.0018974736 | NO36: 0.0112275216 | NP36: 0.01695204 | NQ36: 0.00586756 | NR36: 0.003721 | OH36: 60 | OI36: 1.022242309 | OJ36: 0.1305272838 | OL36: 26 | OM36: Bromopropylate | ON36: 10 | OO36: 9.647333333 | OP36: 8.788 | OQ36: 9.237666667 | OR36: 10.10266667 | OS36: 9.809 | OT36: 3 | OU36: 5 | OV36: 0.4766666667 | OW36: -1.543 | OX36: 2.273333333 | OY36: 0.8973333333 | OZ36: 1.02 | PA36: -0.7783333333 | PB36: 1.845 | PC36: -1.178666667 | PD36: -0.5446666667 | PE36: 1.564 | PF36: 0.3016666667 | PG36: -0.302 | PH36: -1.094666667 | PI36: -0.3526666667 | PJ36: -2.584 | PZ36: 9.516933333 | QA36: 95.16933333 | QB36: 0.7910432333 | QC36: 25.945484 | QD36: 10 | QE36: 2.5945484 | QF36: 0 | QG36: 2.5945484 | QH36: 1.610760193 | QI36: 0.1692520202 | QJ36: 16.92520202 | QK36: 15 | QL36: UYGUN | QM36: UYGUN | QN36: 0.401047449 | QP36: 26 | QQ36: Bromopropylate | QR36: 50 | QS36: 51.761 | QT36: 46.045 | QU36: 53.97166667 | QV36: 49.86633333 | QW36: 52.18366667 | QX36: 3 | QY36: 5 | QZ36: 1.09 | RA36: -1.692 | RB36: 0.6433333333 | RC36: 0.7066666667 | RD36: 1.701333333 | RE36: 2.849 | RF36: 3.035 | RG36: -3.181666667 | RH36: -4.670333333 | RI36: -2.567666667 | RJ36: -3.939 | RK36: -1.343 | RL36: 2.538333333 | RM36: 3.963666667 | RN36: 0.8663333333 | SD36: 50.76553333 | SE36: 101.5310667 | SF36: 27.28000693 | SG36: 103.938402 | SH36: 10 | SI36: 10.3938402 | SJ36: 5.628722244 | SK36: 16.02256244 | SL36: 4.002819312 | SM36: 0.07884915314 | SN36: 7.884915314 | SO36: 15 | SP36: UYGUN | SQ36: UYGUN | SR36: 0.08704064531 | SS36: 0.1320292303
A37: 27 | B37: Butachlor | C37: GC-MS/MS | D37: 9031136 | E37: 9804437 | G37: 20856070 | H37: 21464472 | J37: 33007090 | K37: 37470477 | M37: 87138762 | N37: 84518176 | P37: 161540045 | Q37: 165221280 | S37: 327881817 | T37: 330992130 | AC37: 27 | AD37: Butachlor | AE37: 10 | AF37: 8.688 | AG37: 10.897 | AH37: 11.123 | AI37: 8.306 | AJ37: 9.351 | AK37: 9.636 | AL37: 10.959 | AM37: 8.467 | AN37: 11.306 | AO37: 10.731 | AP37: 11.313 | AQ37: 10.771 | AR37: 9.814 | AS37: 8.69 | AT37: 7.841 | BK37: 27 | BL37: Butachlor | BM37: 50 | BN37: 45.722 | BO37: 48.213 | BP37: 40.633 | BQ37: 51.958 | BR37: 49.774 | BS37: 43.282 | BT37: 45.903 | BU37: 52.321 | BV37: 45.262 | BW37: 50.937 | BX37: 49.314 | BY37: 46.988 | BZ37: 51.484 | CA37: 43.618 | CB37: 39.645 | CS37: 27 | CT37: Butachlor | CU37: 10 | CV37: 9.481 | CW37: 8.148 | CX37: 11.63 | CY37: 10.012 | CZ37: 10.44 | DA37: 9.039 | DB37: 10.754 | DC37: 8.552 | DD37: 8.407 | DE37: 9.827 | DF37: 11.175 | DG37: 9.826 | DH37: 9.275 | DI37: 10.648 | DJ37: 9.165 | EA37: 27 | EB37: Butachlor | EC37: 50 | ED37: 50.254 | EE37: 43.689 | EF37: 50.045 | EG37: 43.509 | EH37: 46.149 | EI37: 43.198 | EJ37: 42.614 | EK37: 49.767 | EL37: 44.058 | EM37: 49.931 | EN37: 49.796 | EO37: 47.079 | EP37: 55.323 | EQ37: 55.859 | ER37: 35.625 | FI37: 27 | FJ37: Butachlor | FK37: 10 | FL37: 9.673 | FM37: 1.278991204 | FN37: 96.73 | FO37: 13.22228062 | FP37: uygun | FQ37: uygun | FR37: 10.2198 | FS37: 1.161970611 | FT37: 102.198 | FU37: 11.36979795 | FV37: uygun | FW37: uygun | FX37: 9.6858 | FY37: 1.434989442 | FZ37: 96.858 | GA37: 14.81539411 | GB37: uygun | GC37: uygun | GD37: -------- | GE37: -------- | GF37: -------- | GG37: -------- | GH37: uygun değil | GI37: uygun değil | GJ37: -------- | GK37: -------- | GL37: -------- | GM37: -------- | GN37: uygun değil | GO37: uygun değil | GP37: -------- | GQ37: -------- | GR37: -------- | GS37: -------- | GT37: uygun değil | GU37: uygun değil | GW37: 27 | GX37: Butachlor | GY37: 50 | GZ37: 47.26 | HA37: 4.346900677 | HB37: 94.52 | HC37: 9.19784316 | HD37: uygun | HE37: uygun | HF37: 47.541 | HG37: 3.885781196 | HH37: 95.082 | HI37: 8.173536938 | HJ37: uygun | HK37: uygun | HL37: 46.2098 | HM37: 4.687026371 | HN37: 92.4196 | HO37: 10.14292719 | HP37: uygun | HQ37: uygun | HR37: -------- | HS37: -------- | HT37: -------- | HU37: -------- | HV37: uygun değil | HW37: uygun değil | HX37: -------- | HY37: -------- | HZ37: -------- | IA37: -------- | IB37: uygun değil | IC37: uygun değil | ID37: -------- | IE37: -------- | IF37: -------- | IG37: -------- | IH37: uygun değil | II37: uygun değil | JO37: 27 | JP37: Butachlor | JQ37: 10 | JR37: 0.01721344 | JS37: 0.00804609 | JT37: 0.01261129 | JU37: 0.02869636 | JV37: 0.00421201 | JW37: 0.00132496 | JX37: 0.00919681 | JY37: 0.02350089 | JZ37: 0.01705636 | KA37: 0.00534361 | KB37: 0.01723969 | KC37: 0.00594441 | KD37: 0.00034596 | KE37: 0.017161 | KF37: 0.04661281 | KV37: 0.0073205136 | KW37: 0.0012773476 | KX37: 0.0350962756 | KY37: 0.0015335056 | KZ37: 2.04304e-05 | LA37: 0.0180526096 | LB37: 0.0067141636 | LC37: 0.0021548164 | LD37: 0.0089794576 | LE37: 0.0003511876 | LF37: 0.0001882384 | LG37: 0.0036288576 | LH37: 0.0008809024 | LI37: 0.0162919696 | LJ37: 0.04289041 | LZ37: 0.00269361 | MA37: 0.03429904 | MB37: 0.026569 | MC37: 1.44e-06 | MD37: 0.001936 | ME37: 0.00923521 | MF37: 0.00568516 | MG37: 0.02096704 | MH37: 0.02537649 | MI37: 0.00029929 | MJ37: 0.01380625 | MK37: 0.00030276 | ML37: 0.00525625 | MM37: 0.00419904 | MN37: 0.00697225 | ND37: 2.58064e-05 | NE37: 0.0159314884 | NF37: 8.1e-07 | NG37: 0.0168532324 | NH37: 0.0059320804 | NI37: 0.0185068816 | NJ37: 0.0218211984 | NK37: 2.17156e-05 | NL37: 0.0141229456 | NM37: 1.9044e-06 | NN37: 1.66464e-05 | NO37: 0.0034128964 | NP37: 0.0113337316 | NQ37: 0.0137311524 | NR37: 0.08265625 | OH37: 60 | OI37: 0.7218539456 | OJ37: 0.1096854552 | OL37: 27 | OM37: Butachlor | ON37: 10 | OO37: 9.898333333 | OP37: 9.576 | OQ37: 9.819 | OR37: 9.689 | OS37: 9.810666667 | OT37: 3 | OU37: 5 | OV37: -0.4173333333 | OW37: -1.428 | OX37: 1.811 | OY37: 0.323 | OZ37: 0.6293333333 | PA37: -0.8593333333 | PB37: 1.178 | PC37: -1.267 | PD37: -1.282 | PE37: 0.01633333333 | PF37: 1.276666667 | PG37: 0.25 | PH37: -0.544 | PI37: 0.959 | PJ37: -0.6456666667 | PZ37: 9.7586 | QA37: 97.586 | QB37: 0.04805356667 | QC37: 14.69355933 | QD37: 10 | QE37: 1.469355933 | QF37: 0 | QG37: 1.469355933 | QH37: 1.212169928 | QI37: 0.1242155563 | QJ37: 12.42155563 | QK37: 15 | QL37: UYGUN | QM37: UYGUN | QN37: 0.2160130619 | QP37: 27 | QQ37: Butachlor | QR37: 50 | QS37: 47.74933333 | QT37: 44.46066667 | QU37: 51.71166667 | QV37: 47.80866667 | QW37: 43.90166667 | QX37: 3 | QY37: 5 | QZ37: 2.504666667 | RA37: -0.7716666667 | RB37: -1.666666667 | RC37: -4.299666667 | RD37: 2.247333333 | RE37: -4.551333333 | RF37: -1.846666667 | RG37: -1.944666667 | RH37: -3.750666667 | RI37: 6.029333333 | RJ37: 2.046666667 | RK37: 2.618333333 | RL37: 3.611333333 | RM37: 8.050333333 | RN37: -8.276666667 | SD37: 47.1264 | SE37: 94.2528 | SF37: 29.53743257 | SG37: 268.9084653 | SH37: 10 | SI37: 26.89084653 | SJ37: 0.8821953444 | SK37: 27.77304188 | SL37: 5.270013461 | SM37: 0.1118272022 | SN37: 11.18272022 | SO37: 15 | SP37: UYGUN | SQ37: UYGUN | SR37: 0.1750745241 | SS37: 0.1181838136
A38: 28 | B38: Butafenacil | C38: GC-MS/MS | D38: 110119 | E38: 115916 | G38: 254587 | H38: 250723 | J38: 419331 | K38: 475266 | M38: 993351 | N38: 1023297 | P38: 1851847 | Q38: 1954380 | S38: 3679414 | T38: 3879427 | AC38: 28 | AD38: Butafenacil | AE38: 10 | AF38: 9.593 | AG38: 11.906 | AH38: 11.338 | AI38: 7.996 | AJ38: 10.229 | AK38: 11.772 | AL38: 11.982 | AM38: 8.193 | AN38: 11.753 | AO38: 11.69 | AP38: 10.746 | AQ38: 10.923 | AR38: 8.132 | AS38: 8.049 | AT38: 7.089 | BK38: 28 | BL38: Butafenacil | BM38: 50 | BN38: 39.704 | BO38: 42.696 | BP38: 42.04 | BQ38: 53.446 | BR38: 50.207 | BS38: 37.835 | BT38: 47.43 | BU38: 50.273 | BV38: 46.099 | BW38: 47.935 | BX38: 43.603 | BY38: 40.063 | BZ38: 44.247 | CA38: 39.301 | CB38: 38.361 | CS38: 28 | CT38: Butafenacil | CU38: 10 | CV38: 11.536 | CW38: 7.755 | CX38: 11.144 | CY38: 10.885 | CZ38: 11.53 | DA38: 9.261 | DB38: 10.389 | DC38: 8.911 | DD38: 10.683 | DE38: 11.436 | DF38: 10.875 | DG38: 9.324 | DH38: 7.314 | DI38: 9.276 | DJ38: 7.513 | EA38: 28 | EB38: Butafenacil | EC38: 50 | ED38: 47.626 | EE38: 40.707 | EF38: 51.414 | EG38: 51.926 | EH38: 56.176 | EI38: 58.205 | EJ38: 47.689 | EK38: 44.05 | EL38: 42.706 | EM38: 44.552 | EN38: 53.459 | EO38: 53.573 | EP38: 48.984 | EQ38: 58.342 | ER38: 55.26 | FI38: 28 | FJ38: Butafenacil | FK38: 10 | FL38: 10.2124 | FM38: 1.535546906 | FN38: 102.124 | FO38: 15.03610225 | FP38: uygun | FQ38: uygun | FR38: 11.078 | FS38: 1.616496675 | FT38: 110.78 | FU38: 14.5919541 | FV38: uygun | FW38: uygun | FX38: 8.9878 | FY38: 1.736047724 | FZ38: 89.878 | GA38: 19.31560253 | GB38: uygun | GC38: uygun | GD38: -------- | GE38: -------- | GF38: -------- | GG38: -------- | GH38: uygun değil | GI38: uygun değil | GJ38: -------- | GK38: -------- | GL38: -------- | GM38: -------- | GN38: uygun değil | GO38: uygun değil | GP38: -------- | GQ38: -------- | GR38: -------- | GS38: -------- | GT38: uygun değil | GU38: uygun değil | GW38: 28 | GX38: Butafenacil | GY38: 50 | GZ38: 45.6186 | HA38: 5.88753062 | HB38: 91.2372 | HC38: 12.90598708 | HD38: uygun | HE38: uygun | HF38: 45.9144 | HG38: 4.761513499 | HH38: 91.8288 | HI38: 10.37041429 | HJ38: uygun | HK38: uygun | HL38: 41.115 | HM38: 2.644871641 | HN38: 82.23 | HO38: 6.432863046 | HP38: uygun | HQ38: uygun | HR38: -------- | HS38: -------- | HT38: -------- | HU38: -------- | HV38: uygun değil | HW38: uygun değil | HX38: -------- | HY38: -------- | HZ38: -------- | IA38: -------- | IB38: uygun değil | IC38: uygun değil | ID38: -------- | IE38: -------- | IF38: -------- | IG38: -------- | IH38: uygun değil | II38: uygun değil | JO38: 28 | JP38: Butafenacil | JQ38: 10 | JR38: 0.00165649 | JS38: 0.03632836 | JT38: 0.01790244 | JU38: 0.04016016 | JV38: 0.00052441 | JW38: 0.03139984 | JX38: 0.03928324 | JY38: 0.03265249 | JZ38: 0.03073009 | KA38: 0.028561 | KB38: 0.00556516 | KC38: 0.00851929 | KD38: 0.03489424 | KE38: 0.03806401 | KF38: 0.08473921 | KV38: 0.0424030464 | KW38: 0.0213393664 | KX38: 0.02534464 | KY38: 0.0047499664 | KZ38: 1.71396e-05 | LA38: 0.05919489 | LB38: 0.00264196 | LC38: 2.98116e-05 | LD38: 0.0060871204 | LE38: 0.00170569 | LF38: 0.0163686436 | LG38: 0.0394975876 | LH38: 0.0132388036 | LI38: 0.0457874404 | LJ38: 0.0541865284 | LZ38: 0.02359296 | MA38: 0.05040025 | MB38: 0.01308736 | MC38: 0.00783225 | MD38: 0.023409 | ME38: 0.00546121 | MF38: 0.00151321 | MG38: 0.01185921 | MH38: 0.00466489 | MI38: 0.02062096 | MJ38: 0.00765625 | MK38: 0.00456976 | ML38: 0.07214596 | MM38: 0.00524176 | MN38: 0.06185169 | ND38: 0.0022543504 | NE38: 0.0345439396 | NF38: 0.0007997584 | NG38: 0.0014837904 | NH38: 0.0152571904 | NI38: 0.02692881 | NJ38: 0.0021362884 | NK38: 0.014161 | NL38: 0.0212809744 | NM38: 0.0118722816 | NN38: 0.0047858724 | NO38: 0.0051065316 | NP38: 0.0004129024 | NQ38: 0.0278355856 | NR38: 0.01106704 | OH38: 60 | OI38: 1.2574061 | OJ38: 0.1447645272 | OL38: 28 | OM38: Butafenacil | ON38: 10 | OO38: 10.55733333 | OP38: 9.156 | OQ38: 9.123 | OR38: 10.28133333 | OS38: 10.15966667 | OT38: 3 | OU38: 5 | OV38: 0.9786666667 | OW38: -1.401 | OX38: 2.021 | OY38: 0.6036666667 | OZ38: 1.370333333 | PA38: -1.296333333 | PB38: 1.233 | PC38: -0.212 | PD38: 0.4016666667 | PE38: 1.276333333 | PF38: 0.3176666667 | PG38: 0.168 | PH38: -1.809 | PI38: -1.005333333 | PJ38: -2.646666667 | PZ38: 9.855466667 | QA38: 98.55466667 | QB38: 1.344208433 | QC38: 25.70049 | QD38: 10 | QE38: 2.570049 | QF38: 0 | QG38: 2.570049 | QH38: 1.603137237 | QI38: 0.1626647718 | QJ38: 16.26647718 | QK38: 15 | QL38: UYGUN | QM38: UYGUN | QN38: 0.370437592 | QP38: 28 | QQ38: Butafenacil | QR38: 50 | QS38: 53.09666667 | QT38: 47.323 | QU38: 48.14933333 | QV38: 50.99133333 | QW38: 51.996 | QX38: 3 | QY38: 5 | QZ38: -5.470666667 | RA38: -6.616 | RB38: 3.264666667 | RC38: 0.9346666667 | RD38: 4.18 | RE38: 5.108333333 | RF38: 0.366 | RG38: -4.099333333 | RH38: -8.285333333 | RI38: -7.444 | RJ38: 0.3623333333 | RK38: 6.25 | RL38: 0.8346666667 | RM38: 7.350666667 | RN38: 3.264 | SD38: 50.31126667 | SE38: 100.6225333 | SF38: 18.49722273 | SG38: 374.373594 | SH38: 10 | SI38: 37.4373594 | SJ38: 0 | SK38: 37.4373594 | SL38: 6.118607636 | SM38: 0.1216150584 | SN38: 12.16150584 | SO38: 15 | SP38: UYGUN | SQ38: UYGUN | SR38: 0.2070631141 | SS38: 0.143614154
A39: 29 | B39: Butamifos | C39: GC-MS/MS | D39: 74727 | E39: 73076 | G39: 141800 | H39: 154619 | J39: 258352 | K39: 270109 | M39: 731405 | N39: 725810 | P39: 1279885 | Q39: 1344395 | S39: 2744352 | T39: 2493989 | AC39: 29 | AD39: Butamifos | AE39: 10 | AF39: 9.104 | AG39: 10.992 | AH39: 11.971 | AI39: 8.553 | AJ39: 9.54 | AK39: 9.93 | AL39: 11.402 | AM39: 8.674 | AN39: 11.555 | AO39: 11.213 | AP39: 10.939 | AQ39: 10.69 | AR39: 10.625 | AS39: 9.856 | AT39: 9.148 | BK39: 29 | BL39: Butamifos | BM39: 50 | BN39: 41.718 | BO39: 45.686 | BP39: 35.893 | BQ39: 49.877 | BR39: 46.372 | BS39: 39.05 | BT39: 42.951 | BU39: 49.944 | BV39: 42.287 | BW39: 46.946 | BX39: 43.355 | BY39: 41.63 | BZ39: 47.099 | CA39: 38.432 | CB39: 36.135 | CS39: 29 | CT39: Butamifos | CU39: 10 | CV39: 10.025 | CW39: 7.521 | CX39: 11.689 | CY39: 10.588 | CZ39: 10.769 | DA39: 9.708 | DB39: 11.28 | DC39: 9.133 | DD39: 9.035 | DE39: 11.223 | DF39: 9.789 | DG39: 7.763 | DH39: 8.386 | DI39: 9.215 | DJ39: 7.552 | EA39: 29 | EB39: Butamifos | EC39: 50 | ED39: 46.19 | EE39: 40.684 | EF39: 45.254 | EG39: 40.892 | EH39: 45.643 | EI39: 43.612 | EJ39: 42.363 | EK39: 45.109 | EL39: 41.606 | EM39: 43.81 | EN39: 52.774 | EO39: 49.421 | EP39: 58.293 | EQ39: 58.385 | ER39: 36.039 | FI39: 29 | FJ39: Butamifos | FK39: 10 | FL39: 10.032 | FM39: 1.411737405 | FN39: 100.32 | FO39: 14.07234255 | FP39: uygun | FQ39: uygun | FR39: 10.5548 | FS39: 1.23279751 | FT39: 105.548 | FU39: 11.67997034 | FV39: uygun | FW39: uygun | FX39: 10.2516 | FY39: 0.7379995257 | FZ39: 102.516 | GA39: 7.198871647 | GB39: uygun | GC39: uygun | GD39: -------- | GE39: -------- | GF39: -------- | GG39: -------- | GH39: uygun değil | GI39: uygun değil | GJ39: -------- | GK39: -------- | GL39: -------- | GM39: -------- | GN39: uygun değil | GO39: uygun değil | GP39: -------- | GQ39: -------- | GR39: -------- | GS39: -------- | GT39: uygun değil | GU39: uygun değil | GW39: 29 | GX39: Butamifos | GY39: 50 | GZ39: 43.9092 | HA39: 5.33614699 | HB39: 87.8184 | HC39: 12.15268552 | HD39: uygun | HE39: uygun | HF39: 44.2356 | HG39: 4.250581878 | HH39: 88.4712 | HI39: 9.608961736 | HJ39: uygun | HK39: uygun | HL39: 41.3302 | HM39: 4.267857038 | HN39: 82.6604 | HO39: 10.32624337 | HP39: uygun | HQ39: uygun | HR39: -------- | HS39: -------- | HT39: -------- | HU39: -------- | HV39: uygun değil | HW39: uygun değil | HX39: -------- | HY39: -------- | HZ39: -------- | IA39: -------- | IB39: uygun değil | IC39: uygun değil | ID39: -------- | IE39: -------- | IF39: -------- | IG39: -------- | IH39: uygun değil | II39: uygun değil | JO39: 29 | JP39: Butamifos | JQ39: 10 | JR39: 0.00802816 | JS39: 0.00984064 | JT39: 0.03884841 | JU39: 0.02093809 | JV39: 0.002116 | JW39: 4.9e-05 | JX39: 0.01965604 | JY39: 0.01758276 | JZ39: 0.02418025 | KA39: 0.01471369 | KB39: 0.00881721 | KC39: 0.004761 | KD39: 0.00390625 | KE39: 0.00020736 | KF39: 0.00725904 | KV39: 0.0274366096 | KW39: 0.0074442384 | KX39: 0.0796029796 | KY39: 6.0516e-06 | KZ39: 0.0052649536 | LA39: 0.047961 | LB39: 0.0198753604 | LC39: 1.2544e-06 | LD39: 0.0237961476 | LE39: 0.0037307664 | LF39: 0.01766241 | LG39: 0.02802276 | LH39: 0.0033663204 | LI39: 0.0535274496 | LJ39: 0.07689529 | LZ39: 6.25e-06 | MA39: 0.06145441 | MB39: 0.02852721 | MC39: 0.00345744 | MD39: 0.00591361 | ME39: 0.00085264 | MF39: 0.016384 | MG39: 0.00751689 | MH39: 0.00931225 | MI39: 0.01495729 | MJ39: 0.00044521 | MK39: 0.05004169 | ML39: 0.02604996 | MM39: 0.00616225 | MN39: 0.05992704 | ND39: 0.00580644 | NE39: 0.0347151424 | NF39: 0.0090098064 | NG39: 0.0331822656 | NH39: 0.0075933796 | NI39: 0.0163226176 | NJ39: 0.0233295076 | NK39: 0.0095687524 | NL39: 0.0281836944 | NM39: 0.01532644 | NN39: 0.0030780304 | NO39: 0.0001340964 | NP39: 0.0275095396 | NQ39: 0.02812329 | NR39: 0.0779638084 | OH39: 60 | OI39: 1.186352442 | OJ39: 0.1406148666 | OL39: 29 | OM39: Butamifos | ON39: 10 | OO39: 9.840666667 | OP39: 8.854666667 | OQ39: 9.736 | OR39: 9.612666667 | OS39: 9.848 | OT39: 3 | OU39: 5 | OV39: 0.1843333333 | OW39: -1.333666667 | OX39: 1.953 | OY39: 0.9753333333 | OZ39: 0.921 | PA39: -0.1326666667 | PB39: 2.425333333 | PC39: -0.603 | PD39: -0.5776666667 | PE39: 1.375 | PF39: -0.05166666667 | PG39: -1.091666667 | PH39: -1.35 | PI39: -0.3976666667 | PJ39: -2.296 | PZ39: 9.5784 | QA39: 95.784 | QB39: 0.5184524 | QC39: 24.360806 | QD39: 10 | QE39: 2.4360806 | QF39: 0 | QG39: 2.4360806 | QH39: 1.560794862 | QI39: 0.1629494343 | QJ39: 16.29494343 | QK39: 15 | QL39: UYGUN | QM39: UYGUN | QN39: 0.371735254 | QP39: 29 | QQ39: Butamifos | QR39: 50 | QS39: 47.52533333 | QT39: 44.156 | QU39: 49.552 | QV39: 46.961 | QW39: 41.83066667 | QX39: 3 | QY39: 5 | QZ39: -1.335333333 | RA39: -3.472 | RB39: -4.298 | RC39: -6.069 | RD39: 3.812333333 | RE39: -3.913333333 | RF39: -1.793 | RG39: -4.443 | RH39: -5.355 | RI39: 1.979333333 | RJ39: 5.248666667 | RK39: 5.265 | RL39: 8.741 | RM39: 11.424 | RN39: -5.791666667 | SD39: 46.005 | SE39: 92.01 | SF39: 27.48781367 | SG39: 450.2653973 | SH39: 10 | SI39: 45.02653973 | SJ39: 0 | SK39: 45.02653973 | SL39: 6.710181796 | SM39: 0.1458576632 | SN39: 14.58576632 | SO39: 15 | SP39: UYGUN | SQ39: UYGUN | SR39: 0.2978424108 | SS39: 0.1546398656
A40: 30 | B40: Butralin | C40: GC-MS/MS | D40: 1298415 | E40: 1318039 | G40: 3426889 | H40: 3472099 | J40: 5868395 | K40: 5698399 | M40: 15434447 | N40: 15196828 | P40: 28091965 | Q40: 27953294 | S40: 56343686 | T40: 48733272 | AC40: 30 | AD40: Butralin | AE40: 10 | AF40: 9.92 | AG40: 11.3 | AH40: 11.497 | AI40: 9.462 | AJ40: 10.052 | AK40: 10.509 | AL40: 11.746 | AM40: 9.647 | AN40: 11.609 | AO40: 11.276 | AP40: 10.989 | AQ40: 10.317 | AR40: 10.716 | AS40: 9.549 | AT40: 9.019 | BK40: 30 | BL40: Butralin | BM40: 50 | BN40: 42.384 | BO40: 43.834 | BP40: 38.475 | BQ40: 49.12 | BR40: 41.538 | BS40: 41.128 | BT40: 41.153 | BU40: 47.069 | BV40: 40.587 | BW40: 44.716 | BX40: 45.332 | BY40: 43.824 | BZ40: 47.909 | CA40: 41.599 | CB40: 36.292 | CS40: 30 | CT40: Butralin | CU40: 10 | CV40: 10.397 | CW40: 9.927 | CX40: 11.712 | CY40: 11.221 | CZ40: 11.425 | DA40: 10.435 | DB40: 11.7 | DC40: 10.371 | DD40: 10.579 | DE40: 10.65 | DF40: 9.574 | DG40: 8.568 | DH40: 7.123 | DI40: 8.841 | DJ40: 7.022 | EA40: 30 | EB40: Butralin | EC40: 50 | ED40: 44.273 | EE40: 39.689 | EF40: 45.009 | EG40: 37.504 | EH40: 38.417 | EI40: 39.679 | EJ40: 36.543 | EK40: 44.931 | EL40: 37.794 | EM40: 44.373 | EN40: 39.638 | EO40: 47.568 | EP40: 53.246 | EQ40: 44.215 | ER40: 51.41 | FI40: 30 | FJ40: Butralin | FK40: 10 | FL40: 10.4462 | FM40: 0.8991780691 | FN40: 104.462 | FO40: 8.607704899 | FP40: uygun | FQ40: uygun | FR40: 10.9574 | FS40: 0.8755268699 | FT40: 109.574 | FU40: 7.990279354 | FV40: uygun | FW40: uygun | FX40: 10.118 | FY40: 0.8196657855 | FZ40: 101.18 | GA40: 8.101065285 | GB40: uygun | GC40: uygun | GD40: -------- | GE40: -------- | GF40: -------- | GG40: -------- | GH40: uygun değil | GI40: uygun değil | GJ40: -------- | GK40: -------- | GL40: -------- | GM40: -------- | GN40: uygun değil | GO40: uygun değil | GP40: -------- | GQ40: -------- | GR40: -------- | GS40: -------- | GT40: uygun değil | GU40: uygun değil | GW40: 30 | GX40: Butralin | GY40: 50 | GZ40: 43.0702 | HA40: 3.90889501 | HB40: 86.1404 | HC40: 9.075637007 | HD40: uygun | HE40: uygun | HF40: 42.9306 | HG40: 2.837943675 | HH40: 85.8612 | HI40: 6.610538112 | HJ40: uygun | HK40: uygun | HL40: 42.9912 | HM40: 4.392469658 | HN40: 85.9824 | HO40: 10.21713667 | HP40: uygun | HQ40: uygun | HR40: -------- | HS40: -------- | HT40: -------- | HU40: -------- | HV40: uygun değil | HW40: uygun değil | HX40: -------- | HY40: -------- | HZ40: -------- | IA40: -------- | IB40: uygun değil | IC40: uygun değil | ID40: -------- | IE40: -------- | IF40: -------- | IG40: -------- | IH40: uygun değil | II40: uygun değil | JO40: 30 | JP40: Butralin | JQ40: 10 | JR40: 6.4e-05 | JS40: 0.0169 | JT40: 0.02241009 | JU40: 0.00289444 | JV40: 2.704e-05 | JW40: 0.00259081 | JX40: 0.03048516 | JY40: 0.00124609 | JZ40: 0.02588881 | KA40: 0.01628176 | KB40: 0.00978121 | KC40: 0.00100489 | KD40: 0.00512656 | KE40: 0.00203401 | KF40: 0.00962361 | KV40: 0.0232013824 | KW40: 0.0152078224 | KX40: 0.05313025 | KY40: 0.00030976 | KZ40: 0.0286421776 | LA40: 0.0314849536 | LB40: 0.0313077636 | LC40: 0.0034363044 | LD40: 0.0354418276 | LE40: 0.0111682624 | LF40: 0.0087160896 | LG40: 0.0152571904 | LH40: 0.0017489124 | LI40: 0.0282307204 | LJ40: 0.0751637056 | LZ40: 0.00157609 | MA40: 5.329e-05 | MB40: 0.02930944 | MC40: 0.01490841 | MD40: 0.02030625 | ME40: 0.00189225 | MF40: 0.0289 | MG40: 0.00137641 | MH40: 0.00335241 | MI40: 0.004225 | MJ40: 0.00181476 | MK40: 0.02050624 | ML40: 0.08277129 | MM40: 0.01343281 | MN40: 0.08868484 | ND40: 0.0131194116 | NE40: 0.0425266884 | NF40: 0.0099640324 | NG40: 0.0624600064 | NH40: 0.0536663556 | NI40: 0.0426092164 | NJ40: 0.0724363396 | NK40: 0.0102779044 | NL40: 0.0595945744 | NM40: 0.0126652516 | NN40: 0.0429484176 | NO40: 0.0023658496 | NP40: 0.0042146064 | NQ40: 0.01338649 | NR40: 0.00079524 | OH40: 60 | OI40: 1.264945477 | OJ40: 0.1451978809 | OL40: 30 | OM40: Butralin | ON40: 10 | OO40: 10.13533333 | OP40: 10.065 | OQ40: 9.735333333 | OR40: 10.21366667 | OS40: 9.699 | OT40: 3 | OU40: 5 | OV40: 0.2616666667 | OW40: -0.138 | OX40: 1.976666667 | OY40: 1.007333333 | OZ40: 1.726 | PA40: 0.2996666667 | PB40: 1.635 | PC40: 0.6356666667 | PD40: 0.3653333333 | PE40: 0.951 | PF40: -0.5613333333 | PG40: -1.497 | PH40: -2.612333333 | PI40: -1.372666667 | PJ40: -2.677 | PZ40: 9.969666667 | QA40: 99.69666667 | QB40: 0.1681818333 | QC40: 30.62442 | QD40: 10 | QE40: 3.062442 | QF40: 0 | QG40: 3.062442 | QH40: 1.749983428 | QI40: 0.1755307862 | QJ40: 15 | QK40: 15 | QL40: UYGUN | QM40: UYGUN | QN40: 0.4313547968 | QP40: 30 | QQ40: Butralin | QR40: 50 | QS40: 41.19666667 | QT40: 41.26666667 | QU40: 47.72866667 | QV40: 39.83766667 | QW40: 44.73333333 | QX40: 3 | QY40: 5 | QZ40: 3.076333333 | RA40: -1.577666667 | RB40: -2.719666667 | RC40: -2.333666667 | RD40: -6.316333333 | RE40: -1.517666667 | RF40: -4.723666667 | RG40: -2.797666667 | RH40: -2.043666667 | RI40: -0.3603333333 | RJ40: -1.558666667 | RK40: 6.301333333 | RL40: 5.517333333 | RM40: 4.377333333 | RN40: 6.676666667 | SD40: 42.9526 | SE40: 85.9052 | SF40: 31.20773007 | SG40: 237.7573393 | SH40: 10 | SI40: 23.77573393 | SJ40: 2.477332044 | SK40: 26.25306598 | SL40: 5.123774583 | SM40: 0.1192890438 | SN40: 14.424 | SO40: 15 | SP40: UYGUN | SQ40: UYGUN | SR40: 0.1992182636 | SS40: 0.150068206
A41: 31 | B41: Butylate | C41: GC-MS/MS | D41: 1144577 | E41: 1193254 | G41: 2751756 | H41: 2701663 | J41: 4539433 | K41: 4308776 | M41: 11192888 | N41: 10749015 | P41: 23041812 | Q41: 20658381 | S41: 37859455 | T41: 39743667 | AC41: 31 | AD41: Butylate | AE41: 10 | AF41: 10.153 | AG41: 11.159 | AH41: 11.593 | AI41: 10.197 | AJ41: 10.685 | AK41: 10.149 | AL41: 10.714 | AM41: 9.414 | AN41: 9.541 | AO41: 9.052 | AP41: 11.481 | AQ41: 7.619 | AR41: 10.279 | AS41: 9.176 | AT41: 8.717 | BK41: 31 | BL41: Butylate | BM41: 50 | BN41: 41.299 | BO41: 50.743 | BP41: 45.447 | BQ41: 45.753 | BR41: 42.365 | BS41: 40.695 | BT41: 43.031 | BU41: 52.645 | BV41: 37.924 | BW41: 55.126 | BX41: 56.032 | BY41: 58.68 | BZ41: 57.051 | CA41: 55.511 | CB41: 48.615 | CS41: 31 | CT41: Butylate | CU41: 10 | CV41: 11.567 | CW41: 11.36 | CX41: 10.025 | CY41: 11.47 | CZ41: 11.343 | DA41: 11.526 | DB41: 11.37 | DC41: 11.793 | DD41: 11.399 | DE41: 11.261 | DF41: 10.594 | DG41: 8.412 | DH41: 8.818 | DI41: 10.012 | DJ41: 8 | EA41: 31 | EB41: Butylate | EC41: 50 | ED41: 49.022 | EE41: 45.222 | EF41: 52.193 | EG41: 50.696 | EH41: 50.372 | EI41: 44.269 | EJ41: 40.506 | EK41: 43.123 | EL41: 45.938 | EM41: 55.579 | EN41: 47.59 | EO41: 44.67 | EP41: 50.878 | EQ41: 52.029 | ER41: 46.13 | FI41: 31 | FJ41: Butylate | FK41: 10 | FL41: 10.7574 | FM41: 0.6213089409 | FN41: 107.574 | FO41: 5.775642264 | FP41: uygun | FQ41: uygun | FR41: 9.774 | FS41: 0.6575328889 | FT41: 97.74 | FU41: 6.727367392 | FV41: uygun | FW41: uygun | FX41: 9.4544 | FY41: 1.481302737 | FZ41: 94.544 | GA41: 15.66786615 | GB41: uygun | GC41: uygun | GD41: -------- | GE41: -------- | GF41: -------- | GG41: -------- | GH41: uygun değil | GI41: uygun değil | GJ41: -------- | GK41: -------- | GL41: -------- | GM41: -------- | GN41: uygun değil | GO41: uygun değil | GP41: -------- | GQ41: -------- | GR41: -------- | GS41: -------- | GT41: uygun değil | GU41: uygun değil | GW41: 31 | GX41: Butylate | GY41: 50 | GZ41: 45.1214 | HA41: 3.684962795 | HB41: 90.2428 | HC41: 8.166774069 | HD41: uygun | HE41: uygun | HF41: 45.8842 | HG41: 7.575496928 | HH41: 91.7684 | HI41: 16.5100338 | HJ41: uygun | HK41: uygun | HL41: 55.1778 | HM41: 3.862813314 | HN41: 110.3556 | HO41: 7.000665692 | HP41: uygun | HQ41: uygun | HR41: -------- | HS41: -------- | HT41: -------- | HU41: -------- | HV41: uygun değil | HW41: uygun değil | HX41: -------- | HY41: -------- | HZ41: -------- | IA41: -------- | IB41: uygun değil | IC41: uygun değil | ID41: -------- | IE41: -------- | IF41: -------- | IG41: -------- | IH41: uygun değil | II41: uygun değil | JO41: 31 | JP41: Butylate | JQ41: 10 | JR41: 0.00023409 | JS41: 0.01343281 | JT41: 0.02537649 | JU41: 0.00038809 | JV41: 0.00469225 | JW41: 0.00022201 | JX41: 0.00509796 | JY41: 0.00343396 | JZ41: 0.00210681 | KA41: 0.00898704 | KB41: 0.02193361 | KC41: 0.05669161 | KD41: 0.00077841 | KE41: 0.00678976 | KF41: 0.01646089 | KV41: 0.0302829604 | KW41: 0.0002208196 | KX41: 0.0082919236 | KY41: 0.0072148036 | KZ41: 0.02331729 | LA41: 0.03463321 | LB41: 0.0194267844 | LC41: 0.00279841 | LD41: 0.0583319104 | LE41: 0.0105103504 | LF41: 0.0145540096 | LG41: 0.03013696 | LH41: 0.0198866404 | LI41: 0.0121484484 | LJ41: 0.00076729 | LZ41: 0.02455489 | MA41: 0.018496 | MB41: 6.25e-06 | MC41: 0.021609 | MD41: 0.01803649 | ME41: 0.02328676 | MF41: 0.018769 | MG41: 0.03214849 | MH41: 0.01957201 | MI41: 0.01590121 | MJ41: 0.00352836 | MK41: 0.02521744 | ML41: 0.01397124 | MM41: 1.44e-06 | MN41: 0.04 | ND41: 0.0003825936 | NE41: 0.0091317136 | NF41: 0.0019236996 | NG41: 0.0001937664 | NH41: 5.53536e-05 | NI41: 0.0131377444 | NJ41: 0.0360544144 | NK41: 0.0189172516 | NL41: 0.0065999376 | NM41: 0.0124500964 | NN41: 0.00232324 | NO41: 0.01136356 | NP41: 0.0003083536 | NQ41: 0.0016467364 | NR41: 0.00599076 | OH41: 60 | OI41: 0.834725402 | OJ41: 0.1179495232 | OL41: 31 | OM41: Butylate | ON41: 10 | OO41: 11.229 | OP41: 10.38066667 | OQ41: 10.212 | OR41: 10.96033333 | OS41: 10.20133333 | OT41: 3 | OU41: 5 | OV41: 0.338 | OW41: 0.9793333333 | OX41: -0.187 | OY41: 0.5096666667 | OZ41: 1.141666667 | PA41: 0.297 | PB41: 0.9893333333 | PC41: 1.581 | PD41: 0.4386666667 | PE41: 1.059666667 | PF41: -0.635 | PG41: -1.968666667 | PH41: -1.394 | PI41: -0.9483333333 | PJ41: -2.201333333 | PZ41: 10.59666667 | QA41: 105.9666667 | QB41: 0.6622588333 | QC41: 19.520656 | QD41: 10 | QE41: 1.9520656 | QF41: 0 | QG41: 1.9520656 | QH41: 1.397163412 | QI41: 0.1318493311 | QJ41: =QI41*100 -> 13.18493311 | QK41: 15 | QL41: UYGUN | QM41: UYGUN | QN41: 0.2433794456 | QP41: 31 | QQ41: Butylate | QR41: 50 | QS41: 46.96033333 | QT41: 43.466 | QU41: 48.73133333 | QV41: 49.55433333 | QW41: 50.69366667 | QX41: 3 | QY41: 5 | QZ41: 2.061666667 | RA41: 1.756 | RB41: 3.461666667 | RC41: 1.141666667 | RD41: -0.3216666667 | RE41: -2.691333333 | RF41: -2.96 | RG41: -5.608333333 | RH41: -3.616333333 | RI41: 4.885333333 | RJ41: 0.6296666667 | RK41: 1.204 | RL41: 2.146666667 | RM41: 2.474666667 | RN41: -4.563666667 | SD41: 47.88113333 | SE41: 95.76226667 | SF41: 23.83054277 | SG41: 138.5319427 | SH41: 10 | SI41: 13.85319427 | SJ41: 3.325782833 | SK41: 17.1789771 | SL41: 4.14475296 | SM41: 0.08656338461 | SN41: 10.24 | SO41: 15 | SP41: UYGUN | SQ41: UYGUN | SR41: 0.1049050738 | SS41: 0.1115290672
A42: 32 | B42: Cadusafos | C42: GC-MS/MS | D42: 1808438 | E42: 1775112 | G42: 5716616 | H42: 5971293 | J42: 10546073 | K42: 11512844 | M42: 30199202 | N42: 32484121 | P42: 62278609 | Q42: 60023792 | S42: 127828692 | T42: 128337108 | AC42: 32 | AD42: Cadusafos | AE42: 10 | AF42: 9.472 | AG42: 11.198 | AH42: 11.42 | AI42: 9.397 | AJ42: 9.982 | AK42: 10.576 | AL42: 11.87 | AM42: 9.168 | AN42: 11.521 | AO42: 10.997 | AP42: 11.792 | AQ42: 8.671 | AR42: 10.959 | AS42: 9.603 | AT42: 8.782 | BK42: 32 | BL42: Cadusafos | BM42: 50 | BN42: 45.872 | BO42: 46.809 | BP42: 40.985 | BQ42: 47.045 | BR42: 39.291 | BS42: 39.948 | BT42: 42.734 | BU42: 50.005 | BV42: 36.343 | BW42: 48.955 | BX42: 48.116 | BY42: 46.324 | BZ42: 48.597 | CA42: 47.13 | CB42: 36.521 | CS42: 32 | CT42: Cadusafos | CU42: 10 | CV42: 10.578 | CW42: 9.535 | CX42: 11.337 | CY42: 10.871 | CZ42: 11.123 | DA42: 9.872 | DB42: 11.399 | DC42: 9.722 | DD42: 9.819 | DE42: 10.861 | DF42: 11.325 | DG42: 10.971 | DH42: 9.609 | DI42: 10.53 | DJ42: 8.641 | EA42: 32 | EB42: Cadusafos | EC42: 50 | ED42: 48.61 | EE42: 38.123 | EF42: 48.951 | EG42: 40.476 | EH42: 35.24 | EI42: 39.418 | EJ42: 35.098 | EK42: 47.202 | EL42: 42.124 | EM42: 49.667 | EN42: 46.78 | EO42: 41.194 | EP42: 50.782 | EQ42: 49.895 | ER42: 35.759 | FI42: 32 | FJ42: Cadusafos | FK42: 10 | FL42: 10.2938 | FM42: 0.9569128487 | FN42: 102.938 | FO42: 9.296011664 | FP42: uygun | FQ42: uygun | FR42: 10.8264 | FS42: 1.050436243 | FT42: 108.264 | FU42: 9.702544176 | FV42: uygun | FW42: uygun | FX42: 9.9614 | FY42: 1.37212146 | FZ42: 99.614 | GA42: 13.77438372 | GB42: uygun | GC42: uygun | GD42: -------- | GE42: -------- | GF42: -------- | GG42: -------- | GH42: uygun değil | GI42: uygun değil | GJ42: -------- | GK42: -------- | GL42: -------- | GM42: -------- | GN42: uygun değil | GO42: uygun değil | GP42: -------- | GQ42: -------- | GR42: -------- | GS42: -------- | GT42: uygun değil | GU42: uygun değil | GW42: 32 | GX42: Cadusafos | GY42: 50 | GZ42: 44.0004 | HA42: 3.603185924 | HB42: 88.0008 | HC42: 8.188984472 | HD42: uygun | HE42: uygun | HF42: 43.597 | HG42: 5.840614565 | HH42: 87.194 | HI42: 13.39682677 | HJ42: uygun | HK42: uygun | HL42: 45.3376 | HM42: 5.006528568 | HN42: 90.6752 | HO42: 11.0427737 | HP42: uygun | HQ42: uygun | HR42: -------- | HS42: -------- | HT42: -------- | HU42: -------- | HV42: uygun değil | HW42: uygun değil | HX42: -------- | HY42: -------- | HZ42: -------- | IA42: -------- | IB42: uygun değil | IC42: uygun değil | ID42: -------- | IE42: -------- | IF42: -------- | IG42: -------- | IH42: uygun değil | II42: uygun değil | JO42: 32 | JP42: Cadusafos | JQ42: 10 | JR42: 0.00278784 | JS42: 0.01435204 | JT42: 0.020164 | JU42: 0.00363609 | JV42: 3.24e-06 | JW42: 0.00331776 | JX42: 0.034969 | JY42: 0.00692224 | JZ42: 0.02313441 | KA42: 0.00994009 | KB42: 0.03211264 | KC42: 0.01766241 | KD42: 0.00919681 | KE42: 0.00157609 | KF42: 0.01483524 | KV42: 0.0068161536 | KW42: 0.0040729924 | KX42: 0.03250809 | KY42: 0.00349281 | KZ42: 0.0458730724 | LA42: 0.0404170816 | LB42: 0.0211179024 | LC42: 1e-08 | LD42: 0.0746054596 | LE42: 0.00043681 | LF42: 0.0014197824 | LG42: 0.0054051904 | LH42: 0.0007873636 | LI42: 0.00329476 | LJ42: 0.0726733764 | LZ42: 0.00334084 | MA42: 0.00216225 | MB42: 0.01787569 | MC42: 0.00758641 | MD42: 0.01261129 | ME42: 0.00016384 | MF42: 0.01957201 | MG42: 0.00077284 | MH42: 0.00032761 | MI42: 0.00741321 | MJ42: 0.01755625 | MK42: 0.00942841 | ML42: 0.00152881 | MM42: 0.002809 | MN42: 0.01846881 | ND42: 0.00077284 | NE42: 0.0564252516 | NF42: 0.0004401604 | NG42: 0.0362826304 | NH42: 0.08714304 | NI42: 0.0447914896 | NJ42: 0.0888278416 | NK42: 0.0031315216 | NL42: 0.0248125504 | NM42: 4.43556e-05 | NN42: 0.00414736 | NO42: 0.0310182544 | NP42: 0.0002446096 | NQ42: 4.41e-06 | NR42: 0.0811224324 | OH42: 60 | OI42: 1.088356772 | OJ42: 0.1346821426 | OL42: 32 | OM42: Cadusafos | ON42: 10 | OO42: 10.59166667 | OP42: 10.635 | OQ42: 10.22266667 | OR42: 10.40666667 | OS42: 10.20833333 | OT42: 3 | OU42: 5 | OV42: -0.01366666667 | OW42: -1.1 | OX42: 1.114333333 | OY42: 0.4643333333 | OZ42: 0.9146666667 | PA42: -0.7196666667 | PB42: 0.764 | PC42: -0.5006666667 | PD42: -0.5876666667 | PE42: 0.6526666667 | PF42: 0.7333333333 | PG42: 0.336 | PH42: -0.6136666667 | PI42: 0.1233333333 | PJ42: -1.567333333 | PZ42: 10.41286667 | QA42: 104.1286667 | QB42: 0.1195207667 | QC42: 9.126760667 | QD42: 10 | QE42: 0.9126760667 | QF42: 0 | QG42: 0.9126760667 | QH42: 0.9553408118 | QI42: 0.09174618694 | QJ42: =QI42*100 -> 9.174618694 | QK42: 15 | QL42: UYGUN | QM42: UYGUN | QN42: 0.1178430795 | QP42: 32 | QQ42: Cadusafos | QR42: 50 | QS42: 44.936 | QT42: 38.13833333 | QU42: 48.97833333 | QV42: 44.165 | QW42: 40.222 | QX42: 3 | QY42: 5 | QZ42: 3.674 | RA42: -0.01533333333 | RB42: -0.02733333333 | RC42: -3.689 | RD42: -4.982 | RE42: -5.518 | RF42: -3.040333333 | RG42: -1.776333333 | RH42: -2.041 | RI42: 9.445 | RJ42: 1.844 | RK42: 3.055666667 | RL42: 1.803666667 | RM42: 5.73 | RN42: -4.463 | SD42: 43.28793333 | SE42: 86.57586667 | SF42: 53.8382619 | SG42: 256.8912373 | SH42: 10 | SI42: 25.68912373 | SJ42: 9.383046056 | SK42: 35.07216979 | SL42: 5.922176102 | SM42: 0.136808936 | SN42: =SM42*100 -> 13.6808936 | SO42: 15 | SP42: UYGUN | SQ42: UYGUN | SR42: 0.2620335897 | SS42: 0.1164775682
A43: 33 | B43: Carbosulfan | C43: GC-MS/MS | D43: 7041798 | E43: 7877019 | G43: 13443193 | H43: 15255734 | J43: 28954626 | K43: 35232468 | M43: 65288050 | N43: 62515457 | P43: 159091277 | Q43: 162186898 | S43: 318182554 | T43: 324373796 | AC43: 33 | AD43: Carbosulfan | AE43: 2 | AF43: 2.09 | AG43: 2.022 | AH43: 2.35 | AI43: 2.27 | AJ43: 2.41 | AK43: 2.11 | AL43: 2.5 | AM43: 2.2 | AN43: 2.6 | AO43: 1.8 | AP43: 2.23 | AQ43: 2.24 | AR43: 2.48 | AS43: 1.98 | AT43: 1.57 | BK43: 33 | BL43: Carbosulfan | BM43: 50 | BN43: 40.797 | BO43: 46.849 | BP43: 50.765 | BQ43: 51.431 | BR43: 36.725 | BS43: 48.58 | BT43: 51.203 | BU43: 53.033 | BV43: 51.575 | BW43: 54.701 | BX43: 45.31 | BY43: 51.82 | BZ43: 36.48 | CA43: 48.75 | CB43: 58.45 | CS43: 33 | CT43: Carbosulfan | CU43: 2 | CV43: 1.66 | CW43: 1.76 | CX43: 2.4 | CY43: 2.11 | CZ43: 2.38 | DA43: 2.47 | DB43: 1.87 | DC43: 2.5 | DD43: 2 | DE43: 1.9 | DF43: 2.14 | DG43: 2.06 | DH43: 2.45 | DI43: 1.82 | DJ43: 2.07 | EA43: 33 | EB43: Carbosulfan | EC43: 50 | ED43: 47.541 | EE43: 50.437 | EF43: 36.254 | EG43: 36.084 | EH43: 53.833 | EI43: 53.683 | EJ43: 40.22 | EK43: 53.657 | EL43: 56.27 | EM43: 57.732 | EN43: 50.61 | EO43: 45.33 | EP43: 44.96 | EQ43: 46.18 | ER43: 55.78 | FI43: 33 | FJ43: Carbosulfan | FK43: 2 | FL43: =IFERROR(AVERAGE(AF43:AJ43),"--------") -> 2.2284 | FM43: =IFERROR(_xlfn.STDEV.S(AF43:AJ43),"--------") -> 0.1667717002 | FN43: 98.45 | FO43: =IFERROR(FM43/FL43*100,"--------") -> 7.48392121 | FP43: =IF(FN43<70,"uygun değil",IF(FN43>120,"uygun değil","uygun")) -> uygun | FQ43: =IF(FO43<0,"uygun değil",IF(FO43<20,"uygun","uygun değil")) -> uygun | FR43: =IFERROR(AVERAGE(AK43:AO43),"--------") -> 2.242 | FS43: =IFERROR(_xlfn.STDEV.S(AK43:AO43),"--------") -> 0.3198749756 | FT43: =IFERROR(FR43/$FK43*100,"--------") -> 112.1 | FU43: =IFERROR(FS43/FR43*100,"--------") -> 14.26739409 | FV43: =IF(FT43<70,"uygun değil",IF(FT43>120,"uygun değil","uygun")) -> uygun | FW43: =IF(FU43<0,"uygun değil",IF(FU43<20,"uygun","uygun değil")) -> uygun | FX43: =IFERROR(AVERAGE(AP43:AT43),"--------") -> 2.1 | FY43: =IFERROR(_xlfn.STDEV.S(AP43:AT43),"--------") -> 0.34503623 | FZ43: =IFERROR(FX43/$FK43*100,"--------") -> 105 | GA43: =IFERROR(FY43/FX43*100,"--------") -> 16.43029667 | GB43: =IF(FZ43<70,"uygun değil",IF(FZ43>120,"uygun değil","uygun")) -> uygun | GC43: =IF(GA43<0,"uygun değil",IF(GA43<20,"uygun","uygun değil")) -> uygun | HL43: 48.162 | HM43: 8.1266949 | HO43: 16.87366575 | HQ43: uygun | OO43: 2.09 | OP43: 1.896666667 | OQ43: 2.45 | OR43: 1.976666667 | OS43: 2.116666667 | OT43: 3 | OV43: -0.43 | OW43: -0.1366666667 | OX43: -0.05 | OY43: 0.1333333333 | OZ43: 0.2633333333 | PA43: 0.38 | PB43: -0.02666666667 | PC43: 0.05 | PD43: 0.02333333333 | PE43: -0.2166666667 | PF43: 0.05 | PG43: 0.1633333333 | PH43: 0 | PI43: -0.1566666667 | PJ43: -0.04666666667 | PZ43: 2.106 | QC43: 0.5442 | QK43: 15 | QS43: 50.61133333 | QT43: 45.329 | QU43: 44.957 | QV43: 46.178 | QW43: 55.78166667 | QX43: 3 | QZ43: -3.070333333 | RA43: 5.108 | RB43: -8.703 | RC43: -10.094 | RD43: -1.948666667 | RE43: 3.071666667 | RF43: -5.109 | RG43: 8.7 | RH43: 10.092 | RI43: 1.950333333 | RJ43: -0.001333333333 | RK43: 0.001 | RL43: 0.003 | RM43: 0.002 | RN43: -0.001666666667 | SD43: 48.5714 | SG43: 433.8262573 | SO43: 15
A44: 34 | B44: Captan | C44: GC-MS/MS | D44: 845237 | E44: 846117 | G44: 1765500 | H44: 1745577 | J44: 2989389 | K44: 2806800 | M44: 7953420 | N44: 8095126 | P44: 14039631 | Q44: 14020997 | S44: 27681317 | T44: 27527397 | AC44: 34 | AD44: Captan | AE44: 10 | AF44: 8.441 | AG44: 10.497 | AH44: 10.218 | AI44: 8.233 | AJ44: 11.413 | AK44: 11.449 | AL44: 11.237 | AM44: 8.125 | AN44: 9.592 | AO44: 11.091 | AP44: 10.09 | AQ44: 11.59 | AR44: 7.94 | AS44: 11.81 | AT44: 11.041 | BK44: 34 | BL44: Captan | BM44: 50 | BN44: 45.274 | BO44: 50.235 | BP44: 39.019 | BQ44: 59.357 | BR44: 41.932 | BS44: 48.301 | BT44: 52.113 | BU44: 57.417 | BV44: 49.927 | BW44: 56.916 | BX44: 44.26 | BY44: 39.34 | BZ44: 44.31 | CA44: 47.58 | CB44: 36.16 | CS44: 34 | CT44: Captan | CU44: 10 | CV44: 11.104 | CW44: 7.312 | CX44: 10.665 | CY44: 8.299 | CZ44: 11.095 | DA44: 10.49 | DB44: 11.04 | DC44: 9.419 | DD44: 7.45 | DE44: 10.591 | DF44: 11.674 | DG44: 11.109 | DH44: 8.878 | DI44: 11.708 | DJ44: 11.658 | EA44: 34 | EB44: Captan | EC44: 50 | ED44: 40.831 | EE44: 38.633 | EF44: 50.066 | EG44: 50.538 | EH44: 59.771 | EI44: 47.648 | EJ44: 39.291 | EK44: 55.123 | EL44: 50.042 | EM44: 51.881 | EN44: 52.87 | EO44: 46.417 | EP44: 53.143 | EQ44: 55.764 | ER44: 43.849 | FI44: 34 | FJ44: Captan | FK44: 10 | FL44: 9.7604 | FM44: 1.374484558 | FN44: 97.604 | FO44: 14.08225644 | FP44: uygun | FQ44: uygun | FR44: 10.2988 | FS44: 1.419131143 | FT44: 102.988 | FU44: 13.77957765 | FV44: uygun | FW44: uygun | FX44: 10.4942 | FY44: 1.574675586 | FZ44: 104.942 | GA44: 15.00519893 | GB44: uygun | GC44: uygun | GD44: -------- | GE44: -------- | GF44: -------- | GG44: -------- | GH44: uygun değil | GI44: uygun değil | GJ44: -------- | GK44: -------- | GL44: -------- | GM44: -------- | GN44: uygun değil | GO44: uygun değil | GP44: -------- | GQ44: -------- | GR44: -------- | GS44: -------- | GT44: uygun değil | GU44: uygun değil | GW44: 33 | GX44: Captan | GY44: 50 | GZ44: 47.1634 | HA44: 7.990419845 | HB44: 94.3268 | HC44: 16.94199283 | HD44: uygun | HE44: uygun | HF44: 52.9348 | HG44: 4.096778881 | HH44: 105.8696 | HI44: 7.739292263 | HJ44: uygun | HK44: uygun | HL44: 42.33 | HM44: 4.533674007 | HN44: 84.66 | HO44: 10.71030949 | HP44: uygun | HQ44: uygun | HR44: -------- | HS44: -------- | HT44: -------- | HU44: -------- | HV44: uygun değil | HW44: uygun değil | HX44: -------- | HY44: -------- | HZ44: -------- | IA44: -------- | IB44: uygun değil | IC44: uygun değil | ID44: -------- | IE44: -------- | IF44: -------- | IG44: -------- | IH44: uygun değil | II44: uygun değil | JO44: 33 | JP44: Captan | JQ44: 10 | JR44: 0.02430481 | JS44: 0.00247009 | JT44: 0.00047524 | JU44: 0.03122289 | JV44: 0.01996569 | JW44: 0.02099601 | JX44: 0.01530169 | JY44: 0.03515625 | JZ44: 0.00166464 | KA44: 0.01190281 | KB44: 8.1e-05 | KC44: 0.025281 | KD44: 0.042436 | KE44: 0.032761 | KF44: 0.01083681 | KV44: 0.0089340304 | KW44: 2.209e-05 | KX44: 0.0482329444 | KY44: 0.0350213796 | KZ44: 0.0260370496 | LA44: 0.0011546404 | LB44: 0.0017859076 | LC44: 0.0220047556 | LD44: 2.1316e-06 | LE44: 0.0191324224 | LF44: 0.01317904 | LG44: 0.04545424 | LH44: 0.01295044 | LI44: 0.00234256 | LJ44: 0.07661824 | LZ44: 0.01218816 | MA44: 0.07225344 | MB44: 0.00442225 | MC44: 0.02893401 | MD44: 0.01199025 | ME44: 0.002401 | MF44: 0.010816 | MG44: 0.00337561 | MH44: 0.065025 | MI44: 0.00349281 | MJ44: 0.02802276 | MK44: 0.01229881 | ML44: 0.01258884 | MM44: 0.02917264 | MN44: 0.02748964 | ND44: 0.0336282244 | NE44: 0.0516834756 | NF44: 1.7424e-06 | NG44: 0.0001157776 | NH44: 0.0381889764 | NI44: 0.0022127616 | NJ44: 0.0458730724 | NK44: 0.0104980516 | NL44: 7.056e-07 | NM44: 0.0014152644 | NN44: 0.00329476 | NO44: 0.0051351556 | NP44: 0.0039513796 | NQ44: 0.0132894784 | NR44: 0.0151339204 | OH44: 60 | OI44: 1.136621768 | OJ44: 0.1376361004 | OL44: 33 | OM44: Captan | ON44: 10 | OO44: 11.08933333 | OP44: 9.820333333 | OQ44: 9.654 | OR44: 9.152333333 | OS44: 11.11466667 | OT44: 3 | OU44: 5 | OV44: 0.01466666667 | OW44: -2.508333333 | OX44: 1.011 | OY44: -0.8533333333 | OZ44: -0.01966666667 | PA44: -0.5993333333 | PB44: 1.219666667 | PC44: -0.235 | PD44: -1.702333333 | PE44: -0.5236666667 | PF44: 0.5846666667 | PG44: 1.288666667 | PH44: -0.776 | PI44: 2.555666667 | PJ44: 0.5433333333 | PZ44: 10.16613333 | QA44: 101.6613333 | QB44: 2.371246767 | QC44: 22.54813067 | QD44: 10 | QE44: 2.254813067 | QF44: 0.03881123333 | QG44: 2.2936243 | QH44: 1.514471624 | QI44: 0.148972237 | QJ44: 14 | QK44: 15 | QL44: UYGUN | QM44: UYGUN | QN44: 0.3106981834 | QP44: 33 | QQ44: Captan | QR44: 50 | QS44: 47.11633333 | QT44: 41.447 | QU44: 52.77733333 | QV44: 52.11466667 | QW44: 51.83366667 | QX44: 3 | QY44: 5 | QZ44: -6.285333333 | RA44: -2.814 | RB44: -2.711333333 | RC44: -1.576666667 | RD44: 7.937333333 | RE44: 0.5316666667 | RF44: -2.156 | RG44: 2.345666667 | RH44: -2.072666667 | RI44: 0.04733333333 | RJ44: 5.753666667 | RK44: 4.97 | RL44: 0.3656666667 | RM44: 3.649333333 | RN44: -7.984666667 | SD44: 49.0578 | SE44: 98.1156 | SF44: 69.43377543 | SG44: 270.0056507 | SH44: 10 | SI44: 27.00056507 | SJ44: 14.14440346 | SK44: 41.14496852 | SL44: 6.414434388 | SM44: 0.1307525896 | SN44: 13.07525896 | SO44: 15 | SP44: UYGUN | SQ44: UYGUN | SR44: 0.2393473555 | SS44: 0.1401587797
A45: 35 | B45: Chinomethionat | C45: GC-MS/MS | D45: 3279541 | E45: 3301810 | G45: 7364838 | H45: 7454857 | J45: 12540845 | K45: 12609528 | M45: 35252695 | N45: 35493611 | P45: 61377074 | Q45: 60575495 | S45: 126630034 | T45: 113548569 | AC45: 35 | AD45: Chinomethionat | AE45: 10 | AF45: 9.702 | AG45: 11.374 | AH45: 11.108 | AI45: 8.343 | AJ45: 9.625 | AK45: 10.779 | AL45: 11.517 | AM45: 7.103 | AN45: 9.801 | AO45: 11.174 | AP45: 11.821 | AQ45: 11.692 | AR45: 10.852 | AS45: 9.987 | AT45: 8.419 | BK45: 35 | BL45: Chinomethionat | BM45: 50 | BN45: 40.272 | BO45: 45.275 | BP45: 41.57 | BQ45: 48.29 | BR45: 42.642 | BS45: 50.36 | BT45: 47.555 | BU45: 50.344 | BV45: 42.688 | BW45: 53.223 | BX45: 43.923 | BY45: 40.335 | BZ45: 40.278 | CA45: 39.177 | CB45: 38.331 | CS45: 35 | CT45: Chinomethionat | CU45: 10 | CV45: 10.711 | CW45: 8.371 | CX45: 11.482 | CY45: 11.423 | CZ45: 11.185 | DA45: 8.976 | DB45: 10.981 | DC45: 9.139 | DD45: 9.822 | DE45: 11.295 | DF45: 11.357 | DG45: 9.721 | DH45: 7.397 | DI45: 9.873 | DJ45: 8.852 | EA45: 35 | EB45: Chinomethionat | EC45: 50 | ED45: 42.311 | EE45: 40.202 | EF45: 44.822 | EG45: 45.72 | EH45: 49.951 | EI45: 50.79 | EJ45: 43.043 | EK45: 38.651 | EL45: 41.262 | EM45: 40.735 | EN45: 50.408 | EO45: 45.733 | EP45: 54.302 | EQ45: 54.506 | ER45: 39.045 | FI45: 35 | FJ45: Chinomethionat | FK45: 10 | FL45: 10.0304 | FM45: 1.233490697 | FN45: 100.304 | FO45: 12.2975225 | FP45: uygun | FQ45: uygun | FR45: 10.0748 | FS45: 1.781196283 | FT45: 100.748 | FU45: 17.67971854 | FV45: uygun | FW45: uygun | FX45: 10.5542 | FY45: 1.402573599 | FZ45: 105.542 | GA45: 13.28924598 | GB45: uygun | GC45: uygun | GD45: -------- | GE45: -------- | GF45: -------- | GG45: -------- | GH45: uygun değil | GI45: uygun değil | GJ45: -------- | GK45: -------- | GL45: -------- | GM45: -------- | GN45: uygun değil | GO45: uygun değil | GP45: -------- | GQ45: -------- | GR45: -------- | GS45: -------- | GT45: uygun değil | GU45: uygun değil | GW45: 35 | GX45: Chinomethionat | GY45: 50 | GZ45: 43.6098 | HA45: 3.198260965 | HB45: 87.2196 | HC45: 7.333812503 | HD45: uygun | HE45: uygun | HF45: 48.834 | HG45: 3.97747577 | HH45: 97.668 | HI45: 8.144890384 | HJ45: uygun | HK45: uygun | HL45: 40.4088 | HM45: 2.133467881 | HN45: 80.8176 | HO45: 5.279711056 | HP45: uygun | HQ45: uygun | HR45: -------- | HS45: -------- | HT45: -------- | HU45: -------- | HV45: uygun değil | HW45: uygun değil | HX45: -------- | HY45: -------- | HZ45: -------- | IA45: -------- | IB45: uygun değil | IC45: uygun değil | ID45: -------- | IE45: -------- | IF45: -------- | IG45: -------- | IH45: uygun değil | II45: uygun değil | JO45: 35 | JP45: Chinomethionat | JQ45: =$AE45 -> 10 | JR45: 0.00088804 | JS45: 0.01887876 | JT45: 0.01227664 | JU45: 0.02745649 | JV45: 0.00140625 | JW45: 0.00606841 | JX45: 0.02301289 | JY45: 0.08392609 | JZ45: 0.00039601 | KA45: 0.01378276 | KB45: 0.03316041 | KC45: 0.02862864 | KD45: 0.00725904 | KE45: 1.69e-06 | KF45: 0.02499561 | KV45: 0.0378535936 | KW45: 0.00893025 | KX45: 0.02842596 | KY45: 0.00116964 | KZ45: 0.0216560656 | LA45: 5.184e-05 | LB45: 0.00239121 | LC45: 4.73344e-05 | LD45: 0.0213861376 | LE45: 0.0041550916 | LF45: 0.0147719716 | LG45: 0.03736489 | LH45: 0.0378069136 | LI45: 0.0468549316 | LJ45: 0.0544662244 | LZ45: 0.00505521 | MA45: 0.02653641 | MB45: 0.02196324 | MC45: 0.02024929 | MD45: 0.01404225 | ME45: 0.01048576 | MF45: 0.00962361 | MG45: 0.00741321 | MH45: 0.00031684 | MI45: 0.01677025 | MJ45: 0.01841449 | MK45: 0.00077841 | ML45: 0.06775609 | MM45: 0.00016129 | MN45: 0.01317904 | ND45: 0.0236482884 | NE45: 0.0384003216 | NF45: 0.0107246736 | NG45: 0.00732736 | NH45: 9.604e-07 | NI45: 0.00024964 | NJ45: 0.0193599396 | NK45: 0.0515199204 | NL45: 0.0305410576 | NM45: 0.03433609 | NN45: 6.65856e-05 | NO45: 0.0072829156 | NP45: 0.0074028816 | NQ45: 0.0081216144 | NR45: 0.04800481 | OH45: 60 | OI45: 1.119202233 | OJ45: 0.1365773427 | OL45: 35 | OM45: Chinomethionat | ON45: 10 | OO45: 10.348 | OP45: 9.691 | OQ45: 9.339333333 | OR45: 10.37266667 | OS45: 10.444 | OT45: 3 | OU45: 5 | OV45: 0.363 | OW45: -1.32 | OX45: 2.142666667 | OY45: 1.050333333 | OZ45: 0.741 | PA45: -1.372 | PB45: 1.29 | PC45: -0.2003333333 | PD45: -0.5506666667 | PE45: 0.851 | PF45: 1.009 | PG45: 0.03 | PH45: -1.942333333 | PI45: -0.4996666667 | PJ45: -1.592 | PZ45: 10.039 | QA45: 100.39 | QB45: 0.7361076667 | QC45: 20.30729333 | QD45: 10 | QE45: 2.030729333 | QF45: 0 | QG45: 2.030729333 | QH45: 1.425036608 | QI45: 0.1419500556 | QJ45: 14.42 | QK45: 15 | QL45: UYGUN | QM45: UYGUN | QN45: 0.2820974558 | QP45: 35 | QQ45: Chinomethionat | QR45: 50 | QS45: 47.83633333 | QT45: 42.99266667 | QU45: 45.925 | QV45: 47.16266667 | QW45: 43.24366667 | QX45: 3 | QY45: 5 | QZ45: -5.525333333 | RA45: -2.790666667 | RB45: -1.103 | RC45: -1.442666667 | RD45: 6.707333333 | RE45: 2.953666667 | RF45: 0.05033333333 | RG45: -7.274 | RH45: -5.900666667 | RI45: -2.508666667 | RJ45: 2.571666667 | RK45: 2.740333333 | RL45: 8.377 | RM45: 7.343333333 | RN45: -4.198666667 | SD45: 45.43206667 | SE45: 90.86413333 | SF45: 14.81866857 | SG45: 345.2027487 | SH45: 10 | SI45: 34.52027487 | SJ45: 0 | SK45: 34.52027487 | SL45: 5.87539572 | SM45: 0.1293226602 | SN45: 12.93226602 | SO45: 15 | SP45: UYGUN | SQ45: UYGUN | SR45: 0.2341409062 | SS45: 0.1357832256
A46: 36 | B46: Chlorbenside | C46: GC-MS/MS | D46: 1413392 | E46: 1465450 | G46: 3354023 | H46: 3404168 | J46: 6270235 | K46: 6131173 | M46: 13323629 | N46: 13286109 | P46: 25390331 | Q46: 23983134 | S46: 40830508 | T46: 46317305 | AC46: 36 | AD46: Chlorbenside | AE46: 10 | AF46: 9.663 | AG46: 11.436 | AH46: 11.783 | AI46: 7.816 | AJ46: 10.333 | AK46: 10.888 | AL46: 11.773 | AM46: 8.062 | AN46: 11.349 | AO46: 11.171 | AP46: 10.293 | AQ46: 10.58 | AR46: 9.328 | AS46: 7.746 | AT46: 7.338 | BK46: 36 | BL46: Chlorbenside | BM46: 50 | BN46: 41.205 | BO46: 43.1 | BP46: 35.71 | BQ46: 47.753 | BR46: 43.513 | BS46: 40.115 | BT46: 44.101 | BU46: 50.019 | BV46: 42.552 | BW46: 48.432 | BX46: 42.254 | BY46: 40.614 | BZ46: 40.316 | CA46: 39.256 | CB46: 37.093 | CS46: 36 | CT46: Chlorbenside | CU46: 10 | CV46: 9.934 | CW46: 8.362 | CX46: 11.621 | CY46: 10.481 | CZ46: 10.508 | DA46: 10.153 | DB46: 11.873 | DC46: 9.911 | DD46: 10.696 | DE46: 11.011 | DF46: 8.84 | DG46: 11.84 | DH46: 10.32 | DI46: 10.76 | DJ46: 9.98 | EA46: 36 | EB46: Chlorbenside | EC46: 50 | ED46: 46.385 | EE46: 40.093 | EF46: 46.908 | EG46: 44.986 | EH46: 51.177 | EI46: 50.118 | EJ46: 43.427 | EK46: 43.812 | EL46: 40.578 | EM46: 45.543 | EN46: 42.31 | EO46: 39.06 | EP46: 49.24 | EQ46: 47.35 | ER46: 38.46 | FI46: 36 | FJ46: Chlorbenside | FK46: 10 | FL46: 10.2062 | FM46: 1.582948736 | FN46: 102.062 | FO46: 15.5096778 | FP46: uygun | FQ46: uygun | FR46: 10.6486 | FS46: 1.481177673 | FT46: 106.486 | FU46: 13.90960007 | FV46: uygun | FW46: uygun | FX46: 9.057 | FY46: 1.465805922 | FZ46: 90.57 | GA46: 16.18423232 | GB46: uygun | GC46: uygun | GD46: -------- | GE46: -------- | GF46: -------- | GG46: -------- | GH46: uygun değil | GI46: uygun değil | GJ46: -------- | GK46: -------- | GL46: -------- | GM46: -------- | GN46: uygun değil | GO46: uygun değil | GP46: -------- | GQ46: -------- | GR46: -------- | GS46: -------- | GT46: uygun değil | GU46: uygun değil | GW46: 36 | GX46: Chlorbenside | GY46: 50 | GZ46: 42.2562 | HA46: 4.372187976 | HB46: 84.5124 | HC46: 10.34685555 | HD46: uygun | HE46: uygun | HF46: 45.0438 | HG46: 4.111676142 | HH46: 90.0876 | HI46: 9.128173339 | HJ46: uygun | HK46: uygun | HL46: 39.9066 | HM46: 1.905120416 | HN46: 79.8132 | HO46: 4.773948209 | HP46: uygun | HQ46: uygun | HR46: -------- | HS46: -------- | HT46: -------- | HU46: -------- | HV46: uygun değil | HW46: uygun değil | HX46: -------- | HY46: -------- | HZ46: -------- | IA46: -------- | IB46: uygun değil | IC46: uygun değil | ID46: -------- | IE46: -------- | IF46: -------- | IG46: -------- | IH46: uygun değil | II46: uygun değil | JO46: 36 | JP46: Chlorbenside | JQ46: 10 | JR46: 0.00113569 | JS46: 0.02062096 | JT46: 0.03179089 | JU46: 0.04769856 | JV46: 0.00110889 | JW46: 0.00788544 | JX46: 0.03143529 | JY46: 0.03755844 | JZ46: 0.01819801 | KA46: 0.01371241 | KB46: 0.00085849 | KC46: 0.003364 | KD46: 0.00451584 | KE46: 0.05080516 | KF46: 0.07086244 | KV46: 0.03094081 | KW46: 0.019044 | KX46: 0.08168164 | KY46: 0.0020196036 | KZ46: 0.0168324676 | LA46: 0.03908529 | LB46: 0.0139192804 | LC46: 1.444e-07 | LD46: 0.0221890816 | LE46: 0.0009834496 | LF46: 0.0240002064 | LG46: 0.0352387984 | LH46: 0.0375119424 | LI46: 0.0461734144 | LJ46: 0.0666362596 | LZ46: 4.356e-05 | MA46: 0.02683044 | MB46: 0.02627641 | MC46: 0.00231361 | MD46: 0.00258064 | ME46: 0.00023409 | MF46: 0.03508129 | MG46: 7.921e-05 | MH46: 0.00484416 | MI46: 0.01022121 | MJ46: 0.013456 | MK46: 0.033856 | ML46: 0.001024 | MM46: 0.005776 | MN46: 4e-06 | ND46: 0.00522729 | NE46: 0.0392594596 | NF46: 0.0038241856 | NG46: 0.0100560784 | NH46: 0.0005541316 | NI46: 5.5696e-06 | NJ46: 0.0172817316 | NK46: 0.0153165376 | NL46: 0.0355096336 | NM46: 0.0079459396 | NN46: 0.02365444 | NO46: 0.04787344 | NP46: 0.00023104 | NQ46: 0.002809 | NR46: 0.05326864 | OH46: 60 | OI46: 1.203244636 | OJ46: 0.1416124192 | OL46: 36 | OM46: Chlorbenside | ON46: 10 | OO46: 9.642333333 | OP46: 10.69166667 | OQ46: 10.61733333 | OR46: 10.64566667 | OS46: 10.49966667 | OT46: 3 | OU46: 5 | OV46: 0.2916666667 | OW46: -2.329666667 | OX46: 1.003666667 | OY46: -0.1646666667 | OZ46: 0.008333333333 | PA46: 0.5106666667 | PB46: 1.181333333 | PC46: -0.7063333333 | PD46: 0.05033333333 | PE46: 0.5113333333 | PF46: -0.8023333333 | PG46: 1.148333333 | PH46: -0.2973333333 | PI46: 0.1143333333 | PJ46: -0.5196666667 | PZ46: 10.41933333 | QA46: 104.1933333 | QB46: 0.581084 | QC46: 11.30011933 | QD46: 10 | QE46: 1.130011933 | QF46: 0 | QG46: 1.130011933 | QH46: 1.063020194 | QI46: 0.1020238205 | QJ46: =QI46*100 -> 10.20238205 | QK46: 15 | QL46: UYGUN | QM46: UYGUN | QN46: 0.1457240394 | QP46: 36 | QQ46: Chlorbenside | QR46: 50 | QS46: 46.271 | QT46: 40.86 | QU46: 46.65333333 | QV46: 44.30466667 | QW46: 45.06 | QX46: 3 | QY46: 5 | QZ46: 0.114 | RA46: -0.767 | RB46: 0.2546666667 | RC46: 0.6813333333 | RD46: 6.117 | RE46: 3.847 | RF46: 2.567 | RG46: -2.841333333 | RH46: -3.726666667 | RI46: 0.483 | RJ46: -3.961 | RK46: -1.8 | RL46: 2.586666667 | RM46: 3.045333333 | RN46: -6.6 | SD46: 44.6298 | SE46: 89.2596 | SF46: 15.96780027 | SG46: 160.5858713 | SH46: 10 | SI46: 16.05858713 | SJ46: 0 | SK46: 16.05858713 | SL46: 4.0073167 | SM46: 0.0897901559 | SN46: 8.97901559 | SO46: 15 | SP46: UYGUN | SQ46: UYGUN | SR46: 0.1128718094 | SS46: 0.09610185237
A47: 37 | B47: Chlordane-Cis-(Alpha) | C47: GC-MS/MS | D47: 5516394 | E47: 5859807 | G47: 10862729 | H47: 10090987 | J47: 20780782 | K47: 20312793 | M47: 47624308 | N47: 47606584 | P47: 74586341 | Q47: 74879169 | S47: 126822234 | T47: 127240987 | AC47: 37 | AD47: Chlordane-Cis-(Alpha) | AE47: 10 | AF47: 10.209 | AG47: 11.589 | AH47: 11.589 | AI47: 9.112 | AJ47: 9.411 | AK47: 10.796 | AL47: 11.423 | AM47: 9.145 | AN47: 11.261 | AO47: 11.842 | AP47: 11.286 | AQ47: 10.059 | AR47: 10.183 | AS47: 8.255 | AT47: 7.57 | BK47: 37 | BL47: Chlordane-Cis-(Alpha) | BM47: 50 | BN47: 48.957 | BO47: 49.95 | BP47: 40.963 | BQ47: 51.374 | BR47: 48.175 | BS47: 42.63 | BT47: 47.399 | BU47: 53.056 | BV47: 44.019 | BW47: 49.953 | BX47: 47.934 | BY47: 46.089 | BZ47: 48.752 | CA47: 43.423 | CB47: 39.511 | CS47: 37 | CT47: Chlordane-Cis-(Alpha) | CU47: 10 | CV47: 11.189 | CW47: 9.331 | CX47: 11.511 | CY47: 11.822 | CZ47: 11.692 | DA47: 10.614 | DB47: 11.061 | DC47: 10.376 | DD47: 10.519 | DE47: 11.354 | DF47: 9.448 | DG47: 9.528 | DH47: 9.333 | DI47: 11.636 | DJ47: 8.718 | EA47: 37 | EB47: Chlordane-Cis-(Alpha) | EC47: 50 | ED47: 53.832 | EE47: 47.362 | EF47: 55.305 | EG47: 44.032 | EH47: 45.931 | EI47: 43.741 | EJ47: 44.896 | EK47: 54.149 | EL47: 47.961 | EM47: 50.912 | EN47: 43.161 | EO47: 43.042 | EP47: 47.365 | EQ47: 43.839 | ER47: 40.275 | FI47: 37 | FJ47: Chlordane-Cis-(Alpha) | FK47: 10 | FL47: 10.382 | FM47: 1.172536567 | FN47: 103.82 | FO47: 11.29393726 | FP47: uygun | FQ47: uygun | FR47: 10.8934 | FS47: 1.046641916 | FT47: 108.934 | FU47: 9.608037122 | FV47: uygun | FW47: uygun | FX47: 9.4706 | FY47: 1.519816535 | FZ47: 94.706 | GA47: 16.0477323 | GB47: uygun | GC47: uygun | GD47: -------- | GE47: -------- | GF47: -------- | GG47: -------- | GH47: uygun değil | GI47: uygun değil | GJ47: -------- | GK47: -------- | GL47: -------- | GM47: -------- | GN47: uygun değil | GO47: uygun değil | GP47: -------- | GQ47: -------- | GR47: -------- | GS47: -------- | GT47: uygun değil | GU47: uygun değil | GW47: 37 | GX47: Chlordane-Cis-(Alpha) | GY47: 50 | GZ47: 47.8838 | HA47: 4.04921927 | HB47: 95.7676 | HC47: 8.456344882 | HD47: uygun | HE47: uygun | HF47: 47.4114 | HG47: 4.262967194 | HH47: 94.8228 | HI47: 8.991439178 | HJ47: uygun | HK47: uygun | HL47: 45.1418 | HM47: 3.754573704 | HN47: 90.2836 | HO47: 8.31728842 | HP47: uygun | HQ47: uygun | HR47: -------- | HS47: -------- | HT47: -------- | HU47: -------- | HV47: uygun değil | HW47: uygun değil | HX47: -------- | HY47: -------- | HZ47: -------- | IA47: -------- | IB47: uygun değil | IC47: uygun değil | ID47: -------- | IE47: -------- | IF47: -------- | IG47: -------- | IH47: uygun değil | II47: uygun değil | JO47: 37 | JP47: Chlordane-Cis-(Alpha) | JQ47: 10 | JR47: 0.00043681 | JS47: 0.02524921 | JT47: 0.02524921 | JU47: 0.00788544 | JV47: 0.00346921 | JW47: 0.00633616 | JX47: 0.02024929 | JY47: 0.00731025 | JZ47: 0.01590121 | KA47: 0.03392964 | KB47: 0.01653796 | KC47: 3.481e-05 | KD47: 0.00033489 | KE47: 0.03045025 | KF47: 0.059049 | KV47: 0.0004351396 | KW47: 1e-06 | KX47: 0.0326669476 | KY47: 0.0007551504 | KZ47: 0.00133225 | LA47: 0.02172676 | LB47: 0.0027060804 | LC47: 0.0037356544 | LD47: 0.0143089444 | LE47: 8.836e-07 | LF47: 0.0017073424 | LG47: 0.0061183684 | LH47: 0.0006230016 | LI47: 0.0173027716 | LJ47: 0.0440076484 | LZ47: 0.01413721 | MA47: 0.00447561 | MB47: 0.02283121 | MC47: 0.03319684 | MD47: 0.02862864 | ME47: 0.00376996 | MF47: 0.01125721 | MG47: 0.00141376 | MH47: 0.00269361 | MI47: 0.01833316 | MJ47: 0.00304704 | MK47: 0.00222784 | ML47: 0.00444889 | MM47: 0.02676496 | MN47: 0.01643524 | ND47: 0.0058736896 | NE47: 0.0027836176 | NF47: 0.01125721 | NG47: 0.0142468096 | NH47: 0.0066227044 | NI47: 0.0156700324 | NJ47: 0.0104203264 | NK47: 0.0068856804 | NL47: 0.0016630084 | NM47: 0.0003326976 | NN47: 0.0187087684 | NO47: 0.0193655056 | NP47: 0.00277729 | NQ47: 0.0151831684 | NR47: 0.03783025 | OH47: 60 | OI47: 0.7631332216 | OJ47: 0.1127780432 | OL47: 37 | OM47: Chlordane-Cis-(Alpha) | ON47: 10 | OO47: 10.417 | OP47: 9.973333333 | OQ47: 10.40666667 | OR47: 11.32566667 | OS47: 10.588 | OT47: 3 | OU47: 5 | OV47: 0.772 | OW47: -0.6423333333 | OX47: 1.104333333 | OY47: 0.4963333333 | OZ47: 1.104 | PA47: 0.197 | PB47: 1.087666667 | PC47: -0.03066666667 | PD47: -0.8066666667 | PE47: 0.766 | PF47: -0.969 | PG47: -0.4453333333 | PH47: -1.073666667 | PI47: 0.3103333333 | PJ47: -1.87 | PZ47: 10.54213333 | QA47: 105.4213333 | QB47: 0.7301784333 | QC47: 12.036776 | QD47: 10 | QE47: 1.2036776 | QF47: 0 | QG47: 1.2036776 | QH47: 1.097122418 | QI47: 0.1040702468 | QJ47: 10.40702468 | QK47: 15 | QL47: UYGUN | QM47: UYGUN | QN47: 0.1516286278 | QP47: 37 | QQ47: Chlordane-Cis-(Alpha) | QR47: 50 | QS47: 46.91133333 | QT47: 45.1 | QU47: 52.273 | QV47: 45.27733333 | QW47: 45.706 | QX47: 3 | QY47: 5 | QZ47: 6.920666667 | RA47: 2.262 | RB47: 3.032 | RC47: -1.245333333 | RD47: 0.225 | RE47: -3.170333333 | RF47: -0.204 | RG47: 1.876 | RH47: 2.683666667 | RI47: 5.206 | RJ47: -3.750333333 | RK47: -2.058 | RL47: -4.908 | RM47: -1.438333333 | RN47: -5.431 | SD47: 47.05353333 | SE47: 94.10706667 | SF47: 27.0375586 | SG47: 185.6766753 | SH47: 10 | SI47: 18.56766753 | SJ47: 2.823297022 | SK47: 21.39096456 | SL47: 4.625036709 | SM47: 0.09829307984 | SN47: 9.829307984 | SO47: 15 | SP47: UYGUN | SQ47: UYGUN | SR47: 0.1352614136 | SS47: 0.1012228873
A48: 38 | B48: Chlordane-Cis-(Beta) | C48: GC-MS/MS | D48: 762616 | E48: 722699 | G48: 2551763 | H48: 2281581 | J48: 4559345 | K48: 4995003 | M48: 13082263 | N48: 15083646 | P48: 27992496 | Q48: 25873461 | S48: 57119557 | T48: 55326315 | AC48: 38 | AD48: Chlordane-Cis-(Beta) | AE48: 10 | AF48: 11.475 | AG48: 11.557 | AH48: 11.511 | AI48: 11.135 | AJ48: 11.296 | AK48: 11.313 | AL48: 11.91 | AM48: 11.134 | AN48: 11.204 | AO48: 11.141 | AP48: 11.323 | AQ48: 11.183 | AR48: 10.927 | AS48: 9.17 | AT48: 8.338 | BK48: 38 | BL48: Chlordane-Cis-(Beta) | BM48: 50 | BN48: 46.242 | BO48: 45.473 | BP48: 54.99 | BQ48: 49.329 | BR48: 45.812 | BS48: 40.46 | BT48: 45.655 | BU48: 49.665 | BV48: 44.098 | BW48: 50.209 | BX48: 50.523 | BY48: 47.127 | BZ48: 50.66 | CA48: 45.074 | CB48: 40.287 | CS48: 38 | CT48: Chlordane-Cis-(Beta) | CU48: 10 | CV48: 11.641 | CW48: 10.756 | CX48: 11.496 | CY48: 11.193 | CZ48: 10.808 | DA48: 10.664 | DB48: 11.441 | DC48: 11.476 | DD48: 11.578 | DE48: 11.349 | DF48: 10.53 | DG48: 10.31 | DH48: 10.69 | DI48: 9.65 | DJ48: 9.48 | EA48: 38 | EB48: Chlordane-Cis-(Beta) | EC48: 50 | ED48: 51.85 | EE48: 44.933 | EF48: 51.917 | EG48: 41.355 | EH48: 44.518 | EI48: 42.177 | EJ48: 43.935 | EK48: 53.408 | EL48: 44.344 | EM48: 51.257 | EN48: 50.057 | EO48: 46.076 | EP48: 56.073 | EQ48: 55.011 | ER48: 56.63 | FI48: 38 | FJ48: Chlordane-Cis-(Beta) | FK48: 10 | FL48: 11.3948 | FM48: 0.175713403 | FN48: 113.948 | FO48: 1.542049031 | FP48: uygun | FQ48: uygun | FR48: 11.3404 | FS48: 0.3264051164 | FT48: 113.404 | FU48: 2.878250471 | FV48: uygun | FW48: uygun | FX48: 10.1882 | FY48: 1.349369742 | FZ48: 101.882 | GA48: 13.24443711 | GB48: uygun | GC48: uygun | GD48: -------- | GE48: -------- | GF48: -------- | GG48: -------- | GH48: uygun değil | GI48: uygun değil | GJ48: -------- | GK48: -------- | GL48: -------- | GM48: -------- | GN48: uygun değil | GO48: uygun değil | GP48: -------- | GQ48: -------- | GR48: -------- | GS48: -------- | GT48: uygun değil | GU48: uygun değil | GW48: 38 | GX48: Chlordane-Cis-(Beta) | GY48: 50 | GZ48: 48.3692 | HA48: 4.006508293 | HB48: 96.7384 | HC48: 8.283180811 | HD48: uygun | HE48: uygun | HF48: 46.0174 | HG48: 4.048907914 | HH48: 92.0348 | HI48: 8.798645544 | HJ48: uygun | HK48: uygun | HL48: 46.7342 | HM48: 4.308243691 | HN48: 93.4684 | HO48: 9.21861012 | HP48: uygun | HQ48: uygun | HR48: -------- | HS48: -------- | HT48: -------- | HU48: -------- | HV48: uygun değil | HW48: uygun değil | HX48: -------- | HY48: -------- | HZ48: -------- | IA48: -------- | IB48: uygun değil | IC48: uygun değil | ID48: -------- | IE48: -------- | IF48: -------- | IG48: -------- | IH48: uygun değil | II48: uygun değil | JO48: 38 | JP48: Chlordane-Cis-(Beta) | JQ48: 10 | JR48: 0.02175625 | JS48: 0.02424249 | JT48: 0.02283121 | JU48: 0.01288225 | JV48: 0.01679616 | JW48: 0.01723969 | JX48: 0.036481 | JY48: 0.01285956 | JZ48: 0.01449616 | KA48: 0.01301881 | KB48: 0.01750329 | KC48: 0.01399489 | KD48: 0.00859329 | KE48: 0.006889 | KF48: 0.02762244 | KV48: 0.0056490256 | KW48: 0.0081974916 | KX48: 0.00996004 | KY48: 0.0001800964 | KZ48: 0.0070157376 | LA48: 0.03640464 | LB48: 0.00755161 | LC48: 4.489e-05 | LD48: 0.0139334416 | LE48: 1.74724e-05 | LF48: 0.0001094116 | LG48: 0.0033016516 | LH48: 0.00017424 | LI48: 0.0097061904 | LJ48: 0.0377369476 | LZ48: 0.02692881 | MA48: 0.00571536 | MB48: 0.02238016 | MC48: 0.01423249 | MD48: 0.00652864 | ME48: 0.00440896 | MF48: 0.02076481 | MG48: 0.02178576 | MH48: 0.02490084 | MI48: 0.01819801 | MJ48: 0.002809 | MK48: 0.000961 | ML48: 0.004761 | MM48: 0.001225 | MN48: 0.002704 | ND48: 0.001369 | NE48: 0.0102697956 | NF48: 0.0014699556 | NG48: 0.02989441 | NH48: 0.0120209296 | NI48: 0.0244797316 | NJ48: 0.01471369 | NK48: 0.0046457856 | NL48: 0.0127961344 | NM48: 0.0006320196 | NN48: 1.2996e-06 | NO48: 0.0061591104 | NP48: 0.0147525316 | NQ48: 0.0100440484 | NR48: 0.01758276 | OH48: 60 | OI48: 0.7463244184 | OJ48: 0.1115291007 | OL48: 38 | OM48: Chlordane-Cis-(Beta) | ON48: 10 | OO48: 10.945 | OP48: 10.83566667 | OQ48: 11.22066667 | OR48: 10.807 | OS48: 10.54566667 | OT48: 3 | OU48: 5 | OV48: 0.696 | OW48: -0.07966666667 | OX48: 0.2753333333 | OY48: 0.386 | OZ48: 0.2623333333 | PA48: -0.281 | PB48: 0.6053333333 | PC48: 0.2553333333 | PD48: 0.771 | PE48: 0.8033333333 | PF48: -0.415 | PG48: -0.5256666667 | PH48: -0.5306666667 | PI48: -1.157 | PJ48: -1.065666667 | PZ48: 10.8708 | QA48: 108.708 | QB48: 0.1791966 | QC48: 5.739208 | QD48: 10 | QE48: 0.5739208 | QF48: 0 | QG48: 0.5739208 | QH48: 0.7575756068 | QI48: 0.06968903915 | QJ48: 6.968903915 | QK48: 15 | QL48: UYGUN | QM48: UYGUN | QN48: 0.06799187049 | QP48: 38 | QQ48: Chlordane-Cis-(Beta) | QR48: 50 | QS48: 48.028 | QT48: 44.98133333 | QU48: 53.79933333 | QV48: 46.90333333 | QW48: 50.80166667 | QX48: 3 | QY48: 5 | QZ48: 3.822 | RA48: -0.04833333333 | RB48: -1.882333333 | RC48: -5.548333333 | RD48: -6.283666667 | RE48: -5.851 | RF48: -1.046333333 | RG48: -0.3913333333 | RH48: -2.559333333 | RI48: 0.4553333333 | RJ48: 2.029 | RK48: 1.094666667 | RL48: 2.273666667 | RM48: 8.107666667 | RN48: 5.828333333 | SD48: 48.90273333 | SE48: 97.80546667 | SF48: 35.79208207 | SG48: 240.8497647 | SH48: 10 | SI48: 24.08497647 | SJ48: 3.902368533 | SK48: 27.987345 | SL48: 5.290306702 | SM48: 0.1081801842 | SN48: 10.81801842 | SO48: 15 | SP48: UYGUN | SQ48: UYGUN | SR48: 0.1638413317 | SS48: 0.09099317128
A49: 39 | B49: Chlordecone | C49: GC-MS/MS | D49: 121756 | E49: 134834 | G49: 374098 | H49: 404355 | J49: 638902 | K49: 761898 | M49: 1992380 | N49: 2208743 | P49: 3995984 | Q49: 3864070 | S49: 8348704 | T49: 8078915 | AC49: 39 | AD49: Chlordecone | AE49: 10 | AF49: 10.645 | AG49: 11.55 | AH49: 11.9 | AI49: 9.93 | AJ49: 11.219 | AK49: 11.571 | AL49: 10.863 | AM49: 9.904 | AN49: 10.745 | AO49: 11.261 | AP49: 11.259 | AQ49: 11.294 | AR49: 10.397 | AS49: 9.331 | AT49: 8.591 | BK49: 39 | BL49: Chlordecone | BM49: 50 | BN49: 44.075 | BO49: 44.266 | BP49: 35.046 | BQ49: 46.162 | BR49: 43.6 | BS49: 38.641 | BT49: 40.786 | BU49: 43.743 | BV49: 40.031 | BW49: 42.794 | BX49: 44.868 | BY49: 42.342 | BZ49: 46.121 | CA49: 39.482 | CB49: 37.212 | CS49: 39 | CT49: Chlordecone | CU49: 10 | CV49: 10.644 | CW49: 9.209 | CX49: 11.878 | CY49: 11.291 | CZ49: 11.48 | DA49: 10.381 | DB49: 11.679 | DC49: 10.193 | DD49: 10.642 | DE49: 11.999 | DF49: 9.464 | DG49: 8.514 | DH49: 7.595 | DI49: 7.46 | DJ49: 7.41 | EA49: 39 | EB49: Chlordecone | EC49: 50 | ED49: 44.713 | EE49: 38.892 | EF49: 46.143 | EG49: 38.958 | EH49: 39.466 | EI49: 37.705 | EJ49: 37.791 | EK49: 40.722 | EL49: 36.316 | EM49: 39.506 | EN49: 36.753 | EO49: 41.706 | EP49: 49.013 | EQ49: 47.208 | ER49: 45.28 | FI49: 39 | FJ49: Chlordecone | FK49: 10 | FL49: 11.0488 | FM49: 0.7777336948 | FN49: 110.488 | FO49: 7.039078405 | FP49: uygun | FQ49: uygun | FR49: 10.8688 | FS49: 0.6310912771 | FT49: 108.688 | FU49: 5.806448523 | FV49: uygun | FW49: uygun | FX49: 10.1744 | FY49: 1.193512798 | FZ49: 101.744 | GA49: 11.73054724 | GB49: uygun | GC49: uygun | GD49: -------- | GE49: -------- | GF49: -------- | GG49: -------- | GH49: uygun değil | GI49: uygun değil | GJ49: -------- | GK49: -------- | GL49: -------- | GM49: -------- | GN49: uygun değil | GO49: uygun değil | GP49: -------- | GQ49: -------- | GR49: -------- | GS49: -------- | GT49: uygun değil | GU49: uygun değil | GW49: 39 | GX49: Chlordecone | GY49: 50 | GZ49: 42.6298 | HA49: 4.350215535 | HB49: 85.2596 | HC49: 10.2046351 | HD49: uygun | HE49: uygun | HF49: 41.199 | HG49: 2.067251678 | HH49: 82.398 | HI49: 5.017722949 | HJ49: uygun | HK49: uygun | HL49: 42.005 | HM49: 3.694258112 | HN49: 84.01 | HO49: 8.794805648 | HP49: uygun | HQ49: uygun | HR49: -------- | HS49: -------- | HT49: -------- | HU49: -------- | HV49: uygun değil | HW49: uygun değil | HX49: -------- | HY49: -------- | HZ49: -------- | IA49: -------- | IB49: uygun değil | IC49: uygun değil | ID49: -------- | IE49: -------- | IF49: -------- | IG49: -------- | IH49: uygun değil | II49: uygun değil | JO49: 39 | JP49: Chlordecone | JQ49: 10 | JR49: 0.00416025 | JS49: 0.024025 | JT49: 0.0361 | JU49: 4.9e-05 | JV49: 0.01485961 | JW49: 0.02468041 | JX49: 0.00744769 | JY49: 9.216e-05 | JZ49: 0.00555025 | KA49: 0.01590121 | KB49: 0.01585081 | KC49: 0.01674436 | KD49: 0.00157609 | KE49: 0.00447561 | KF49: 0.01985281 | KV49: 0.01404225 | KW49: 0.0131515024 | KX49: 0.0894488464 | KY49: 0.0058920976 | KZ49: 0.016384 | LA49: 0.0516107524 | LB49: 0.0339591184 | LC49: 0.0156600196 | LD49: 0.0397523844 | LE49: 0.0207705744 | LF49: 0.0105349696 | LG49: 0.0234579856 | LH49: 0.0060186564 | LI49: 0.0442513296 | LJ49: 0.0654131776 | LZ49: 0.00414736 | MA49: 0.00625681 | MB49: 0.03526884 | MC49: 0.01666681 | MD49: 0.021904 | ME49: 0.00145161 | MF49: 0.02819041 | MG49: 0.00037249 | MH49: 0.00412164 | MI49: 0.03996001 | MJ49: 0.00287296 | MK49: 0.02208196 | ML49: 0.05784025 | MM49: 0.064516 | MN49: 0.067081 | ND49: 0.0111809476 | NE49: 0.0493550656 | NF49: 0.0059505796 | NG49: 0.0487703056 | NH49: 0.0443860624 | NI49: 0.06046681 | NJ49: 0.0596238724 | NK49: 0.0344325136 | NL49: 0.0749007424 | NM49: 0.0440496144 | NN49: 0.0701932036 | NO49: 0.0275161744 | NP49: 0.0003896676 | NQ49: 0.0031181056 | NR49: 0.00891136 | OH49: 60 | OI49: 1.557690099 | OJ49: 0.1611257324 | OL49: 39 | OM49: Chlordecone | ON49: 10 | OO49: 10.163 | OP49: 9.800666667 | OQ49: 9.888666667 | OR49: 9.797666667 | OS49: 10.29633333 | OT49: 3 | OU49: 5 | OV49: 0.481 | OW49: -0.5916666667 | OX49: 1.989333333 | OY49: 1.493333333 | OZ49: 1.183666667 | PA49: 0.218 | PB49: 1.878333333 | PC49: 0.3043333333 | PD49: 0.8443333333 | PE49: 1.702666667 | PF49: -0.699 | PG49: -1.286666667 | PH49: -2.293666667 | PI49: -2.337666667 | PJ49: -2.886333333 | PZ49: 9.989266667 | QA49: 99.89266667 | QB49: 0.1551555667 | QC49: 36.65086467 | QD49: 10 | QE49: 3.665086467 | QF49: 0 | QG49: 3.665086467 | QH49: 1.914441555 | QI49: 0.1916498597 | QJ49: 19.16498597 | QK49: 15 | QL49: UYGUN | QM49: UYGUN | QN49: 0.5142153619 | QP49: 39 | QQ49: Chlordecone | QR49: 50 | QS49: 39.72366667 | QT49: 39.463 | QU49: 45.29266667 | QV49: 40.82733333 | QW49: 41.41733333 | QX49: 3 | QY49: 5 | QZ49: 4.989333333 | RA49: -0.571 | RB49: 0.8503333333 | RC49: -1.869333333 | RD49: -1.951333333 | RE49: -2.018666667 | RF49: -1.672 | RG49: -4.570666667 | RH49: -4.511333333 | RI49: -1.911333333 | RJ49: -2.970666667 | RK49: 2.243 | RL49: 3.720333333 | RM49: 6.380666667 | RN49: 3.862666667 | SD49: 41.3448 | SE49: 82.6896 | SF49: 16.52094643 | SG49: 168.3414707 | SH49: 10 | SI49: 16.83414707 | SJ49: 0 | SK49: 16.83414707 | SL49: 4.102943707 | SM49: 0.09923723679 | SN49: 9.923723679 | SO49: 15 | SP49: UYGUN | SQ49: UYGUN | SR49: 0.1378724083 | SS49: 0.1526068443
A50: 40 | B50: Chlorfenapyr | C50: GC-MS/MS | D50: 1000688 | E50: 1038442 | G50: 2905317 | H50: 3035769 | J50: 7003975 | K50: 6272244 | M50: 16532695 | N50: 16995145 | P50: 42089176 | Q50: 44898154 | S50: 83093613 | T50: 87294721 | AC50: 40 | AD50: Chlorfenapyr | AE50: 10 | AF50: 8.087 | AG50: 11.065 | AH50: 11.126 | AI50: 8.498 | AJ50: 9.481 | AK50: 9.961 | AL50: 11.612 | AM50: 9.034 | AN50: 10.281 | AO50: 11.306 | AP50: 10.798 | AQ50: 11.264 | AR50: 9.441 | AS50: 7.97 | AT50: 7.338 | BK50: 40 | BL50: Chlorfenapyr | BM50: 50 | BN50: 43.574 | BO50: 45.243 | BP50: 36.114 | BQ50: 51.621 | BR50: 48.874 | BS50: 42.121 | BT50: 44.021 | BU50: 49.616 | BV50: 41.68 | BW50: 50.046 | BX50: 43.52 | BY50: 39.545 | BZ50: 42.288 | CA50: 37.005 | CB50: 37.609 | CS50: 40 | CT50: Chlorfenapyr | CU50: 10 | CV50: 11.435 | CW50: 8.871 | CX50: 11.765 | CY50: 10.214 | CZ50: 10.53 | DA50: 9.886 | DB50: 10.769 | DC50: 8.246 | DD50: 9.123 | DE50: 11.668 | DF50: 11.486 | DG50: 10.476 | DH50: 9.022 | DI50: 10.541 | DJ50: 8.086 | EA50: 40 | EB50: Chlorfenapyr | EC50: 50 | ED50: 49.865 | EE50: 43.41 | EF50: 49.141 | EG50: 46.974 | EH50: 53.681 | EI50: 54.209 | EJ50: 50.611 | EK50: 45.811 | EL50: 41.592 | EM50: 46.875 | EN50: 47.464 | EO50: 46.643 | EP50: 57.11 | EQ50: 53.024 | ER50: 57.27 | FI50: 40 | FJ50: Chlorfenapyr | FK50: 10 | FL50: 9.6514 | FM50: 1.412393819 | FN50: 96.514 | FO50: 14.6340823 | FP50: uygun | FQ50: uygun | FR50: 10.4388 | FS50: 1.043442715 | FT50: 104.388 | FU50: 9.995810967 | FV50: uygun | FW50: uygun | FX50: 9.3622 | FY50: 1.71173748 | FZ50: 93.622 | GA50: 18.28349619 | GB50: uygun | GC50: uygun | GD50: -------- | GE50: -------- | GF50: -------- | GG50: -------- | GH50: uygun değil | GI50: uygun değil | GJ50: -------- | GK50: -------- | GL50: -------- | GM50: -------- | GN50: uygun değil | GO50: uygun değil | GP50: -------- | GQ50: -------- | GR50: -------- | GS50: -------- | GT50: uygun değil | GU50: uygun değil | GW50: 40 | GX50: Chlorfenapyr | GY50: 50 | GZ50: 45.0852 | HA50: 5.913178984 | HB50: 90.1704 | HC50: 13.11556561 | HD50: uygun | HE50: uygun | HF50: 45.4968 | HG50: 4.05601414 | HH50: 90.9936 | HI50: 8.914943775 | HJ50: uygun | HK50: uygun | HL50: 39.9934 | HM50: 2.851274154 | HN50: 79.9868 | HO50: 7.129361729 | HP50: uygun | HQ50: uygun | HR50: -------- | HS50: -------- | HT50: -------- | HU50: -------- | HV50: uygun değil | HW50: uygun değil | HX50: -------- | HY50: -------- | HZ50: -------- | IA50: -------- | IB50: uygun değil | IC50: uygun değil | ID50: -------- | IE50: -------- | IF50: -------- | IG50: -------- | IH50: uygun değil | II50: uygun değil | JO50: 40 | JP50: Chlorfenapyr | JQ50: 10 | JR50: 0.03659569 | JS50: 0.01134225 | JT50: 0.01267876 | JU50: 0.02256004 | JV50: 0.00269361 | JW50: 1.521e-05 | JX50: 0.02598544 | JY50: 0.00933156 | JZ50: 0.00078961 | KA50: 0.01705636 | KB50: 0.00636804 | KC50: 0.01597696 | KD50: 0.00312481 | KE50: 0.041209 | KF50: 0.07086244 | KV50: 0.0165173904 | KW50: 0.0090516196 | KX50: 0.0771283984 | KY50: 0.0010510564 | KZ50: 0.0005071504 | LA50: 0.0248314564 | LB50: 0.0142993764 | LC50: 5.89824e-05 | LD50: 0.02768896 | LE50: 8.464e-07 | LF50: 0.01679616 | LG50: 0.04372281 | LH50: 0.0237899776 | LI50: 0.06754801 | LJ50: 0.0614147524 | LZ50: 0.02059225 | MA50: 0.01274641 | MB50: 0.03115225 | MC50: 0.00045796 | MD50: 0.002809 | ME50: 0.00012996 | MF50: 0.00591361 | MG50: 0.03076516 | MH50: 0.00769129 | MI50: 0.02782224 | MJ50: 0.02208196 | MK50: 0.00226576 | ML50: 0.00956484 | MM50: 0.00292681 | MN50: 0.03663396 | ND50: 7.29e-06 | NE50: 0.01737124 | NF50: 0.0002951524 | NG50: 0.0036626704 | NH50: 0.0054199044 | NI50: 0.0070862724 | NJ50: 0.0001493284 | NK50: 0.0070190884 | NL50: 0.0282777856 | NM50: 0.00390625 | NN50: 0.0025725184 | NO50: 0.0045077796 | NP50: 0.02022084 | NQ50: 0.0036578304 | NR50: 0.02114116 | OH50: 60 | OI50: 0.9998452972 | OJ50: 0.1290894585 | OL50: 40 | OM50: Chlorfenapyr | ON50: 10 | OO50: 10.93566667 | OP50: 10.03866667 | OQ50: 9.677666667 | OR50: 9.959333333 | OS50: 10.09466667 | OT50: 3 | OU50: 5 | OV50: 0.4993333333 | OW50: -1.167666667 | OX50: 2.087333333 | OY50: 0.2546666667 | OZ50: 0.4353333333 | PA50: -1.049666667 | PB50: 0.7303333333 | PC50: -1.431666667 | PD50: -0.8363333333 | PE50: 1.573333333 | PF50: 0.5503333333 | PG50: 0.4373333333 | PH50: -0.6556666667 | PI50: 0.5816666667 | PJ50: -2.008666667 | PZ50: 10.1412 | QA50: 101.412 | QB50: 0.6688457667 | QC50: 18.38090133 | QD50: 10 | QE50: 1.838090133 | QF50: 0 | QG50: 1.838090133 | QH50: 1.355761828 | QI50: 0.1336885011 | QJ50: 13.36885011 | QK50: 15 | QL50: UYGUN | QM50: UYGUN | QN50: 0.2502166147 | QP50: 40 | QQ50: Chlorfenapyr | QR50: 50 | QS50: 50.51266667 | QT50: 46.888 | QU50: 50.68733333 | QV50: 47.19666667 | QW50: 52.60866667 | QX50: 3 | QY50: 5 | QZ50: -0.6476666667 | RA50: -3.478 | RB50: -1.546333333 | RC50: -0.2226666667 | RD50: 1.072333333 | RE50: 3.696333333 | RF50: 3.723 | RG50: -4.876333333 | RH50: -5.604666667 | RI50: -5.733666667 | RJ50: -3.048666667 | RK50: -0.245 | RL50: 6.422666667 | RM50: 5.827333333 | RN50: 4.661333333 | SD50: 49.57866667 | SE50: 99.15733333 | SF50: 18.14700667 | SG50: 237.9869227 | SH50: 10 | SI50: 23.79869227 | SJ50: 0 | SK50: 23.79869227 | SL50: 4.878390336 | SM50: 0.09839696514 | SN50: 9.839696514 | SO50: 15 | SP50: UYGUN | SQ50: UYGUN | SR50: 0.1355474785 | SS50: 0.1173766972
A51: 41 | B51: Chlorfenprop Methyl | C51: GC-MS/MS | D51: 879294 | E51: 611917 | G51: 1767294 | H51: 1840789 | J51: 3109893 | K51: 3140023 | M51: 11434133 | N51: 10067897 | P51: 19486163 | Q51: 17778635 | S51: 38781984 | T51: 36538315 | AC51: 41 | AD51: Chlorfenprop Methyl | AE51: 10 | AF51: 9.692 | AG51: 10.881 | AH51: 11.311 | AI51: 9.296 | AJ51: 10.024 | AK51: 10.524 | AL51: 11.441 | AM51: 9.031 | AN51: 11.405 | AO51: 11.034 | AP51: 11.173 | AQ51: 8.345 | AR51: 10.289 | AS51: 9.444 | AT51: 8.684 | BK51: 41 | BL51: Chlorfenprop Methyl | BM51: 50 | BN51: 45.892 | BO51: 48.444 | BP51: 41.229 | BQ51: 47.179 | BR51: 41.151 | BS51: 42.763 | BT51: 44.192 | BU51: 52.385 | BV51: 38.132 | BW51: 51.398 | BX51: 44.175 | BY51: 42.575 | BZ51: 43.016 | CA51: 43.042 | CB51: 40.369 | CS51: 41 | CT51: Chlorfenprop Methyl | CU51: 10 | CV51: 10.794 | CW51: 9.368 | CX51: 10.997 | CY51: 11.07 | CZ51: 11.515 | DA51: 10.278 | DB51: 11.593 | DC51: 10.239 | DD51: 10.112 | DE51: 11.075 | DF51: 9.597 | DG51: 8.119 | DH51: 7.381 | DI51: 8.53 | DJ51: 10.74 | EA51: 41 | EB51: Chlorfenprop Methyl | EC51: 50 | ED51: 50.722 | EE51: 37.825 | EF51: 48.464 | EG51: 42.378 | EH51: 35.698 | EI51: 42.51 | EJ51: 35.923 | EK51: 46.17 | EL51: 42.183 | EM51: 50.318 | EN51: 47.642 | EO51: 44.911 | EP51: 56.767 | EQ51: 56.702 | ER51: 44.456 | FI51: 41 | FJ51: Chlorfenprop Methyl | FK51: 10 | FL51: 10.2408 | FM51: 0.8360644114 | FN51: 102.408 | FO51: 8.164053701 | FP51: uygun | FQ51: uygun | FR51: 10.687 | FS51: 0.9966636845 | FT51: 106.87 | FU51: 9.325944461 | FV51: uygun | FW51: uygun | FX51: 9.587 | FY51: 1.160454868 | FZ51: 95.87 | GA51: 12.104463 | GB51: uygun | GC51: uygun | GD51: -------- | GE51: -------- | GF51: -------- | GG51: -------- | GH51: uygun değil | GI51: uygun değil | GJ51: -------- | GK51: -------- | GL51: -------- | GM51: -------- | GN51: uygun değil | GO51: uygun değil | GP51: -------- | GQ51: -------- | GR51: -------- | GS51: -------- | GT51: uygun değil | GU51: uygun değil | GW51: 41 | GX51: Chlorfenprop Methyl | GY51: 50 | GZ51: 44.779 | HA51: 3.398377481 | HB51: 89.558 | HC51: 7.589221467 | HD51: uygun | HE51: uygun | HF51: 45.774 | HG51: 6.027099344 | HH51: 91.548 | HI51: 13.16708032 | HJ51: uygun | HK51: uygun | HL51: 42.6354 | HM51: 1.398281552 | HN51: 85.2708 | HO51: 3.279625739 | HP51: uygun | HQ51: uygun | HR51: -------- | HS51: -------- | HT51: -------- | HU51: -------- | HV51: uygun değil | HW51: uygun değil | HX51: -------- | HY51: -------- | HZ51: -------- | IA51: -------- | IB51: uygun değil | IC51: uygun değil | ID51: -------- | IE51: -------- | IF51: -------- | IG51: -------- | IH51: uygun değil | II51: uygun değil | JO51: 41 | JP51: Chlorfenprop Methyl | JQ51: 10 | JR51: 0.00094864 | JS51: 0.00776161 | JT51: 0.01718721 | JU51: 0.00495616 | JV51: 5.76e-06 | JW51: 0.00274576 | JX51: 0.02076481 | JY51: 0.00938961 | JZ51: 0.01974025 | KA51: 0.01069156 | KB51: 0.01375929 | KC51: 0.02739025 | KD51: 0.00083521 | KE51: 0.00309136 | KF51: 0.01731856 | KV51: 0.0067502656 | KW51: 0.0009684544 | KX51: 0.0307721764 | KY51: 0.0031832164 | KZ51: 0.0313219204 | LA51: 0.0209496676 | LB51: 0.0134931456 | LC51: 0.00227529 | LD51: 0.0563397696 | LE51: 0.0007817616 | LF51: 0.01357225 | LG51: 0.02205225 | LH51: 0.0195105024 | LI51: 0.0193655056 | LJ51: 0.0371024644 | LZ51: 0.00630436 | MA51: 0.00399424 | MB51: 0.00994009 | MC51: 0.011449 | MD51: 0.02295225 | ME51: 0.00077284 | MF51: 0.02537649 | MG51: 0.00057121 | MH51: 0.00012544 | MI51: 0.01155625 | MJ51: 0.00162409 | MK51: 0.03538161 | ML51: 0.06859161 | MM51: 0.021609 | MN51: 0.005476 | ND51: 0.0002085136 | NE51: 0.05929225 | NF51: 0.0009437184 | NG51: 0.0232379536 | NH51: 0.0818188816 | NI51: 0.02244004 | NJ51: 0.0792647716 | NK51: 0.00586756 | NL51: 0.0244421956 | NM51: 4.04496e-05 | NN51: 0.0022240656 | NO51: 0.0103591684 | NP51: 0.0183169156 | NQ51: 0.0179667216 | NR51: 0.0122943744 | OH51: 60 | OI51: 1.01946674 | OJ51: 0.130349961 | OL51: 41 | OM51: Chlorfenprop Methyl | ON51: 10 | OO51: 10.223 | OP51: 9.693333333 | OQ51: 9.539 | OR51: 9.904 | OS51: 11.11 | OT51: 3 | OU51: 5 | OV51: 0.571 | OW51: -0.3253333333 | OX51: 1.458 | OY51: 1.166 | OZ51: 0.405 | PA51: 0.055 | PB51: 1.899666667 | PC51: 0.7 | PD51: 0.208 | PE51: -0.035 | PF51: -0.626 | PG51: -1.574333333 | PH51: -2.158 | PI51: -1.374 | PJ51: -0.37 | PZ51: 10.09386667 | QA51: 100.9386667 | QB51: 1.165166767 | QC51: 17.77961667 | QD51: 10 | QE51: 1.777961667 | QF51: 0 | QG51: 1.777961667 | QH51: 1.33340229 | QI51: 0.132100248 | QJ51: 13.2100248 | QK51: 15 | QL51: UYGUN | QM51: UYGUN | QN51: 0.2443066573 | QP51: 41 | QQ51: Chlorfenprop Methyl | QR51: 50 | QS51: 46.958 | QT51: 39.553 | QU51: 50.467 | QV51: 47.08766667 | QW51: 43.49066667 | QX51: 3 | QY51: 5 | QZ51: 3.764 | RA51: -1.728 | RB51: -2.003 | RC51: -4.709666667 | RD51: -7.792666667 | RE51: -4.448 | RF51: -3.63 | RG51: -4.297 | RH51: -4.904666667 | RI51: 6.827333333 | RJ51: 0.684 | RK51: 5.358 | RL51: 6.3 | RM51: 9.614333333 | RN51: 0.9653333333 | SD51: 45.51126667 | SE51: 91.02253333 | SF51: 51.5408499 | SG51: 388.3996453 | SH51: 10 | SI51: 38.83996453 | SJ51: 4.233628456 | SK51: 43.07359299 | SL51: 6.563047538 | SM51: 0.1442070946 | SN51: 14.42070946 | SO51: 15 | SP51: UYGUN | SQ51: UYGUN | SR51: 0.2911396059 | SS51: 0.1382862279
A52: 42 | B52: Chlorfenson | C52: GC-MS/MS | D52: 758359 | E52: 745775 | G52: 1873945 | H52: 2156825 | J52: 3134705 | K52: 3408367 | M52: 9074171 | N52: 9701282 | P52: 18236531 | Q52: 16518667 | S52: 38112113 | T52: 29792341 | AC52: 42 | AD52: Chlorfenson | AE52: 10 | AF52: 9.264 | AG52: 10.96 | AH52: 11.624 | AI52: 8.087 | AJ52: 9.636 | AK52: 10.423 | AL52: 10.96 | AM52: 8.223 | AN52: 11.111 | AO52: 11.6 | AP52: 11.849 | AQ52: 11.094 | AR52: 10.087 | AS52: 8.849 | AT52: 7.934 | BK52: 42 | BL52: Chlorfenson | BM52: 50 | BN52: 37.351 | BO52: 39.34 | BP52: 42.1 | BQ52: 44.398 | BR52: 40.876 | BS52: 36.12 | BT52: 41.453 | BU52: 46.087 | BV52: 40.167 | BW52: 45.139 | BX52: 44.853 | BY52: 42.494 | BZ52: 43.755 | CA52: 39.851 | CB52: 37.725 | CS52: 42 | CT52: Chlorfenson | CU52: 10 | CV52: 10.663 | CW52: 8.282 | CX52: 10.922 | CY52: 11.632 | CZ52: 11.283 | DA52: 9.29 | DB52: 10.406 | DC52: 9.087 | DD52: 9.934 | DE52: 11.65 | DF52: 11.67 | DG52: 9.885 | DH52: 9.451 | DI52: 10.614 | DJ52: 8.484 | EA52: 42 | EB52: Chlorfenson | EC52: 50 | ED52: 40.621 | EE52: 35.84 | EF52: 43.135 | EG52: 41.388 | EH52: 47.556 | EI52: 45.755 | EJ52: 39.665 | EK52: 38.874 | EL52: 37.445 | EM52: 40.412 | EN52: 51.617 | EO52: 45.182 | EP52: 56.539 | EQ52: 58.356 | ER52: 35.719 | FI52: 42 | FJ52: Chlorfenson | FK52: 10 | FL52: 9.9142 | FM52: 1.401421493 | FN52: 99.142 | FO52: 14.13549749 | FP52: uygun | FQ52: uygun | FR52: 10.4634 | FS52: 1.320878609 | FT52: 104.634 | FU52: 12.62379923 | FV52: uygun | FW52: uygun | FX52: 9.9626 | FY52: 1.597605177 | FZ52: 99.626 | GA52: 16.0360265 | GB52: uygun | GC52: uygun | GD52: -------- | GE52: -------- | GF52: -------- | GG52: -------- | GH52: uygun değil | GI52: uygun değil | GJ52: -------- | GK52: -------- | GL52: -------- | GM52: -------- | GN52: uygun değil | GO52: uygun değil | GP52: -------- | GQ52: -------- | GR52: -------- | GS52: -------- | GT52: uygun değil | GU52: uygun değil | GW52: 42 | GX52: Chlorfenson | GY52: 50 | GZ52: 40.813 | HA52: 2.677112997 | HB52: 81.626 | HC52: 6.559461439 | HD52: uygun | HE52: uygun | HF52: 41.7932 | HG52: 4.017977003 | HH52: 83.5864 | HI52: 9.613949167 | HJ52: uygun | HK52: uygun | HL52: 41.7356 | HM52: 2.915817175 | HN52: 83.4712 | HO52: 6.986402916 | HP52: uygun | HQ52: uygun | HR52: -------- | HS52: -------- | HT52: -------- | HU52: -------- | HV52: uygun değil | HW52: uygun değil | HX52: -------- | HY52: -------- | HZ52: -------- | IA52: -------- | IB52: uygun değil | IC52: uygun değil | ID52: -------- | IE52: -------- | IF52: -------- | IG52: -------- | IH52: uygun değil | II52: uygun değil | JO52: 42 | JP52: Chlorfenson | JQ52: 10 | JR52: 0.00541696 | JS52: 0.009216 | JT52: 0.02637376 | JU52: 0.03659569 | JV52: 0.00132496 | JW52: 0.00178929 | JX52: 0.009216 | JY52: 0.03157729 | JZ52: 0.01234321 | KA52: 0.0256 | KB52: 0.03418801 | KC52: 0.01196836 | KD52: 7.569e-05 | KE52: 0.01324801 | KF52: 0.04268356 | KV52: 0.0639988804 | KW52: 0.04545424 | KX52: 0.024964 | KY52: 0.0125529616 | KZ52: 0.0332989504 | LA52: 0.07706176 | LB52: 0.0292204836 | LC52: 0.0061246276 | LD52: 0.0386751556 | LE52: 0.0094517284 | LF52: 0.0105966436 | LG52: 0.0225360144 | LH52: 0.01560001 | LI52: 0.0412008804 | LJ52: 0.06027025 | LZ52: 0.00439569 | MA52: 0.02951524 | MB52: 0.00850084 | MC52: 0.02663424 | MD52: 0.01646089 | ME52: 0.005041 | MF52: 0.00164836 | MG52: 0.00833569 | MH52: 4.356e-05 | MI52: 0.027225 | MJ52: 0.027889 | MK52: 0.00013225 | ML52: 0.00301401 | MM52: 0.00376996 | MN52: 0.02298256 | ND52: 0.0351862564 | NE52: 0.08020224 | NF52: 0.01885129 | NG52: 0.0296666176 | NH52: 0.0023892544 | NI52: 0.00720801 | NJ52: 0.04272489 | NK52: 0.0495151504 | NL52: 0.06305121 | NM52: 0.0367718976 | NN52: 0.0010458756 | NO52: 0.0092852496 | NP52: 0.0171034084 | NQ52: 0.0279290944 | NR52: 0.0815787844 | OH52: 60 | OI52: 1.440720895 | OJ52: 0.154958107 | OL52: 42 | OM52: Chlorfenson | ON52: 10 | OO52: 10.541 | OP52: 9.524333333 | OQ52: 9.82 | OR52: 10.72666667 | OS52: 10.47233333 | OT52: 3 | OU52: 5 | OV52: 0.122 | OW52: -1.242333333 | OX52: 1.102 | OY52: 0.9053333333 | OZ52: 0.8106666667 | PA52: -1.251 | PB52: 0.8816666667 | PC52: -0.733 | PD52: -0.7926666667 | PE52: 1.177666667 | PF52: 1.129 | PG52: 0.3606666667 | PH52: -0.369 | PI52: -0.1126666667 | PJ52: -1.988333333 | PZ52: 10.21686667 | QA52: 102.1686667 | QB52: 0.8004954333 | QC52: 14.65138 | QD52: 10 | QE52: 1.465138 | QF52: 0 | QG52: 1.465138 | QH52: 1.21042885 | QI52: 0.1184735878 | QJ52: 14.24 | QK52: 15 | QL52: UYGUN | QM52: UYGUN | QN52: 0.1965038739 | QP52: 42 | QQ52: Chlorfenson | QR52: 50 | QS52: 45.99766667 | QT52: 40.229 | QU52: 46.18266667 | QV52: 45.72966667 | QW52: 41.229 | QX52: 3 | QY52: 5 | QZ52: -5.376666667 | RA52: -4.389 | RB52: -3.047666667 | RC52: -4.341666667 | RD52: 6.327 | RE52: -0.2426666667 | RF52: -0.564 | RG52: -7.308666667 | RH52: -8.284666667 | RI52: -0.817 | RJ52: 5.619333333 | RK52: 4.953 | RL52: 10.35633333 | RM52: 12.62633333 | RN52: -5.51 | SD52: 43.8736 | SE52: 87.7472 | SF52: 25.1740874 | SG52: 592.585068 | SH52: 10 | SI52: 59.2585068 | SJ52: 0 | SK52: 59.2585068 | SL52: 7.697954715 | SM52: 0.175457558 | SN52: 17.5457558 | SO52: 15 | SP52: UYGUN | SQ52: UYGUN | SR52: 0.4309949651 | SS52: 0.1497019466
A53: 43 | B53: Chlorfenvinphos | C53: GC-MS/MS | D53: 758359 | E53: 712659 | G53: 1873945 | H53: 1825918 | J53: 3059384 | K53: 3171184 | M53: 8194495 | N53: 9832200 | P53: 16831690 | Q53: 17494556 | S53: 35083119 | T53: 28417964 | AC53: 43 | AD53: Chlorfenvinphos | AE53: 10 | AF53: 9.521 | AG53: 11.697 | AH53: 11.426 | AI53: 8.9 | AJ53: 10.091 | AK53: 10.168 | AL53: 11.952 | AM53: 9.049 | AN53: 11.772 | AO53: 11.388 | AP53: 11.642 | AQ53: 11.34 | AR53: 10.33 | AS53: 9.292 | AT53: 8.521 | BK53: 43 | BL53: Chlorfenvinphos | BM53: 50 | BN53: 40.332 | BO53: 41.204 | BP53: 36.3 | BQ53: 46.69 | BR53: 41.259 | BS53: 39.873 | BT53: 40.143 | BU53: 46.048 | BV53: 41.648 | BW53: 42.795 | BX53: 44.861 | BY53: 41.242 | BZ53: 47.756 | CA53: 41.195 | CB53: 36.937 | CS53: 43 | CT53: Chlorfenvinphos | CU53: 10 | CV53: 10.005 | CW53: 8.417 | CX53: 11.837 | CY53: 10.784 | CZ53: 11.15 | DA53: 9.114 | DB53: 10.291 | DC53: 8.777 | DD53: 9.673 | DE53: 11.249 | DF53: 9.675 | DG53: 7.519 | DH53: 7.278 | DI53: 8.284 | DJ53: 7.191 | EA53: 43 | EB53: Chlorfenvinphos | EC53: 50 | ED53: 40.649 | EE53: 38.205 | EF53: 41.66 | EG53: 39.911 | EH53: 42.032 | EI53: 40.626 | EJ53: 37.109 | EK53: 38.841 | EL53: 35.419 | EM53: 40.918 | EN53: 48.003 | EO53: 48.273 | EP53: 56.814 | EQ53: 53.096 | ER53: 52.63 | FI53: 43 | FJ53: Chlorfenvinphos | FK53: 10 | FL53: 10.327 | FM53: 1.206892912 | FN53: 103.27 | FO53: 11.68677168 | FP53: uygun | FQ53: uygun | FR53: 10.8658 | FS53: 1.230996426 | FT53: 108.658 | FU53: 11.32909151 | FV53: uygun | FW53: uygun | FX53: 10.225 | FY53: 1.32629597 | FZ53: 102.25 | GA53: 12.97110973 | GB53: uygun | GC53: uygun | GD53: -------- | GE53: -------- | GF53: -------- | GG53: -------- | GH53: uygun değil | GI53: uygun değil | GJ53: -------- | GK53: -------- | GL53: -------- | GM53: -------- | GN53: uygun değil | GO53: uygun değil | GP53: -------- | GQ53: -------- | GR53: -------- | GS53: -------- | GT53: uygun değil | GU53: uygun değil | GW53: 43 | GX53: Chlorfenvinphos | GY53: 50 | GZ53: 41.157 | HA53: 3.704651671 | HB53: 82.314 | HC53: 9.001267514 | HD53: uygun | HE53: uygun | HF53: 42.1014 | HG53: 2.503168053 | HH53: 84.2028 | HI53: 5.945569631 | HJ53: uygun | HK53: uygun | HL53: 42.3982 | HM53: 4.10428431 | HN53: 84.7964 | HO53: 9.680326784 | HP53: uygun | HQ53: uygun | HR53: -------- | HS53: -------- | HT53: -------- | HU53: -------- | HV53: uygun değil | HW53: uygun değil | HX53: -------- | HY53: -------- | HZ53: -------- | IA53: -------- | IB53: uygun değil | IC53: uygun değil | ID53: -------- | IE53: -------- | IF53: -------- | IG53: -------- | IH53: uygun değil | II53: uygun değil | JO53: 43 | JP53: Chlorfenvinphos | JQ53: 10 | JR53: 0.00229441 | JS53: 0.02879809 | JT53: 0.02033476 | JU53: 0.0121 | JV53: 8.281e-05 | JW53: 0.00028224 | JX53: 0.03810304 | JY53: 0.00904401 | JZ53: 0.03139984 | KA53: 0.01926544 | KB53: 0.02696164 | KC53: 0.017956 | KD53: 0.001089 | KE53: 0.00501264 | KF53: 0.02187441 | KV53: 0.0373880896 | KW53: 0.0309478464 | KX53: 0.075076 | KY53: 0.00438244 | KZ53: 0.0305620324 | LA53: 0.0410224516 | LB53: 0.0388641796 | LC53: 0.0062473216 | LD53: 0.0279023616 | LE53: 0.02076481 | LF53: 0.0105637284 | LG53: 0.0306810256 | LH53: 0.0020142144 | LI53: 0.03101121 | LJ53: 0.0682567876 | LZ53: 2.5e-07 | MA53: 0.02505889 | MB53: 0.03374569 | MC53: 0.00614656 | MD53: 0.013225 | ME53: 0.00784996 | MF53: 0.00084681 | MG53: 0.01495729 | MH53: 0.00106929 | MI53: 0.01560001 | MJ53: 0.00105625 | MK53: 0.06155361 | ML53: 0.07409284 | MM53: 0.02944656 | MN53: 0.07890481 | ND53: 0.0349764804 | NE53: 0.05564881 | NF53: 0.02782224 | NG53: 0.0407151684 | NH53: 0.0253956096 | NI53: 0.0351487504 | NJ53: 0.0664711524 | NK53: 0.0498093124 | NL53: 0.0850422244 | NM53: 0.0329930896 | NN53: 0.0015952036 | NO53: 0.0011930116 | NP53: 0.0185722384 | NQ53: 0.0038340864 | NR53: 0.00276676 | OH53: 60 | OI53: 1.535820786 | OJ53: 0.1599906657 | OL53: 43 | OM53: Chlorfenvinphos | ON53: 10 | OO53: 9.598 | OP53: 8.742333333 | OQ53: 9.297333333 | OR53: 9.580333333 | OS53: 9.863333333 | OT53: 3 | OU53: 5 | OV53: 0.407 | OW53: -0.3253333333 | OX53: 2.539666667 | OY53: 1.203666667 | OZ53: 1.286666667 | PA53: -0.484 | PB53: 1.548666667 | PC53: -0.5203333333 | PD53: 0.09266666667 | PE53: 1.385666667 | PF53: 0.077 | PG53: -1.223333333 | PH53: -2.019333333 | PI53: -1.296333333 | PJ53: -2.672333333 | PZ53: 9.416266667 | QA53: 94.16266667 | QB53: 0.5461085667 | QC53: 29.05977867 | QD53: 10 | QE53: 2.905977867 | QF53: 0 | QG53: 2.905977867 | QH53: 1.704692895 | QI53: 0.1810370241 | QJ53: =QI53*100 -> 18.10370241 | QK53: 15 | QL53: UYGUN | QM53: UYGUN | QN53: 0.4588416571 | QP53: 43 | QQ53: Chlorfenvinphos | QR53: 50 | QS53: 43.09266667 | QT53: 41.19566667 | QU53: 45.77166667 | QV53: 42.80866667 | QW53: 45.19333333 | QX53: 3 | QY53: 5 | QZ53: -2.443666667 | RA53: -2.990666667 | RB53: -4.111666667 | RC53: -2.897666667 | RD53: -3.161333333 | RE53: -2.466666667 | RF53: -4.086666667 | RG53: -6.930666667 | RH53: -7.389666667 | RI53: -4.275333333 | RJ53: 4.910333333 | RK53: 7.077333333 | RL53: 11.04233333 | RM53: 10.28733333 | RN53: 7.436666667 | SD53: 43.6124 | SE53: 87.2248 | SF53: 10.43886957 | SG53: 551.1833593 | SH53: 10 | SI53: 55.11833593 | SJ53: 0 | SK53: 55.11833593 | SL53: 7.424172407 | SM53: 0.1702307694 | SN53: 17.02307694 | SO53: 15 | SP53: UYGUN | SQ53: UYGUN | SR53: 0.4056992079 | SS53: 0.1757169868
A54: 44 | B54: Chlormephos | C54: GC-MS/MS | D54: 142954 | E54: 139550 | G54: 277323 | H54: 309243 | J54: 487726 | K54: 610689 | M54: 1303177 | N54: 1409305 | P54: 2486336 | Q54: 2661838 | S54: 5090724 | T54: 5066353 | AC54: 44 | AD54: Chlormephos | AE54: 10 | AF54: 10.074 | AG54: 11.456 | AH54: 11.442 | AI54: 10.009 | AJ54: 11.01 | AK54: 11.476 | AL54: 11.358 | AM54: 9.627 | AN54: 9.988 | AO54: 9.925 | AP54: 11.109 | AQ54: 7.671 | AR54: 10.304 | AS54: 9.427 | AT54: 8.42 | BK54: 44 | BL54: Chlormephos | BM54: 50 | BN54: 42.315 | BO54: 47.559 | BP54: 44.427 | BQ54: 45.43 | BR54: 42.165 | BS54: 41.991 | BT54: 43.235 | BU54: 51.079 | BV54: 40.86 | BW54: 52.862 | BX54: 57.747 | BY54: 54.242 | BZ54: 54.031 | CA54: 55.574 | CB54: 47.855 | CS54: 44 | CT54: Chlormephos | CU54: 10 | CV54: 11.633 | CW54: 10.424 | CX54: 10.556 | CY54: 11.065 | CZ54: 11.23 | DA54: 11.464 | DB54: 11.474 | DC54: 11.362 | DD54: 11.218 | DE54: 10.86 | DF54: 9.566 | DG54: 10.638 | DH54: 9.093 | DI54: 8.613 | DJ54: 10.24 | EA54: 44 | EB54: Chlormephos | EC54: 50 | ED54: 48.661 | EE54: 41.125 | EF54: 48.46 | EG54: 47.252 | EH54: 44.211 | EI54: 42.275 | EJ54: 41.908 | EK54: 43.58 | EL54: 45.45 | EM54: 53.267 | EN54: 42.583 | EO54: 48.168 | EP54: 57.228 | EQ54: 56.066 | ER54: 52.57 | FI54: 44 | FJ54: Chlormephos | FK54: 10 | FL54: 10.7982 | FM54: 0.7140274505 | FN54: 107.982 | FO54: 6.61246736 | FP54: uygun | FQ54: uygun | FR54: 10.4748 | FS54: 0.8718461447 | FT54: 104.748 | FU54: 8.32327247 | FV54: uygun | FW54: uygun | FX54: 9.3862 | FY54: 1.386318398 | FZ54: 93.862 | GA54: 14.76975131 | GB54: uygun | GC54: uygun | GD54: -------- | GE54: -------- | GF54: -------- | GG54: -------- | GH54: uygun değil | GI54: uygun değil | GJ54: -------- | GK54: -------- | GL54: -------- | GM54: -------- | GN54: uygun değil | GO54: uygun değil | GP54: -------- | GQ54: -------- | GR54: -------- | GS54: -------- | GT54: uygun değil | GU54: uygun değil | GW54: 44 | GX54: Chlormephos | GY54: 50 | GZ54: 44.3792 | HA54: 2.257276944 | HB54: 88.7584 | HC54: 5.08633987 | HD54: uygun | HE54: uygun | HF54: 46.0054 | HG54: 5.545720089 | HH54: 92.0108 | HI54: 12.05449814 | HJ54: uygun | HK54: uygun | HL54: 53.8898 | HM54: 3.683656974 | HN54: 107.7796 | HO54: 6.835536546 | HP54: uygun | HQ54: uygun | HR54: -------- | HS54: -------- | HT54: -------- | HU54: -------- | HV54: uygun değil | HW54: uygun değil | HX54: -------- | HY54: -------- | HZ54: -------- | IA54: -------- | IB54: uygun değil | IC54: uygun değil | ID54: -------- | IE54: -------- | IF54: -------- | IG54: -------- | IH54: uygun değil | II54: uygun değil | JO54: 44 | JP54: Chlormephos | JQ54: 10 | JR54: 5.476e-05 | JS54: 0.02119936 | JT54: 0.02079364 | JU54: 8.1e-07 | JV54: 0.010201 | JW54: 0.02178576 | JX54: 0.01844164 | JY54: 0.00139129 | JZ54: 1.44e-06 | KA54: 5.625e-05 | KB54: 0.01229881 | KC54: 0.05424241 | KD54: 0.00092416 | KE54: 0.00328329 | KF54: 0.024964 | KV54: 0.02362369 | KW54: 0.0023833924 | KX54: 0.0124233316 | KY54: 0.00835396 | KZ54: 0.02455489 | LA54: 0.0256576324 | LB54: 0.01830609 | LC54: 0.0004656964 | LD54: 0.03341584 | LE54: 0.0032764176 | LF54: 0.0240064036 | LG54: 0.0071978256 | LH54: 0.0064995844 | LI54: 0.0124277904 | LJ54: 0.00184041 | LZ54: 0.02666689 | MA54: 0.00179776 | MB54: 0.00309136 | MC54: 0.01134225 | MD54: 0.015129 | ME54: 0.02143296 | MF54: 0.02172676 | MG54: 0.01855044 | MH54: 0.01483524 | MI54: 0.007396 | MJ54: 0.00188356 | MK54: 0.00407044 | ML54: 0.00822649 | MM54: 0.01923769 | MN54: 0.000576 | ND54: 0.0007171684 | NE54: 0.03150625 | NF54: 0.00094864 | NG54: 0.0030206016 | NH54: 0.0134050084 | NI54: 0.02387025 | NJ54: 0.0261921856 | NK54: 0.01648656 | NL54: 0.008281 | NM54: 0.0042693156 | NN54: 0.0220047556 | NO54: 0.0013424896 | NP54: 0.0208975936 | NQ54: 0.0147185424 | NR54: 0.00264196 | OH54: 60 | OI54: 0.7603367352 | OJ54: 0.1125712171 | OL54: 44 | OM54: Chlormephos | ON54: 10 | OO54: 10.88766667 | OP54: 10.84533333 | OQ54: 10.337 | OR54: 10.29866667 | OS54: 10.77666667 | OT54: 3 | OU54: 5 | OV54: 0.7453333333 | OW54: -0.4213333333 | OX54: 0.219 | OY54: 0.7663333333 | OZ54: 0.4533333333 | PA54: 0.5763333333 | PB54: 0.6286666667 | PC54: 1.025 | PD54: 0.9193333333 | PE54: 0.08333333333 | PF54: -1.321666667 | PG54: -0.2073333333 | PH54: -1.244 | PI54: -1.685666667 | PJ54: -0.5366666667 | PZ54: 10.62906667 | QA54: 106.2906667 | QB54: 0.2474235667 | QC54: 10.67071667 | QD54: 10 | QE54: 1.067071667 | QF54: 0 | QG54: 1.067071667 | QH54: 1.03299161 | QI54: 0.09718554249 | QJ54: 9.718554249 | QK54: 15 | QL54: UYGUN | QM54: UYGUN | QN54: 0.1322304154 | QP54: 44 | QQ54: Chlormephos | QR54: 50 | QS54: 44.50633333 | QT54: 43.73366667 | QU54: 49.756 | QV54: 49.58933333 | QW54: 50.016 | QX54: 3 | QY54: 5 | QZ54: 4.154666667 | RA54: -2.608666667 | RB54: -1.296 | RC54: -2.337333333 | RD54: -5.805 | RE54: -2.231333333 | RF54: -1.825666667 | RG54: -6.176 | RH54: -4.139333333 | RI54: 3.251 | RJ54: -1.923333333 | RK54: 4.434333333 | RL54: 7.472 | RM54: 6.476666667 | RN54: 2.554 | SD54: 47.52026667 | SE54: 95.04053333 | SF54: 29.19776923 | SG54: 266.728564 | SH54: 10 | SI54: 26.6728564 | SJ54: 0.8416376111 | SK54: 27.51449401 | SL54: 5.245426009 | SM54: 0.1103829245 | SN54: 11.03829245 | SO54: 15 | SP54: UYGUN | SQ54: UYGUN | SR54: 0.1705814604 | SS54: 0.1039937972
A55: 45 | B55: Chlorobenzilate/Chloropropylate | C55: GC-MS/MS | D55: 1246231 | E55: 1228309 | G55: 2975861 | H55: 2801255 | J55: 6099145 | K55: 6581830 | M55: 12699015 | N55: 14990550 | P55: 32138287 | Q55: 31066888 | S55: 68885842 | T55: 62948746 | AC55: 45 | AD55: Chlorobenzilate/Chloropropylate | AE55: 10 | AF55: 8.531 | AG55: 10.7 | AH55: 11.599 | AI55: 7.488 | AJ55: 9.099 | AK55: 9.679 | AL55: 11.068 | AM55: 7.71 | AN55: 11.552 | AO55: 10.347 | AP55: 11.847 | AQ55: 11.31 | AR55: 9.388 | AS55: 8.456 | AT55: 7.75 | BK55: 45 | BL55: Chlorobenzilate/Chloropropylate | BM55: 50 | BN55: 45.914 | BO55: 47.665 | BP55: 37.571 | BQ55: 53.573 | BR55: 49.003 | BS55: 43.225 | BT55: 47.641 | BU55: 53.461 | BV55: 46.623 | BW55: 52.608 | BX55: 43.76 | BY55: 40.589 | BZ55: 44.215 | CA55: 39.049 | CB55: 36.724 | CS55: 45 | CT55: Chlorobenzilate/Chloropropylate | CU55: 10 | CV55: 9.729 | CW55: 7.146 | CX55: 11.006 | CY55: 10.695 | CZ55: 10.375 | DA55: 8.665 | DB55: 10.429 | DC55: 8.402 | DD55: 9.002 | DE55: 10.871 | DF55: 11.051 | DG55: 9.195 | DH55: 7.895 | DI55: 9.903 | DJ55: 9.194 | EA55: 45 | EB55: Chlorobenzilate/Chloropropylate | EC55: 50 | ED55: 51.941 | EE55: 44.553 | EF55: 53.321 | EG55: 47.541 | EH55: 51.006 | EI55: 50.391 | EJ55: 48.222 | EK55: 51.147 | EL55: 44.97 | EM55: 51.135 | EN55: 48.934 | EO55: 43.402 | EP55: 51.221 | EQ55: 53.265 | ER55: 37.736 | FI55: 45 | FJ55: Chlorobenzilate/Chloropropylate | FK55: 10 | FL55: 9.4834 | FM55: 1.657734086 | FN55: 94.834 | FO55: 17.48037714 | FP55: uygun | FQ55: uygun | FR55: 10.0712 | FS55: 1.499294067 | FT55: 100.712 | FU55: 14.88694562 | FV55: uygun | FW55: uygun | FX55: 9.7502 | FY55: 1.777391966 | FZ55: 97.502 | GA55: 18.22928725 | GB55: uygun | GC55: uygun | GD55: -------- | GE55: -------- | GF55: -------- | GG55: -------- | GH55: uygun değil | GI55: uygun değil | GJ55: -------- | GK55: -------- | GL55: -------- | GM55: -------- | GN55: uygun değil | GO55: uygun değil | GP55: -------- | GQ55: -------- | GR55: -------- | GS55: -------- | GT55: uygun değil | GU55: uygun değil | GW55: 45 | GX55: Chlorobenzilate/Chloropropylate | GY55: 50 | GZ55: 46.7452 | HA55: 5.861300726 | HB55: 93.4904 | HC55: 12.53882907 | HD55: uygun | HE55: uygun | HF55: 48.7116 | HG55: 4.282229186 | HH55: 97.4232 | HI55: 8.790984459 | HJ55: uygun | HK55: uygun | HL55: 40.8674 | HM55: 3.167231015 | HN55: 81.7348 | HO55: 7.750018388 | HP55: uygun | HQ55: uygun | HR55: -------- | HS55: -------- | HT55: -------- | HU55: -------- | HV55: uygun değil | HW55: uygun değil | HX55: -------- | HY55: -------- | HZ55: -------- | IA55: -------- | IB55: uygun değil | IC55: uygun değil | ID55: -------- | IE55: -------- | IF55: -------- | IG55: -------- | IH55: uygun değil | II55: uygun değil | JO55: 45 | JP55: Chlorobenzilate/Chloropropylate | JQ55: 10 | JR55: 0.02157961 | JS55: 0.0049 | JT55: 0.02556801 | JU55: 0.06310144 | JV55: 0.00811801 | JW55: 0.00103041 | JX55: 0.01140624 | JY55: 0.052441 | JZ55: 0.02408704 | KA55: 0.00120409 | KB55: 0.03411409 | KC55: 0.017161 | KD55: 0.00374544 | KE55: 0.02383936 | KF55: 0.050625 | KV55: 0.0066781584 | KW55: 0.00218089 | KX55: 0.0617920164 | KY55: 0.0051065316 | KZ55: 0.0003976036 | LA55: 0.01836025 | LB55: 0.0022259524 | LC55: 0.0047914084 | LD55: 0.0045616516 | LE55: 0.0027206656 | LF55: 0.01557504 | LG55: 0.0354267684 | LH55: 0.01338649 | LI55: 0.0479697604 | LJ55: 0.0705008704 | LZ55: 0.00073441 | MA55: 0.08145316 | MB55: 0.01012036 | MC55: 0.00483025 | MD55: 0.00140625 | ME55: 0.01782225 | MF55: 0.00184041 | MG55: 0.02553604 | MH55: 0.00996004 | MI55: 0.00758641 | MJ55: 0.01104601 | MK55: 0.00648025 | ML55: 0.04431025 | MM55: 9.409e-05 | MN55: 0.00649636 | ND55: 0.0015069924 | NE55: 0.0118679236 | NF55: 0.0044116164 | NG55: 0.0024186724 | NH55: 0.0004048144 | NI55: 6.11524e-05 | NJ55: 0.0012645136 | NK55: 0.0005262436 | NL55: 0.01012036 | NM55: 0.00051529 | NN55: 0.0004545424 | NO55: 0.0174134416 | NP55: 0.0005963364 | NQ55: 0.00426409 | NR55: 0.0601622784 | OH55: 60 | OI55: 0.9802996048 | OJ55: 0.1278214643 | OL55: 45 | OM55: Chlorobenzilate/Chloropropylate | ON55: 10 | OO55: 9.815 | OP55: 8.923333333 | OQ55: 9.101 | OR55: 9.866666667 | OS55: 10.14666667 | OT55: 3 | OU55: 5 | OV55: -0.086 | OW55: -1.777333333 | OX55: 1.905 | OY55: 0.8283333333 | OZ55: 0.2283333333 | PA55: -1.15 | PB55: 1.505666667 | PC55: -0.699 | PD55: -0.8646666667 | PE55: 0.7243333333 | PF55: 1.236 | PG55: 0.2716666667 | PH55: -1.206 | PI55: 0.03633333333 | PJ55: -0.9526666667 | PZ55: 9.570533333 | QA55: 95.70533333 | QB55: 0.8390384333 | QC55: 16.848876 | QD55: 10 | QE55: 1.6848876 | QF55: 0 | QG55: 1.6848876 | QH55: 1.298032203 | QI55: 0.1356279904 | QJ55: 13.56279904 | QK55: 15 | QL55: UYGUN | QM55: UYGUN | QN55: 0.2575293249 | QP55: 45 | QQ55: Chlorobenzilate/Chloropropylate | QR55: 50 | QS55: 50.422 | QT55: 45.39233333 | QU55: 51.89633333 | QV55: 48.592 | QW55: 46.62566667 | QX55: 3 | QY55: 5 | QZ55: 1.519 | RA55: -0.8393333333 | RB55: 1.424666667 | RC55: -1.051 | RD55: 4.380333333 | RE55: -0.031 | RF55: 2.829666667 | RG55: -0.7493333333 | RH55: -3.622 | RI55: 4.509333333 | RJ55: -1.488 | RK55: -1.990333333 | RL55: -0.6753333333 | RM55: 4.673 | RN55: -8.889666667 | SD55: 48.58566667 | SE55: 97.17133333 | SF55: 21.27873883 | SG55: 174.850632 | SH55: 10 | SI55: 17.4850632 | SJ55: 1.264558544 | SK55: 18.74962174 | SL55: 4.330083342 | SM55: 0.08912264951 | SN55: 8.912264951 | SO55: 15 | SP55: UYGUN | SQ55: UYGUN | SR55: 0.1111998532 | SS55: 0.1147558243
A56: 46 | B56: Chloroneb | C56: GC-MS/MS | D56: 199338 | E56: 157976 | G56: 363165 | H56: 410164 | J56: 734901 | K56: 873527 | M56: 2279046 | N56: 2472837 | P56: 4746591 | Q56: 4239017 | S56: 10676596 | T56: 9561090 | AC56: 46 | AD56: Chloroneb | AE56: 10 | AF56: 9.837 | AG56: 11.049 | AH56: 11.774 | AI56: 9.524 | AJ56: 10.436 | AK56: 11.022 | AL56: 11.877 | AM56: 9.506 | AN56: 11.048 | AO56: 10.619 | AP56: 11.249 | AQ56: 8.839 | AR56: 10.712 | AS56: 9.536 | AT56: 8.616 | BK56: 46 | BL56: Chloroneb | BM56: 50 | BN56: 44.051 | BO56: 47.916 | BP56: 41.905 | BQ56: 46.058 | BR56: 42.553 | BS56: 42.522 | BT56: 44.158 | BU56: 51.621 | BV56: 38.644 | BW56: 52.529 | BX56: 49.505 | BY56: 48.301 | BZ56: 47.709 | CA56: 51.195 | CB56: 41.489 | CS56: 46 | CT56: Chloroneb | CU56: 10 | CV56: 11.223 | CW56: 9.575 | CX56: 11.108 | CY56: 11.213 | CZ56: 11.904 | DA56: 10.862 | DB56: 11.947 | DC56: 10.634 | DD56: 10.868 | DE56: 11.301 | DF56: 10.017 | DG56: 8.922 | DH56: 8.503 | DI56: 9.555 | DJ56: 7.34 | EA56: 46 | EB56: Chloroneb | EC56: 50 | ED56: 52.556 | EE56: 41.021 | EF56: 50.322 | EG56: 46.049 | EH56: 36.116 | EI56: 43.12 | EJ56: 39.147 | EK56: 48.36 | EL56: 45.786 | EM56: 54.414 | EN56: 46.464 | EO56: 47.197 | EP56: 53.407 | EQ56: 51.414 | ER56: 54.69 | FI56: 46 | FJ56: Chloroneb | FK56: 10 | FL56: 10.524 | FM56: 0.9107466717 | FN56: 105.24 | FO56: 8.65399726 | FP56: uygun | FQ56: uygun | FR56: 10.8144 | FS56: 0.8626814592 | FT56: 108.144 | FU56: 7.977155082 | FV56: uygun | FW56: uygun | FX56: 9.7904 | FY56: 1.153901772 | FZ56: 97.904 | GA56: 11.7860534 | GB56: uygun | GC56: uygun | GD56: -------- | GE56: -------- | GF56: -------- | GG56: -------- | GH56: uygun değil | GI56: uygun değil | GJ56: -------- | GK56: -------- | GL56: -------- | GM56: -------- | GN56: uygun değil | GO56: uygun değil | GP56: -------- | GQ56: -------- | GR56: -------- | GS56: -------- | GT56: uygun değil | GU56: uygun değil | GW56: 46 | GX56: Chloroneb | GY56: 50 | GZ56: 44.4966 | HA56: 2.491124104 | HB56: 88.9932 | HC56: 5.598459441 | HD56: uygun | HE56: uygun | HF56: 45.8948 | HG56: 5.995171616 | HH56: 91.7896 | HI56: 13.06285596 | HJ56: uygun | HK56: uygun | HL56: 47.6398 | HM56: 3.68757145 | HN56: 95.2796 | HO56: 7.740526724 | HP56: uygun | HQ56: uygun | HR56: -------- | HS56: -------- | HT56: -------- | HU56: -------- | HV56: uygun değil | HW56: uygun değil | HX56: -------- | HY56: -------- | HZ56: -------- | IA56: -------- | IB56: uygun değil | IC56: uygun değil | ID56: -------- | IE56: -------- | IF56: -------- | IG56: -------- | IH56: uygun değil | II56: uygun değil | JO56: 46 | JP56: Chloroneb | JQ56: 10 | JR56: 0.00026569 | JS56: 0.01100401 | JT56: 0.03147076 | JU56: 0.00226576 | JV56: 0.00190096 | JW56: 0.01044484 | JX56: 0.03523129 | JY56: 0.00244036 | JZ56: 0.01098304 | KA56: 0.00383161 | KB56: 0.01560001 | KC56: 0.01347921 | KD56: 0.00506944 | KE56: 0.00215296 | KF56: 0.01915456 | KV56: 0.0141562404 | KW56: 0.0017372224 | KX56: 0.02621161 | KY56: 0.0062157456 | KZ56: 0.0221831236 | LA56: 0.0223681936 | LB56: 0.0136515856 | LC56: 0.0010510564 | LD56: 0.0515834944 | LE56: 0.0025583364 | LF56: 9.801e-05 | LG56: 0.0011546404 | LH56: 0.0020994724 | LI56: 0.00057121 | LJ56: 0.0289748484 | LZ56: 0.01495729 | MA56: 0.00180625 | MB56: 0.01227664 | MC56: 0.01471369 | MD56: 0.03625216 | ME56: 0.00743044 | MF56: 0.03790809 | MG56: 0.00401956 | MH56: 0.00753424 | MI56: 0.01692601 | MJ56: 2.89e-06 | MK56: 0.01162084 | ML56: 0.02241009 | MM56: 0.00198025 | MN56: 0.070756 | ND56: 0.0026132544 | NE56: 0.0322489764 | NF56: 4.14736e-05 | NG56: 0.0062441604 | NH56: 0.0771061824 | NI56: 0.01893376 | NJ56: 0.0471150436 | NK56: 0.00107584 | NL56: 0.0071031184 | NM56: 0.0077933584 | NN56: 0.0050013184 | NO56: 0.0031427236 | NP56: 0.0046430596 | NQ56: 0.0007997584 | NR56: 0.00879844 | OH56: 60 | OI56: 0.8431641972 | OJ56: 0.1185442391 | OL56: 46 | OM56: Chloroneb | ON56: 10 | OO56: 10.70066667 | OP56: 10.148 | OQ56: 10.08166667 | OR56: 10.54533333 | OS56: 10.18166667 | OT56: 3 | OU56: 5 | OV56: 0.5223333333 | OW56: -0.573 | OX56: 1.026333333 | OY56: 0.6676666667 | OZ56: 1.722333333 | PA56: 0.1613333333 | PB56: 1.799 | PC56: 0.5523333333 | PD56: 0.3226666667 | PE56: 1.119333333 | PF56: -0.6836666667 | PG56: -1.226 | PH56: -1.578666667 | PI56: -0.9903333333 | PJ56: -2.841666667 | PZ56: 10.33146667 | QA56: 103.3146667 | QB56: 0.2254107667 | QC56: 23.50974867 | QD56: 10 | QE56: 2.350974867 | QF56: 0 | QG56: 2.350974867 | QH56: 1.533288905 | QI56: 0.1484096068 | QJ56: 14.84096068 | QK56: 15 | QL56: UYGUN | QM56: UYGUN | QN56: 0.3083557593 | QP56: 46 | QQ56: Chloroneb | QR56: 50 | QS56: 47.38 | QT56: 42.455 | QU56: 50.69633333 | QV56: 47.74966667 | QW56: 48.40666667 | QX56: 3 | QY56: 5 | QZ56: 5.176 | RA56: -1.434 | RB56: -0.3743333333 | RC56: -1.700666667 | RD56: -12.29066667 | RE56: -4.26 | RF56: -3.308 | RG56: -2.336333333 | RH56: -1.963666667 | RI56: 6.007333333 | RJ56: -0.916 | RK56: 4.742 | RL56: 2.710666667 | RM56: 3.664333333 | RN56: 6.283333333 | SD56: 47.33753333 | SE56: 94.67506667 | SF56: 27.32652943 | SG56: 341.01412 | SH56: 10 | SI56: 34.101412 | SJ56: 0 | SK56: 34.101412 | SL56: 5.839641427 | SM56: 0.12336176 | SN56: 12.336176 | SO56: 15 | SP56: UYGUN | SQ56: UYGUN | SR56: 0.2130537337 | SS56: 0.1364615976
A57: 47 | B57: CHLOROTHALONIL | C57: GC-MS/MS | D57: 1779002 | E57: 1672709 | G57: 3851449 | H57: 4195037 | J57: 6478322 | K57: 7079228 | M57: 19160470 | N57: 21096380 | P57: 36997948 | Q57: 38725021 | S57: 76431234 | T57: 74528559 | AC57: 47 | AD57: CHLOROTHALONIL | AE57: 10 | AF57: 9.396 | AG57: 11.37 | AH57: 11.319 | AI57: 8.446 | AJ57: 9.207 | AK57: 10.172 | AL57: 10.925 | AM57: 8.656 | AN57: 9.773 | AO57: 11.648 | AP57: 11.717 | AQ57: 10.944 | AR57: 11.711 | AS57: 10.752 | AT57: 10.549 | BK57: 47 | BL57: Chlorothalonil | BM57: 50 | BN57: 53.449 | BO57: 58.656 | BP57: 46.684 | BQ57: 56.984 | BR57: 52.77 | BS57: 40.149 | BT57: 49.731 | BU57: 54.127 | BV57: 47.797 | BW57: 50.913 | BX57: 53.468 | BY57: 58.505 | BZ57: 52.064 | CA57: 56.941 | CB57: 40.585 | CS57: 47 | CT57: CHLOROTHALONIL | CU57: 10 | CV57: 8.196 | CW57: 7.282 | CX57: 8.645 | CY57: 8.158 | CZ57: 8.111 | DA57: 7.538 | DB57: 7.934 | DC57: 7.084 | DD57: 7.129 | DE57: 7.993 | DF57: 9.098 | DG57: 8.37 | DH57: 7.895 | DI57: 7.804 | DJ57: 11.07 | EA57: 47 | EB57: CHLOROTHALONIL | EC57: 50 | ED57: 40.529 | EE57: 35.169 | EF57: 37.979 | EG57: 37.681 | EH57: 46.053 | EI57: 43.369 | EJ57: 35.712 | EK57: 41.15 | EL57: 35.97 | EM57: 35.72 | EN57: 41.658 | EO57: 41.818 | EP57: 46.05 | EQ57: 51.682 | ER57: 44.21 | FI57: 47 | FJ57: CHLOROTHALONIL | FK57: 10 | FL57: 9.9476 | FM57: 1.323963104 | FN57: 99.476 | FO57: 13.30937215 | FP57: uygun | FQ57: uygun | FR57: 10.2348 | FS57: 1.138345598 | FT57: 102.348 | FU57: 11.12230427 | FV57: uygun | FW57: uygun | FX57: 11.1346 | FY57: 0.5470523741 | FZ57: 111.346 | GA57: 4.913085105 | GB57: uygun | GC57: uygun | GD57: -------- | GE57: -------- | GF57: -------- | GG57: -------- | GH57: uygun değil | GI57: uygun değil | GJ57: -------- | GK57: -------- | GL57: -------- | GM57: -------- | GN57: uygun değil | GO57: uygun değil | GP57: -------- | GQ57: -------- | GR57: -------- | GS57: -------- | GT57: uygun değil | GU57: uygun değil | GW57: 47 | GX57: CHLOROTHALONIL | GY57: 50 | GZ57: 53.7086 | HA57: 4.623266681 | HB57: 107.4172 | HC57: 8.608056588 | HD57: uygun | HE57: uygun | HF57: 48.5434 | HG57: 5.225539475 | HH57: 97.0868 | HI57: 10.76467548 | HJ57: uygun | HK57: uygun | HL57: 52.3126 | HM57: 7.048071672 | HN57: 104.6252 | HO57: 13.47299058 | HP57: uygun | HQ57: uygun | HR57: -------- | HS57: -------- | HT57: -------- | HU57: -------- | HV57: uygun değil | HW57: uygun değil | HX57: -------- | HY57: -------- | HZ57: -------- | IA57: -------- | IB57: uygun değil | IC57: uygun değil | ID57: -------- | IE57: -------- | IF57: -------- | IG57: -------- | IH57: uygun değil | II57: uygun değil | JO57: 47 | JP57: CHLOROTHALONIL | JQ57: 10 | JR57: 0.00364816 | JS57: 0.018769 | JT57: 0.01739761 | JU57: 0.02414916 | JV57: 0.00628849 | JW57: 0.00029584 | JX57: 0.00855625 | JY57: 0.01806336 | JZ57: 0.00051529 | KA57: 0.02715904 | KB57: 0.02948089 | KC57: 0.00891136 | KD57: 0.02927521 | KE57: 0.00565504 | KF57: 0.00301401 | KV57: 0.0047582404 | KW57: 0.0299705344 | KX57: 0.0043983424 | KY57: 0.0195105024 | KZ57: 0.00306916 | LA57: 0.0388168804 | LB57: 2.89444e-05 | LC57: 0.0068128516 | LD57: 0.0019412836 | LE57: 0.0003334276 | LF57: 0.0048108096 | LG57: 0.02893401 | LH57: 0.0017040384 | LI57: 0.0192709924 | LJ57: 0.03545689 | LZ57: 0.03254416 | MA57: 0.07387524 | MB57: 0.01836025 | MC57: 0.03392964 | MD57: 0.03568321 | ME57: 0.06061444 | MF57: 0.04268356 | MG57: 0.08503056 | MH57: 0.08242641 | MI57: 0.04028049 | MJ57: 0.00813604 | MK57: 0.026569 | ML57: 0.04431025 | MM57: 0.04822416 | MN57: 0.011449 | ND57: 0.0358799364 | NE57: 0.0879834244 | NF57: 0.0578017764 | NG57: 0.0607031044 | NH57: 0.0062315236 | NI57: 0.0175880644 | NJ57: 0.0816587776 | NK57: 0.031329 | NL57: 0.07873636 | NM57: 0.08156736 | NN57: 0.0278355856 | NO57: 0.0267780496 | NP57: 0.006241 | NQ57: 0.0011316496 | NR57: 0.01340964 | OH57: 60 | OI57: 1.65998728 | OJ57: 0.166332362 | OL57: 47 | OM57: CHLOROTHALONIL | ON57: 10 | OO57: 8.277333333 | OP57: 7.862 | OQ57: 7.874666667 | OR57: 7.697 | OS57: 9.058 | OT57: 3 | OU57: 5 | OV57: -0.08133333333 | OW57: -0.58 | OX57: 0.7703333333 | OY57: 0.461 | OZ57: -0.947 | PA57: -0.7393333333 | PB57: 0.072 | PC57: -0.7906666667 | PD57: -0.568 | PE57: -1.065 | PF57: 0.8206666667 | PG57: 0.508 | PH57: 0.02033333333 | PI57: 0.107 | PJ57: 2.012 | PZ57: 8.1538 | QA57: 81.538 | QB57: 0.9034252667 | QC57: 9.671123333 | QD57: 10 | QE57: 0.9671123333 | QF57: 0 | QG57: 0.9671123333 | QH57: 0.9834186969 | QI57: 0.1206086361 | QJ57: 12.06086361 | QK57: 15 | QL57: UYGUN | QM57: UYGUN | QN57: 0.2036502034 | QP57: 47 | QQ57: CHLOROTHALONIL | QR57: 50 | QS57: 41.852 | QT57: 37.56633333 | QU57: 41.72633333 | QV57: 41.77766667 | QW57: 41.99433333 | QX57: 3 | QY57: 5 | QZ57: -1.323 | RA57: -2.397333333 | RB57: -3.747333333 | RC57: -4.096666667 | RD57: 4.058666667 | RE57: 1.517 | RF57: -1.854333333 | RG57: -0.5763333333 | RH57: -5.807666667 | RI57: -6.274333333 | RJ57: -0.194 | RK57: 4.251666667 | RL57: 4.323666667 | RM57: 9.904333333 | RN57: 2.215666667 | SD57: 40.98333333 | SE57: 81.96666667 | SF57: 10.97670467 | SG57: 273.7771447 | SH57: 10 | SI57: 27.37771447 | SJ57: 0 | SK57: 27.37771447 | SL57: 5.232371782 | SM57: 0.1276707226 | SN57: 12.76707226 | SO57: 15 | SP57: UYGUN | SQ57: UYGUN | SR57: 0.2281973878 | SS57: 0.1241898879
A58: 48 | B58: Chlorpropham | C58: GC-MS/MS | D58: 574291 | E58: 601644 | G58: 1920186 | H58: 1824229 | J58: 3208505 | K58: 3525755 | M58: 10485695 | N58: 10289583 | P58: 19696373 | Q58: 18602425 | S58: 37615617 | T58: 35738480 | AC58: 48 | AD58: Chlorpropham | AE58: 10 | AF58: 9.209 | AG58: 10.826 | AH58: 11.341 | AI58: 8.456 | AJ58: 9.95 | AK58: 10.079 | AL58: 11.025 | AM58: 8.74 | AN58: 11.313 | AO58: 11.9 | AP58: 11.045 | AQ58: 8.405 | AR58: 9.114 | AS58: 8.503 | AT58: 8.36 | BK58: 48 | BL58: Chlorpropham | BM58: 50 | BN58: 46.502 | BO58: 46.43 | BP58: 40.918 | BQ58: 50.111 | BR58: 40.842 | BS58: 41.246 | BT58: 44.371 | BU58: 53.466 | BV58: 39.511 | BW58: 49.601 | BX58: 42.23 | BY58: 41.17 | BZ58: 42.862 | CA58: 42.106 | CB58: 41.787 | CS58: 48 | CT58: Chlorpropham | CU58: 10 | CV58: 10.174 | CW58: 8.784 | CX58: 11.248 | CY58: 11.502 | CZ58: 11.355 | DA58: 10.22 | DB58: 11.483 | DC58: 9.444 | DD58: 9.75 | DE58: 11.257 | DF58: 11.246 | DG58: 11.119 | DH58: 8.768 | DI58: 11.206 | DJ58: 11.518 | EA58: 48 | EB58: Chlorpropham | EC58: 50 | ED58: 51.371 | EE58: 39.166 | EF58: 49.127 | EG58: 41.8 | EH58: 40.954 | EI58: 44.064 | EJ58: 40.001 | EK58: 48.823 | EL58: 42.858 | EM58: 50.165 | EN58: 52.981 | EO58: 46.978 | EP58: 55.033 | EQ58: 57.986 | ER58: 44.992 | FI58: 48 | FJ58: Chlorpropham | FK58: 10 | FL58: 9.9564 | FM58: 1.170808396 | FN58: 99.564 | FO58: 11.75935475 | FP58: uygun | FQ58: uygun | FR58: 10.6114 | FS58: 1.235858528 | FT58: 106.114 | FU58: 11.64651721 | FV58: uygun | FW58: uygun | FX58: 9.0854 | FY58: 1.136792549 | FZ58: 90.854 | GA58: 12.5123005 | GB58: uygun | GC58: uygun | GD58: -------- | GE58: -------- | GF58: -------- | GG58: -------- | GH58: uygun değil | GI58: uygun değil | GJ58: -------- | GK58: -------- | GL58: -------- | GM58: -------- | GN58: uygun değil | GO58: uygun değil | GP58: -------- | GQ58: -------- | GR58: -------- | GS58: -------- | GT58: uygun değil | GU58: uygun değil | GW58: 48 | GX58: Chlorpropham | GY58: 50 | GZ58: 44.9606 | HA58: 4.011457067 | HB58: 89.9212 | HC58: 8.922160885 | HD58: uygun | HE58: uygun | HF58: 45.639 | HG58: 5.818462641 | HH58: 91.278 | HI58: 12.74888284 | HJ58: uygun | HK58: uygun | HL58: 42.031 | HM58: 0.6198072281 | HN58: 84.062 | HO58: 1.474643068 | HP58: uygun | HQ58: uygun | HR58: -------- | HS58: -------- | HT58: -------- | HU58: -------- | HV58: uygun değil | HW58: uygun değil | HX58: -------- | HY58: -------- | HZ58: -------- | IA58: -------- | IB58: uygun değil | IC58: uygun değil | ID58: -------- | IE58: -------- | IF58: -------- | IG58: -------- | IH58: uygun değil | II58: uygun değil | JO58: 48 | JP58: Chlorpropham | JQ58: 10 | JR58: 0.00625681 | JS58: 0.00682276 | JT58: 0.01798281 | JU58: 0.02383936 | JV58: 2.5e-05 | JW58: 6.241e-05 | JX58: 0.01050625 | JY58: 0.015876 | JZ58: 0.01723969 | KA58: 0.0361 | KB58: 0.01092025 | KC58: 0.02544025 | KD58: 0.00784996 | KE58: 0.02241009 | KF58: 0.026896 | KV58: 0.0048944016 | KW58: 0.00509796 | KX58: 0.0329930896 | KY58: 4.9284e-06 | KZ58: 0.0335475856 | LA58: 0.0306530064 | LB58: 0.0126742564 | LC58: 0.0048052624 | LD58: 0.0440076484 | LE58: 6.36804e-05 | LF58: 0.02414916 | LG58: 0.03118756 | LH58: 0.0203804176 | LI58: 0.0249260944 | LJ58: 0.0269813476 | LZ58: 0.00030276 | MA58: 0.01478656 | MB58: 0.01557504 | MC58: 0.02256004 | MD58: 0.01836025 | ME58: 0.000484 | MF58: 0.02199289 | MG58: 0.00309136 | MH58: 0.000625 | MI58: 0.01580049 | MJ58: 0.01552516 | MK58: 0.01252161 | ML58: 0.01517824 | MM58: 0.01454436 | MN58: 0.02304324 | ND58: 0.0007518564 | NE58: 0.0469502224 | NF58: 0.0003048516 | NG58: 0.026896 | NH58: 0.0327320464 | NI58: 0.0140944384 | NJ58: 0.0399920004 | NK58: 0.0005541316 | NL58: 0.0204032656 | NM58: 1.089e-05 | NN58: 0.0035545444 | NO58: 0.0036529936 | NP58: 0.0101324356 | NQ58: 0.0255104784 | NR58: 0.0100320256 | OH58: 60 | OI58: 0.9545572192 | OJ58: 0.1261320221 | OL58: 48 | OM58: Chlorpropham | ON58: 10 | OO58: 10.54666667 | OP58: 10.462 | OQ58: 9.82 | OR58: 10.81933333 | OS58: 11.37666667 | OT58: 3 | OU58: 5 | OV58: -0.3726666667 | OW58: -1.678 | OX58: 1.428 | OY58: 0.6826666667 | OZ58: -0.02166666667 | PA58: -0.3266666667 | PB58: 1.021 | PC58: -0.376 | PD58: -1.069333333 | PE58: -0.1196666667 | PF58: 0.6993333333 | PG58: 0.657 | PH58: -1.052 | PI58: 0.3866666667 | PJ58: 0.1413333333 | PZ58: 10.60493333 | QA58: 106.0493333 | QB58: 0.9611137333 | QC58: 10.10548 | QD58: 10 | QE58: 1.010548 | QF58: 0 | QG58: 1.010548 | QH58: 1.005260165 | QI58: 0.09479174774 | QJ58: 9.479174774 | QK58: 15 | QL58: UYGUN | QM58: UYGUN | QN58: 0.1257966562 | QP58: 48 | QQ58: Chlorpropham | QR58: 50 | QS58: 49.472 | QT58: 42.04833333 | QU58: 50.99433333 | QV58: 47.548 | QW58: 45.37033333 | QX58: 3 | QY58: 5 | QZ58: 1.899 | RA58: -2.882333333 | RB58: -1.867333333 | RC58: -5.748 | RD58: -4.416333333 | RE58: -5.408 | RF58: -2.047333333 | RG58: -2.171333333 | RH58: -4.69 | RI58: 4.794666667 | RJ58: 3.509 | RK58: 4.929666667 | RL58: 4.038666667 | RM58: 10.438 | RN58: -0.3783333333 | SD58: 47.0866 | SE58: 94.1732 | SF58: 37.1273289 | SG58: 313.102642 | SH58: 10 | SI58: 31.3102642 | SJ58: 1.939021567 | SK58: 33.24928577 | SL58: 5.766219365 | SM58: 0.1224598796 | SN58: 12.24598796 | SO58: 15 | SP58: UYGUN | SQ58: UYGUN | SR58: 0.2099499094 | SS58: 0.1095031907
A59: 49 | B59: CHLORPYRIFOS | C59: GC-MS/MS | D59: 11608581 | E59: 10608346 | G59: 23558188 | H59: 26942925 | J59: 43518720 | K59: 49427304 | M59: 131181709 | N59: 153344624 | P59: 278086574 | Q59: 255644821 | S59: 579653685 | T59: 564100819 | AC59: 49 | AD59: CHLORPYRIFOS | AE59: 10 | AF59: 9.473 | AG59: 11.054 | AH59: 11.635 | AI59: 9.241 | AJ59: 9.81 | AK59: 10.64 | AL59: 11.355 | AM59: 9.437 | AN59: 11.461 | AO59: 11.872 | AP59: 10.626 | AQ59: 10.234 | AR59: 9.74 | AS59: 8.51 | AT59: 8.009 | BK59: 49 | BL59: Chlorpyrifos | BM59: 50 | BN59: 45.926 | BO59: 47.029 | BP59: 39.625 | BQ59: 50.494 | BR59: 43.454 | BS59: 40.24 | BT59: 44.688 | BU59: 50.637 | BV59: 41.722 | BW59: 48.275 | BX59: 53.223 | BY59: 47.467 | BZ59: 54.096 | CA59: 47.091 | CB59: 41.256 | CS59: 49 | CT59: CHLORPYRIFOS | CU59: 10 | CV59: 10.69 | CW59: 9.263 | CX59: 11.983 | CY59: 11.516 | CZ59: 11.414 | DA59: 9.973 | DB59: 11.195 | DC59: 10.072 | DD59: 9.818 | DE59: 11.951 | DF59: 10.171 | DG59: 8.582 | DH59: 7.978 | DI59: 9.177 | DJ59: 7.254 | EA59: 49 | EB59: CHLORPYRIFOS | EC59: 50 | ED59: 48.132 | EE59: 42.262 | EF59: 48.953 | EG59: 40.709 | EH59: 43.445 | EI59: 42.946 | EJ59: 39.807 | EK59: 49.364 | EL59: 42.948 | EM59: 49.517 | EN59: 47.979 | EO59: 47.464 | EP59: 56.164 | EQ59: 53.838 | ER59: 53.88 | FI59: 49 | FJ59: CHLORPYRIFOS | FK59: 10 | FL59: 10.2426 | FM59: 1.046395862 | FN59: 102.426 | FO59: 10.21611565 | FP59: uygun | FQ59: uygun | FR59: 10.953 | FS59: 0.956615649 | FT59: 109.53 | FU59: 8.733823145 | FV59: uygun | FW59: uygun | FX59: 9.4238 | FY59: 1.122316889 | FZ59: 94.238 | GA59: 11.90938782 | GB59: uygun | GC59: uygun | GD59: -------- | GE59: -------- | GF59: -------- | GG59: -------- | GH59: uygun değil | GI59: uygun değil | GJ59: -------- | GK59: -------- | GL59: -------- | GM59: -------- | GN59: uygun değil | GO59: uygun değil | GP59: -------- | GQ59: -------- | GR59: -------- | GS59: -------- | GT59: uygun değil | GU59: uygun değil | GW59: 49 | GX59: CHLORPYRIFOS | GY59: 50 | GZ59: 45.3056 | HA59: 4.061161693 | HB59: 90.6112 | HC59: 8.963928727 | HD59: uygun | HE59: uygun | HF59: 45.1124 | HG59: 4.357133611 | HH59: 90.2248 | HI59: 9.658394611 | HJ59: uygun | HK59: uygun | HL59: 48.6266 | HM59: 5.221822316 | HN59: 97.2532 | HO59: 10.73861285 | HP59: uygun | HQ59: uygun | HR59: -------- | HS59: -------- | HT59: -------- | HU59: -------- | HV59: uygun değil | HW59: uygun değil | HX59: -------- | HY59: -------- | HZ59: -------- | IA59: -------- | IB59: uygun değil | IC59: uygun değil | ID59: -------- | IE59: -------- | IF59: -------- | IG59: -------- | IH59: uygun değil | II59: uygun değil | JO59: 49 | JP59: CHLORPYRIFOS | JQ59: 10 | JR59: 0.00277729 | JS59: 0.01110916 | JT59: 0.02673225 | JU59: 0.00576081 | JV59: 0.000361 | JW59: 0.004096 | JX59: 0.01836025 | JY59: 0.00316969 | JZ59: 0.02134521 | KA59: 0.03504384 | KB59: 0.00391876 | KC59: 0.00054756 | KD59: 0.000676 | KE59: 0.022201 | KF59: 0.03964081 | KV59: 0.0066389904 | KW59: 0.0035307364 | KX59: 0.04305625 | KY59: 9.76144e-05 | KZ59: 0.0171400464 | LA59: 0.03810304 | LB59: 0.0112869376 | LC59: 0.0001623076 | LD59: 0.0274101136 | LE59: 0.00119025 | LF59: 0.0041550916 | LG59: 0.0025664356 | LH59: 0.0067108864 | LI59: 0.0033849124 | LJ59: 0.0305830144 | LZ59: 0.004761 | MA59: 0.00543169 | MB59: 0.03932289 | MC59: 0.02298256 | MD59: 0.01999396 | ME59: 7.29e-06 | MF59: 0.01428025 | MG59: 5.184e-05 | MH59: 0.00033124 | MI59: 0.03806401 | MJ59: 0.00029241 | MK59: 0.02010724 | ML59: 0.04088484 | MM59: 0.00677329 | MN59: 0.07540516 | ND59: 0.0013957696 | NE59: 0.0239506576 | NF59: 0.0004384836 | NG59: 0.0345290724 | NH59: 0.01718721 | NI59: 0.0199035664 | NJ59: 0.0415588996 | NK59: 0.0001617984 | NL59: 0.0198922816 | NM59: 9.33156e-05 | NN59: 0.0016337764 | NO59: 0.0025725184 | NP59: 0.0151979584 | NQ59: 0.0058920976 | NR59: 0.00602176 | OH59: 60 | OI59: 0.8708750924 | OJ59: 0.120476491 | OL59: 49 | OM59: CHLORPYRIFOS | ON59: 10 | OO59: 10.278 | OP59: 9.68 | OQ59: 10.011 | OR59: 10.17033333 | OS59: 10.20633333 | OT59: 3 | OU59: 5 | OV59: 0.412 | OW59: -0.417 | OX59: 1.972 | OY59: 1.345666667 | OZ59: 1.207666667 | PA59: -0.305 | PB59: 1.515 | PC59: 0.061 | PD59: -0.3523333333 | PE59: 1.744666667 | PF59: -0.107 | PG59: -1.098 | PH59: -2.033 | PI59: -0.9933333333 | PJ59: -2.952333333 | PZ59: 10.06913333 | QA59: 100.6913333 | QB59: 0.1706211 | QC59: 28.11479133 | QD59: 10 | QE59: 2.811479133 | QF59: 0 | QG59: 2.811479133 | QH59: 1.676746592 | QI59: 0.1665234272 | QJ59: 16.65234272 | QK59: 15 | QL59: UYGUN | QM59: UYGUN | QN59: 0.3882207254 | QP59: 49 | QQ59: CHLORPYRIFOS | QR59: 50 | QS59: 46.35233333 | QT59: 43.17766667 | QU59: 51.49366667 | QV59: 45.83166667 | QW59: 48.94733333 | QX59: 3 | QY59: 5 | QZ59: 1.779666667 | RA59: -0.9156666667 | RB59: -2.540666667 | RC59: -5.122666667 | RD59: -5.502333333 | RE59: -3.406333333 | RF59: -3.370666667 | RG59: -2.129666667 | RH59: -2.883666667 | RI59: 0.5696666667 | RJ59: 1.626666667 | RK59: 4.286333333 | RL59: 4.670333333 | RM59: 8.006333333 | RN59: 4.932666667 | SD59: 47.16053333 | SE59: 94.32106667 | SF59: 30.1882496 | SG59: 234.3813513 | SH59: 10 | SI59: 23.43813513 | SJ59: 2.250038156 | SK59: 25.68817329 | SL59: 5.068350155 | SM59: 0.1074701619 | SN59: 10.74701619 | SO59: 15 | SP59: UYGUN | SQ59: UYGUN | SR59: 0.1616976999 | SS59: 0.1401425837
A60: 50 | B60: CHLORPYRIFOS-METHYL | C60: GC-MS/MS | D60: 1051349 | E60: 1108595 | G60: 3245603 | H60: 3340862 | J60: 5329096 | K60: 5876501 | M60: 16851455 | N60: 16854131 | P60: 33351350 | Q60: 30178808 | S60: 64468932 | T60: 54630733 | AC60: 50 | AD60: CHLORPYRIFOS-METHYL | AE60: 10 | AF60: 10.152 | AG60: 11.735 | AH60: 11.24 | AI60: 9.662 | AJ60: 9.936 | AK60: 10.489 | AL60: 11.198 | AM60: 8.536 | AN60: 11.259 | AO60: 11.437 | AP60: 11.807 | AQ60: 9.083 | AR60: 9.583 | AS60: 8.37 | AT60: 7.517 | BK60: 50 | BL60: Chlorpyrifos-methyl | BM60: 50 | BN60: 45.482 | BO60: 46.45 | BP60: 39.533 | BQ60: 49.371 | BR60: 41.066 | BS60: 40.707 | BT60: 42.217 | BU60: 49.093 | BV60: 37.507 | BW60: 48.96 | BX60: 46.625 | BY60: 43.662 | BZ60: 49.948 | CA60: 44.257 | CB60: 39.287 | CS60: 50 | CT60: CHLORPYRIFOS-METHYL | CU60: 10 | CV60: 11.149 | CW60: 9.221 | CX60: 11.316 | CY60: 10.758 | CZ60: 11.626 | DA60: 9.846 | DB60: 11.407 | DC60: 10.013 | DD60: 9.892 | DE60: 11.873 | DF60: 11.617 | DG60: 10.321 | DH60: 9.669 | DI60: 11.996 | DJ60: 10.839 | EA60: 50 | EB60: CHLORPYRIFOS-METHYL | EC60: 50 | ED60: 46.206 | EE60: 35.589 | EF60: 45.351 | EG60: 37.956 | EH60: 39.763 | EI60: 40.212 | EJ60: 35.15 | EK60: 46.196 | EL60: 37.495 | EM60: 46.837 | EN60: 52.991 | EO60: 48.573 | EP60: 55.816 | EQ60: 56.653 | ER60: 43.869 | FI60: 50 | FJ60: CHLORPYRIFOS-METHYL | FK60: 10 | FL60: 10.545 | FM60: 0.8950061452 | FN60: 105.45 | FO60: 8.487493079 | FP60: uygun | FQ60: uygun | FR60: 10.5838 | FS60: 1.200370651 | FT60: 105.838 | FU60: 11.34158479 | FV60: uygun | FW60: uygun | FX60: 9.272 | FY60: 1.616500541 | FZ60: 92.72 | GA60: 17.43421636 | GB60: uygun | GC60: uygun | GD60: -------- | GE60: -------- | GF60: -------- | GG60: -------- | GH60: uygun değil | GI60: uygun değil | GJ60: -------- | GK60: -------- | GL60: -------- | GM60: -------- | GN60: uygun değil | GO60: uygun değil | GP60: -------- | GQ60: -------- | GR60: -------- | GS60: -------- | GT60: uygun değil | GU60: uygun değil | GW60: 50 | GX60: CHLORPYRIFOS-METHYL | GY60: 50 | GZ60: 44.3804 | HA60: 4.027573376 | HB60: 88.7608 | HC60: 9.07511734 | HD60: uygun | HE60: uygun | HF60: 43.6968 | HG60: 5.154187249 | HH60: 87.3936 | HI60: 11.79534256 | HJ60: uygun | HK60: uygun | HL60: 44.7558 | HM60: 3.93083397 | HN60: 89.5116 | HO60: 8.78284819 | HP60: uygun | HQ60: uygun | HR60: -------- | HS60: -------- | HT60: -------- | HU60: -------- | HV60: uygun değil | HW60: uygun değil | HX60: -------- | HY60: -------- | HZ60: -------- | IA60: -------- | IB60: uygun değil | IC60: uygun değil | ID60: -------- | IE60: -------- | IF60: -------- | IG60: -------- | IH60: uygun değil | II60: uygun değil | JO60: 50 | JP60: CHLORPYRIFOS-METHYL | JQ60: 10 | JR60: 0.00023104 | JS60: 0.03010225 | JT60: 0.015376 | JU60: 0.00114244 | JV60: 4.096e-05 | JW60: 0.00239121 | JX60: 0.01435204 | JY60: 0.02143296 | JZ60: 0.01585081 | KA60: 0.02064969 | KB60: 0.03265249 | KC60: 0.00840889 | KD60: 0.00173889 | KE60: 0.026569 | KF60: 0.06165289 | KV60: 0.0081649296 | KW60: 0.005041 | KX60: 0.0438232356 | KY60: 0.0001582564 | KZ60: 0.0319265424 | LA60: 0.0345439396 | LB60: 0.0242300356 | LC60: 0.0003290596 | LD60: 0.0624300196 | LE60: 0.00043264 | LF60: 0.00455625 | LG60: 0.0160680976 | LH60: 1.0816e-06 | LI60: 0.0131928196 | LJ60: 0.0459073476 | LZ60: 0.01320201 | MA60: 0.00606841 | MB60: 0.01731856 | MC60: 0.00574564 | MD60: 0.02643876 | ME60: 0.00023716 | MF60: 0.01979649 | MG60: 1.69e-06 | MH60: 0.00011664 | MI60: 0.03508129 | MJ60: 0.02614689 | MK60: 0.00103041 | ML60: 0.00109561 | MM60: 0.03984016 | MN60: 0.00703921 | ND60: 0.0057577744 | NE60: 0.0830707684 | NF60: 0.0086452804 | NG60: 0.0580231744 | NH60: 0.0419184676 | NI60: 0.0383219776 | NJ60: 0.088209 | NK60: 0.0057881664 | NL60: 0.06255001 | NM60: 0.0040018276 | NN60: 0.0035784324 | NO60: 0.0008145316 | NP60: 0.0135303424 | NQ60: 0.0177049636 | NR60: 0.0150356644 | OH60: 60 | OI60: 1.189506126 | OJ60: 0.140801641 | OL60: 50 | OM60: CHLORPYRIFOS-METHYL | ON60: 10 | OO60: 10.87066667 | OP60: 10.31633333 | OQ60: 10.33266667 | OR60: 10.882 | OS60: 11.446 | OT60: 3 | OU60: 5 | OV60: 0.2783333333 | OW60: -1.095333333 | OX60: 0.9833333333 | OY60: -0.124 | OZ60: 0.18 | PA60: -1.024666667 | PB60: 1.090666667 | PC60: -0.3196666667 | PD60: -0.99 | PE60: 0.427 | PF60: 0.7463333333 | PG60: 0.004666666667 | PH60: -0.6636666667 | PI60: 1.114 | PJ60: -0.607 | PZ60: 10.76953333 | QA60: 107.6953333 | QB60: 0.6575449333 | QC60: 8.40299 | QD60: 10 | QE60: 0.840299 | QF60: 0 | QG60: 0.840299 | QH60: 0.9166782424 | QI60: 0.0851177311 | QJ60: 8.51177311 | QK60: 15 | QL60: UYGUN | QM60: UYGUN | QN60: 0.1014303941 | QP60: 50 | QQ60: CHLORPYRIFOS-METHYL | QR60: 50 | QS60: 46.46966667 | QT60: 39.77066667 | QU60: 49.121 | QV60: 44.03466667 | QW60: 43.48966667 | QX60: 3 | QY60: 5 | QZ60: -0.2636666667 | RA60: -4.181666667 | RB60: -3.77 | RC60: -6.078666667 | RD60: -3.726666667 | RE60: -6.257666667 | RF60: -4.620666667 | RG60: -2.925 | RH60: -6.539666667 | RI60: 3.347333333 | RJ60: 6.521333333 | RK60: 8.802333333 | RL60: 6.695 | RM60: 12.61833333 | RN60: 0.3793333333 | SD60: 44.57713333 | SE60: 89.15426667 | SF60: 36.60553677 | SG60: 529.8415627 | SH60: 10 | SI60: 52.98415627 | SJ60: 0 | SK60: 52.98415627 | SL60: 7.279021656 | SM60: 0.1632904835 | SN60: 5.24 | SO60: 15 | SP60: UYGUN | SQ60: UYGUN | SR60: 0.3732929481 | SS60: 0.1302090822
